Workbook

Sheet ProjectList (hidden)
B1: 696536 End of the Year | K1: Encumbrance | O1: Object Codes
A2: =IF(B2="","",MAX(A$1:A1)+1) ->  | B2: =IF(B$1=Programs!$J2,Programs!K2,"") ->  | D2: =IFERROR(INDEX($B$2:$B$199,MATCH(ROW()-ROW($D$1),$A$2:$A$199,0)),"") -> EOY Luncheon | K2: Budget | O2: VAL | P2: DESCRIPTION
A3: =IF(B3="","",MAX(A$1:A2)+1) ->  | B3: =IF(B$1=Programs!$J3,Programs!K3,"") ->  | O3: 48891 | P3: Misc Revenue
A4: =IF(B4="","",MAX(A$1:A3)+1) ->  | B4: =IF(B$1=Programs!$J4,Programs!K4,"") ->  | O4: 48860 | P4: Misc Revenue
A5: =IF(B5="","",MAX(A$1:A4)+1) ->  | B5: =IF(B$1=Programs!$J5,Programs!K5,"") ->  | O5: 48861 | P5: Misc Revenue
A6: =IF(B6="","",MAX(A$1:A5)+1) ->  | B6: =IF(B$1=Programs!$J6,Programs!K6,"") ->  | O6: 48885 | P6: Misc Revenue
A7: =IF(B7="","",MAX(A$1:A6)+1) ->  | B7: =IF(B$1=Programs!$J7,Programs!K7,"") ->  | O7: 51110 | P7: Instruc-Regular
A8: =IF(B8="","",MAX(A$1:A7)+1) ->  | B8: =IF(B$1=Programs!$J8,Programs!K8,"") ->  | O8: 51170 | P8: Instruc-Sabb Lv
A9: =IF(B9="","",MAX(A$1:A8)+1) ->  | B9: =IF(B$1=Programs!$J9,Programs!K9,"") ->  | O9: 51210 | P9: NonInstruc-Reg
A10: =IF(B10="","",MAX(A$1:A9)+1) ->  | B10: =IF(B$1=Programs!$J10,Programs!K10,"") ->  | O10: 51270 | P10: NonInstruc-Sabb Lv
A11: =IF(B11="","",MAX(A$1:A10)+1) ->  | B11: =IF(B$1=Programs!$J11,Programs!K11,"") ->  | O11: 51310 | P11: Instruc-Overload
A12: =IF(B12="","",MAX(A$1:A11)+1) ->  | B12: =IF(B$1=Programs!$J12,Programs!K12,"") ->  | O12: 51330 | P12: Instruc-Hourly/Daily
A13: =IF(B13="","",MAX(A$1:A12)+1) ->  | B13: =IF(B$1=Programs!$J13,Programs!K13,"") ->  | O13: 51340 | P13: Instruc-Subs
A14: =IF(B14="","",MAX(A$1:A13)+1) ->  | B14: =IF(B$1=Programs!$J14,Programs!K14,"") ->  | O14: 51360 | P14: Instruc-Pro Rata
A15: =IF(B15="","",MAX(A$1:A14)+1) ->  | B15: =IF(B$1=Programs!$J15,Programs!K15,"") ->  | O15: 51420 | P15: NonInstruc-Mgmt
A16: =IF(B16="","",MAX(A$1:A15)+1) ->  | B16: =IF(B$1=Programs!$J16,Programs!K16,"") ->  | O16: 51430 | P16: NonInstruc-Hourly/Daily
A17: =IF(B17="","",MAX(A$1:A16)+1) ->  | B17: =IF(B$1=Programs!$J17,Programs!K17,"") ->  | O17: 51440 | P17: NonInstruc-Subs
A18: =IF(B18="","",MAX(A$1:A17)+1) ->  | B18: =IF(B$1=Programs!$J18,Programs!K18,"") ->  | O18: 51450 | P18: NonInstruc-Vac PO
A19: =IF(B19="","",MAX(A$1:A18)+1) ->  | B19: =IF(B$1=Programs!$J19,Programs!K19,"") ->  | O19: 51460 | P19: NonInstruct-Pro Rata
A20: =IF(B20="","",MAX(A$1:A19)+1) ->  | B20: =IF(B$1=Programs!$J20,Programs!K20,"") ->  | O20: 51480 | P20: Vol Retirement Incentive
A21: =IF(B21="","",MAX(A$1:A20)+1) ->  | B21: =IF(B$1=Programs!$J21,Programs!K21,"") ->  | O21: 51999 | P21: Instruc Sal Clearing
A22: =IF(B22="","",MAX(A$1:A21)+1) ->  | B22: =IF(B$1=Programs!$J22,Programs!K22,"") ->  | O22: 52110 | P22: NonInstuc-Reg
A23: =IF(B23="","",MAX(A$1:A22)+1) ->  | B23: =IF(B$1=Programs!$J23,Programs!K23,"") ->  | O23: 52120 | P23: NonInstruc-Mgmt
A24: =IF(B24="","",MAX(A$1:A23)+1) ->  | B24: =IF(B$1=Programs!$J24,Programs!K24,"") ->  | O24: 52150 | P24: NonInstruc-Vac PO
A25: =IF(B25="","",MAX(A$1:A24)+1) ->  | B25: =IF(B$1=Programs!$J25,Programs!K25,"") ->  | O25: 52210 | P25: Instruc Aides-Reg
A26: =IF(B26="","",MAX(A$1:A25)+1) ->  | B26: =IF(B$1=Programs!$J26,Programs!K26,"") ->  | O26: 52250 | P26: Instruc Aides-Vac PO
A27: =IF(B27="","",MAX(A$1:A26)+1) ->  | B27: =IF(B$1=Programs!$J27,Programs!K27,"") ->  | O27: 52330 | P27: NonInstruc-Hourly
A28: =IF(B28="","",MAX(A$1:A27)+1) ->  | B28: =IF(B$1=Programs!$J28,Programs!K28,"") ->  | O28: 52331 | P28: Stu-NonInstruc-Hourly
A29: =IF(B29="","",MAX(A$1:A28)+1) ->  | B29: =IF(B$1=Programs!$J29,Programs!K29,"") ->  | O29: 52332 | P29: Stu-NonInstruc-Fed WS
A30: =IF(B30="","",MAX(A$1:A29)+1) ->  | B30: =IF(B$1=Programs!$J30,Programs!K30,"") ->  | O30: 52333 | P30: Stu-NonInstruc-Fire/Security
A31: =IF(B31="","",MAX(A$1:A30)+1) ->  | B31: =IF(B$1=Programs!$J31,Programs!K31,"") ->  | O31: 52334 | P31: Stu-NonInstruc-Cal WS
A32: =IF(B32="","",MAX(A$1:A31)+1) ->  | B32: =IF(B$1=Programs!$J32,Programs!K32,"") ->  | O32: 52340 | P32: NonInstruc-Subs
A33: =IF(B33="","",MAX(A$1:A32)+1) ->  | B33: =IF(B$1=Programs!$J33,Programs!K33,"") ->  | O33: 52360 | P33: NonInstruc-OT
A34: =IF(B34="","",MAX(A$1:A33)+1) -> 1 | B34: =IF(B$1=Programs!$J34,Programs!K34,"") -> EOY Luncheon | D34: =IFERROR(INDEX($B$2:$B$199,MATCH(ROW()-ROW($D$1),$A$2:$A$199,0)),"") ->  | O34: 52430 | P34: Instruc Aides-Hourly
A35: =IF(B35="","",MAX(A$1:A34)+1) ->  | B35: =IF(B$1=Programs!$J35,Programs!K35,"") ->  | O35: 52431 | P35: Stu-Instruc Aides-Hourly
A36: =IF(B36="","",MAX(A$1:A35)+1) ->  | B36: =IF(B$1=Programs!$J36,Programs!K36,"") ->  | O36: 52432 | P36: Stu-Instruc Aides-Fed WS
A37: =IF(B37="","",MAX(A$1:A36)+1) ->  | B37: =IF(B$1=Programs!$J37,Programs!K37,"") ->  | O37: 52434 | P37: Stu-Instruc Aides-CAL WS
A38: =IF(B38="","",MAX(A$1:A37)+1) ->  | B38: =IF(B$1=Programs!$J38,Programs!K38,"") ->  | O38: 52440 | P38: Instruc Aides-Subs
A39: =IF(B39="","",MAX(A$1:A38)+1) ->  | B39: =IF(B$1=Programs!$J39,Programs!K39,"") ->  | O39: 52480 | P39: Vol Retirement Incentive
A40: =IF(B40="","",MAX(A$1:A39)+1) ->  | B40: =IF(B$1=Programs!$J40,Programs!K40,"") ->  | O40: 52999 | P40: Class Salaries Clearing
A41: =IF(B41="","",MAX(A$1:A40)+1) ->  | B41: =IF(B$1=Programs!$J41,Programs!K41,"") ->  | O41: 53000 | P41: Benefit Budget Pool
A42: =IF(B42="","",MAX(A$1:A41)+1) ->  | B42: =IF(B$1=Programs!$J42,Programs!K42,"") ->  | O42: 53100 | P42: STRS-Acad Class
A43: =IF(B43="","",MAX(A$1:A42)+1) ->  | B43: =IF(B$1=Programs!$J43,Programs!K43,"") ->  | O43: 53101 | P43: STRS-Classif Class
A44: =IF(B44="","",MAX(A$1:A43)+1) ->  | B44: =IF(B$1=Programs!$J44,Programs!K44,"") ->  | O44: 53102 | P44: STRS-Acad Non Class
A45: =IF(B45="","",MAX(A$1:A44)+1) ->  | B45: =IF(B$1=Programs!$J45,Programs!K45,"") ->  | O45: 53103 | P45: STRS-Classif Non Class
A46: =IF(B46="","",MAX(A$1:A45)+1) ->  | B46: =IF(B$1=Programs!$J46,Programs!K46,"") ->  | O46: 53104 | P46: STRS-Mgmt
A47: =IF(B47="","",MAX(A$1:A46)+1) ->  | B47: =IF(B$1=Programs!$J47,Programs!K47,"") ->  | O47: 53200 | P47: PERS-Acad Class
A48: =IF(B48="","",MAX(A$1:A47)+1) ->  | B48: =IF(B$1=Programs!$J48,Programs!K48,"") ->  | O48: 53201 | P48: PERS-Classif Class
A49: =IF(B49="","",MAX(A$1:A48)+1) ->  | B49: =IF(B$1=Programs!$J49,Programs!K49,"") ->  | O49: 53202 | P49: PERS-Acad Non Class
A50: =IF(B50="","",MAX(A$1:A49)+1) ->  | B50: =IF(B$1=Programs!$J50,Programs!K50,"") ->  | O50: 53203 | P50: PERS-Classif Non Class
A51: =IF(B51="","",MAX(A$1:A50)+1) ->  | B51: =IF(B$1=Programs!$J51,Programs!K51,"") ->  | O51: 53204 | P51: PERS-Mgmt
A52: =IF(B52="","",MAX(A$1:A51)+1) ->  | B52: =IF(B$1=Programs!$J52,Programs!K52,"") ->  | O52: 53209 | P52: PERS-Admin
A53: =IF(B53="","",MAX(A$1:A52)+1) ->  | B53: =IF(B$1=Programs!$J53,Programs!K53,"") ->  | O53: 53300 | P53: OASDI-Acad Class
A54: =IF(B54="","",MAX(A$1:A53)+1) ->  | B54: =IF(B$1=Programs!$J54,Programs!K54,"") ->  | O54: 53301 | P54: OASDI-Classif Class
A55: =IF(B55="","",MAX(A$1:A54)+1) ->  | B55: =IF(B$1=Programs!$J55,Programs!K55,"") ->  | O55: 53302 | P55: OASDI-Acad Non Class
A56: =IF(B56="","",MAX(A$1:A55)+1) ->  | B56: =IF(B$1=Programs!$J56,Programs!K56,"") ->  | O56: 53303 | P56: OASDI-Classif Non Class
A57: =IF(B57="","",MAX(A$1:A56)+1) ->  | B57: =IF(B$1=Programs!$J57,Programs!K57,"") ->  | O57: 53304 | P57: OASDI-Mgmt
A58: =IF(B58="","",MAX(A$1:A57)+1) ->  | B58: =IF(B$1=Programs!$J58,Programs!K58,"") ->  | O58: 53310 | P58: Medicare-Acad Class
A59: =IF(B59="","",MAX(A$1:A58)+1) ->  | B59: =IF(B$1=Programs!$J59,Programs!K59,"") ->  | O59: 53311 | P59: Medicare-Classif Class
A60: =IF(B60="","",MAX(A$1:A59)+1) ->  | B60: =IF(B$1=Programs!$J60,Programs!K60,"") ->  | O60: 53312 | P60: Medicare-Acad Non Class
A61: =IF(B61="","",MAX(A$1:A60)+1) ->  | B61: =IF(B$1=Programs!$J61,Programs!K61,"") ->  | O61: 53313 | P61: Medicare-Classif Non Class
A62: =IF(B62="","",MAX(A$1:A61)+1) ->  | B62: =IF(B$1=Programs!$J62,Programs!K62,"") ->  | O62: 53314 | P62: Medicare-Mgmt
A63: =IF(B63="","",MAX(A$1:A62)+1) ->  | B63: =IF(B$1=Programs!$J63,Programs!K63,"") ->  | O63: 53400 | P63: Health-Acad Class
A64: =IF(B64="","",MAX(A$1:A63)+1) ->  | B64: =IF(B$1=Programs!$J64,Programs!K64,"") ->  | O64: 53401 | P64: Health-Classif Class
A65: =IF(B65="","",MAX(A$1:A64)+1) ->  | B65: =IF(B$1=Programs!$J65,Programs!K65,"") ->  | O65: 53402 | P65: Health-Acad Non Class
A66: =IF(B66="","",MAX(A$1:A65)+1) ->  | B66: =IF(B$1=Programs!$J66,Programs!K66,"") ->  | D66: =IFERROR(INDEX($B$2:$B$199,MATCH(ROW()-ROW($D$1),$A$2:$A$199,0)),"") ->  | O66: 53403 | P66: Health-Classif Non Class
A67: =IF(B67="","",MAX(A$1:A66)+1) ->  | B67: =IF(B$1=Programs!$J67,Programs!K67,"") ->  | O67: 53404 | P67: Health-Mgmt
A68: =IF(B68="","",MAX(A$1:A67)+1) ->  | B68: =IF(B$1=Programs!$J68,Programs!K68,"") ->  | O68: 53405 | P68: Health-Acad Retirees
A69: =IF(B69="","",MAX(A$1:A68)+1) ->  | B69: =IF(B$1=Programs!$J69,Programs!K69,"") ->  | O69: 53406 | P69: Health-Classif Retirees
A70: =IF(B70="","",MAX(A$1:A69)+1) ->  | B70: =IF(B$1=Programs!$J70,Programs!K70,"") ->  | O70: 53407 | P70: Health-Mgmt Retirees
A71: =IF(B71="","",MAX(A$1:A70)+1) ->  | B71: =IF(B$1=Programs!$J71,Programs!K71,"") ->  | O71: 53408 | P71: Health-Trustees
A72: =IF(B72="","",MAX(A$1:A71)+1) ->  | B72: =IF(B$1=Programs!$J72,Programs!K72,"") ->  | O72: 53409 | P72: Health-Admin
A73: =IF(B73="","",MAX(A$1:A72)+1) ->  | B73: =IF(B$1=Programs!$J73,Programs!K73,"") ->  | O73: 53410 | P73: Health-COBRA
A74: =IF(B74="","",MAX(A$1:A73)+1) ->  | B74: =IF(B$1=Programs!$J74,Programs!K74,"") ->  | O74: 53411 | P74: DNU
A75: =IF(B75="","",MAX(A$1:A74)+1) ->  | B75: =IF(B$1=Programs!$J75,Programs!K75,"") ->  | O75: 53412 | P75: DNU
A76: =IF(B76="","",MAX(A$1:A75)+1) ->  | B76: =IF(B$1=Programs!$J76,Programs!K76,"") ->  | O76: 53413 | P76: DNU
A77: =IF(B77="","",MAX(A$1:A76)+1) ->  | B77: =IF(B$1=Programs!$J77,Programs!K77,"") ->  | O77: 53414 | P77: DNU
A78: =IF(B78="","",MAX(A$1:A77)+1) ->  | B78: =IF(B$1=Programs!$J78,Programs!K78,"") ->  | O78: 53420 | P78: DNU
A79: =IF(B79="","",MAX(A$1:A78)+1) ->  | B79: =IF(B$1=Programs!$J79,Programs!K79,"") ->  | O79: 53421 | P79: DNU
A80: =IF(B80="","",MAX(A$1:A79)+1) ->  | B80: =IF(B$1=Programs!$J80,Programs!K80,"") ->  | O80: 53422 | P80: DNU
A81: =IF(B81="","",MAX(A$1:A80)+1) ->  | B81: =IF(B$1=Programs!$J81,Programs!K81,"") ->  | O81: 53423 | P81: DNU
A82: =IF(B82="","",MAX(A$1:A81)+1) ->  | B82: =IF(B$1=Programs!$J82,Programs!K82,"") ->  | O82: 53430 | P82: DNU
A83: =IF(B83="","",MAX(A$1:A82)+1) ->  | B83: =IF(B$1=Programs!$J83,Programs!K83,"") ->  | O83: 53431 | P83: DNU
A84: =IF(B84="","",MAX(A$1:A83)+1) ->  | B84: =IF(B$1=Programs!$J84,Programs!K84,"") ->  | O84: 53440 | P84: DNU
A85: =IF(B85="","",MAX(A$1:A84)+1) ->  | B85: =IF(B$1=Programs!$J85,Programs!K85,"") ->  | O85: 53441 | P85: DNU
A86: =IF(B86="","",MAX(A$1:A85)+1) ->  | B86: =IF(B$1=Programs!$J86,Programs!K86,"") ->  | O86: 53442 | P86: DNU
A87: =IF(B87="","",MAX(A$1:A86)+1) ->  | B87: =IF(B$1=Programs!$J87,Programs!K87,"") ->  | O87: 53443 | P87: DNU
A88: =IF(B88="","",MAX(A$1:A87)+1) ->  | B88: =IF(B$1=Programs!$J88,Programs!K88,"") ->  | O88: 53450 | P88: Dental-Acad Class
A89: =IF(B89="","",MAX(A$1:A88)+1) ->  | B89: =IF(B$1=Programs!$J89,Programs!K89,"") ->  | O89: 53451 | P89: Dental-Classif Class
A90: =IF(B90="","",MAX(A$1:A89)+1) ->  | B90: =IF(B$1=Programs!$J90,Programs!K90,"") ->  | O90: 53452 | P90: Dental-Acad Non Class
A91: =IF(B91="","",MAX(A$1:A90)+1) ->  | B91: =IF(B$1=Programs!$J91,Programs!K91,"") ->  | O91: 53453 | P91: Dental-Classif Non Class
A92: =IF(B92="","",MAX(A$1:A91)+1) ->  | B92: =IF(B$1=Programs!$J92,Programs!K92,"") ->  | O92: 53454 | P92: Dental-Mgmt
A93: =IF(B93="","",MAX(A$1:A92)+1) ->  | B93: =IF(B$1=Programs!$J93,Programs!K93,"") ->  | O93: 53455 | P93: Dental-Acad Retirees
A94: =IF(B94="","",MAX(A$1:A93)+1) ->  | B94: =IF(B$1=Programs!$J94,Programs!K94,"") ->  | O94: 53456 | P94: Dental-Classif Retirees
A95: =IF(B95="","",MAX(A$1:A94)+1) ->  | B95: =IF(B$1=Programs!$J95,Programs!K95,"") ->  | O95: 53457 | P95: Dental-Mgmt Retirees
A96: =IF(B96="","",MAX(A$1:A95)+1) ->  | B96: =IF(B$1=Programs!$J96,Programs!K96,"") ->  | O96: 53458 | P96: Dental-Trustees
A97: =IF(B97="","",MAX(A$1:A96)+1) ->  | B97: =IF(B$1=Programs!$J97,Programs!K97,"") ->  | O97: 53459 | P97: Dental-Admin Fees
A98: =IF(B98="","",MAX(A$1:A97)+1) ->  | B98: =IF(B$1=Programs!$J98,Programs!K98,"") ->  | D98: =IFERROR(INDEX($B$2:$B$199,MATCH(ROW()-ROW($D$1),$A$2:$A$199,0)),"") ->  | O98: 53460 | P98: Vision-Acad Class
A99: =IF(B99="","",MAX(A$1:A98)+1) ->  | B99: =IF(B$1=Programs!$J99,Programs!K99,"") ->  | O99: 53461 | P99: Vision-Classif Class
A100: =IF(B100="","",MAX(A$1:A99)+1) ->  | B100: =IF(B$1=Programs!$J100,Programs!K100,"") ->  | O100: 53462 | P100: Vision-Acad Non Class
A101: =IF(B101="","",MAX(A$1:A100)+1) ->  | B101: =IF(B$1=Programs!$J101,Programs!K101,"") ->  | O101: 53463 | P101: Vision-Classif Non Class
A102: =IF(B102="","",MAX(A$1:A101)+1) ->  | B102: =IF(B$1=Programs!$J102,Programs!K102,"") ->  | O102: 53464 | P102: Vision-Mgmt
A103: =IF(B103="","",MAX(A$1:A102)+1) ->  | B103: =IF(B$1=Programs!$J103,Programs!K103,"") ->  | O103: 53465 | P103: Vision-Acad Retirees
A104: =IF(B104="","",MAX(A$1:A103)+1) ->  | B104: =IF(B$1=Programs!$J104,Programs!K104,"") ->  | O104: 53466 | P104: Vision-Class Retirees
A105: =IF(B105="","",MAX(A$1:A104)+1) ->  | B105: =IF(B$1=Programs!$J105,Programs!K105,"") ->  | O105: 53467 | P105: Vision-Mgmt Retirees
A106: =IF(B106="","",MAX(A$1:A105)+1) ->  | B106: =IF(B$1=Programs!$J106,Programs!K106,"") ->  | O106: 53468 | P106: Vision-Trustees
A107: =IF(B107="","",MAX(A$1:A106)+1) ->  | B107: =IF(B$1=Programs!$J107,Programs!K107,"") ->  | O107: 53469 | P107: Vision-Admin Fees
A108: =IF(B108="","",MAX(A$1:A107)+1) ->  | B108: =IF(B$1=Programs!$J108,Programs!K108,"") ->  | O108: 53470 | P108: LTD-Acad Class
A109: =IF(B109="","",MAX(A$1:A108)+1) ->  | B109: =IF(B$1=Programs!$J109,Programs!K109,"") ->  | O109: 53471 | P109: LTD-Classif Class
A110: =IF(B110="","",MAX(A$1:A109)+1) ->  | B110: =IF(B$1=Programs!$J110,Programs!K110,"") ->  | O110: 53472 | P110: LTD-Acad Non Class
A111: =IF(B111="","",MAX(A$1:A110)+1) ->  | B111: =IF(B$1=Programs!$J111,Programs!K111,"") ->  | O111: 53473 | P111: LTD-Classif Non Class
A112: =IF(B112="","",MAX(A$1:A111)+1) ->  | B112: =IF(B$1=Programs!$J112,Programs!K112,"") ->  | O112: 53474 | P112: LTD-Mgmt
A113: =IF(B113="","",MAX(A$1:A112)+1) ->  | B113: =IF(B$1=Programs!$J113,Programs!K113,"") ->  | O113: 53479 | P113: LTD-Admin
A114: =IF(B114="","",MAX(A$1:A113)+1) ->  | B114: =IF(B$1=Programs!$J114,Programs!K114,"") ->  | O114: 53480 | P114: STD-Acad Class
A115: =IF(B115="","",MAX(A$1:A114)+1) ->  | B115: =IF(B$1=Programs!$J115,Programs!K115,"") ->  | O115: 53481 | P115: STD-Classif Class
A116: =IF(B116="","",MAX(A$1:A115)+1) ->  | B116: =IF(B$1=Programs!$J116,Programs!K116,"") ->  | O116: 53482 | P116: STD-Acad Non Class
A117: =IF(B117="","",MAX(A$1:A116)+1) ->  | B117: =IF(B$1=Programs!$J117,Programs!K117,"") ->  | O117: 53483 | P117: STD-Classif Non Class
A118: =IF(B118="","",MAX(A$1:A117)+1) ->  | B118: =IF(B$1=Programs!$J118,Programs!K118,"") ->  | O118: 53484 | P118: STD-Mgmt
A119: =IF(B119="","",MAX(A$1:A118)+1) ->  | B119: =IF(B$1=Programs!$J119,Programs!K119,"") ->  | O119: 53485 | P119: Do Not Use
A120: =IF(B120="","",MAX(A$1:A119)+1) ->  | B120: =IF(B$1=Programs!$J120,Programs!K120,"") ->  | O120: 53489 | P120: STD-Admin Fees
A121: =IF(B121="","",MAX(A$1:A120)+1) ->  | B121: =IF(B$1=Programs!$J121,Programs!K121,"") ->  | O121: 53490 | P121: Ret Hlth Liab-Acad Class
A122: =IF(B122="","",MAX(A$1:A121)+1) ->  | B122: =IF(B$1=Programs!$J122,Programs!K122,"") ->  | O122: 53491 | P122: Ret Hlth Liab-Classif Class
A123: =IF(B123="","",MAX(A$1:A122)+1) ->  | B123: =IF(B$1=Programs!$J123,Programs!K123,"") ->  | O123: 53492 | P123: Ret Hlth Liab-Acad Non Class
A124: =IF(B124="","",MAX(A$1:A123)+1) ->  | B124: =IF(B$1=Programs!$J124,Programs!K124,"") ->  | O124: 53493 | P124: Ret Hlth Liab-Class Non Class
A125: =IF(B125="","",MAX(A$1:A124)+1) ->  | B125: =IF(B$1=Programs!$J125,Programs!K125,"") ->  | O125: 53494 | P125: Ret Hlth Liab-Mgmt
A126: =IF(B126="","",MAX(A$1:A125)+1) ->  | B126: =IF(B$1=Programs!$J126,Programs!K126,"") ->  | O126: 53499 | P126: Health Benefit Assessment
A127: =IF(B127="","",MAX(A$1:A126)+1) ->  | B127: =IF(B$1=Programs!$J127,Programs!K127,"") ->  | O127: 53500 | P127: St Unempl-Acad Class
A128: =IF(B128="","",MAX(A$1:A127)+1) ->  | B128: =IF(B$1=Programs!$J128,Programs!K128,"") ->  | O128: 53501 | P128: St Unempl-Classif Class
A129: =IF(B129="","",MAX(A$1:A128)+1) ->  | B129: =IF(B$1=Programs!$J129,Programs!K129,"") ->  | O129: 53502 | P129: St Unempl-Acad Non Class
A130: =IF(B130="","",MAX(A$1:A129)+1) ->  | B130: =IF(B$1=Programs!$J130,Programs!K130,"") ->  | D130: =IFERROR(INDEX($B$2:$B$199,MATCH(ROW()-ROW($D$1),$A$2:$A$199,0)),"") ->  | O130: 53503 | P130: St Unempl-Classif Non Class
A131: =IF(B131="","",MAX(A$1:A130)+1) ->  | B131: =IF(B$1=Programs!$J131,Programs!K131,"") ->  | O131: 53504 | P131: St Unempl-Mgmt
A132: =IF(B132="","",MAX(A$1:A131)+1) ->  | B132: =IF(B$1=Programs!$J132,Programs!K132,"") ->  | O132: 53509 | P132: St Unempl-LEC
A133: =IF(B133="","",MAX(A$1:A132)+1) ->  | B133: =IF(B$1=Programs!$J133,Programs!K133,"") ->  | O133: 53600 | P133: WC-Acad Class
A134: =IF(B134="","",MAX(A$1:A133)+1) ->  | B134: =IF(B$1=Programs!$J134,Programs!K134,"") ->  | O134: 53601 | P134: WC-Classif Class
A135: =IF(B135="","",MAX(A$1:A134)+1) ->  | B135: =IF(B$1=Programs!$J135,Programs!K135,"") ->  | O135: 53602 | P135: WC-Acad Non Class
A136: =IF(B136="","",MAX(A$1:A135)+1) ->  | B136: =IF(B$1=Programs!$J136,Programs!K136,"") ->  | O136: 53603 | P136: WC-Classif Non Class
A137: =IF(B137="","",MAX(A$1:A136)+1) ->  | B137: =IF(B$1=Programs!$J137,Programs!K137,"") ->  | O137: 53604 | P137: WC-Mgmt
A138: =IF(B138="","",MAX(A$1:A137)+1) ->  | B138: =IF(B$1=Programs!$J138,Programs!K138,"") ->  | O138: 53609 | P138: WC-Admin
A139: =IF(B139="","",MAX(A$1:A138)+1) ->  | B139: =IF(B$1=Programs!$J139,Programs!K139,"") ->  | O139: 53700 | P139: Apple-Acad Class
A140: =IF(B140="","",MAX(A$1:A139)+1) ->  | B140: =IF(B$1=Programs!$J140,Programs!K140,"") ->  | O140: 53701 | P140: Apple-Classif Class
A141: =IF(B141="","",MAX(A$1:A140)+1) ->  | B141: =IF(B$1=Programs!$J141,Programs!K141,"") ->  | O141: 53702 | P141: Apple-Acad Non Class
A142: =IF(B142="","",MAX(A$1:A141)+1) ->  | B142: =IF(B$1=Programs!$J142,Programs!K142,"") ->  | O142: 53703 | P142: Apple-Classif Non Class
A143: =IF(B143="","",MAX(A$1:A142)+1) ->  | B143: =IF(B$1=Programs!$J143,Programs!K143,"") ->  | O143: 53704 | P143: Apple-Mgmt
A144: =IF(B144="","",MAX(A$1:A143)+1) ->  | B144: =IF(B$1=Programs!$J144,Programs!K144,"") ->  | O144: 53709 | P144: Apple-Admin Fees
A145: =IF(B145="","",MAX(A$1:A144)+1) ->  | B145: =IF(B$1=Programs!$J145,Programs!K145,"") ->  | O145: 53800 | P145: DNU
A146: =IF(B146="","",MAX(A$1:A145)+1) ->  | B146: =IF(B$1=Programs!$J146,Programs!K146,"") ->  | O146: 53801 | P146: DNU
A147: =IF(B147="","",MAX(A$1:A146)+1) ->  | B147: =IF(B$1=Programs!$J147,Programs!K147,"") ->  | O147: 53802 | P147: DNU
A148: =IF(B148="","",MAX(A$1:A147)+1) ->  | B148: =IF(B$1=Programs!$J148,Programs!K148,"") ->  | O148: 53803 | P148: DNU
A149: =IF(B149="","",MAX(A$1:A148)+1) ->  | B149: =IF(B$1=Programs!$J149,Programs!K149,"") ->  | O149: 53804 | P149: DNU
A150: =IF(B150="","",MAX(A$1:A149)+1) ->  | B150: =IF(B$1=Programs!$J150,Programs!K150,"") ->  | O150: 53805 | P150: DNU
A151: =IF(B151="","",MAX(A$1:A150)+1) ->  | B151: =IF(B$1=Programs!$J151,Programs!K151,"") ->  | O151: 53806 | P151: DNU
A152: =IF(B152="","",MAX(A$1:A151)+1) ->  | B152: =IF(B$1=Programs!$J152,Programs!K152,"") ->  | O152: 53807 | P152: DNU
A153: =IF(B153="","",MAX(A$1:A152)+1) ->  | B153: =IF(B$1=Programs!$J153,Programs!K153,"") ->  | O153: 53808 | P153: DNU
A154: =IF(B154="","",MAX(A$1:A153)+1) ->  | B154: =IF(B$1=Programs!$J154,Programs!K154,"") ->  | O154: 53809 | P154: DNU
A155: =IF(B155="","",MAX(A$1:A154)+1) ->  | B155: =IF(B$1=Programs!$J155,Programs!K155,"") ->  | O155: 53810 | P155: DNU
A156: =IF(B156="","",MAX(A$1:A155)+1) ->  | B156: =IF(B$1=Programs!$J156,Programs!K156,"") ->  | O156: 53900 | P156: Life-Acad Class
A157: =IF(B157="","",MAX(A$1:A156)+1) ->  | B157: =IF(B$1=Programs!$J157,Programs!K157,"") ->  | O157: 53901 | P157: Life-Classif Class
A158: =IF(B158="","",MAX(A$1:A157)+1) ->  | B158: =IF(B$1=Programs!$J158,Programs!K158,"") ->  | O158: 53902 | P158: Life-Acad Non Class
A159: =IF(B159="","",MAX(A$1:A158)+1) ->  | B159: =IF(B$1=Programs!$J159,Programs!K159,"") ->  | O159: 53903 | P159: Life-Class Non Class
A160: =IF(B160="","",MAX(A$1:A159)+1) ->  | B160: =IF(B$1=Programs!$J160,Programs!K160,"") ->  | O160: 53904 | P160: Life-Mgmt
A161: =IF(B161="","",MAX(A$1:A160)+1) ->  | B161: =IF(B$1=Programs!$J161,Programs!K161,"") ->  | O161: 53908 | P161: Life-Trustees
A162: =IF(B162="","",MAX(A$1:A161)+1) ->  | B162: =IF(B$1=Programs!$J162,Programs!K162,"") ->  | D162: =IFERROR(INDEX($B$2:$B$199,MATCH(ROW()-ROW($D$1),$A$2:$A$199,0)),"") ->  | O162: 53999 | P162: Empl Benefits Clearing
A163: =IF(B163="","",MAX(A$1:A162)+1) ->  | B163: =IF(B$1=Programs!$J163,Programs!K163,"") ->  | O163: 54000 | P163: Supplies & Materials Pool
A164: =IF(B164="","",MAX(A$1:A163)+1) ->  | B164: =IF(B$1=Programs!$J164,Programs!K164,"") ->  | O164: 54101 | P164: Books-Text
A165: =IF(B165="","",MAX(A$1:A164)+1) ->  | B165: =IF(B$1=Programs!$J165,Programs!K165,"") ->  | O165: 54102 | P165: Books-Library
A166: =IF(B166="","",MAX(A$1:A165)+1) ->  | B166: =IF(B$1=Programs!$J166,Programs!K166,"") ->  | O166: 54103 | P166: Books-Other
A167: =IF(B167="","",MAX(A$1:A166)+1) ->  | B167: =IF(B$1=Programs!$J167,Programs!K167,"") ->  | O167: 54208 | P167: Library-Elec Subscriptions
A168: =IF(B168="","",MAX(A$1:A167)+1) ->  | B168: =IF(B$1=Programs!$J168,Programs!K168,"") ->  | O168: 54209 | P168: Library-Reg Subscriptions
A169: =IF(B169="","",MAX(A$1:A168)+1) ->  | B169: =IF(B$1=Programs!$J169,Programs!K169,"") ->  | O169: 54301 | P169: Instruc-Supplies
A170: =IF(B170="","",MAX(A$1:A169)+1) ->  | B170: =IF(B$1=Programs!$J170,Programs!K170,"") ->  | O170: 54302 | P170: Instruc-Subscriptions
A171: =IF(B171="","",MAX(A$1:A170)+1) ->  | B171: =IF(B$1=Programs!$J171,Programs!K171,"") ->  | O171: 54303 | P171: Instruc-Food
A172: =IF(B172="","",MAX(A$1:A171)+1) ->  | B172: =IF(B$1=Programs!$J172,Programs!K172,"") ->  | O172: 54304 | P172: Instruc-Records/Tapes
A173: =IF(B173="","",MAX(A$1:A172)+1) ->  | B173: =IF(B$1=Programs!$J173,Programs!K173,"") ->  | O173: 54305 | P173: Instruc-Audio/Visual
A174: =IF(B174="","",MAX(A$1:A173)+1) ->  | B174: =IF(B$1=Programs!$J174,Programs!K174,"") ->  | O174: 54306 | P174: Instruc-Musical Scores
A175: =IF(B175="","",MAX(A$1:A174)+1) ->  | B175: =IF(B$1=Programs!$J175,Programs!K175,"") ->  | O175: 54307 | P175: Instruc-Films
A176: =IF(B176="","",MAX(A$1:A175)+1) ->  | B176: =IF(B$1=Programs!$J176,Programs!K176,"") ->  | O176: 54308 | P176: Instruc-Perf
A177: =IF(B177="","",MAX(A$1:A176)+1) ->  | B177: =IF(B$1=Programs!$J177,Programs!K177,"") ->  | O177: 54309 | P177: Instruc-Supply Credits
A178: =IF(B178="","",MAX(A$1:A177)+1) ->  | B178: =IF(B$1=Programs!$J178,Programs!K178,"") ->  | O178: 54310 | P178: DNU
A179: =IF(B179="","",MAX(A$1:A178)+1) ->  | B179: =IF(B$1=Programs!$J179,Programs!K179,"") ->  | O179: 54311 | P179: Instruc-Copier Use
A180: =IF(B180="","",MAX(A$1:A179)+1) ->  | B180: =IF(B$1=Programs!$J180,Programs!K180,"") ->  | O180: 54312 | P180: Instruc-Dup Use
A181: =IF(B181="","",MAX(A$1:A180)+1) ->  | B181: =IF(B$1=Programs!$J181,Programs!K181,"") ->  | O181: 54313 | P181: Instruc - Incentives
A182: =IF(B182="","",MAX(A$1:A181)+1) ->  | B182: =IF(B$1=Programs!$J182,Programs!K182,"") ->  | O182: 54431 | P182: NonInstruc-Supplies
A183: =IF(B183="","",MAX(A$1:A182)+1) ->  | B183: =IF(B$1=Programs!$J183,Programs!K183,"") ->  | O183: 54432 | P183: DNU
A184: =IF(B184="","",MAX(A$1:A183)+1) ->  | B184: =IF(B$1=Programs!$J184,Programs!K184,"") ->  | O184: 54433 | P184: NonInstruc-First Aid
A185: =IF(B185="","",MAX(A$1:A184)+1) ->  | B185: =IF(B$1=Programs!$J185,Programs!K185,"") ->  | O185: 54434 | P185: NonInstruc-Swimming Pool
A186: =IF(B186="","",MAX(A$1:A185)+1) ->  | B186: =IF(B$1=Programs!$J186,Programs!K186,"") ->  | O186: 54450 | P186: NonInstruc-Gas/Oil
A187: =IF(B187="","",MAX(A$1:A186)+1) ->  | B187: =IF(B$1=Programs!$J187,Programs!K187,"") ->  | O187: 54451 | P187: NonInstruc-Tires
A188: =IF(B188="","",MAX(A$1:A187)+1) ->  | B188: =IF(B$1=Programs!$J188,Programs!K188,"") ->  | O188: 54452 | P188: NonInstruc-Repair Parts
A189: =IF(B189="","",MAX(A$1:A188)+1) ->  | B189: =IF(B$1=Programs!$J189,Programs!K189,"") ->  | O189: 54453 | P189: NonInstruc-Small Tools
A190: =IF(B190="","",MAX(A$1:A189)+1) ->  | B190: =IF(B$1=Programs!$J190,Programs!K190,"") ->  | O190: 54454 | P190: NonInstruc-Other Auto
A191: =IF(B191="","",MAX(A$1:A190)+1) ->  | B191: =IF(B$1=Programs!$J191,Programs!K191,"") ->  | O191: 54455 | P191: NonInstruc-Painting
A192: =IF(B192="","",MAX(A$1:A191)+1) ->  | B192: =IF(B$1=Programs!$J192,Programs!K192,"") ->  | O192: 54456 | P192: NonInstruc-Electrical
A193: =IF(B193="","",MAX(A$1:A192)+1) ->  | B193: =IF(B$1=Programs!$J193,Programs!K193,"") ->  | O193: 54457 | P193: NonInstruc-Plumbing
A194: =IF(B194="","",MAX(A$1:A193)+1) ->  | B194: =IF(B$1=Programs!$J194,Programs!K194,"") ->  | D194: =IFERROR(INDEX($B$2:$B$199,MATCH(ROW()-ROW($D$1),$A$2:$A$199,0)),"") ->  | O194: 54458 | P194: NonInstruc-Carpentry
A195: =IF(B195="","",MAX(A$1:A194)+1) ->  | B195: =IF(B$1=Programs!$J195,Programs!K195,"") ->  | O195: 54459 | P195: NonInstruc-Welding
A196: =IF(B196="","",MAX(A$1:A195)+1) ->  | B196: =IF(B$1=Programs!$J196,Programs!K196,"") ->  | O196: 54460 | P196: NonInstruc-Locksmith
A197: =IF(B197="","",MAX(A$1:A196)+1) ->  | B197: =IF(B$1=Programs!$J197,Programs!K197,"") ->  | O197: 54461 | P197: NonInstruc-Heat/Air
A198: =IF(B198="","",MAX(A$1:A197)+1) ->  | B198: =IF(B$1=Programs!$J198,Programs!K198,"") ->  | O198: 54462 | P198: NonInstruc-Roofing
A199: =IF(B199="","",MAX(A$1:A198)+1) ->  | B199: =IF(B$1=Programs!$J199,Programs!K199,"") ->  | O199: 54463 | P199: NonInstruc-Subscriptions/Per
A200: =IF(B200="","",MAX(A$1:A199)+1) ->  | B200: =IF(B$1=Programs!$J200,Programs!K200,"") ->  | O200: 54464 | P200: NonInstruc-Food/Hospitality
... 172 more rows

Sheet Instructions
L2: An Encumbrance Needs to have a Project
F3: Ctrl m will bring up the Main Menu | L3: Projects have encumbrances not budget
L4: The description can be changed at any time
A5: In Datatel | L5: To change the budget for Operating Activity
M6: First Change the main Budget
A7: Run General Ledger Trial Balance report | M7: Then change the Encumberance of the Object Code
L8: Use Accounting Forms to verify Budget amounts
B9: GLTB | C9: Fiscal Year | D9: Current Fiscal Year
C10: Detail or Summary Trial Balance | D10: Detail | K10: To do
C11: Detial TB Transaction Starting | D11: 07/01 of current fiscal year
C12: thru | D12: Current Date | L12: Review how budget is handled for Operating Activity
C14: GL Account Definition | D14: Drill Down
C16: Select/List | D16: Drill Down
C18: Fund.Group,Fund | D18: Include 71
C19: GL.Class | D19: Include 2, 4 & 5
C21: Prompt for additional selection criteria | D21: No
C23: Sort | D23: Drill Down
C25: GLA.FUND | D25: Y
C27: Verify Criteria | D27: N
C29: Generate Spreadsheet | D29: Yes
B31: The information is generated in an Excel file
B33: Select all information and copy | D33: Shift Ctrl End will select all information
B35: Paste the information in cell A1 on the GLTB Tab
B37: Choose the expenditures that need to be posted and click on the Post button

Sheet Detail
A1: Program | B1: Account Number | C1: Amount | D1: Date | E1: Type | F1: Project | G1: Description
A2: 696546 FLOW | B2: 71-0000-1960-696546-55991 | C2: 100000 | D2: 2021-07-01 | E2: Budget | F2: FLOW
A3: 696546 FLOW | B3: 71-0000-1960-696546-55991 | C3: 30078.06 | D3: 2021-08-20 | E3: Encumbered | F3: FLOW - Fall
A4: 696546 FLOW | B4: 71-0000-1960-696546-55991 | C4: 30078.06 | D4: 2021-07-01 | E4: Activity | F4: FLOW - Fall | G4: Winco Foods, Llc
A5: 696503 ASMJC Presents | B5: 71-0000-1960-696503-55669 | C5: 50000 | D5: 2021-07-01 | E5: Budget
A6: 696504 Project LEAD | B6: 71-0000-1960-696504-55669 | C6: 5500 | D6: 2021-07-01 | E6: Budget
A7: 696505 Cult Div & Ethnic Prog | B7: 71-0000-1960-696505-55669 | C7: 40000 | D7: 2021-07-01 | E7: Budget
A8: 696530 Operating Activity | B8: 71-0000-1960-696530-52110 | C8: 50000 | D8: 2021-07-01 | E8: Budget | F8: NonInstruc-Reg | G8: NonInstruc-Reg
A9: 696530 Operating Activity | B9: 71-0000-1960-696530-53000 | C9: 40000 | D9: 2021-07-01 | E9: Budget | F9: Fringe Benefits | G9: Fringe Benefits
A10: 696530 Operating Activity | B10: 71-0000-1960-696530-54431 | C10: 28000 | D10: 2021-07-01 | E10: Budget | F10: NonInstruc-Supplies | G10: NonInstruc-Supplies
A11: 696530 Operating Activity | B11: 71-0000-1960-696530-54464 | C11: 2000 | D11: 2021-07-01 | E11: Budget | F11: NonInstruc-Food/Hospitality | G11: NonInstruc-Food/Hospitality
A12: 696530 Operating Activity | B12: 71-0000-1960-696530-54501 | C12: 4000 | D12: 2021-07-01 | E12: Budget | F12: NonInstruc-Dup Use | G12: NonInstruc-Dup Use
A13: 696530 Operating Activity | B13: 71-0000-1960-696530-55446 | C13: 5000 | D13: 2021-07-01 | E13: Budget | F13: Services-Repair/Maintenance | G13: Services-Repair/Maintenance
A14: 696530 Operating Activity | B14: 71-0000-1960-696530-55669 | C14: 1000 | D14: 2021-07-01 | E14: Budget | F14: Activ Events | G14: Activ Events
A15: 696530 Operating Activity | B15: 71-0000-1960-696530-55771 | C15: 8000 | D15: 2021-07-01 | E15: Budget | F15: Rentals-Equipment | G15: Rentals-Equipment
A16: 696530 Operating Activity | B16: 71-0000-1960-696530-56400 | C16: 2000 | D16: 2021-07-01 | E16: Budget | F16: Equipment<$5K | G16: Equipment<$5K
A17: 696532 Club Development | B17: 71-0000-1960-696532-55991 | C17: 20000 | D17: 2021-07-01 | E17: Budget
A18: 696534 Leadership | B18: 71-0000-1960-696534-55991 | C18: 5000 | D18: 2021-07-01 | E18: Budget
A19: 696536 End of the Year | B19: 71-0000-1960-696536-55991 | C19: 10000 | D19: 2021-07-01 | E19: Budget
A20: 696540 Benefits | B20: 71-0000-1960-696540-55991 | C20: 8000 | D20: 2021-07-01 | E20: Budget
A21: 696553 Raza Graduation | B21: 71-0000-1960-696553-55991 | C21: 3000 | D21: 2021-07-01 | E21: Budget
A22: 696554 African American Conf | B22: 71-0000-1960-696554-55991 | C22: 3000 | D22: 2021-07-01 | E22: Budget
A23: 696555 Hispanic Education Conf | B23: 71-0000-1960-696555-55991 | C23: 3000 | D23: 2021-07-01 | E23: Budget
A24: 696556 Pride Education Week | B24: 71-0000-1960-696556-55991 | C24: 3000 | D24: 2021-07-01 | E24: Budget
A25: 696557 Vet Education Week | B25: 71-0000-1960-696557-55991 | C25: 3000 | D25: 2021-07-01 | E25: Budget
A26: 696513 Senator Projects | B26: 71-0000-1960-696513-55669 | C26: 10000 | D26: 2021-07-01 | E26: Budget
A27: 696514 Graduation Supplies | B27: 71-0000-1960-696514-55669 | C27: 30000 | D27: 2021-07-01 | E27: Budget
A28: 696503 ASMJC Presents | B28: 71-0000-1960-696503-55669 | C28: 5000 | D28: 2021-08-23 | E28: Encumbered | F28: Welcome Week | G28: E00384
A29: 696530 Operating Activity | B29: 71-0000-1960-696530-52110 | C29: 2814 | D29: 2021-07-29 | E29: Activity | F29: NonInstruc-Reg | G29: PRD END: 07/31/21 RC Earnings
A30: 696530 Operating Activity | B30: 71-0000-1960-696530-53203 | C30: 644.68 | D30: 2021-07-29 | E30: Activity | F30: Fringe Benefits | G30: PRD END: 07/31/21 RC Employer Cont
A31: 696530 Operating Activity | B31: 71-0000-1960-696530-53303 | C31: 174.47 | D31: 2021-07-29 | E31: Activity | F31: Fringe Benefits | G31: PRD END: 07/31/21 RC Employer Cont
A32: 696530 Operating Activity | B32: 71-0000-1960-696530-53313 | C32: 40.8 | D32: 2021-07-29 | E32: Activity | F32: Fringe Benefits | G32: PRD END: 07/31/21 RC Employer Cont
A33: 696530 Operating Activity | B33: 71-0000-1960-696530-53403 | C33: 768.5 | D33: 2021-07-29 | E33: Activity | F33: Fringe Benefits | G33: PRD END: 07/31/21 RC Employer Cont
A34: 696530 Operating Activity | B34: 71-0000-1960-696530-53453 | C34: 55.15 | D34: 2021-07-29 | E34: Activity | F34: Fringe Benefits | G34: PRD END: 07/31/21 RC Employer Cont
A35: 696530 Operating Activity | B35: 71-0000-1960-696530-53463 | C35: 11.05 | D35: 2021-07-29 | E35: Activity | F35: Fringe Benefits | G35: PRD END: 07/31/21 RC Employer Cont
A36: 696530 Operating Activity | B36: 71-0000-1960-696530-53473 | C36: 2.3 | D36: 2021-07-29 | E36: Activity | F36: Fringe Benefits | G36: PRD END: 07/31/21 RC Employer Cont
A37: 696530 Operating Activity | B37: 71-0000-1960-696530-53473 | C37: 3.6 | D37: 2021-07-29 | E37: Activity | F37: Fringe Benefits | G37: PRD END: 07/31/21 RC Employer Cont
A38: 696530 Operating Activity | B38: 71-0000-1960-696530-53493 | C38: 64.87 | D38: 2021-07-29 | E38: Activity | F38: Fringe Benefits | G38: PRD END: 07/31/21 RC Employer Cont
A39: 696530 Operating Activity | B39: 71-0000-1960-696530-53503 | C39: 16.18 | D39: 2021-07-29 | E39: Activity | F39: Fringe Benefits | G39: PRD END: 07/31/21 RC Employer Cont
A40: 696530 Operating Activity | B40: 71-0000-1960-696530-53603 | C40: 41.22 | D40: 2021-07-29 | E40: Activity | F40: Fringe Benefits | G40: PRD END: 07/31/21 RC Employer Cont
A41: 696530 Operating Activity | B41: 71-0000-1960-696530-53903 | C41: 2.92 | D41: 2021-07-29 | E41: Activity | F41: Fringe Benefits | G41: PRD END: 07/31/21 RC Employer Cont
A42: 696530 Operating Activity | B42: 71-0000-1960-696530-55446 | C42: 80.13 | D42: 2021-08-18 | E42: Activity | F42: Services-Repair/Maintenance | G42: US Bank Equipment Finance
A43: 696530 Operating Activity | B43: 71-0000-1960-696530-55771 | C43: 125 | D43: 2021-07-13 | E43: Activity | F43: Rentals-Equipment | G43: Redwood Real Est #2-July 21
A44: 696530 Operating Activity | B44: 71-0000-1960-696530-55771 | C44: 137.8 | D44: 2021-07-13 | E44: Activity | F44: Rentals-Equipment | G44: United Site Services
A45: 696530 Operating Activity | B45: 71-0000-1960-696530-55771 | C45: 125 | D45: 2021-08-03 | E45: Activity | F45: Rentals-Equipment | G45: Redwood Real Est #2 Aug 21
A46: 696530 Operating Activity | B46: 71-0000-1960-696530-55771 | C46: 137.8 | D46: 2021-08-10 | E46: Activity | F46: Rentals-Equipment | G46: United Site Services
A47: 696503 ASMJC Presents | B47: 71-0000-1960-696503-55669 | C47: 738.4 | D47: 2021-08-17 | E47: Activity | F47: Welcome Week | G47: Ward Promotional Marketing
A48: 696503 ASMJC Presents | B48: 71-0000-1960-696503-55669 | C48: 278.9 | D48: 2021-08-12 | E48: Activity | F48: Welcome Week | G48: Cloud 9 Balloon Company
A49: 696503 ASMJC Presents | B49: 71-0000-1960-696503-55669 | C49: 1000 | D49: 2021-08-02 | E49: Activity | F49: Welcome Week | G49: John I. Griffin, III
A50: 696504 Project LEAD | C50: 5500 | E50: Budget | F50: Budget
A51: 696264 YF Plant Science | C51: 3309.32 | D51: 2021-10-17 | E51: Encumbered | F51: CAPCA Conference | G51: TRF164
A52: 696530 Operating Activity | B52: 71-0000-1960-696530-54431 | C52: 1300 | D52: 2021-08-30 | E52: Encumbered | F52: ID Card Systems | G52: Ribbon for ID Cards
A53: 696503 ASMJC Presents | C53: 500 | D53: 2021-09-19 | E53: Encumbered | F53: Pirates Promotion Day | G53: E00386
A54: 696264 YF Holiday Auction | C54: 500 | D54: 2021-09-27 | E54: Encumbered | F54: YF Volleyball Meeting | G54: E00387
A55: 696264 YF Holiday Auction | C55: 500 | D55: 2021-10-18 | E55: Encumbered | F55: YF October Meeting | G55: E00388
A56: 696505 Diversity | C56: 3000 | D56: 2021-10-04 | E56: Encumbered | F56: Hispanic Heritage Week | G56: E00390
A57: 696503 ASMJC Presents | B57: 71-0000-1960-696503-55669 | C57: -814.2 | D57: 2021-08-31 | E57: Activity | F57: Welcome Week | G57: 1446929-Rtn Cash Adv/Griffin
A58: 696503 ASMJC Presents | B58: 71-0000-1960-696503-55669 | C58: 750 | D58: 2021-09-01 | E58: Activity | F58: Welcome Week | G58: Jeffrey J. Wilbanks
A59: 696503 ASMJC Presents | B59: 71-0000-1960-696503-55669 | C59: 500 | D59: 2021-09-02 | E59: Activity | F59: Pirates Promotion Day | G59: Rebecca A. Tilger
A60: 696503 ASMJC Presents | B60: 71-0000-1960-696503-55669 | C60: -233.73 | D60: 2021-09-21 | E60: Activity | F60: Pirates Promotion Day | G60: 1448219-Rtn Cash Adv/R. Tilger
A61: 696530 Operating Activity | B61: 71-0000-1960-696530-52110 | C61: 2814 | D61: 2021-08-31 | E61: Activity | F61: NonInstruc-Reg | G61: PRD END: 08/31/21 RC Earnings
A62: 696530 Operating Activity | B62: 71-0000-1960-696530-53203 | C62: 644.68 | D62: 2021-08-31 | E62: Activity | F62: Fringe Benefits | G62: PRD END: 08/31/21 RC Employer Cont
A63: 696530 Operating Activity | B63: 71-0000-1960-696530-53303 | C63: 174.47 | D63: 2021-08-31 | E63: Activity | F63: Fringe Benefits | G63: PRD END: 08/31/21 RC Employer Cont
A64: 696530 Operating Activity | B64: 71-0000-1960-696530-53313 | C64: 40.8 | D64: 2021-08-31 | E64: Activity | F64: Fringe Benefits | G64: PRD END: 08/31/21 RC Employer Cont
A65: 696530 Operating Activity | B65: 71-0000-1960-696530-53403 | C65: 768.5 | D65: 2021-08-31 | E65: Activity | F65: Fringe Benefits | G65: PRD END: 08/31/21 RC Employer Cont
A66: 696530 Operating Activity | B66: 71-0000-1960-696530-53453 | C66: 55.15 | D66: 2021-08-31 | E66: Activity | F66: Fringe Benefits | G66: PRD END: 08/31/21 RC Employer Cont
A67: 696530 Operating Activity | B67: 71-0000-1960-696530-53463 | C67: 11.05 | D67: 2021-08-31 | E67: Activity | F67: Fringe Benefits | G67: PRD END: 08/31/21 RC Employer Cont
A68: 696530 Operating Activity | B68: 71-0000-1960-696530-53473 | C68: 2.3 | D68: 2021-08-31 | E68: Activity | F68: Fringe Benefits | G68: PRD END: 08/31/21 RC Employer Cont
A69: 696530 Operating Activity | B69: 71-0000-1960-696530-53473 | C69: 3.6 | D69: 2021-08-31 | E69: Activity | F69: Fringe Benefits | G69: PRD END: 08/31/21 RC Employer Cont
A70: 696530 Operating Activity | B70: 71-0000-1960-696530-53493 | C70: 64.87 | D70: 2021-08-31 | E70: Activity | F70: Fringe Benefits | G70: PRD END: 08/31/21 RC Employer Cont
A71: 696530 Operating Activity | B71: 71-0000-1960-696530-53503 | C71: 16.18 | D71: 2021-08-31 | E71: Activity | F71: Fringe Benefits | G71: PRD END: 08/31/21 RC Employer Cont
A72: 696530 Operating Activity | B72: 71-0000-1960-696530-53603 | C72: 41.22 | D72: 2021-08-31 | E72: Activity | F72: Fringe Benefits | G72: PRD END: 08/31/21 RC Employer Cont
A73: 696530 Operating Activity | B73: 71-0000-1960-696530-53903 | C73: 2.92 | D73: 2021-08-31 | E73: Activity | F73: Fringe Benefits | G73: PRD END: 08/31/21 RC Employer Cont
A74: 696530 Operating Activity | B74: 71-0000-1960-696530-54501 | C74: 73.2 | D74: 2021-09-21 | E74: Activity | F74: NonInstruc-Dup Use | G74: Aug 21 MJC Duplicating
A75: 696530 Operating Activity | B75: 71-0000-1960-696530-54501 | C75: 12.52 | D75: 2021-09-21 | E75: Activity | F75: NonInstruc-Dup Use | G75: Aug 21 MJC Postage
A76: 696530 Operating Activity | B76: 71-0000-1960-696530-55446 | C76: 87.56 | D76: 2021-08-25 | E76: Activity | F76: Services-Repair/Maintenance | G76: US Bank Equipment Finance
A77: 696530 Operating Activity | B77: 71-0000-1960-696530-55446 | C77: 7.83 | D77: 2021-08-26 | E77: Activity | F77: Services-Repair/Maintenance | G77: Jul 21 Transportation Charges
A78: 696530 Operating Activity | B78: 71-0000-1960-696530-55446 | C78: 641.04 | D78: 2021-08-30 | E78: Activity | F78: Services-Repair/Maintenance | G78: 6360CS CORR US Bank Charges
A79: 696530 Operating Activity | B79: 71-0000-1960-696530-55446 | C79: 8.67 | D79: 2021-09-21 | E79: Activity | F79: Services-Repair/Maintenance | G79: Aug 21 Transportation Charges
A80: 696530 Operating Activity | B80: 71-0000-1960-696530-55771 | C80: -62.5 | D80: 2021-08-31 | E80: Activity | F80: Rentals-Equipment | G80: Crrcting JE for Aug 21 Prepaid
A81: 696555 Hispanic Education Conf | C81: 3000 | D81: 2021-10-09 | E81: Encumbered | F81: HEC - 38th Annual
A82: 696505 Diversity | B82: 71-0000-1960-696505-55669 | C82: 500 | D82: 2021-09-15 | E82: Activity | F82: Hispanic Heritage Week | G82: Rebecca A. Tilger
A83: 696530 Operating Activity | B83: 71-0000-1960-696530-52110 | C83: 2884.5 | D83: 2021-09-30 | E83: Activity | F83: NonInstruc-Reg | G83: PRD END: 09/30/21 RC Earnings
A84: 696530 Operating Activity | B84: 71-0000-1960-696530-52110 | C84: 140 | D84: 2021-09-30 | E84: Activity | F84: NonInstruc-Reg | G84: PRD END: 09/30/21 RC Earnings
A85: 696530 Operating Activity | B85: 71-0000-1960-696530-53203 | C85: 692.92 | D85: 2021-09-30 | E85: Activity | F85: Fringe Benefits | G85: PRD END: 09/30/21 RC Employer Cont
A86: 696530 Operating Activity | B86: 71-0000-1960-696530-53303 | C86: 187.52 | D86: 2021-09-30 | E86: Activity | F86: Fringe Benefits | G86: PRD END: 09/30/21 RC Employer Cont
A87: 696530 Operating Activity | B87: 71-0000-1960-696530-53313 | C87: 43.85 | D87: 2021-09-30 | E87: Activity | F87: Fringe Benefits | G87: PRD END: 09/30/21 RC Employer Cont
A88: 696530 Operating Activity | B88: 71-0000-1960-696530-53403 | C88: 768.5 | D88: 2021-09-30 | E88: Activity | F88: Fringe Benefits | G88: PRD END: 09/30/21 RC Employer Cont
A89: 696530 Operating Activity | B89: 71-0000-1960-696530-53453 | C89: 55.15 | D89: 2021-09-30 | E89: Activity | F89: Fringe Benefits | G89: PRD END: 09/30/21 RC Employer Cont
A90: 696530 Operating Activity | B90: 71-0000-1960-696530-53463 | C90: 11.05 | D90: 2021-09-30 | E90: Activity | F90: Fringe Benefits | G90: PRD END: 09/30/21 RC Employer Cont
A91: 696530 Operating Activity | B91: 71-0000-1960-696530-53473 | C91: 2.48 | D91: 2021-09-30 | E91: Activity | F91: Fringe Benefits | G91: PRD END: 09/30/21 RC Employer Cont
A92: 696530 Operating Activity | B92: 71-0000-1960-696530-53473 | C92: 3.87 | D92: 2021-09-30 | E92: Activity | F92: Fringe Benefits | G92: PRD END: 09/30/21 RC Employer Cont
A93: 696530 Operating Activity | B93: 71-0000-1960-696530-53493 | C93: 64.87 | D93: 2021-09-30 | E93: Activity | F93: Fringe Benefits | G93: PRD END: 09/30/21 RC Employer Cont
A94: 696530 Operating Activity | B94: 71-0000-1960-696530-53503 | C94: 17.39 | D94: 2021-09-30 | E94: Activity | F94: Fringe Benefits | G94: PRD END: 09/30/21 RC Employer Cont
A95: 696530 Operating Activity | B95: 71-0000-1960-696530-53603 | C95: 44.31 | D95: 2021-09-30 | E95: Activity | F95: Fringe Benefits | G95: PRD END: 09/30/21 RC Employer Cont
A96: 696530 Operating Activity | B96: 71-0000-1960-696530-53903 | C96: 2.92 | D96: 2021-09-30 | E96: Activity | F96: Fringe Benefits | G96: PRD END: 09/30/21 RC Employer Cont
A97: 696505 Diversity | C97: 500 | D97: 2021-10-31 | E97: Encumbered | F97: Dia De Los Muertos Alter | G97: E00392
A98: 696503 ASMJC Presents | C98: 3000 | D98: 2021-10-16 | E98: Encumbered | F98: Homecoming Football | G98: E00393
A99: 696503 ASMJC Presents | B99: 71-0000-1960-696503-55669 | C99: 500 | D99: 2021-10-11 | E99: Activity | F99: Homecoming Football | G99: John I. Griffin, III
A100: 696505 Diversity | B100: 71-0000-1960-696505-55669 | C100: -368.01 | D100: 2021-10-12 | E100: Activity | F100: Hispanic Heritage Week | G100: 1449852-Rtn Cash Adv/R. Tilger
A101: 696505 Diversity | B101: 71-0000-1960-696505-55669 | C101: 149.45 | D101: 2021-10-13 | E101: Activity | F101: Dia De Los Muertos Alter | G101: Cloud 9 Balloon Company
A102: 696505 Diversity | B102: 71-0000-1960-696505-55669 | C102: 250 | D102: 2021-10-13 | E102: Activity | F102: Dia De Los Muertos Alter | G102: Maria Delcarmen De la Cruz
A103: 696530 Operating Activity | B103: 71-0000-1960-696530-55446 | C103: 242.72 | D103: 2021-10-01 | E103: Activity | F103: Services-Repair/Maintenance | G103: Ray Morgan Company
A104: 696555 Hispanic Education Conf | B104: 71-0000-1960-696555-55991 | C104: 278.9 | D104: 2021-10-01 | E104: Activity | F104: HEC - 38th Annual | G104: Cloud 9 Balloon Company
A105: 696503 ASMJC Presents | B105: 71-0000-1960-696503-55669 | C105: 2683.91 | D105: 2021-10-14 | E105: Activity | F105: Homecoming Football | G105: Ward Promotional Marketing
A106: 696530 Operating Activity | B106: 71-0000-1960-696530-54501 | C106: 1.36 | D106: 2021-10-15 | E106: Activity | F106: NonInstruc-Dup Use | G106: Sep 21 MJC Duplicating
A107: 696530 Operating Activity | B107: 71-0000-1960-696530-55446 | C107: 31.5 | D107: 2021-10-15 | E107: Activity | F107: Services-Repair/Maintenance | G107: Q1 MJC Ray Morgan Copier Distr
A108: 696530 Operating Activity | B108: 71-0000-1960-696530-55446 | C108: 31.3 | D108: 2021-10-15 | E108: Activity | F108: Services-Repair/Maintenance | G108: Sep 21 Transportation Charges
A109: 696264 YF Holiday Auction | C109: 800 | D109: 2021-12-15 | E109: Encumbered | F109: YF Officer Retreat Spring | G109: TRF165
A110: 696503 ASMJC Presents | B110: 71-0000-1960-696503-55669 | C110: -310.87 | D110: 2021-10-21 | E110: Activity | F110: Homecoming Football | G110: 1450539-Rtn Cash Adv/J.Griffin
A111: 696530 Operating Activity | B111: 71-0000-1960-696530-52110 | C111: 2884.5 | D111: 2021-10-29 | E111: Activity | F111: NonInstruc-Reg | G111: PRD END: 10/31/21 RC Earnings
A112: 696530 Operating Activity | B112: 71-0000-1960-696530-53203 | C112: 660.84 | D112: 2021-10-29 | E112: Activity | F112: Fringe Benefits | G112: PRD END: 10/31/21 RC Employer Cont
A113: 696530 Operating Activity | B113: 71-0000-1960-696530-53303 | C113: 178.83 | D113: 2021-10-29 | E113: Activity | F113: Fringe Benefits | G113: PRD END: 10/31/21 RC Employer Cont
A114: 696530 Operating Activity | B114: 71-0000-1960-696530-53313 | C114: 41.82 | D114: 2021-10-29 | E114: Activity | F114: Fringe Benefits | G114: PRD END: 10/31/21 RC Employer Cont
A115: 696530 Operating Activity | B115: 71-0000-1960-696530-53403 | C115: 810.5 | D115: 2021-10-29 | E115: Activity | F115: Fringe Benefits | G115: PRD END: 10/31/21 RC Employer Cont
A116: 696530 Operating Activity | B116: 71-0000-1960-696530-53453 | C116: 55.15 | D116: 2021-10-29 | E116: Activity | F116: Fringe Benefits | G116: PRD END: 10/31/21 RC Employer Cont
A117: 696530 Operating Activity | B117: 71-0000-1960-696530-53463 | C117: 11.05 | D117: 2021-10-29 | E117: Activity | F117: Fringe Benefits | G117: PRD END: 10/31/21 RC Employer Cont
A118: 696530 Operating Activity | B118: 71-0000-1960-696530-53473 | C118: 2.36 | D118: 2021-10-29 | E118: Activity | F118: Fringe Benefits | G118: PRD END: 10/31/21 RC Employer Cont
A119: 696530 Operating Activity | B119: 71-0000-1960-696530-53473 | C119: 3.69 | D119: 2021-10-29 | E119: Activity | F119: Fringe Benefits | G119: PRD END: 10/31/21 RC Employer Cont
A120: 696530 Operating Activity | B120: 71-0000-1960-696530-53493 | C120: 64.87 | D120: 2021-10-29 | E120: Activity | F120: Fringe Benefits | G120: PRD END: 10/31/21 RC Employer Cont
A121: 696530 Operating Activity | B121: 71-0000-1960-696530-53503 | C121: 16.59 | D121: 2021-10-29 | E121: Activity | F121: Fringe Benefits | G121: PRD END: 10/31/21 RC Employer Cont
A122: 696530 Operating Activity | B122: 71-0000-1960-696530-53603 | C122: 42.26 | D122: 2021-10-29 | E122: Activity | F122: Fringe Benefits | G122: PRD END: 10/31/21 RC Employer Cont
A123: 696530 Operating Activity | B123: 71-0000-1960-696530-53903 | C123: 2.92 | D123: 2021-10-29 | E123: Activity | F123: Fringe Benefits | G123: PRD END: 10/31/21 RC Employer Cont
A124: 696530 Operating Activity | B124: 71-0000-1960-696530-54431 | C124: 1275 | D124: 2021-10-12 | E124: Activity | F124: NonInstruc-Supplies | G124: ITC Systems
A125: 696530 Operating Activity | B125: 71-0000-1960-696530-55446 | C125: 80.13 | D125: 2021-10-01 | E125: Activity | F125: Services-Repair/Maintenance | G125: US Bank Equipment Finance
A126: 696505 Diversity | B126: 71-0000-1960-696505-55669 | C126: -113.7 | D126: 2021-11-05 | E126: Activity | F126: Dia De Los Muertos Alter | G126: 1450991-Rtn Cash Adv/DeLa Cruz
A127: 696530 Operating Activity | B127: 71-0000-1960-696530-54431 | C127: 1340.02 | D127: 2021-11-01 | E127: Activity | F127: NonInstruc-Supplies | G127: ID Card Systems Inc
A128: 696530 Operating Activity | B128: 71-0000-1960-696530-55446 | C128: 87.56 | D128: 2021-08-25 | E128: Activity | F128: Services-Repair/Maintenance | G128: US Bank Equipment Finance
A129: 696530 Operating Activity | B129: 71-0000-1960-696530-55771 | C129: 437.5 | D129: 2021-11-01 | E129: Activity | F129: Rentals-Equipment | G129: Redwood Real Estate Group, Inc
A130: 696530 Operating Activity | B130: 71-0000-1960-696530-55771 | C130: 625 | D130: 2021-11-01 | E130: Activity | F130: Rentals-Equipment | G130: Redwood Real Estate Group, Inc
A131: 696530 Operating Activity | C131: -1300 | D131: 2021-08-30 | E131: Encumbered | F131: ID Card Systems | G131: Invoice received
A132: 696264 YF Holiday Auction | C132: 800 | D132: 2021-09-03 | E132: Encumbered | F132: YF Officer Retreat | G132: TRF163
A133: 696264 YF Holiday Auction | B133: 71-0875-1960-696264-29599 | C133: 300 | D133: 2021-08-31 | E133: Activity | F133: YF Officer Retreat | G133: Lori Marchy
A134: 696264 YF Plant Science | B134: 71-0884-1960-696264-29599 | C134: 1000 | D134: 2021-10-07 | E134: Activity | F134: CAPCA Conference | G134: Mike Morales
A135: 696264 YF Plant Science | B135: 71-0884-1960-696264-29599 | C135: 750 | D135: 2021-09-09 | E135: Activity | F135: CAPCA Conference | G135: Registration
A136: 696264 YF Plant Science | B136: 71-0884-1960-696264-29599 | C136: 329.44 | D136: 2021-09-09 | E136: Activity | F136: CAPCA Conference | G136: Mike Morales - Room
A137: 696264 YF Plant Science | B137: 71-0884-1960-696264-29599 | C137: 329.44 | D137: 2021-09-09 | E137: Activity | F137: CAPCA Conference | G137: Jacob Campos - Room
A138: 696264 YF Plant Science | B138: 71-0884-1960-696264-29599 | C138: 329.44 | D138: 2021-09-09 | E138: Activity | F138: CAPCA Conference | G138: Madison Cunha - Room
A139: 696264 YF Plant Science | B139: 71-0884-1960-696264-29599 | C139: -673.8 | D139: 2021-10-22 | E139: Activity | F139: CAPCA Conference | G139: Rtn Cash Adv/M. Morales
A140: 696264 YF Holiday Auction | B140: 71-0875-1960-696264-29599 | C140: 500 | D140: 2021-11-15 | E140: Activity | F140: YF Officer Retreat Spring | G140: Lori Marchy
A141: 696264 YF Holiday Auction | B141: 71-0875-1960-696264-29599 | C141: 500 | D141: 2021-09-16 | E141: Activity | F141: YF Volleyball Meeting | G141: Lori Marchy
A142: 696264 YF Holiday Auction | B142: 71-0875-1960-696264-29599 | C142: -247.94 | D142: 2021-09-29 | E142: Activity | F142: YF Volleyball Meeting | G142: Rtn Cash Adv/L. Marchy
A143: 696264 YF Holiday Auction | B143: 71-0875-1960-696264-29599 | C143: 500 | D143: 2021-10-14 | E143: Activity | F143: YF October Meeting | G143: Lori Marchy
A144: 696264 YF Holiday Auction | B144: 71-0875-1960-696264-29599 | C144: -103.68 | D144: 2021-10-19 | E144: Activity | F144: YF October Meeting | G144: Rtn Cash Adv/L. Marchy
A145: 696264 YF Holiday Auction | C145: 500 | D145: 2021-11-29 | E145: Encumbered | F145: YF November Meeting | G145: E00389
A146: 696264 YF Holiday Auction | B146: 71-0875-1960-696264-29599 | C146: 500 | D146: 2021-11-18 | E146: Activity | F146: YF November Meeting | G146: Lori Marchy
A147: 696530 Operating Activity | B147: 71-0000-1960-696530-52110 | C147: 900 | D147: 2021-11-30 | E147: Activity | F147: NonInstuc-Reg | G147: PRD END: 11/30/21 RC Earnings
A148: 696530 Operating Activity | B148: 71-0000-1960-696530-52110 | C148: 2884.5 | D148: 2021-11-30 | E148: Activity | F148: NonInstuc-Reg | G148: PRD END: 11/30/21 RC Earnings
A149: 696530 Operating Activity | B149: 71-0000-1960-696530-53203 | C149: 206.2 | D149: 2021-11-30 | E149: Activity | F149: Fringe Benefits | G149: PRD END: 11/30/21 RC Employer Cont
A150: 696530 Operating Activity | B150: 71-0000-1960-696530-53203 | C150: 660.85 | D150: 2021-11-30 | E150: Activity | F150: Fringe Benefits | G150: PRD END: 11/30/21 RC Employer Cont
A151: 696530 Operating Activity | B151: 71-0000-1960-696530-53303 | C151: 234.64 | D151: 2021-11-30 | E151: Activity | F151: Fringe Benefits | G151: PRD END: 11/30/21 RC Employer Cont
A152: 696530 Operating Activity | B152: 71-0000-1960-696530-53313 | C152: 54.87 | D152: 2021-11-30 | E152: Activity | F152: Fringe Benefits | G152: PRD END: 11/30/21 RC Employer Cont
A153: 696530 Operating Activity | B153: 71-0000-1960-696530-53403 | C153: 810.5 | D153: 2021-11-30 | E153: Activity | F153: Fringe Benefits | G153: PRD END: 11/30/21 RC Employer Cont
A154: 696530 Operating Activity | B154: 71-0000-1960-696530-53453 | C154: 55.15 | D154: 2021-11-30 | E154: Activity | F154: Fringe Benefits | G154: PRD END: 11/30/21 RC Employer Cont
A155: 696530 Operating Activity | B155: 71-0000-1960-696530-53463 | C155: 11.05 | D155: 2021-11-30 | E155: Activity | F155: Fringe Benefits | G155: PRD END: 11/30/21 RC Employer Cont
A156: 696530 Operating Activity | B156: 71-0000-1960-696530-53473 | C156: 3.69 | D156: 2021-11-30 | E156: Activity | F156: Fringe Benefits | G156: PRD END: 11/30/21 RC Employer Cont
A157: 696530 Operating Activity | B157: 71-0000-1960-696530-53473 | C157: 2.36 | D157: 2021-11-30 | E157: Activity | F157: Fringe Benefits | G157: PRD END: 11/30/21 RC Employer Cont
A158: 696530 Operating Activity | B158: 71-0000-1960-696530-53493 | C158: 64.87 | D158: 2021-11-30 | E158: Activity | F158: Fringe Benefits | G158: PRD END: 11/30/21 RC Employer Cont
A159: 696530 Operating Activity | B159: 71-0000-1960-696530-53503 | C159: 21.76 | D159: 2021-11-30 | E159: Activity | F159: Fringe Benefits | G159: PRD END: 11/30/21 RC Employer Cont
A160: 696530 Operating Activity | B160: 71-0000-1960-696530-53603 | C160: 55.44 | D160: 2021-11-30 | E160: Activity | F160: Fringe Benefits | G160: PRD END: 11/30/21 RC Employer Cont
A161: 696530 Operating Activity | B161: 71-0000-1960-696530-53903 | C161: 2.92 | D161: 2021-11-30 | E161: Activity | F161: Fringe Benefits | G161: PRD END: 11/30/21 RC Employer Cont
A162: 696530 Operating Activity | B162: 71-0000-1960-696530-55771 | C162: 137.8 | D162: 2021-11-05 | E162: Activity | F162: Rentals-Equipment | G162: United Site Services
A163: 696530 Operating Activity | B163: 71-0000-1960-696530-55771 | C163: 125 | D163: 2021-12-09 | E163: Activity | F163: Rentals-Equipment | G163: Redwood Real Est #2-Dec 21
A164: 696530 Operating Activity | B164: 71-0000-1960-696530-55771 | C164: 125 | D164: 2021-12-09 | E164: Activity | F164: Rentals-Equipment | G164: Redwood Real Est #7-Dec 21
A165: 696264 YF Holiday Auction | B165: 71-0875-1960-696264-29599 | C165: 572.39 | D165: 2021-12-09 | E165: Activity | F165: YF November Meeting | G165: Sysco
A166: 696264 YF Holiday Auction | B166: 71-0875-1960-696264-29599 | C166: 56.5 | D166: 2021-12-09 | E166: Activity | F166: YF November Meeting | G166: Smart & Final
A167: 696264 YF Holiday Auction | B167: 71-0875-1960-696264-29599 | C167: -457.95 | D167: 2021-12-08 | E167: Activity | F167: YF November Meeting | G167: Lori Marchy
A168: 696264 YF Holiday Auction | C168: 650 | D168: 2021-12-08 | E168: Encumbered | F168: YF November Meeting | G168: Added funds to Event
A169: 696264 YF Holiday Auction | C169: 800 | D169: 2022-01-10 | E169: Encumbered | F169: YF January Meeting
A170: 696530 Operating Activity | B170: 71-0000-1960-696530-52110 | C170: 2884.5 | D170: 2022-01-03 | E170: Activity | F170: NonInstuc-Reg | G170: PRD END: 12/31/21 RC Earnings
A171: 696530 Operating Activity | B171: 71-0000-1960-696530-53203 | C171: -11.61 | D171: 2022-01-03 | E171: Activity | F171: Fringe Benefits | G171: PRD END: 12/31/21 RC Employer Cont
A172: 696530 Operating Activity | B172: 71-0000-1960-696530-53203 | C172: 660.84 | D172: 2022-01-03 | E172: Activity | F172: Fringe Benefits | G172: PRD END: 12/31/21 RC Employer Cont
A173: 696530 Operating Activity | B173: 71-0000-1960-696530-53303 | C173: 178.84 | D173: 2022-01-03 | E173: Activity | F173: Fringe Benefits | G173: PRD END: 12/31/21 RC Employer Cont
A174: 696530 Operating Activity | B174: 71-0000-1960-696530-53313 | C174: 41.82 | D174: 2022-01-03 | E174: Activity | F174: Fringe Benefits | G174: PRD END: 12/31/21 RC Employer Cont
A175: 696530 Operating Activity | B175: 71-0000-1960-696530-53403 | C175: 810.5 | D175: 2022-01-03 | E175: Activity | F175: Fringe Benefits | G175: PRD END: 12/31/21 RC Employer Cont
A176: 696530 Operating Activity | B176: 71-0000-1960-696530-53453 | C176: 55.15 | D176: 2022-01-03 | E176: Activity | F176: Fringe Benefits | G176: PRD END: 12/31/21 RC Employer Cont
A177: 696530 Operating Activity | B177: 71-0000-1960-696530-53463 | C177: 11.05 | D177: 2022-01-03 | E177: Activity | F177: Fringe Benefits | G177: PRD END: 12/31/21 RC Employer Cont
A178: 696530 Operating Activity | B178: 71-0000-1960-696530-53473 | C178: 2.36 | D178: 2022-01-03 | E178: Activity | F178: Fringe Benefits | G178: PRD END: 12/31/21 RC Employer Cont
A179: 696530 Operating Activity | B179: 71-0000-1960-696530-53473 | C179: 3.69 | D179: 2022-01-03 | E179: Activity | F179: Fringe Benefits | G179: PRD END: 12/31/21 RC Employer Cont
A180: 696530 Operating Activity | B180: 71-0000-1960-696530-53493 | C180: 64.87 | D180: 2022-01-03 | E180: Activity | F180: Fringe Benefits | G180: PRD END: 12/31/21 RC Employer Cont
A181: 696530 Operating Activity | B181: 71-0000-1960-696530-53503 | C181: 16.58 | D181: 2022-01-03 | E181: Activity | F181: Fringe Benefits | G181: PRD END: 12/31/21 RC Employer Cont
A182: 696530 Operating Activity | B182: 71-0000-1960-696530-53603 | C182: 42.26 | D182: 2022-01-03 | E182: Activity | F182: Fringe Benefits | G182: PRD END: 12/31/21 RC Employer Cont
A183: 696530 Operating Activity | B183: 71-0000-1960-696530-53903 | C183: 2.92 | D183: 2022-01-03 | E183: Activity | F183: Fringe Benefits | G183: PRD END: 12/31/21 RC Employer Cont
A184: 696530 Operating Activity | B184: 71-0000-1960-696530-54431 | C184: 205.94 | D184: 2021-12-31 | E184: Activity | F184: NonInstruc-Supplies | G184: Use Tax for Oct-Dec 2021
A185: 696530 Operating Activity | B185: 71-0000-1960-696530-54501 | C185: 164 | D185: 2021-11-30 | E185: Activity | F185: NonInstruc-Dup Use | G185: Oct 21 MJC Duplicating
A186: 696530 Operating Activity | B186: 71-0000-1960-696530-55446 | C186: 8.61 | D186: 2021-11-30 | E186: Activity | F186: Services-Repair/Maintenance | G186: Oc 21Transportation Charges
A187: 696530 Operating Activity | B187: 71-0000-1960-696530-55771 | C187: 137.8 | D187: 2021-12-28 | E187: Activity | F187: Rentals-Equipment | G187: United Site Services
A188: 696530 Operating Activity | B188: 71-0000-1960-696530-55771 | C188: 137.8 | D188: 2022-01-01 | E188: Activity | F188: Rentals-Equipment | G188: United Site Services
A189: 696530 Operating Activity | B189: 71-0000-1960-696530-55771 | C189: 125 | D189: 2022-01-04 | E189: Activity | F189: Rentals-Equipment | G189: Redwood Real Est #2-Jan 22
A190: 696530 Operating Activity | B190: 71-0000-1960-696530-55771 | C190: 125 | D190: 2022-01-04 | E190: Activity | F190: Rentals-Equipment | G190: Redwood Real Est #7-Jan 22
A191: 696530 Operating Activity | B191: 71-0000-1960-696530-55991 | C191: 0.06 | D191: 2021-12-31 | E191: Activity | F191: Other-Unrest | G191: Adj STP Oct-Dec 2021
A192: 696546 FLOW | C192: 30000 | D192: 2022-01-10 | E192: Encumbered | F192: FLOW - Spring
A193: 696546 FLOW | B193: 71-0000-1960-696546-55991 | C193: -500 | D193: 2021-12-31 | E193: Activity | F193: FLOW - Spring | G193: 1452415-Donation to FLOW
A194: 696555 Hispanic Education Conf | B194: 71-0000-1960-696555-55991 | C194: 578 | D194: 2021-11-30 | E194: Activity | F194: HEC - 38th Annual | G194: Oct 21 MJC Duplicating
A195: 696555 Hispanic Education Conf | B195: 71-0000-1960-696555-55991 | C195: 139.16 | D195: 2021-12-01 | E195: Activity | F195: HEC - 38th Annual | G195: Trophy Works
A196: 696503 ASMJC Presents | C196: 1500 | D196: 2022-02-01 | E196: Encumbered | F196: Basketball Homecoming
A197: 696503 ASMJC Presents | B197: 71-0000-1960-696503-55669 | C197: 1494.87 | D197: 2022-01-12 | E197: Activity | F197: Basketball Homecoming | G197: Ward Promotional Marketing
A198: 696530 Operating Activity | B198: 71-0000-1960-696530-55446 | C198: 87.56 | D198: 2022-01-01 | E198: Activity | F198: Services-Repair/Maintenance | G198: US Bank Equipment Finance
A199: 696264 YF Holiday Auction | C199: 250 | D199: 2022-02-16 | E199: Encumbered | F199: YF February Meeting | G199: E00395
A200: 696530 Operating Activity | B200: 71-0000-1960-696530-55446 | C200: 92.15 | D200: 2021-12-31 | E200: Activity | F200: Services-Repair/Maintenance | G200: Q2 RM Copier Distribution
... 151 more rows

Sheet Programs
A1: Program | B1: Activity Code | C1: Description | J1: Programs | K1: Projects | L1: Orignial Encumberance | M1: Description
A2: =+Table3[[#This Row],[Activity Code]]&" "&Table3[[#This Row],[Description]] -> 696264 AS-Synergy Club | B2: 696264 | C2: AS-Synergy Club | J2: 696546 FLOW | K2: FLOW - Fall | L2: 50000
A3: =+Table3[[#This Row],[Activity Code]]&" "&Table3[[#This Row],[Description]] -> 696264 YF Holiday Auction | B3: 696264 | C3: YF Holiday Auction | J3: 696503 ASMJC Presents | K3: Welcome Week | L3: 5000 | M3: E00384
A4: =+Table3[[#This Row],[Activity Code]]&" "&Table3[[#This Row],[Description]] -> 696264 YF Plant Science | B4: 696264 | C4: YF Plant Science | J4: 696264 YF Holiday Auction | K4: YF Officer Retreat | L4: 800 | M4: TRF163
A5: =+Table3[[#This Row],[Activity Code]]&" "&Table3[[#This Row],[Description]] -> 696503 ASMJC Presents | B5: 696503 | C5: ASMJC Presents | J5: 696264 YF Plant Science | K5: CAPCA Conference | L5: 3309.32 | M5: TRF164
A6: =+Table3[[#This Row],[Activity Code]]&" "&Table3[[#This Row],[Description]] -> 696504 Project LEAD | B6: 696504 | C6: Project LEAD | J6: 696530 Operating Activity | K6: ID Card Systems | L6: 1300 | M6: Ribbon for ID Cards
A7: =+Table3[[#This Row],[Activity Code]]&" "&Table3[[#This Row],[Description]] -> 696505 Diversity | B7: 696505 | C7: Diversity | J7: 696503 ASMJC Presents | K7: Pirates Promotion Day | L7: 500 | M7: E00386
A8: =+Table3[[#This Row],[Activity Code]]&" "&Table3[[#This Row],[Description]] -> 696512 Marketing | B8: 696512 | C8: Marketing | J8: 696264 YF Holiday Auction | K8: YF Volleyball Meeting | L8: 500 | M8: E00387
A9: =+Table3[[#This Row],[Activity Code]]&" "&Table3[[#This Row],[Description]] -> 696513 Senator Projects | B9: 696513 | C9: Senator Projects | J9: 696264 YF Holiday Auction | K9: YF October Meeting | L9: 500 | M9: E00388
A10: =+Table3[[#This Row],[Activity Code]]&" "&Table3[[#This Row],[Description]] -> 696514 Graduation Supplies | B10: 696514 | C10: Graduation Supplies | J10: 696505 Diversity | K10: Hispanic Heritage Week | L10: 3000 | M10: E00390
A11: =+Table3[[#This Row],[Activity Code]]&" "&Table3[[#This Row],[Description]] -> 696530 Operating Activity | B11: 696530 | C11: Operating Activity | J11: 696555 Hispanic Education Conf | K11: HEC - 38th Annual | L11: 3000 | M11: E00391
A12: =+Table3[[#This Row],[Activity Code]]&" "&Table3[[#This Row],[Description]] -> 696532 Club Development | B12: 696532 | C12: Club Development | J12: 696505 Diversity | K12: Dia De Los Muertos Alter | L12: 500 | M12: E00392
A13: =+Table3[[#This Row],[Activity Code]]&" "&Table3[[#This Row],[Description]] -> 696534 Leadership | B13: 696534 | C13: Leadership | J13: 696503 ASMJC Presents | K13: Homecoming Football | L13: 3000 | M13: E00393
A14: =+Table3[[#This Row],[Activity Code]]&" "&Table3[[#This Row],[Description]] -> 696536 End of the Year | B14: 696536 | C14: End of the Year | J14: 696264 YF Holiday Auction | K14: YF Officer Retreat Spring | L14: 800 | M14: TRF165
A15: =+Table3[[#This Row],[Activity Code]]&" "&Table3[[#This Row],[Description]] -> 696540 Benefits | B15: 696540 | C15: Benefits | J15: 696264 YF Holiday Auction | K15: YF November Meeting | L15: 1150 | M15: E00389
A16: =+Table3[[#This Row],[Activity Code]]&" "&Table3[[#This Row],[Description]] -> 696546 FLOW | B16: 696546 | C16: FLOW | J16: 696264 YF Holiday Auction | K16: YF January Meeting | L16: 800 | M16: TRF167
A17: =+Table3[[#This Row],[Activity Code]]&" "&Table3[[#This Row],[Description]] -> 696553 Raza Graduation | B17: 696553 | C17: Raza Graduation | J17: 696546 FLOW | K17: FLOW - Spring | L17: 30000 | M17: E00398
A18: =+Table3[[#This Row],[Activity Code]]&" "&Table3[[#This Row],[Description]] -> 696554 African American Conf | B18: 696554 | C18: African American Conf | J18: 696503 ASMJC Presents | K18: Basketball Homecoming | L18: 1500
A19: =+Table3[[#This Row],[Activity Code]]&" "&Table3[[#This Row],[Description]] -> 696555 Hispanic Education Conf | B19: 696555 | C19: Hispanic Education Conf | J19: 696264 YF Holiday Auction | K19: YF February Meeting | L19: 250 | M19: E00395
A20: =+Table3[[#This Row],[Activity Code]]&" "&Table3[[#This Row],[Description]] -> 696556 Pride Education Conf | B20: 696556 | C20: Pride Education Conf | J20: 696264 YF Holiday Auction | K20: Ag Ambassador Shirts | L20: 860.84
A21: =+Table3[[#This Row],[Activity Code]]&" "&Table3[[#This Row],[Description]] -> 696557 Vet Education Week | B21: 696557 | C21: Vet Education Week | J21: 696264 YF Holiday Auction | K21: YF March Meeting | L21: 250 | M21: E00396
J22: 696264 YF Holiday Auction | K22: YF April Meeting | L22: 500 | M22: E00397
J23: 696505 Diversity | K23: Lantinx Comics Expo | L23: 3000
J24: 696264 YF Holiday Auction | K24: Officer Polo Shirts | L24: 165.75
J25: 696556 Pride Education Conf | K25: Pride Ed Conf 2022 | L25: 3000
J26: 696505 Diversity | K26: Cesar Chavez & Dolores Huerta | L26: 100 | M26: E00399
J27: 696264 YF Plant Science | K27: YF PLSC Committee Mtng | L27: 541 | M27: E00401
J28: 696532 Club Development | K28: Spring Club Social | L28: 400 | M28: E00402
J29: 696532 Club Development | K29: Club Video Training | L29: 317.74
J30: 696503 ASMJC Presents | K30: Commencement Concessions | L30: 600 | M30: E00403
J31: 696514 Graduation Supplies | K31: Graduation | L31: 30000
J32: 696505 Diversity | K32: Latinx Comic Arts Festival | L32: 3000
J33: 696264 YF Holiday Auction | K33: YF Officer Retreat | L33: 1200
J34: 696536 End of the Year | K34: EOY Luncheon | L34: 300
J35: 696540 Benefits | K35: Activity Stickers | M35: SU22, FA22, SP22 - Activity/Bus Stickers

Sheet SummaryPivot
A1: ASMJC Program Report
A2: As of: | B2: =MAX(Table5[[ Date]]) -> 2022-06-22
A6: Sum of Amount | C6: Type | F6: Budget | G6: Budget | H6: Encumbrance
A7: Program | B7: Project | C7: Budget | D7: Encumbered | E7: Activity | F7: Less Encumbrance | G7: Less Activity | H7: Less Activity
A8: 696264 YF Holiday Auction | B8: YF Volleyball Meeting | D8: 500 | E8: 252.06 | F8: =IF(RIGHT(A8,5)="Total",C8-D8,IF(AND(C8>0,RIGHT(A8,5)<>"Total"),C8-IFERROR(GETPIVOTDATA("Amount",$A$6,"Program",A8,"Type","Encumbered"),0),"")) ->  | G8: =IF(RIGHT(A8,5)="Total",C8-E8,IF(C8>0,C8-IFERROR(GETPIVOTDATA("Amount",$A$6,"Program",A8,"Type","Activity"),0),"")) ->  | H8: =IF(AND(CELL("type",D8)="b",CELL("type",E8)="b"),"",ROUND(D8-E8,2)) -> 247.94
B9: YF October Meeting | D9: 500 | E9: 396.32 | G9: =IF(RIGHT(A9,5)="Total",C9-E9,IF(C9>0,C9-IFERROR(GETPIVOTDATA("Amount",$A$6,"Program",A9,"Type","Activity"),0),"")) ->  | H9: =IF(AND(CELL("type",D9)="b",CELL("type",E9)="b"),"",ROUND(D9-E9,2)) -> 103.68
B10: YF Officer Retreat Spring | D10: 800 | E10: 500 | H10: 300
B11: YF Officer Retreat | D11: 2000 | E11: 300 | H11: 1700
B12: YF November Meeting | D12: 1150 | E12: 670.94 | H12: 479.06
B13: YF January Meeting | D13: 800 | H13: 800
B14: YF February Meeting | D14: 250 | H14: 250
B15: Ag Ambassador Shirts | D15: 860.84 | H15: 860.84
B16: YF March Meeting | D16: 250 | H16: 250
B17: YF April Meeting | D17: 500 | H17: 500
B18: Officer Polo Shirts | D18: 165.75 | E18: 165.75 | H18: 0
A19: 696264 YF Holiday Auction Total | D19: 7776.59 | E19: 2285.07 | F19: -7776.59 | G19: -2285.07 | H19: 5491.52
A21: 696264 YF Plant Science | B21: CAPCA Conference | D21: 3309.32 | E21: 2064.52 | H21: 1244.8
B22: YF PLSC Committee Mtng | D22: 541 | H22: 541
A23: 696264 YF Plant Science Total | D23: 3850.32 | E23: 2064.52 | F23: -3850.32 | G23: -2064.52 | H23: 1785.8
A25: 696503 ASMJC Presents | B25: Welcome Week | D25: 5000 | E25: 1953.1 | H25: 3046.9
B26: Pirates Promotion Day | D26: 500 | E26: 266.27 | H26: 233.73
B27: Homecoming Football | D27: 3000 | E27: 2873.04 | H27: 126.96
B28: Basketball Homecoming | D28: 1500 | E28: 1550.89 | H28: -50.89
B29: Commencement Concessions | D29: 600 | E29: -1173.61 | H29: 1773.61
A30: 696503 ASMJC Presents Total | D30: 10600 | E30: 5469.69 | F30: -10600 | G30: -5469.69 | H30: 5130.31
A32: 696504 Project LEAD | B32: Budget | C32: 5500 | F32: 5500 | G32: 5500
A33: 696504 Project LEAD Total | C33: 5500 | F33: 5500 | G33: 5500
A35: 696505 Diversity | B35: Hispanic Heritage Week | D35: 3000 | E35: 131.99 | H35: 2868.01
B36: Dia De Los Muertos Alter | D36: 500 | E36: 285.75 | H36: 214.25
B37: Lantinx Comics Expo | D37: 3000 | E37: 1000 | H37: 2000
B38: Cesar Chavez & Dolores Huerta | D38: 100 | E38: 98.2 | H38: 1.8
B39: Latinx Comic Arts Festival | D39: 3000 | E39: 2000 | H39: 1000
A40: 696505 Diversity Total | D40: 9600 | E40: 3515.94 | F40: -9600 | G40: -3515.94 | H40: 6084.06
A42: 696514 Graduation Supplies | B42: Graduation | D42: 30000 | E42: 18284.4 | H42: 11715.6
A43: 696514 Graduation Supplies Total | D43: 30000 | E43: 18284.4 | F43: -30000 | G43: -18284.4 | H43: 11715.6
A45: 696530 Operating Activity | B45: Services-Repair/Maintenance | C45: 5000 | E45: 3317.35 | F45: 5000 | G45: -59709.83 | H45: -3317.35
B46: Rentals-Equipment | C46: 8000 | E46: 4240.2 | F46: 8000 | G46: 8000 | H46: -4240.2
B47: Fringe Benefits | C47: 40000 | E47: 20955.16 | F47: 40000 | G47: 40000 | H47: -20955.16
B48: NonInstruc-Reg | C48: 50000 | E48: 11537 | F48: 50000 | G48: 50000 | H48: -11537
B49: NonInstruc-Supplies | C49: 28000 | E49: 3317.4 | F49: 28000 | G49: 28000 | H49: -3317.4
B50: NonInstruc-Food/Hospitality | C50: 2000 | F50: 2000 | G50: 2000
B51: NonInstruc-Dup Use | C51: 4000 | E51: 251.08 | F51: 4000 | G51: 4000 | H51: -251.08
B52: Activ Events | C52: 1000 | F52: 1000 | G52: 1000
B53: Equipment<$5K | C53: 2000 | F53: 2000 | G53: 2000
B54: ID Card Systems | D54: 0 | H54: 0
B55: NonInstuc-Reg | E55: 21091.5 | H55: -21091.5
B56: Other-Unrest | E56: 0.14 | H56: -0.14
A57: 696530 Operating Activity Total | C57: 140000 | D57: 0 | E57: 64709.83 | F57: 140000 | G57: 75290.17 | H57: -64709.83
A59: 696532 Club Development | B59: Spring Club Social | D59: 400 | E59: 309.93 | H59: 90.07
B60: Club Video Training | D60: 317.74 | E60: 317.74 | H60: 0
A61: 696532 Club Development Total | D61: 717.74 | E61: 627.67 | F61: -717.74 | G61: -627.67 | H61: 90.07
A63: 696536 End of the Year | B63: EOY Luncheon | D63: 300 | E63: 487.29 | H63: -187.29
A64: 696536 End of the Year Total | D64: 300 | E64: 487.29 | F64: -300 | G64: -487.29 | H64: -187.29
A66: 696540 Benefits | B66: Activity Stickers | E66: 1242.66 | H66: -1242.66
A67: 696540 Benefits Total | E67: 1242.66 | F67: 0 | G67: -1242.66 | H67: -1242.66
A69: 696546 FLOW | B69: FLOW - Fall | D69: 30078.06 | E69: 30078.06 | H69: 0
B70: FLOW | C70: 100000 | F70: 100000 | G70: 100000
B71: FLOW - Spring | D71: 30000 | E71: 17815.28 | H71: 12184.72
A72: 696546 FLOW Total | C72: 100000 | D72: 60078.06 | E72: 47893.34 | F72: 39921.94 | G72: 52106.66 | H72: 12184.72
F73: =IF(RIGHT(A73,5)="Total",C73-D73,IF(AND(C73>0,RIGHT(A73,5)<>"Total"),C73-IFERROR(GETPIVOTDATA("Amount",$A$6,"Program",A73,"Type","Encumbered"),0),"")) ->  | G73: =IF(RIGHT(A73,5)="Total",C73-E73,IF(C73>0,C73-IFERROR(GETPIVOTDATA("Amount",$A$6,"Program",A73,"Type","Activity"),0),"")) ->  | H73: =IF(AND(CELL("type",D73)="b",CELL("type",E73)="b"),"",ROUND(D73-E73,2)) -> 
A74: 696555 Hispanic Education Conf | B74: HEC - 38th Annual | D74: 3000 | E74: 996.06 | H74: 2003.94
A75: 696555 Hispanic Education Conf Total | D75: 3000 | E75: 996.06 | F75: -3000 | G75: -996.06 | H75: 2003.94
A77: 696556 Pride Education Conf | B77: Pride Ed Conf 2022 | D77: 3000 | E77: 1275 | H77: 1725
A78: 696556 Pride Education Conf Total | D78: 3000 | E78: 1275 | F78: -3000 | G78: -1275 | H78: 1725
A80: Grand Total | C80: 245500 | D80: 128922.71 | E80: 148851.47 | F80: 116577.29 | G80: 96648.53 | H80: -19928.76
F137: =IF(RIGHT(A137,5)="Total",C137-D137,IF(AND(C137>0,RIGHT(A137,5)<>"Total"),C137-IFERROR(GETPIVOTDATA("Amount",$A$6,"Program",A137,"Type","Encumbered"),0),"")) ->  | G137: =IF(RIGHT(A137,5)="Total",C137-E137,IF(C137>0,C137-IFERROR(GETPIVOTDATA("Amount",$A$6,"Program",A137,"Type","Activity"),0),"")) ->  | H137: =IF(AND(CELL("type",D137)="b",CELL("type",E137)="b"),"",ROUND(D137-E137,2)) -> 

Sheet Project Detail
A1: =+SummaryPivot!A2 -> As of: | B1: =MAX(Table5[[ Date]]) -> 2022-06-22 | F1: Budget Less Activity | G1: =+GETPIVOTDATA("Amount",$A$4,"Type","Budget")-IFERROR(GETPIVOTDATA("Amount",$A$4,"Type","Activity"),0) -> -50267.67
A2: Program | B2: (All)
A4: Sum of Amount | D4: Type | G4: Encumbrance
A5: Project | B5: Date | C5: Description | D5: Budget | E5: Encumbered | F5: Activity | G5: less Activity
A6: Services-Repair/Maintenance | D6: 5000 | F6: 3317.35 | G6: =IF(CELL("type",B6)="b",IF(AND(CELL("type",E6)="b",CELL("type",F6)="b"),"",IF(CELL("type",C6)="l","",ROUND(E6-F6,2))),"") -> -3317.35
A7: Rentals-Equipment | D7: 8000 | F7: 4240.2 | G7: =IF(CELL("type",B7)="b",IF(AND(CELL("type",E7)="b",CELL("type",F7)="b"),"",IF(CELL("type",C7)="l","",ROUND(E7-F7,2))),"") -> -4240.2
A8: FLOW - Fall | E8: 30078.06 | F8: 30078.06 | G8: =IF(CELL("type",B8)="b",IF(AND(CELL("type",E8)="b",CELL("type",F8)="b"),"",IF(CELL("type",C8)="l","",ROUND(E8-F8,2))),"") -> 0
A9: Welcome Week | E9: 5000 | F9: 1953.1 | G9: =IF(CELL("type",B9)="b",IF(AND(CELL("type",E9)="b",CELL("type",F9)="b"),"",IF(CELL("type",C9)="l","",ROUND(E9-F9,2))),"") -> 3046.9
A10: NonInstruc-Supplies | D10: 28000 | F10: 3317.4 | G10: -3317.4
A11: NonInstruc-Dup Use | D11: 4000 | F11: 251.08 | G11: -251.08
A12: CAPCA Conference | E12: 3309.32 | F12: 2064.52 | G12: 1244.8
A13: ID Card Systems | E13: 0 | G13: 0
A14: Pirates Promotion Day | E14: 500 | F14: 266.27 | G14: 233.73
A15: YF Volleyball Meeting | E15: 500 | F15: 252.06 | G15: 247.94
A16: YF October Meeting | E16: 500 | F16: 396.32 | G16: 103.68
A17: Hispanic Heritage Week | E17: 3000 | F17: 131.99 | G17: 2868.01
A18: HEC - 38th Annual | E18: 3000 | F18: 996.06 | G18: 2003.94
A19: Dia De Los Muertos Alter | E19: 500 | F19: 285.75 | G19: 214.25
A20: Homecoming Football | E20: 3000 | F20: 2873.04 | G20: 126.96
A21: YF Officer Retreat Spring | E21: 800 | F21: 500 | G21: 300
A22: YF Officer Retreat | E22: 2000 | F22: 300 | G22: 1700
A23: YF November Meeting | E23: 1150 | F23: 670.94 | G23: 479.06
A24: YF January Meeting | E24: 800 | G24: 800
A25: FLOW - Spring | E25: 30000 | F25: 17815.28 | G25: 12184.72
A26: Basketball Homecoming | E26: 1500 | F26: 1550.89 | G26: -50.89
A27: YF February Meeting | E27: 250 | G27: 250
A28: Ag Ambassador Shirts | E28: 860.84 | G28: 860.84
A29: YF March Meeting | E29: 250 | G29: 250
A30: YF April Meeting | E30: 500 | G30: 500
A31: Lantinx Comics Expo | E31: 3000 | F31: 1000 | G31: 2000
A32: Officer Polo Shirts | E32: 165.75 | F32: 165.75 | G32: 0
A33: Pride Ed Conf 2022 | E33: 3000 | F33: 1275 | G33: 1725
A34: Cesar Chavez & Dolores Huerta | E34: 100 | F34: 98.2 | G34: 1.8
A35: YF PLSC Committee Mtng | E35: 541 | G35: 541
A36: Spring Club Social | E36: 400 | F36: 309.93 | G36: 90.07
A37: Club Video Training | E37: 317.74 | F37: 317.74 | G37: 0
A38: Commencement Concessions | E38: 600 | F38: -1173.61 | G38: 1773.61
A39: Graduation | E39: 30000 | F39: 18284.4 | G39: 11715.6
A40: Latinx Comic Arts Festival | E40: 3000 | F40: 2000 | G40: 1000
A41: EOY Luncheon | E41: 300 | F41: 487.29 | G41: -187.29
A42: Activity Stickers | F42: 1242.66 | G42: -1242.66
A43: Grand Total | D43: 45000 | E43: 128922.71 | F43: 95267.67 | G43: 33655.04
G73: =IF(CELL("type",B73)="b",IF(AND(CELL("type",E73)="b",CELL("type",F73)="b"),"",IF(CELL("type",C73)="l","",ROUND(E73-F73,2))),"") -> 
G137: =IF(CELL("type",B137)="b",IF(AND(CELL("type",E137)="b",CELL("type",F137)="b"),"",IF(CELL("type",C137)="l","",ROUND(E137-F137,2))),"") -> 
G201: =IF(CELL("type",B201)="b",IF(AND(CELL("type",E201)="b",CELL("type",F201)="b"),"",IF(CELL("type",C201)="l","",ROUND(E201-F201,2))),"") -> 
G265: =IF(CELL("type",B265)="b",IF(AND(CELL("type",E265)="b",CELL("type",F265)="b"),"",IF(CELL("type",C265)="l","",ROUND(E265-F265,2))),"") -> 
G329: =IF(CELL("type",B329)="b",IF(AND(CELL("type",E329)="b",CELL("type",F329)="b"),"",IF(CELL("type",C329)="l","",ROUND(E329-F329,2))),"") -> 
G393: =IF(CELL("type",B393)="b",IF(AND(CELL("type",E393)="b",CELL("type",F393)="b"),"",IF(CELL("type",C393)="l","",ROUND(E393-F393,2))),"") -> 

Sheet Program Detail
A1: Total Budget | B1: =IFERROR(GETPIVOTDATA("Amount",$A$7,"Type","Budget"),"") -> 439000 | D1: Total Budget | F1: =IFERROR(GETPIVOTDATA("Amount",$A$7,"Type","Budget"),"") -> 439000
A2: Total Encumbered | B2: =IFERROR(GETPIVOTDATA("Amount",$A$7,"Type","Encumbrance"),"") ->  | D2: Total Activity | F2: =IFERROR(GETPIVOTDATA("Amount",$A$7,"Type","Activity"),0) -> 148851.47
A3: Available | B3: =IFERROR(B1-B2,"") ->  | D3: Balance | F3: =IFERROR(IFERROR(F1-F2,B2-F2),"") -> 290148.53
A4: =+SummaryPivot!A2&MONTH(SummaryPivot!B2)&"/"&DAY(SummaryPivot!B2)&"/"&YEAR(SummaryPivot!B2) -> As of: 6/22/2022
A7: Sum of Amount | C7: Type | F7: Budget less | G7: Budget less | H7: Encumbrance
A8: Program | B8: Project | C8: Budget | D8: Encumbered | E8: Activity | F8: Encumbrance | G8: Activity | H8: Less Activity
A9: 696503 ASMJC Presents | C9: 50000 | D9: 10600 | E9: 5469.69 | F9: =IF(RIGHT(A9,5)="Total",C9-D9,IF(AND(CELL("type",A9)="l",CELL("type",B9)="b"),C9-D9,"")) -> 39400 | G9: =IF(RIGHT(A9,5)="Total",C9-E9,IF(AND(CELL("type",A9)="l",CELL("type",B9)="b"),C9-E9,"")) -> 44530.31 | H9: =IF(A9="Grand Total",ROUND(D9-E9,2),IF(D9>0,ROUND(D9-E9,2),"")) -> 5130.31
A10: 696546 FLOW | C10: 100000 | D10: 60078.06 | E10: 47893.34 | F10: 39921.94 | G10: =IF(RIGHT(A10,5)="Total",C10-E10,IF(AND(CELL("type",A10)="l",CELL("type",B10)="b"),C10-E10,"")) -> 52106.66 | H10: =IF(A10="Grand Total",ROUND(D10-E10,2),IF(D10>0,ROUND(D10-E10,2),"")) -> 12184.72
A11: 696530 Operating Activity | C11: 140000 | D11: 0 | E11: 64709.83 | F11: 140000 | G11: 75290.17
A12: 696504 Project LEAD | C12: 11000 | F12: 11000 | G12: 11000
A13: 696554 African American Conf | C13: 3000 | F13: 3000 | G13: 3000
A14: 696553 Raza Graduation | C14: 3000 | F14: 3000 | G14: 3000
A15: 696557 Vet Education Week | C15: 3000 | F15: 3000 | G15: 3000
A16: 696505 Cult Div & Ethnic Prog | C16: 40000 | F16: 40000 | G16: 40000
A17: 696532 Club Development | C17: 20000 | F17: 20000 | G17: 20000
A18: 696534 Leadership | C18: 5000 | F18: 5000 | G18: 5000
A19: 696555 Hispanic Education Conf | C19: 3000 | D19: 3000 | E19: 996.06 | F19: 0 | G19: 2003.94 | H19: 2003.94
A20: 696556 Pride Education Week | C20: 3000 | F20: 3000 | G20: 3000
A21: 696513 Senator Projects | C21: 10000 | F21: 10000 | G21: 10000
A22: 696514 Graduation Supplies | C22: 30000 | D22: 30000 | E22: 18284.4 | F22: 0 | G22: 11715.6 | H22: 11715.6
A23: 696264 YF Holiday Auction | D23: 7776.59 | E23: 2285.07 | F23: -7776.59 | G23: -2285.07 | H23: 5491.52
A24: 696264 YF Plant Science | D24: 3850.32 | E24: 2064.52 | F24: -3850.32 | G24: -2064.52 | H24: 1785.8
A25: 696505 Diversity | D25: 9600 | E25: 3515.94 | F25: -9600 | G25: -3515.94 | H25: 6084.06
A26: 696556 Pride Education Conf | D26: 3000 | E26: 1275 | F26: -3000 | G26: -1275 | H26: 1725
A27: 696532 Club Development | D27: 717.74 | E27: 627.67 | F27: -717.74 | G27: -627.67 | H27: 90.07
A28: 696536 End of the Year | C28: 10000 | D28: 300 | E28: 487.29 | F28: 9700 | G28: 9512.71 | H28: -187.29
A29: 696540 Benefits | C29: 8000 | E29: 1242.66 | F29: 8000 | G29: 6757.34
A30: Grand Total | C30: 439000 | D30: 128922.71 | E30: 148851.47 | F30: 310077.29 | G30: 290148.53 | H30: -19928.76
F74: =IF(RIGHT(A74,5)="Total",C74-D74,IF(AND(CELL("type",A74)="l",CELL("type",B74)="b"),C74-D74,"")) ->  | G74: =IF(RIGHT(A74,5)="Total",C74-E74,IF(AND(CELL("type",A74)="l",CELL("type",B74)="b"),C74-E74,"")) ->  | H74: =IF(A74="Grand Total",ROUND(D74-E74,2),IF(D74>0,ROUND(D74-E74,2),"")) -> 
F138: =IF(RIGHT(A138,5)="Total",C138-D138,IF(AND(CELL("type",A138)="l",CELL("type",B138)="b"),C138-D138,"")) ->  | G138: =IF(RIGHT(A138,5)="Total",C138-E138,IF(AND(CELL("type",A138)="l",CELL("type",B138)="b"),C138-E138,"")) ->  | H138: =IF(A138="Grand Total",ROUND(D138-E138,2),IF(D138>0,ROUND(D138-E138,2),"")) -> 
F202: =IF(RIGHT(A202,5)="Total",C202-D202,IF(AND(CELL("type",A202)="l",CELL("type",B202)="b"),C202-D202,"")) ->  | G202: =IF(RIGHT(A202,5)="Total",C202-E202,IF(AND(CELL("type",A202)="l",CELL("type",B202)="b"),C202-E202,"")) ->  | H202: =IF(A202="Grand Total",ROUND(D202-E202,2),IF(D202>0,ROUND(D202-E202,2),"")) -> 
F266: =IF(RIGHT(A266,5)="Total",C266-D266,IF(AND(CELL("type",A266)="l",CELL("type",B266)="b"),C266-D266,"")) ->  | G266: =IF(RIGHT(A266,5)="Total",C266-E266,IF(AND(CELL("type",A266)="l",CELL("type",B266)="b"),C266-E266,"")) ->  | H266: =IF(A266="Grand Total",ROUND(D266-E266,2),IF(D266>0,ROUND(D266-E266,2),"")) -> 

Sheet GLTB
A1: GL Account | B1: GL Description | C1: Date | D1: Source | E1: Reference Number | F1: Description | G1: Opening Balance | H1: YTD Debits | I1: YTD Credits | J1: Amount | K1: 0 | L1: Object | M1: Difference | N1: Project Needed
A2: 71-0000-1960-696200-29512 | B2: Gen : A/P-Current : AS-A/P : Stdnt Development/Campus Life : Assoc Students | C2: 2021-07-01 | D2: AA | E2: '*YE-OB*' | F2: Opening Balance | G2: -137.8 | J2: =IF(MID(A2,21,1)="2",-G2-H2+I2,IF(SUM(H2:I2)>0,H2-I2,"")) -> 137.8 | K2: =IF(MID(Table5[[#This Row],[GL Account]],21,1)="2",MID(Table5[[#This Row],[ GL Description]],FIND(":",Table5[[#This Row],[ GL Description]],1)+2,FIND(":",Table5[[#This Row],[ GL Description]],FIND(":",Table5[[#This Row],[ GL Description]],1)+1)-FIND(":",Table5[[#This Row],[ GL Description]],1)-2),MID(Table5[[#This Row],[GL Account]],14,6)&" "&VLOOKUP(VALUE(MID(Table5[[#This Row],[GL Account]],14,6)),PgmList,2,FALSE)) -> A/P-Current | L2: =IF(MID(A2,21,1)="2",MID(A2,14,6)&" - "&MID(B2,FIND(":",B2,FIND(K2,B2,1))+2,FIND(":",B2,FIND(":",B2,FIND(K2,B2,1))+1)-FIND(":",B2,FIND(K2,B2,1))-2),IF(AND(MID(Table5[[#This Row],[GL Account]],14,6)<>"696530",MID(Table5[[#This Row],[GL Account]],14,6)<>"696570"),"",IF(MID(Table5[[#This Row],[GL Account]],21,2)="53","Fringe Benefits",VLOOKUP(RIGHT(Table5[[#This Row],[GL Account]],5),Object,2,FALSE))))&IF(RIGHT(Table5[[#This Row],[GL Account]],5)="29599",IF(MID(A2,4,4)="0000",""," "&MID(A2,4,4))&" - "&LEFT(Table5[[#This Row],[ GL Description]],FIND(" : ",Table5[[#This Row],[ GL Description]])),"") -> 696200 - AS-A/P | M2: =IF(MID(A2,21,1)="2",0,IF(OR(MID(Table5[[#This Row],[GL Account]],14,6)="696520",AND(MID(A2,14,6)="696530",MID(Table5[[#This Row],[GL Account]],21,1)="4")),0,ROUND(SUMIF(Table5[GL Account],Table5[[#This Row],[GL Account]],Table5[Amount])-SUMIFS(Table2[Amount],Table2[Type],"Activity",Table2[Account Number],GLTB!A2),2))) -> 0 | N2: =IF(Table5[[#This Row],[Difference]]=0,"",IF(ISNA(VLOOKUP(Table5[[#This Row],[0]],Table1[],1,FALSE)),"","X")) -> 
A3: 71-0000-1960-696200-29512 | B3: Gen : A/P-Current : AS-A/P : Stdnt Development/Campus Life : Assoc Students | C3: 2021-07-01 | D3: PJ | E3: 'V1266758' | F3: Winco Foods, Llc | I3: 30078.06 | J3: 30078.06 | K3: =IF(MID(Table5[[#This Row],[GL Account]],21,1)="2",MID(Table5[[#This Row],[ GL Description]],FIND(":",Table5[[#This Row],[ GL Description]],1)+2,FIND(":",Table5[[#This Row],[ GL Description]],FIND(":",Table5[[#This Row],[ GL Description]],1)+1)-FIND(":",Table5[[#This Row],[ GL Description]],1)-2),MID(Table5[[#This Row],[GL Account]],14,6)&" "&VLOOKUP(VALUE(MID(Table5[[#This Row],[GL Account]],14,6)),PgmList,2,FALSE)) -> A/P-Current | L3: =IF(MID(A3,21,1)="2",MID(A3,14,6)&" - "&MID(B3,FIND(":",B3,FIND(K3,B3,1))+2,FIND(":",B3,FIND(":",B3,FIND(K3,B3,1))+1)-FIND(":",B3,FIND(K3,B3,1))-2),IF(AND(MID(Table5[[#This Row],[GL Account]],14,6)<>"696530",MID(Table5[[#This Row],[GL Account]],14,6)<>"696570"),"",IF(MID(Table5[[#This Row],[GL Account]],21,2)="53","Fringe Benefits",VLOOKUP(RIGHT(Table5[[#This Row],[GL Account]],5),Object,2,FALSE))))&IF(RIGHT(Table5[[#This Row],[GL Account]],5)="29599",IF(MID(A3,4,4)="0000",""," "&MID(A3,4,4))&" - "&LEFT(Table5[[#This Row],[ GL Description]],FIND(" : ",Table5[[#This Row],[ GL Description]])),"") -> 696200 - AS-A/P | M3: =IF(MID(A3,21,1)="2",0,IF(OR(MID(Table5[[#This Row],[GL Account]],14,6)="696520",AND(MID(A3,14,6)="696530",MID(Table5[[#This Row],[GL Account]],21,1)="4")),0,ROUND(SUMIF(Table5[GL Account],Table5[[#This Row],[GL Account]],Table5[Amount])-SUMIFS(Table2[Amount],Table2[Type],"Activity",Table2[Account Number],GLTB!A3),2))) -> 0 | N3: =IF(Table5[[#This Row],[Difference]]=0,"",IF(ISNA(VLOOKUP(Table5[[#This Row],[0]],Table1[],1,FALSE)),"","X")) -> 
A4: 71-0000-1960-696200-29512 | B4: Gen : A/P-Current : AS-A/P : Stdnt Development/Campus Life : Assoc Students | C4: 2021-07-06 | D4: CD | E4: 'MF*0103811' | F4: United Site Services | H4: 137.8 | J4: -137.8 | K4: =IF(MID(Table5[[#This Row],[GL Account]],21,1)="2",MID(Table5[[#This Row],[ GL Description]],FIND(":",Table5[[#This Row],[ GL Description]],1)+2,FIND(":",Table5[[#This Row],[ GL Description]],FIND(":",Table5[[#This Row],[ GL Description]],1)+1)-FIND(":",Table5[[#This Row],[ GL Description]],1)-2),MID(Table5[[#This Row],[GL Account]],14,6)&" "&VLOOKUP(VALUE(MID(Table5[[#This Row],[GL Account]],14,6)),PgmList,2,FALSE)) -> A/P-Current | L4: =IF(MID(A4,21,1)="2",MID(A4,14,6)&" - "&MID(B4,FIND(":",B4,FIND(K4,B4,1))+2,FIND(":",B4,FIND(":",B4,FIND(K4,B4,1))+1)-FIND(":",B4,FIND(K4,B4,1))-2),IF(AND(MID(Table5[[#This Row],[GL Account]],14,6)<>"696530",MID(Table5[[#This Row],[GL Account]],14,6)<>"696570"),"",IF(MID(Table5[[#This Row],[GL Account]],21,2)="53","Fringe Benefits",VLOOKUP(RIGHT(Table5[[#This Row],[GL Account]],5),Object,2,FALSE))))&IF(RIGHT(Table5[[#This Row],[GL Account]],5)="29599",IF(MID(A4,4,4)="0000",""," "&MID(A4,4,4))&" - "&LEFT(Table5[[#This Row],[ GL Description]],FIND(" : ",Table5[[#This Row],[ GL Description]])),"") -> 696200 - AS-A/P | M4: =IF(MID(A4,21,1)="2",0,IF(OR(MID(Table5[[#This Row],[GL Account]],14,6)="696520",AND(MID(A4,14,6)="696530",MID(Table5[[#This Row],[GL Account]],21,1)="4")),0,ROUND(SUMIF(Table5[GL Account],Table5[[#This Row],[GL Account]],Table5[Amount])-SUMIFS(Table2[Amount],Table2[Type],"Activity",Table2[Account Number],GLTB!A4),2))) -> 0 | N4: =IF(Table5[[#This Row],[Difference]]=0,"",IF(ISNA(VLOOKUP(Table5[[#This Row],[0]],Table1[],1,FALSE)),"","X")) -> 
A5: 71-0000-1960-696200-29512 | B5: Gen : A/P-Current : AS-A/P : Stdnt Development/Campus Life : Assoc Students | C5: 2021-07-13 | D5: PJ | E5: 'V1269413' | F5: United Site Services | I5: 137.8 | J5: 137.8 | K5: =IF(MID(Table5[[#This Row],[GL Account]],21,1)="2",MID(Table5[[#This Row],[ GL Description]],FIND(":",Table5[[#This Row],[ GL Description]],1)+2,FIND(":",Table5[[#This Row],[ GL Description]],FIND(":",Table5[[#This Row],[ GL Description]],1)+1)-FIND(":",Table5[[#This Row],[ GL Description]],1)-2),MID(Table5[[#This Row],[GL Account]],14,6)&" "&VLOOKUP(VALUE(MID(Table5[[#This Row],[GL Account]],14,6)),PgmList,2,FALSE)) -> A/P-Current | L5: =IF(MID(A5,21,1)="2",MID(A5,14,6)&" - "&MID(B5,FIND(":",B5,FIND(K5,B5,1))+2,FIND(":",B5,FIND(":",B5,FIND(K5,B5,1))+1)-FIND(":",B5,FIND(K5,B5,1))-2),IF(AND(MID(Table5[[#This Row],[GL Account]],14,6)<>"696530",MID(Table5[[#This Row],[GL Account]],14,6)<>"696570"),"",IF(MID(Table5[[#This Row],[GL Account]],21,2)="53","Fringe Benefits",VLOOKUP(RIGHT(Table5[[#This Row],[GL Account]],5),Object,2,FALSE))))&IF(RIGHT(Table5[[#This Row],[GL Account]],5)="29599",IF(MID(A5,4,4)="0000",""," "&MID(A5,4,4))&" - "&LEFT(Table5[[#This Row],[ GL Description]],FIND(" : ",Table5[[#This Row],[ GL Description]])),"") -> 696200 - AS-A/P | M5: =IF(MID(A5,21,1)="2",0,IF(OR(MID(Table5[[#This Row],[GL Account]],14,6)="696520",AND(MID(A5,14,6)="696530",MID(Table5[[#This Row],[GL Account]],21,1)="4")),0,ROUND(SUMIF(Table5[GL Account],Table5[[#This Row],[GL Account]],Table5[Amount])-SUMIFS(Table2[Amount],Table2[Type],"Activity",Table2[Account Number],GLTB!A5),2))) -> 0 | N5: =IF(Table5[[#This Row],[Difference]]=0,"",IF(ISNA(VLOOKUP(Table5[[#This Row],[0]],Table1[],1,FALSE)),"","X")) -> 
A6: 71-0000-1960-696200-29512 | B6: Gen : A/P-Current : AS-A/P : Stdnt Development/Campus Life : Assoc Students | C6: 2021-07-14 | D6: PJ | E6: 'V1267220' | F6: Maria Delcarmen De la Cruz | I6: 900 | J6: 900 | K6: =IF(MID(Table5[[#This Row],[GL Account]],21,1)="2",MID(Table5[[#This Row],[ GL Description]],FIND(":",Table5[[#This Row],[ GL Description]],1)+2,FIND(":",Table5[[#This Row],[ GL Description]],FIND(":",Table5[[#This Row],[ GL Description]],1)+1)-FIND(":",Table5[[#This Row],[ GL Description]],1)-2),MID(Table5[[#This Row],[GL Account]],14,6)&" "&VLOOKUP(VALUE(MID(Table5[[#This Row],[GL Account]],14,6)),PgmList,2,FALSE)) -> A/P-Current | L6: =IF(MID(A6,21,1)="2",MID(A6,14,6)&" - "&MID(B6,FIND(":",B6,FIND(K6,B6,1))+2,FIND(":",B6,FIND(":",B6,FIND(K6,B6,1))+1)-FIND(":",B6,FIND(K6,B6,1))-2),IF(AND(MID(Table5[[#This Row],[GL Account]],14,6)<>"696530",MID(Table5[[#This Row],[GL Account]],14,6)<>"696570"),"",IF(MID(Table5[[#This Row],[GL Account]],21,2)="53","Fringe Benefits",VLOOKUP(RIGHT(Table5[[#This Row],[GL Account]],5),Object,2,FALSE))))&IF(RIGHT(Table5[[#This Row],[GL Account]],5)="29599",IF(MID(A6,4,4)="0000",""," "&MID(A6,4,4))&" - "&LEFT(Table5[[#This Row],[ GL Description]],FIND(" : ",Table5[[#This Row],[ GL Description]])),"") -> 696200 - AS-A/P | M6: =IF(MID(A6,21,1)="2",0,IF(OR(MID(Table5[[#This Row],[GL Account]],14,6)="696520",AND(MID(A6,14,6)="696530",MID(Table5[[#This Row],[GL Account]],21,1)="4")),0,ROUND(SUMIF(Table5[GL Account],Table5[[#This Row],[GL Account]],Table5[Amount])-SUMIFS(Table2[Amount],Table2[Type],"Activity",Table2[Account Number],GLTB!A6),2))) -> 0 | N6: =IF(Table5[[#This Row],[Difference]]=0,"",IF(ISNA(VLOOKUP(Table5[[#This Row],[0]],Table1[],1,FALSE)),"","X")) -> 
A7: 71-0000-1960-696200-29512 | B7: Gen : A/P-Current : AS-A/P : Stdnt Development/Campus Life : Assoc Students | C7: 2021-07-14 | D7: PJ | E7: 'V1267222' | F7: John I. Griffin, III | I7: 500 | J7: 500 | K7: =IF(MID(Table5[[#This Row],[GL Account]],21,1)="2",MID(Table5[[#This Row],[ GL Description]],FIND(":",Table5[[#This Row],[ GL Description]],1)+2,FIND(":",Table5[[#This Row],[ GL Description]],FIND(":",Table5[[#This Row],[ GL Description]],1)+1)-FIND(":",Table5[[#This Row],[ GL Description]],1)-2),MID(Table5[[#This Row],[GL Account]],14,6)&" "&VLOOKUP(VALUE(MID(Table5[[#This Row],[GL Account]],14,6)),PgmList,2,FALSE)) -> A/P-Current | L7: =IF(MID(A7,21,1)="2",MID(A7,14,6)&" - "&MID(B7,FIND(":",B7,FIND(K7,B7,1))+2,FIND(":",B7,FIND(":",B7,FIND(K7,B7,1))+1)-FIND(":",B7,FIND(K7,B7,1))-2),IF(AND(MID(Table5[[#This Row],[GL Account]],14,6)<>"696530",MID(Table5[[#This Row],[GL Account]],14,6)<>"696570"),"",IF(MID(Table5[[#This Row],[GL Account]],21,2)="53","Fringe Benefits",VLOOKUP(RIGHT(Table5[[#This Row],[GL Account]],5),Object,2,FALSE))))&IF(RIGHT(Table5[[#This Row],[GL Account]],5)="29599",IF(MID(A7,4,4)="0000",""," "&MID(A7,4,4))&" - "&LEFT(Table5[[#This Row],[ GL Description]],FIND(" : ",Table5[[#This Row],[ GL Description]])),"") -> 696200 - AS-A/P | M7: =IF(MID(A7,21,1)="2",0,IF(OR(MID(Table5[[#This Row],[GL Account]],14,6)="696520",AND(MID(A7,14,6)="696530",MID(Table5[[#This Row],[GL Account]],21,1)="4")),0,ROUND(SUMIF(Table5[GL Account],Table5[[#This Row],[GL Account]],Table5[Amount])-SUMIFS(Table2[Amount],Table2[Type],"Activity",Table2[Account Number],GLTB!A7),2))) -> 0 | N7: =IF(Table5[[#This Row],[Difference]]=0,"",IF(ISNA(VLOOKUP(Table5[[#This Row],[0]],Table1[],1,FALSE)),"","X")) -> 
A8: 71-0000-1960-696200-29512 | B8: Gen : A/P-Current : AS-A/P : Stdnt Development/Campus Life : Assoc Students | C8: 2021-07-14 | D8: PJ | E8: 'V1267223' | F8: Rebecca A. Tilger | I8: 300 | J8: 300 | K8: =IF(MID(Table5[[#This Row],[GL Account]],21,1)="2",MID(Table5[[#This Row],[ GL Description]],FIND(":",Table5[[#This Row],[ GL Description]],1)+2,FIND(":",Table5[[#This Row],[ GL Description]],FIND(":",Table5[[#This Row],[ GL Description]],1)+1)-FIND(":",Table5[[#This Row],[ GL Description]],1)-2),MID(Table5[[#This Row],[GL Account]],14,6)&" "&VLOOKUP(VALUE(MID(Table5[[#This Row],[GL Account]],14,6)),PgmList,2,FALSE)) -> A/P-Current | L8: =IF(MID(A8,21,1)="2",MID(A8,14,6)&" - "&MID(B8,FIND(":",B8,FIND(K8,B8,1))+2,FIND(":",B8,FIND(":",B8,FIND(K8,B8,1))+1)-FIND(":",B8,FIND(K8,B8,1))-2),IF(AND(MID(Table5[[#This Row],[GL Account]],14,6)<>"696530",MID(Table5[[#This Row],[GL Account]],14,6)<>"696570"),"",IF(MID(Table5[[#This Row],[GL Account]],21,2)="53","Fringe Benefits",VLOOKUP(RIGHT(Table5[[#This Row],[GL Account]],5),Object,2,FALSE))))&IF(RIGHT(Table5[[#This Row],[GL Account]],5)="29599",IF(MID(A8,4,4)="0000",""," "&MID(A8,4,4))&" - "&LEFT(Table5[[#This Row],[ GL Description]],FIND(" : ",Table5[[#This Row],[ GL Description]])),"") -> 696200 - AS-A/P | M8: =IF(MID(A8,21,1)="2",0,IF(OR(MID(Table5[[#This Row],[GL Account]],14,6)="696520",AND(MID(A8,14,6)="696530",MID(Table5[[#This Row],[GL Account]],21,1)="4")),0,ROUND(SUMIF(Table5[GL Account],Table5[[#This Row],[GL Account]],Table5[Amount])-SUMIFS(Table2[Amount],Table2[Type],"Activity",Table2[Account Number],GLTB!A8),2))) -> 0 | N8: =IF(Table5[[#This Row],[Difference]]=0,"",IF(ISNA(VLOOKUP(Table5[[#This Row],[0]],Table1[],1,FALSE)),"","X")) -> 
A9: 71-0000-1960-696200-29512 | B9: Gen : A/P-Current : AS-A/P : Stdnt Development/Campus Life : Assoc Students | C9: 2021-07-20 | D9: CD | E9: 'MF*0103812' | F9: Maria Delcarmen De la Cruz | H9: 900 | J9: -900 | K9: =IF(MID(Table5[[#This Row],[GL Account]],21,1)="2",MID(Table5[[#This Row],[ GL Description]],FIND(":",Table5[[#This Row],[ GL Description]],1)+2,FIND(":",Table5[[#This Row],[ GL Description]],FIND(":",Table5[[#This Row],[ GL Description]],1)+1)-FIND(":",Table5[[#This Row],[ GL Description]],1)-2),MID(Table5[[#This Row],[GL Account]],14,6)&" "&VLOOKUP(VALUE(MID(Table5[[#This Row],[GL Account]],14,6)),PgmList,2,FALSE)) -> A/P-Current | L9: =IF(MID(A9,21,1)="2",MID(A9,14,6)&" - "&MID(B9,FIND(":",B9,FIND(K9,B9,1))+2,FIND(":",B9,FIND(":",B9,FIND(K9,B9,1))+1)-FIND(":",B9,FIND(K9,B9,1))-2),IF(AND(MID(Table5[[#This Row],[GL Account]],14,6)<>"696530",MID(Table5[[#This Row],[GL Account]],14,6)<>"696570"),"",IF(MID(Table5[[#This Row],[GL Account]],21,2)="53","Fringe Benefits",VLOOKUP(RIGHT(Table5[[#This Row],[GL Account]],5),Object,2,FALSE))))&IF(RIGHT(Table5[[#This Row],[GL Account]],5)="29599",IF(MID(A9,4,4)="0000",""," "&MID(A9,4,4))&" - "&LEFT(Table5[[#This Row],[ GL Description]],FIND(" : ",Table5[[#This Row],[ GL Description]])),"") -> 696200 - AS-A/P | M9: =IF(MID(A9,21,1)="2",0,IF(OR(MID(Table5[[#This Row],[GL Account]],14,6)="696520",AND(MID(A9,14,6)="696530",MID(Table5[[#This Row],[GL Account]],21,1)="4")),0,ROUND(SUMIF(Table5[GL Account],Table5[[#This Row],[GL Account]],Table5[Amount])-SUMIFS(Table2[Amount],Table2[Type],"Activity",Table2[Account Number],GLTB!A9),2))) -> 0 | N9: =IF(Table5[[#This Row],[Difference]]=0,"",IF(ISNA(VLOOKUP(Table5[[#This Row],[0]],Table1[],1,FALSE)),"","X")) -> 
A10: 71-0000-1960-696200-29512 | B10: Gen : A/P-Current : AS-A/P : Stdnt Development/Campus Life : Assoc Students | C10: 2021-07-20 | D10: CD | E10: 'MF*0103813' | F10: John I. Griffin, III | H10: 500 | J10: -500 | K10: =IF(MID(Table5[[#This Row],[GL Account]],21,1)="2",MID(Table5[[#This Row],[ GL Description]],FIND(":",Table5[[#This Row],[ GL Description]],1)+2,FIND(":",Table5[[#This Row],[ GL Description]],FIND(":",Table5[[#This Row],[ GL Description]],1)+1)-FIND(":",Table5[[#This Row],[ GL Description]],1)-2),MID(Table5[[#This Row],[GL Account]],14,6)&" "&VLOOKUP(VALUE(MID(Table5[[#This Row],[GL Account]],14,6)),PgmList,2,FALSE)) -> A/P-Current | L10: =IF(MID(A10,21,1)="2",MID(A10,14,6)&" - "&MID(B10,FIND(":",B10,FIND(K10,B10,1))+2,FIND(":",B10,FIND(":",B10,FIND(K10,B10,1))+1)-FIND(":",B10,FIND(K10,B10,1))-2),IF(AND(MID(Table5[[#This Row],[GL Account]],14,6)<>"696530",MID(Table5[[#This Row],[GL Account]],14,6)<>"696570"),"",IF(MID(Table5[[#This Row],[GL Account]],21,2)="53","Fringe Benefits",VLOOKUP(RIGHT(Table5[[#This Row],[GL Account]],5),Object,2,FALSE))))&IF(RIGHT(Table5[[#This Row],[GL Account]],5)="29599",IF(MID(A10,4,4)="0000",""," "&MID(A10,4,4))&" - "&LEFT(Table5[[#This Row],[ GL Description]],FIND(" : ",Table5[[#This Row],[ GL Description]])),"") -> 696200 - AS-A/P | M10: =IF(MID(A10,21,1)="2",0,IF(OR(MID(Table5[[#This Row],[GL Account]],14,6)="696520",AND(MID(A10,14,6)="696530",MID(Table5[[#This Row],[GL Account]],21,1)="4")),0,ROUND(SUMIF(Table5[GL Account],Table5[[#This Row],[GL Account]],Table5[Amount])-SUMIFS(Table2[Amount],Table2[Type],"Activity",Table2[Account Number],GLTB!A10),2))) -> 0 | N10: =IF(Table5[[#This Row],[Difference]]=0,"",IF(ISNA(VLOOKUP(Table5[[#This Row],[0]],Table1[],1,FALSE)),"","X")) -> 
A11: 71-0000-1960-696200-29512 | B11: Gen : A/P-Current : AS-A/P : Stdnt Development/Campus Life : Assoc Students | C11: 2021-07-20 | D11: CD | E11: 'MF*0103814' | F11: Rebecca A. Tilger | H11: 300 | J11: -300 | K11: =IF(MID(Table5[[#This Row],[GL Account]],21,1)="2",MID(Table5[[#This Row],[ GL Description]],FIND(":",Table5[[#This Row],[ GL Description]],1)+2,FIND(":",Table5[[#This Row],[ GL Description]],FIND(":",Table5[[#This Row],[ GL Description]],1)+1)-FIND(":",Table5[[#This Row],[ GL Description]],1)-2),MID(Table5[[#This Row],[GL Account]],14,6)&" "&VLOOKUP(VALUE(MID(Table5[[#This Row],[GL Account]],14,6)),PgmList,2,FALSE)) -> A/P-Current | L11: =IF(MID(A11,21,1)="2",MID(A11,14,6)&" - "&MID(B11,FIND(":",B11,FIND(K11,B11,1))+2,FIND(":",B11,FIND(":",B11,FIND(K11,B11,1))+1)-FIND(":",B11,FIND(K11,B11,1))-2),IF(AND(MID(Table5[[#This Row],[GL Account]],14,6)<>"696530",MID(Table5[[#This Row],[GL Account]],14,6)<>"696570"),"",IF(MID(Table5[[#This Row],[GL Account]],21,2)="53","Fringe Benefits",VLOOKUP(RIGHT(Table5[[#This Row],[GL Account]],5),Object,2,FALSE))))&IF(RIGHT(Table5[[#This Row],[GL Account]],5)="29599",IF(MID(A11,4,4)="0000",""," "&MID(A11,4,4))&" - "&LEFT(Table5[[#This Row],[ GL Description]],FIND(" : ",Table5[[#This Row],[ GL Description]])),"") -> 696200 - AS-A/P | M11: =IF(MID(A11,21,1)="2",0,IF(OR(MID(Table5[[#This Row],[GL Account]],14,6)="696520",AND(MID(A11,14,6)="696530",MID(Table5[[#This Row],[GL Account]],21,1)="4")),0,ROUND(SUMIF(Table5[GL Account],Table5[[#This Row],[GL Account]],Table5[Amount])-SUMIFS(Table2[Amount],Table2[Type],"Activity",Table2[Account Number],GLTB!A11),2))) -> 0 | N11: =IF(Table5[[#This Row],[Difference]]=0,"",IF(ISNA(VLOOKUP(Table5[[#This Row],[0]],Table1[],1,FALSE)),"","X")) -> 
A12: 71-0000-1960-696200-29512 | B12: Gen : A/P-Current : AS-A/P : Stdnt Development/Campus Life : Assoc Students | C12: 2021-07-20 | D12: CD | E12: 'MF*0103815' | F12: Winco Foods, Llc | H12: 30078.06 | J12: -30078.06 | K12: =IF(MID(Table5[[#This Row],[GL Account]],21,1)="2",MID(Table5[[#This Row],[ GL Description]],FIND(":",Table5[[#This Row],[ GL Description]],1)+2,FIND(":",Table5[[#This Row],[ GL Description]],FIND(":",Table5[[#This Row],[ GL Description]],1)+1)-FIND(":",Table5[[#This Row],[ GL Description]],1)-2),MID(Table5[[#This Row],[GL Account]],14,6)&" "&VLOOKUP(VALUE(MID(Table5[[#This Row],[GL Account]],14,6)),PgmList,2,FALSE)) -> A/P-Current | L12: =IF(MID(A12,21,1)="2",MID(A12,14,6)&" - "&MID(B12,FIND(":",B12,FIND(K12,B12,1))+2,FIND(":",B12,FIND(":",B12,FIND(K12,B12,1))+1)-FIND(":",B12,FIND(K12,B12,1))-2),IF(AND(MID(Table5[[#This Row],[GL Account]],14,6)<>"696530",MID(Table5[[#This Row],[GL Account]],14,6)<>"696570"),"",IF(MID(Table5[[#This Row],[GL Account]],21,2)="53","Fringe Benefits",VLOOKUP(RIGHT(Table5[[#This Row],[GL Account]],5),Object,2,FALSE))))&IF(RIGHT(Table5[[#This Row],[GL Account]],5)="29599",IF(MID(A12,4,4)="0000",""," "&MID(A12,4,4))&" - "&LEFT(Table5[[#This Row],[ GL Description]],FIND(" : ",Table5[[#This Row],[ GL Description]])),"") -> 696200 - AS-A/P | M12: =IF(MID(A12,21,1)="2",0,IF(OR(MID(Table5[[#This Row],[GL Account]],14,6)="696520",AND(MID(A12,14,6)="696530",MID(Table5[[#This Row],[GL Account]],21,1)="4")),0,ROUND(SUMIF(Table5[GL Account],Table5[[#This Row],[GL Account]],Table5[Amount])-SUMIFS(Table2[Amount],Table2[Type],"Activity",Table2[Account Number],GLTB!A12),2))) -> 0 | N12: =IF(Table5[[#This Row],[Difference]]=0,"",IF(ISNA(VLOOKUP(Table5[[#This Row],[0]],Table1[],1,FALSE)),"","X")) -> 
A13: 71-0000-1960-696200-29512 | B13: Gen : A/P-Current : AS-A/P : Stdnt Development/Campus Life : Assoc Students | C13: 2021-08-02 | D13: PJ | E13: 'V1269977' | F13: John I. Griffin, III | I13: 1000 | J13: 1000 | K13: =IF(MID(Table5[[#This Row],[GL Account]],21,1)="2",MID(Table5[[#This Row],[ GL Description]],FIND(":",Table5[[#This Row],[ GL Description]],1)+2,FIND(":",Table5[[#This Row],[ GL Description]],FIND(":",Table5[[#This Row],[ GL Description]],1)+1)-FIND(":",Table5[[#This Row],[ GL Description]],1)-2),MID(Table5[[#This Row],[GL Account]],14,6)&" "&VLOOKUP(VALUE(MID(Table5[[#This Row],[GL Account]],14,6)),PgmList,2,FALSE)) -> A/P-Current | L13: =IF(MID(A13,21,1)="2",MID(A13,14,6)&" - "&MID(B13,FIND(":",B13,FIND(K13,B13,1))+2,FIND(":",B13,FIND(":",B13,FIND(K13,B13,1))+1)-FIND(":",B13,FIND(K13,B13,1))-2),IF(AND(MID(Table5[[#This Row],[GL Account]],14,6)<>"696530",MID(Table5[[#This Row],[GL Account]],14,6)<>"696570"),"",IF(MID(Table5[[#This Row],[GL Account]],21,2)="53","Fringe Benefits",VLOOKUP(RIGHT(Table5[[#This Row],[GL Account]],5),Object,2,FALSE))))&IF(RIGHT(Table5[[#This Row],[GL Account]],5)="29599",IF(MID(A13,4,4)="0000",""," "&MID(A13,4,4))&" - "&LEFT(Table5[[#This Row],[ GL Description]],FIND(" : ",Table5[[#This Row],[ GL Description]])),"") -> 696200 - AS-A/P | M13: =IF(MID(A13,21,1)="2",0,IF(OR(MID(Table5[[#This Row],[GL Account]],14,6)="696520",AND(MID(A13,14,6)="696530",MID(Table5[[#This Row],[GL Account]],21,1)="4")),0,ROUND(SUMIF(Table5[GL Account],Table5[[#This Row],[GL Account]],Table5[Amount])-SUMIFS(Table2[Amount],Table2[Type],"Activity",Table2[Account Number],GLTB!A13),2))) -> 0 | N13: =IF(Table5[[#This Row],[Difference]]=0,"",IF(ISNA(VLOOKUP(Table5[[#This Row],[0]],Table1[],1,FALSE)),"","X")) -> 
A14: 71-0000-1960-696200-29512 | B14: Gen : A/P-Current : AS-A/P : Stdnt Development/Campus Life : Assoc Students | C14: 2021-08-10 | D14: PJ | E14: 'V1270672' | F14: United Site Services | I14: 137.8 | J14: 137.8 | K14: =IF(MID(Table5[[#This Row],[GL Account]],21,1)="2",MID(Table5[[#This Row],[ GL Description]],FIND(":",Table5[[#This Row],[ GL Description]],1)+2,FIND(":",Table5[[#This Row],[ GL Description]],FIND(":",Table5[[#This Row],[ GL Description]],1)+1)-FIND(":",Table5[[#This Row],[ GL Description]],1)-2),MID(Table5[[#This Row],[GL Account]],14,6)&" "&VLOOKUP(VALUE(MID(Table5[[#This Row],[GL Account]],14,6)),PgmList,2,FALSE)) -> A/P-Current | L14: =IF(MID(A14,21,1)="2",MID(A14,14,6)&" - "&MID(B14,FIND(":",B14,FIND(K14,B14,1))+2,FIND(":",B14,FIND(":",B14,FIND(K14,B14,1))+1)-FIND(":",B14,FIND(K14,B14,1))-2),IF(AND(MID(Table5[[#This Row],[GL Account]],14,6)<>"696530",MID(Table5[[#This Row],[GL Account]],14,6)<>"696570"),"",IF(MID(Table5[[#This Row],[GL Account]],21,2)="53","Fringe Benefits",VLOOKUP(RIGHT(Table5[[#This Row],[GL Account]],5),Object,2,FALSE))))&IF(RIGHT(Table5[[#This Row],[GL Account]],5)="29599",IF(MID(A14,4,4)="0000",""," "&MID(A14,4,4))&" - "&LEFT(Table5[[#This Row],[ GL Description]],FIND(" : ",Table5[[#This Row],[ GL Description]])),"") -> 696200 - AS-A/P | M14: =IF(MID(A14,21,1)="2",0,IF(OR(MID(Table5[[#This Row],[GL Account]],14,6)="696520",AND(MID(A14,14,6)="696530",MID(Table5[[#This Row],[GL Account]],21,1)="4")),0,ROUND(SUMIF(Table5[GL Account],Table5[[#This Row],[GL Account]],Table5[Amount])-SUMIFS(Table2[Amount],Table2[Type],"Activity",Table2[Account Number],GLTB!A14),2))) -> 0 | N14: =IF(Table5[[#This Row],[Difference]]=0,"",IF(ISNA(VLOOKUP(Table5[[#This Row],[0]],Table1[],1,FALSE)),"","X")) -> 
A15: 71-0000-1960-696200-29512 | B15: Gen : A/P-Current : AS-A/P : Stdnt Development/Campus Life : Assoc Students | C15: 2021-08-12 | D15: PJ | E15: 'V1270291' | F15: Cloud 9 Balloon Company | I15: 278.9 | J15: 278.9 | K15: =IF(MID(Table5[[#This Row],[GL Account]],21,1)="2",MID(Table5[[#This Row],[ GL Description]],FIND(":",Table5[[#This Row],[ GL Description]],1)+2,FIND(":",Table5[[#This Row],[ GL Description]],FIND(":",Table5[[#This Row],[ GL Description]],1)+1)-FIND(":",Table5[[#This Row],[ GL Description]],1)-2),MID(Table5[[#This Row],[GL Account]],14,6)&" "&VLOOKUP(VALUE(MID(Table5[[#This Row],[GL Account]],14,6)),PgmList,2,FALSE)) -> A/P-Current | L15: =IF(MID(A15,21,1)="2",MID(A15,14,6)&" - "&MID(B15,FIND(":",B15,FIND(K15,B15,1))+2,FIND(":",B15,FIND(":",B15,FIND(K15,B15,1))+1)-FIND(":",B15,FIND(K15,B15,1))-2),IF(AND(MID(Table5[[#This Row],[GL Account]],14,6)<>"696530",MID(Table5[[#This Row],[GL Account]],14,6)<>"696570"),"",IF(MID(Table5[[#This Row],[GL Account]],21,2)="53","Fringe Benefits",VLOOKUP(RIGHT(Table5[[#This Row],[GL Account]],5),Object,2,FALSE))))&IF(RIGHT(Table5[[#This Row],[GL Account]],5)="29599",IF(MID(A15,4,4)="0000",""," "&MID(A15,4,4))&" - "&LEFT(Table5[[#This Row],[ GL Description]],FIND(" : ",Table5[[#This Row],[ GL Description]])),"") -> 696200 - AS-A/P | M15: =IF(MID(A15,21,1)="2",0,IF(OR(MID(Table5[[#This Row],[GL Account]],14,6)="696520",AND(MID(A15,14,6)="696530",MID(Table5[[#This Row],[GL Account]],21,1)="4")),0,ROUND(SUMIF(Table5[GL Account],Table5[[#This Row],[GL Account]],Table5[Amount])-SUMIFS(Table2[Amount],Table2[Type],"Activity",Table2[Account Number],GLTB!A15),2))) -> 0 | N15: =IF(Table5[[#This Row],[Difference]]=0,"",IF(ISNA(VLOOKUP(Table5[[#This Row],[0]],Table1[],1,FALSE)),"","X")) -> 
A16: 71-0000-1960-696200-29512 | B16: Gen : A/P-Current : AS-A/P : Stdnt Development/Campus Life : Assoc Students | C16: 2021-08-17 | D16: CD | E16: 'MF*0103816' | F16: Cloud 9 Balloon Company | H16: 278.9 | J16: -278.9 | K16: =IF(MID(Table5[[#This Row],[GL Account]],21,1)="2",MID(Table5[[#This Row],[ GL Description]],FIND(":",Table5[[#This Row],[ GL Description]],1)+2,FIND(":",Table5[[#This Row],[ GL Description]],FIND(":",Table5[[#This Row],[ GL Description]],1)+1)-FIND(":",Table5[[#This Row],[ GL Description]],1)-2),MID(Table5[[#This Row],[GL Account]],14,6)&" "&VLOOKUP(VALUE(MID(Table5[[#This Row],[GL Account]],14,6)),PgmList,2,FALSE)) -> A/P-Current | L16: =IF(MID(A16,21,1)="2",MID(A16,14,6)&" - "&MID(B16,FIND(":",B16,FIND(K16,B16,1))+2,FIND(":",B16,FIND(":",B16,FIND(K16,B16,1))+1)-FIND(":",B16,FIND(K16,B16,1))-2),IF(AND(MID(Table5[[#This Row],[GL Account]],14,6)<>"696530",MID(Table5[[#This Row],[GL Account]],14,6)<>"696570"),"",IF(MID(Table5[[#This Row],[GL Account]],21,2)="53","Fringe Benefits",VLOOKUP(RIGHT(Table5[[#This Row],[GL Account]],5),Object,2,FALSE))))&IF(RIGHT(Table5[[#This Row],[GL Account]],5)="29599",IF(MID(A16,4,4)="0000",""," "&MID(A16,4,4))&" - "&LEFT(Table5[[#This Row],[ GL Description]],FIND(" : ",Table5[[#This Row],[ GL Description]])),"") -> 696200 - AS-A/P | M16: =IF(MID(A16,21,1)="2",0,IF(OR(MID(Table5[[#This Row],[GL Account]],14,6)="696520",AND(MID(A16,14,6)="696530",MID(Table5[[#This Row],[GL Account]],21,1)="4")),0,ROUND(SUMIF(Table5[GL Account],Table5[[#This Row],[GL Account]],Table5[Amount])-SUMIFS(Table2[Amount],Table2[Type],"Activity",Table2[Account Number],GLTB!A16),2))) -> 0 | N16: =IF(Table5[[#This Row],[Difference]]=0,"",IF(ISNA(VLOOKUP(Table5[[#This Row],[0]],Table1[],1,FALSE)),"","X")) -> 
A17: 71-0000-1960-696200-29512 | B17: Gen : A/P-Current : AS-A/P : Stdnt Development/Campus Life : Assoc Students | C17: 2021-08-17 | D17: CD | E17: 'MF*0103817' | F17: John I. Griffin, III | H17: 1000 | J17: -1000 | K17: =IF(MID(Table5[[#This Row],[GL Account]],21,1)="2",MID(Table5[[#This Row],[ GL Description]],FIND(":",Table5[[#This Row],[ GL Description]],1)+2,FIND(":",Table5[[#This Row],[ GL Description]],FIND(":",Table5[[#This Row],[ GL Description]],1)+1)-FIND(":",Table5[[#This Row],[ GL Description]],1)-2),MID(Table5[[#This Row],[GL Account]],14,6)&" "&VLOOKUP(VALUE(MID(Table5[[#This Row],[GL Account]],14,6)),PgmList,2,FALSE)) -> A/P-Current | L17: =IF(MID(A17,21,1)="2",MID(A17,14,6)&" - "&MID(B17,FIND(":",B17,FIND(K17,B17,1))+2,FIND(":",B17,FIND(":",B17,FIND(K17,B17,1))+1)-FIND(":",B17,FIND(K17,B17,1))-2),IF(AND(MID(Table5[[#This Row],[GL Account]],14,6)<>"696530",MID(Table5[[#This Row],[GL Account]],14,6)<>"696570"),"",IF(MID(Table5[[#This Row],[GL Account]],21,2)="53","Fringe Benefits",VLOOKUP(RIGHT(Table5[[#This Row],[GL Account]],5),Object,2,FALSE))))&IF(RIGHT(Table5[[#This Row],[GL Account]],5)="29599",IF(MID(A17,4,4)="0000",""," "&MID(A17,4,4))&" - "&LEFT(Table5[[#This Row],[ GL Description]],FIND(" : ",Table5[[#This Row],[ GL Description]])),"") -> 696200 - AS-A/P | M17: =IF(MID(A17,21,1)="2",0,IF(OR(MID(Table5[[#This Row],[GL Account]],14,6)="696520",AND(MID(A17,14,6)="696530",MID(Table5[[#This Row],[GL Account]],21,1)="4")),0,ROUND(SUMIF(Table5[GL Account],Table5[[#This Row],[GL Account]],Table5[Amount])-SUMIFS(Table2[Amount],Table2[Type],"Activity",Table2[Account Number],GLTB!A17),2))) -> 0 | N17: =IF(Table5[[#This Row],[Difference]]=0,"",IF(ISNA(VLOOKUP(Table5[[#This Row],[0]],Table1[],1,FALSE)),"","X")) -> 
A18: 71-0000-1960-696200-29512 | B18: Gen : A/P-Current : AS-A/P : Stdnt Development/Campus Life : Assoc Students | C18: 2021-08-17 | D18: CD | E18: 'MF*0103818' | F18: United Site Services | H18: 137.8 | J18: -137.8 | K18: =IF(MID(Table5[[#This Row],[GL Account]],21,1)="2",MID(Table5[[#This Row],[ GL Description]],FIND(":",Table5[[#This Row],[ GL Description]],1)+2,FIND(":",Table5[[#This Row],[ GL Description]],FIND(":",Table5[[#This Row],[ GL Description]],1)+1)-FIND(":",Table5[[#This Row],[ GL Description]],1)-2),MID(Table5[[#This Row],[GL Account]],14,6)&" "&VLOOKUP(VALUE(MID(Table5[[#This Row],[GL Account]],14,6)),PgmList,2,FALSE)) -> A/P-Current | L18: =IF(MID(A18,21,1)="2",MID(A18,14,6)&" - "&MID(B18,FIND(":",B18,FIND(K18,B18,1))+2,FIND(":",B18,FIND(":",B18,FIND(K18,B18,1))+1)-FIND(":",B18,FIND(K18,B18,1))-2),IF(AND(MID(Table5[[#This Row],[GL Account]],14,6)<>"696530",MID(Table5[[#This Row],[GL Account]],14,6)<>"696570"),"",IF(MID(Table5[[#This Row],[GL Account]],21,2)="53","Fringe Benefits",VLOOKUP(RIGHT(Table5[[#This Row],[GL Account]],5),Object,2,FALSE))))&IF(RIGHT(Table5[[#This Row],[GL Account]],5)="29599",IF(MID(A18,4,4)="0000",""," "&MID(A18,4,4))&" - "&LEFT(Table5[[#This Row],[ GL Description]],FIND(" : ",Table5[[#This Row],[ GL Description]])),"") -> 696200 - AS-A/P | M18: =IF(MID(A18,21,1)="2",0,IF(OR(MID(Table5[[#This Row],[GL Account]],14,6)="696520",AND(MID(A18,14,6)="696530",MID(Table5[[#This Row],[GL Account]],21,1)="4")),0,ROUND(SUMIF(Table5[GL Account],Table5[[#This Row],[GL Account]],Table5[Amount])-SUMIFS(Table2[Amount],Table2[Type],"Activity",Table2[Account Number],GLTB!A18),2))) -> 0 | N18: =IF(Table5[[#This Row],[Difference]]=0,"",IF(ISNA(VLOOKUP(Table5[[#This Row],[0]],Table1[],1,FALSE)),"","X")) -> 
A19: 71-0000-1960-696200-29512 | B19: Gen : A/P-Current : AS-A/P : Stdnt Development/Campus Life : Assoc Students | C19: 2021-08-17 | D19: PJ | E19: 'V1270674' | F19: Ward Promotional Marketing | I19: 738.4 | J19: 738.4 | K19: =IF(MID(Table5[[#This Row],[GL Account]],21,1)="2",MID(Table5[[#This Row],[ GL Description]],FIND(":",Table5[[#This Row],[ GL Description]],1)+2,FIND(":",Table5[[#This Row],[ GL Description]],FIND(":",Table5[[#This Row],[ GL Description]],1)+1)-FIND(":",Table5[[#This Row],[ GL Description]],1)-2),MID(Table5[[#This Row],[GL Account]],14,6)&" "&VLOOKUP(VALUE(MID(Table5[[#This Row],[GL Account]],14,6)),PgmList,2,FALSE)) -> A/P-Current | L19: =IF(MID(A19,21,1)="2",MID(A19,14,6)&" - "&MID(B19,FIND(":",B19,FIND(K19,B19,1))+2,FIND(":",B19,FIND(":",B19,FIND(K19,B19,1))+1)-FIND(":",B19,FIND(K19,B19,1))-2),IF(AND(MID(Table5[[#This Row],[GL Account]],14,6)<>"696530",MID(Table5[[#This Row],[GL Account]],14,6)<>"696570"),"",IF(MID(Table5[[#This Row],[GL Account]],21,2)="53","Fringe Benefits",VLOOKUP(RIGHT(Table5[[#This Row],[GL Account]],5),Object,2,FALSE))))&IF(RIGHT(Table5[[#This Row],[GL Account]],5)="29599",IF(MID(A19,4,4)="0000",""," "&MID(A19,4,4))&" - "&LEFT(Table5[[#This Row],[ GL Description]],FIND(" : ",Table5[[#This Row],[ GL Description]])),"") -> 696200 - AS-A/P | M19: =IF(MID(A19,21,1)="2",0,IF(OR(MID(Table5[[#This Row],[GL Account]],14,6)="696520",AND(MID(A19,14,6)="696530",MID(Table5[[#This Row],[GL Account]],21,1)="4")),0,ROUND(SUMIF(Table5[GL Account],Table5[[#This Row],[GL Account]],Table5[Amount])-SUMIFS(Table2[Amount],Table2[Type],"Activity",Table2[Account Number],GLTB!A19),2))) -> 0 | N19: =IF(Table5[[#This Row],[Difference]]=0,"",IF(ISNA(VLOOKUP(Table5[[#This Row],[0]],Table1[],1,FALSE)),"","X")) -> 
A20: 71-0000-1960-696200-29512 | B20: Gen : A/P-Current : AS-A/P : Stdnt Development/Campus Life : Assoc Students | C20: 2021-08-20 | D20: PJ | E20: 'V1274252' | F20: Lori M. Marchy | I20: 300 | J20: 300 | K20: =IF(MID(Table5[[#This Row],[GL Account]],21,1)="2",MID(Table5[[#This Row],[ GL Description]],FIND(":",Table5[[#This Row],[ GL Description]],1)+2,FIND(":",Table5[[#This Row],[ GL Description]],FIND(":",Table5[[#This Row],[ GL Description]],1)+1)-FIND(":",Table5[[#This Row],[ GL Description]],1)-2),MID(Table5[[#This Row],[GL Account]],14,6)&" "&VLOOKUP(VALUE(MID(Table5[[#This Row],[GL Account]],14,6)),PgmList,2,FALSE)) -> A/P-Current | L20: =IF(MID(A20,21,1)="2",MID(A20,14,6)&" - "&MID(B20,FIND(":",B20,FIND(K20,B20,1))+2,FIND(":",B20,FIND(":",B20,FIND(K20,B20,1))+1)-FIND(":",B20,FIND(K20,B20,1))-2),IF(AND(MID(Table5[[#This Row],[GL Account]],14,6)<>"696530",MID(Table5[[#This Row],[GL Account]],14,6)<>"696570"),"",IF(MID(Table5[[#This Row],[GL Account]],21,2)="53","Fringe Benefits",VLOOKUP(RIGHT(Table5[[#This Row],[GL Account]],5),Object,2,FALSE))))&IF(RIGHT(Table5[[#This Row],[GL Account]],5)="29599",IF(MID(A20,4,4)="0000",""," "&MID(A20,4,4))&" - "&LEFT(Table5[[#This Row],[ GL Description]],FIND(" : ",Table5[[#This Row],[ GL Description]])),"") -> 696200 - AS-A/P | M20: =IF(MID(A20,21,1)="2",0,IF(OR(MID(Table5[[#This Row],[GL Account]],14,6)="696520",AND(MID(A20,14,6)="696530",MID(Table5[[#This Row],[GL Account]],21,1)="4")),0,ROUND(SUMIF(Table5[GL Account],Table5[[#This Row],[GL Account]],Table5[Amount])-SUMIFS(Table2[Amount],Table2[Type],"Activity",Table2[Account Number],GLTB!A20),2))) -> 0 | N20: =IF(Table5[[#This Row],[Difference]]=0,"",IF(ISNA(VLOOKUP(Table5[[#This Row],[0]],Table1[],1,FALSE)),"","X")) -> 
A21: 71-0000-1960-696200-29512 | B21: Gen : A/P-Current : AS-A/P : Stdnt Development/Campus Life : Assoc Students | C21: 2021-08-25 | D21: PJ | E21: 'V1275785' | F21: US Bank Equipment Finance | I21: 87.56 | J21: 87.56 | K21: =IF(MID(Table5[[#This Row],[GL Account]],21,1)="2",MID(Table5[[#This Row],[ GL Description]],FIND(":",Table5[[#This Row],[ GL Description]],1)+2,FIND(":",Table5[[#This Row],[ GL Description]],FIND(":",Table5[[#This Row],[ GL Description]],1)+1)-FIND(":",Table5[[#This Row],[ GL Description]],1)-2),MID(Table5[[#This Row],[GL Account]],14,6)&" "&VLOOKUP(VALUE(MID(Table5[[#This Row],[GL Account]],14,6)),PgmList,2,FALSE)) -> A/P-Current | L21: =IF(MID(A21,21,1)="2",MID(A21,14,6)&" - "&MID(B21,FIND(":",B21,FIND(K21,B21,1))+2,FIND(":",B21,FIND(":",B21,FIND(K21,B21,1))+1)-FIND(":",B21,FIND(K21,B21,1))-2),IF(AND(MID(Table5[[#This Row],[GL Account]],14,6)<>"696530",MID(Table5[[#This Row],[GL Account]],14,6)<>"696570"),"",IF(MID(Table5[[#This Row],[GL Account]],21,2)="53","Fringe Benefits",VLOOKUP(RIGHT(Table5[[#This Row],[GL Account]],5),Object,2,FALSE))))&IF(RIGHT(Table5[[#This Row],[GL Account]],5)="29599",IF(MID(A21,4,4)="0000",""," "&MID(A21,4,4))&" - "&LEFT(Table5[[#This Row],[ GL Description]],FIND(" : ",Table5[[#This Row],[ GL Description]])),"") -> 696200 - AS-A/P | M21: =IF(MID(A21,21,1)="2",0,IF(OR(MID(Table5[[#This Row],[GL Account]],14,6)="696520",AND(MID(A21,14,6)="696530",MID(Table5[[#This Row],[GL Account]],21,1)="4")),0,ROUND(SUMIF(Table5[GL Account],Table5[[#This Row],[GL Account]],Table5[Amount])-SUMIFS(Table2[Amount],Table2[Type],"Activity",Table2[Account Number],GLTB!A21),2))) -> 0 | N21: =IF(Table5[[#This Row],[Difference]]=0,"",IF(ISNA(VLOOKUP(Table5[[#This Row],[0]],Table1[],1,FALSE)),"","X")) -> 
A22: 71-0000-1960-696200-29512 | B22: Gen : A/P-Current : AS-A/P : Stdnt Development/Campus Life : Assoc Students | C22: 2021-08-27 | D22: PJ | E22: 'V1275442' | F22: CAPCA | I22: 750 | J22: 750 | K22: =IF(MID(Table5[[#This Row],[GL Account]],21,1)="2",MID(Table5[[#This Row],[ GL Description]],FIND(":",Table5[[#This Row],[ GL Description]],1)+2,FIND(":",Table5[[#This Row],[ GL Description]],FIND(":",Table5[[#This Row],[ GL Description]],1)+1)-FIND(":",Table5[[#This Row],[ GL Description]],1)-2),MID(Table5[[#This Row],[GL Account]],14,6)&" "&VLOOKUP(VALUE(MID(Table5[[#This Row],[GL Account]],14,6)),PgmList,2,FALSE)) -> A/P-Current | L22: =IF(MID(A22,21,1)="2",MID(A22,14,6)&" - "&MID(B22,FIND(":",B22,FIND(K22,B22,1))+2,FIND(":",B22,FIND(":",B22,FIND(K22,B22,1))+1)-FIND(":",B22,FIND(K22,B22,1))-2),IF(AND(MID(Table5[[#This Row],[GL Account]],14,6)<>"696530",MID(Table5[[#This Row],[GL Account]],14,6)<>"696570"),"",IF(MID(Table5[[#This Row],[GL Account]],21,2)="53","Fringe Benefits",VLOOKUP(RIGHT(Table5[[#This Row],[GL Account]],5),Object,2,FALSE))))&IF(RIGHT(Table5[[#This Row],[GL Account]],5)="29599",IF(MID(A22,4,4)="0000",""," "&MID(A22,4,4))&" - "&LEFT(Table5[[#This Row],[ GL Description]],FIND(" : ",Table5[[#This Row],[ GL Description]])),"") -> 696200 - AS-A/P | M22: =IF(MID(A22,21,1)="2",0,IF(OR(MID(Table5[[#This Row],[GL Account]],14,6)="696520",AND(MID(A22,14,6)="696530",MID(Table5[[#This Row],[GL Account]],21,1)="4")),0,ROUND(SUMIF(Table5[GL Account],Table5[[#This Row],[GL Account]],Table5[Amount])-SUMIFS(Table2[Amount],Table2[Type],"Activity",Table2[Account Number],GLTB!A22),2))) -> 0 | N22: =IF(Table5[[#This Row],[Difference]]=0,"",IF(ISNA(VLOOKUP(Table5[[#This Row],[0]],Table1[],1,FALSE)),"","X")) -> 
A23: 71-0000-1960-696200-29512 | B23: Gen : A/P-Current : AS-A/P : Stdnt Development/Campus Life : Assoc Students | C23: 2021-08-31 | D23: CD | E23: 'MF*0103819' | F23: Lori M. Marchy | H23: 300 | J23: -300 | K23: =IF(MID(Table5[[#This Row],[GL Account]],21,1)="2",MID(Table5[[#This Row],[ GL Description]],FIND(":",Table5[[#This Row],[ GL Description]],1)+2,FIND(":",Table5[[#This Row],[ GL Description]],FIND(":",Table5[[#This Row],[ GL Description]],1)+1)-FIND(":",Table5[[#This Row],[ GL Description]],1)-2),MID(Table5[[#This Row],[GL Account]],14,6)&" "&VLOOKUP(VALUE(MID(Table5[[#This Row],[GL Account]],14,6)),PgmList,2,FALSE)) -> A/P-Current | L23: =IF(MID(A23,21,1)="2",MID(A23,14,6)&" - "&MID(B23,FIND(":",B23,FIND(K23,B23,1))+2,FIND(":",B23,FIND(":",B23,FIND(K23,B23,1))+1)-FIND(":",B23,FIND(K23,B23,1))-2),IF(AND(MID(Table5[[#This Row],[GL Account]],14,6)<>"696530",MID(Table5[[#This Row],[GL Account]],14,6)<>"696570"),"",IF(MID(Table5[[#This Row],[GL Account]],21,2)="53","Fringe Benefits",VLOOKUP(RIGHT(Table5[[#This Row],[GL Account]],5),Object,2,FALSE))))&IF(RIGHT(Table5[[#This Row],[GL Account]],5)="29599",IF(MID(A23,4,4)="0000",""," "&MID(A23,4,4))&" - "&LEFT(Table5[[#This Row],[ GL Description]],FIND(" : ",Table5[[#This Row],[ GL Description]])),"") -> 696200 - AS-A/P | M23: =IF(MID(A23,21,1)="2",0,IF(OR(MID(Table5[[#This Row],[GL Account]],14,6)="696520",AND(MID(A23,14,6)="696530",MID(Table5[[#This Row],[GL Account]],21,1)="4")),0,ROUND(SUMIF(Table5[GL Account],Table5[[#This Row],[GL Account]],Table5[Amount])-SUMIFS(Table2[Amount],Table2[Type],"Activity",Table2[Account Number],GLTB!A23),2))) -> 0 | N23: =IF(Table5[[#This Row],[Difference]]=0,"",IF(ISNA(VLOOKUP(Table5[[#This Row],[0]],Table1[],1,FALSE)),"","X")) -> 
A24: 71-0000-1960-696200-29512 | B24: Gen : A/P-Current : AS-A/P : Stdnt Development/Campus Life : Assoc Students | C24: 2021-08-31 | D24: CD | E24: 'MF*0103820' | F24: United Site Services | H24: 137.8 | J24: -137.8 | K24: =IF(MID(Table5[[#This Row],[GL Account]],21,1)="2",MID(Table5[[#This Row],[ GL Description]],FIND(":",Table5[[#This Row],[ GL Description]],1)+2,FIND(":",Table5[[#This Row],[ GL Description]],FIND(":",Table5[[#This Row],[ GL Description]],1)+1)-FIND(":",Table5[[#This Row],[ GL Description]],1)-2),MID(Table5[[#This Row],[GL Account]],14,6)&" "&VLOOKUP(VALUE(MID(Table5[[#This Row],[GL Account]],14,6)),PgmList,2,FALSE)) -> A/P-Current | L24: =IF(MID(A24,21,1)="2",MID(A24,14,6)&" - "&MID(B24,FIND(":",B24,FIND(K24,B24,1))+2,FIND(":",B24,FIND(":",B24,FIND(K24,B24,1))+1)-FIND(":",B24,FIND(K24,B24,1))-2),IF(AND(MID(Table5[[#This Row],[GL Account]],14,6)<>"696530",MID(Table5[[#This Row],[GL Account]],14,6)<>"696570"),"",IF(MID(Table5[[#This Row],[GL Account]],21,2)="53","Fringe Benefits",VLOOKUP(RIGHT(Table5[[#This Row],[GL Account]],5),Object,2,FALSE))))&IF(RIGHT(Table5[[#This Row],[GL Account]],5)="29599",IF(MID(A24,4,4)="0000",""," "&MID(A24,4,4))&" - "&LEFT(Table5[[#This Row],[ GL Description]],FIND(" : ",Table5[[#This Row],[ GL Description]])),"") -> 696200 - AS-A/P | M24: =IF(MID(A24,21,1)="2",0,IF(OR(MID(Table5[[#This Row],[GL Account]],14,6)="696520",AND(MID(A24,14,6)="696530",MID(Table5[[#This Row],[GL Account]],21,1)="4")),0,ROUND(SUMIF(Table5[GL Account],Table5[[#This Row],[GL Account]],Table5[Amount])-SUMIFS(Table2[Amount],Table2[Type],"Activity",Table2[Account Number],GLTB!A24),2))) -> 0 | N24: =IF(Table5[[#This Row],[Difference]]=0,"",IF(ISNA(VLOOKUP(Table5[[#This Row],[0]],Table1[],1,FALSE)),"","X")) -> 
A25: 71-0000-1960-696200-29512 | B25: Gen : A/P-Current : AS-A/P : Stdnt Development/Campus Life : Assoc Students | C25: 2021-08-31 | D25: CD | E25: 'MF*0103821' | F25: Ward Promotional Marketing | H25: 738.4 | J25: -738.4 | K25: =IF(MID(Table5[[#This Row],[GL Account]],21,1)="2",MID(Table5[[#This Row],[ GL Description]],FIND(":",Table5[[#This Row],[ GL Description]],1)+2,FIND(":",Table5[[#This Row],[ GL Description]],FIND(":",Table5[[#This Row],[ GL Description]],1)+1)-FIND(":",Table5[[#This Row],[ GL Description]],1)-2),MID(Table5[[#This Row],[GL Account]],14,6)&" "&VLOOKUP(VALUE(MID(Table5[[#This Row],[GL Account]],14,6)),PgmList,2,FALSE)) -> A/P-Current | L25: =IF(MID(A25,21,1)="2",MID(A25,14,6)&" - "&MID(B25,FIND(":",B25,FIND(K25,B25,1))+2,FIND(":",B25,FIND(":",B25,FIND(K25,B25,1))+1)-FIND(":",B25,FIND(K25,B25,1))-2),IF(AND(MID(Table5[[#This Row],[GL Account]],14,6)<>"696530",MID(Table5[[#This Row],[GL Account]],14,6)<>"696570"),"",IF(MID(Table5[[#This Row],[GL Account]],21,2)="53","Fringe Benefits",VLOOKUP(RIGHT(Table5[[#This Row],[GL Account]],5),Object,2,FALSE))))&IF(RIGHT(Table5[[#This Row],[GL Account]],5)="29599",IF(MID(A25,4,4)="0000",""," "&MID(A25,4,4))&" - "&LEFT(Table5[[#This Row],[ GL Description]],FIND(" : ",Table5[[#This Row],[ GL Description]])),"") -> 696200 - AS-A/P | M25: =IF(MID(A25,21,1)="2",0,IF(OR(MID(Table5[[#This Row],[GL Account]],14,6)="696520",AND(MID(A25,14,6)="696530",MID(Table5[[#This Row],[GL Account]],21,1)="4")),0,ROUND(SUMIF(Table5[GL Account],Table5[[#This Row],[GL Account]],Table5[Amount])-SUMIFS(Table2[Amount],Table2[Type],"Activity",Table2[Account Number],GLTB!A25),2))) -> 0 | N25: =IF(Table5[[#This Row],[Difference]]=0,"",IF(ISNA(VLOOKUP(Table5[[#This Row],[0]],Table1[],1,FALSE)),"","X")) -> 
A26: 71-0000-1960-696200-29512 | B26: Gen : A/P-Current : AS-A/P : Stdnt Development/Campus Life : Assoc Students | C26: 2021-08-31 | D26: PJ | E26: 'V1275444' | F26: Grand Sierra Resort/Casino | I26: 329.44 | J26: 329.44 | K26: =IF(MID(Table5[[#This Row],[GL Account]],21,1)="2",MID(Table5[[#This Row],[ GL Description]],FIND(":",Table5[[#This Row],[ GL Description]],1)+2,FIND(":",Table5[[#This Row],[ GL Description]],FIND(":",Table5[[#This Row],[ GL Description]],1)+1)-FIND(":",Table5[[#This Row],[ GL Description]],1)-2),MID(Table5[[#This Row],[GL Account]],14,6)&" "&VLOOKUP(VALUE(MID(Table5[[#This Row],[GL Account]],14,6)),PgmList,2,FALSE)) -> A/P-Current | L26: =IF(MID(A26,21,1)="2",MID(A26,14,6)&" - "&MID(B26,FIND(":",B26,FIND(K26,B26,1))+2,FIND(":",B26,FIND(":",B26,FIND(K26,B26,1))+1)-FIND(":",B26,FIND(K26,B26,1))-2),IF(AND(MID(Table5[[#This Row],[GL Account]],14,6)<>"696530",MID(Table5[[#This Row],[GL Account]],14,6)<>"696570"),"",IF(MID(Table5[[#This Row],[GL Account]],21,2)="53","Fringe Benefits",VLOOKUP(RIGHT(Table5[[#This Row],[GL Account]],5),Object,2,FALSE))))&IF(RIGHT(Table5[[#This Row],[GL Account]],5)="29599",IF(MID(A26,4,4)="0000",""," "&MID(A26,4,4))&" - "&LEFT(Table5[[#This Row],[ GL Description]],FIND(" : ",Table5[[#This Row],[ GL Description]])),"") -> 696200 - AS-A/P | M26: =IF(MID(A26,21,1)="2",0,IF(OR(MID(Table5[[#This Row],[GL Account]],14,6)="696520",AND(MID(A26,14,6)="696530",MID(Table5[[#This Row],[GL Account]],21,1)="4")),0,ROUND(SUMIF(Table5[GL Account],Table5[[#This Row],[GL Account]],Table5[Amount])-SUMIFS(Table2[Amount],Table2[Type],"Activity",Table2[Account Number],GLTB!A26),2))) -> 0 | N26: =IF(Table5[[#This Row],[Difference]]=0,"",IF(ISNA(VLOOKUP(Table5[[#This Row],[0]],Table1[],1,FALSE)),"","X")) -> 
A27: 71-0000-1960-696200-29512 | B27: Gen : A/P-Current : AS-A/P : Stdnt Development/Campus Life : Assoc Students | C27: 2021-08-31 | D27: PJ | E27: 'V1275446' | F27: Grand Sierra Resort/Casino | I27: 329.44 | J27: 329.44 | K27: =IF(MID(Table5[[#This Row],[GL Account]],21,1)="2",MID(Table5[[#This Row],[ GL Description]],FIND(":",Table5[[#This Row],[ GL Description]],1)+2,FIND(":",Table5[[#This Row],[ GL Description]],FIND(":",Table5[[#This Row],[ GL Description]],1)+1)-FIND(":",Table5[[#This Row],[ GL Description]],1)-2),MID(Table5[[#This Row],[GL Account]],14,6)&" "&VLOOKUP(VALUE(MID(Table5[[#This Row],[GL Account]],14,6)),PgmList,2,FALSE)) -> A/P-Current | L27: =IF(MID(A27,21,1)="2",MID(A27,14,6)&" - "&MID(B27,FIND(":",B27,FIND(K27,B27,1))+2,FIND(":",B27,FIND(":",B27,FIND(K27,B27,1))+1)-FIND(":",B27,FIND(K27,B27,1))-2),IF(AND(MID(Table5[[#This Row],[GL Account]],14,6)<>"696530",MID(Table5[[#This Row],[GL Account]],14,6)<>"696570"),"",IF(MID(Table5[[#This Row],[GL Account]],21,2)="53","Fringe Benefits",VLOOKUP(RIGHT(Table5[[#This Row],[GL Account]],5),Object,2,FALSE))))&IF(RIGHT(Table5[[#This Row],[GL Account]],5)="29599",IF(MID(A27,4,4)="0000",""," "&MID(A27,4,4))&" - "&LEFT(Table5[[#This Row],[ GL Description]],FIND(" : ",Table5[[#This Row],[ GL Description]])),"") -> 696200 - AS-A/P | M27: =IF(MID(A27,21,1)="2",0,IF(OR(MID(Table5[[#This Row],[GL Account]],14,6)="696520",AND(MID(A27,14,6)="696530",MID(Table5[[#This Row],[GL Account]],21,1)="4")),0,ROUND(SUMIF(Table5[GL Account],Table5[[#This Row],[GL Account]],Table5[Amount])-SUMIFS(Table2[Amount],Table2[Type],"Activity",Table2[Account Number],GLTB!A27),2))) -> 0 | N27: =IF(Table5[[#This Row],[Difference]]=0,"",IF(ISNA(VLOOKUP(Table5[[#This Row],[0]],Table1[],1,FALSE)),"","X")) -> 
A28: 71-0000-1960-696200-29512 | B28: Gen : A/P-Current : AS-A/P : Stdnt Development/Campus Life : Assoc Students | C28: 2021-08-31 | D28: PJ | E28: 'V1275448' | F28: Grand Sierra Resort/Casino | I28: 329.44 | J28: 329.44 | K28: =IF(MID(Table5[[#This Row],[GL Account]],21,1)="2",MID(Table5[[#This Row],[ GL Description]],FIND(":",Table5[[#This Row],[ GL Description]],1)+2,FIND(":",Table5[[#This Row],[ GL Description]],FIND(":",Table5[[#This Row],[ GL Description]],1)+1)-FIND(":",Table5[[#This Row],[ GL Description]],1)-2),MID(Table5[[#This Row],[GL Account]],14,6)&" "&VLOOKUP(VALUE(MID(Table5[[#This Row],[GL Account]],14,6)),PgmList,2,FALSE)) -> A/P-Current | L28: =IF(MID(A28,21,1)="2",MID(A28,14,6)&" - "&MID(B28,FIND(":",B28,FIND(K28,B28,1))+2,FIND(":",B28,FIND(":",B28,FIND(K28,B28,1))+1)-FIND(":",B28,FIND(K28,B28,1))-2),IF(AND(MID(Table5[[#This Row],[GL Account]],14,6)<>"696530",MID(Table5[[#This Row],[GL Account]],14,6)<>"696570"),"",IF(MID(Table5[[#This Row],[GL Account]],21,2)="53","Fringe Benefits",VLOOKUP(RIGHT(Table5[[#This Row],[GL Account]],5),Object,2,FALSE))))&IF(RIGHT(Table5[[#This Row],[GL Account]],5)="29599",IF(MID(A28,4,4)="0000",""," "&MID(A28,4,4))&" - "&LEFT(Table5[[#This Row],[ GL Description]],FIND(" : ",Table5[[#This Row],[ GL Description]])),"") -> 696200 - AS-A/P | M28: =IF(MID(A28,21,1)="2",0,IF(OR(MID(Table5[[#This Row],[GL Account]],14,6)="696520",AND(MID(A28,14,6)="696530",MID(Table5[[#This Row],[GL Account]],21,1)="4")),0,ROUND(SUMIF(Table5[GL Account],Table5[[#This Row],[GL Account]],Table5[Amount])-SUMIFS(Table2[Amount],Table2[Type],"Activity",Table2[Account Number],GLTB!A28),2))) -> 0 | N28: =IF(Table5[[#This Row],[Difference]]=0,"",IF(ISNA(VLOOKUP(Table5[[#This Row],[0]],Table1[],1,FALSE)),"","X")) -> 
A29: 71-0000-1960-696200-29512 | B29: Gen : A/P-Current : AS-A/P : Stdnt Development/Campus Life : Assoc Students | C29: 2021-09-01 | D29: PJ | E29: 'V1277506' | F29: Jeffrey J. Wilbanks | I29: 750 | J29: 750 | K29: =IF(MID(Table5[[#This Row],[GL Account]],21,1)="2",MID(Table5[[#This Row],[ GL Description]],FIND(":",Table5[[#This Row],[ GL Description]],1)+2,FIND(":",Table5[[#This Row],[ GL Description]],FIND(":",Table5[[#This Row],[ GL Description]],1)+1)-FIND(":",Table5[[#This Row],[ GL Description]],1)-2),MID(Table5[[#This Row],[GL Account]],14,6)&" "&VLOOKUP(VALUE(MID(Table5[[#This Row],[GL Account]],14,6)),PgmList,2,FALSE)) -> A/P-Current | L29: =IF(MID(A29,21,1)="2",MID(A29,14,6)&" - "&MID(B29,FIND(":",B29,FIND(K29,B29,1))+2,FIND(":",B29,FIND(":",B29,FIND(K29,B29,1))+1)-FIND(":",B29,FIND(K29,B29,1))-2),IF(AND(MID(Table5[[#This Row],[GL Account]],14,6)<>"696530",MID(Table5[[#This Row],[GL Account]],14,6)<>"696570"),"",IF(MID(Table5[[#This Row],[GL Account]],21,2)="53","Fringe Benefits",VLOOKUP(RIGHT(Table5[[#This Row],[GL Account]],5),Object,2,FALSE))))&IF(RIGHT(Table5[[#This Row],[GL Account]],5)="29599",IF(MID(A29,4,4)="0000",""," "&MID(A29,4,4))&" - "&LEFT(Table5[[#This Row],[ GL Description]],FIND(" : ",Table5[[#This Row],[ GL Description]])),"") -> 696200 - AS-A/P | M29: =IF(MID(A29,21,1)="2",0,IF(OR(MID(Table5[[#This Row],[GL Account]],14,6)="696520",AND(MID(A29,14,6)="696530",MID(Table5[[#This Row],[GL Account]],21,1)="4")),0,ROUND(SUMIF(Table5[GL Account],Table5[[#This Row],[GL Account]],Table5[Amount])-SUMIFS(Table2[Amount],Table2[Type],"Activity",Table2[Account Number],GLTB!A29),2))) -> 0 | N29: =IF(Table5[[#This Row],[Difference]]=0,"",IF(ISNA(VLOOKUP(Table5[[#This Row],[0]],Table1[],1,FALSE)),"","X")) -> 
A30: 71-0000-1960-696200-29512 | B30: Gen : A/P-Current : AS-A/P : Stdnt Development/Campus Life : Assoc Students | C30: 2021-09-02 | D30: PJ | E30: 'V1275875' | F30: Rebecca A. Tilger | I30: 500 | J30: 500 | K30: =IF(MID(Table5[[#This Row],[GL Account]],21,1)="2",MID(Table5[[#This Row],[ GL Description]],FIND(":",Table5[[#This Row],[ GL Description]],1)+2,FIND(":",Table5[[#This Row],[ GL Description]],FIND(":",Table5[[#This Row],[ GL Description]],1)+1)-FIND(":",Table5[[#This Row],[ GL Description]],1)-2),MID(Table5[[#This Row],[GL Account]],14,6)&" "&VLOOKUP(VALUE(MID(Table5[[#This Row],[GL Account]],14,6)),PgmList,2,FALSE)) -> A/P-Current | L30: =IF(MID(A30,21,1)="2",MID(A30,14,6)&" - "&MID(B30,FIND(":",B30,FIND(K30,B30,1))+2,FIND(":",B30,FIND(":",B30,FIND(K30,B30,1))+1)-FIND(":",B30,FIND(K30,B30,1))-2),IF(AND(MID(Table5[[#This Row],[GL Account]],14,6)<>"696530",MID(Table5[[#This Row],[GL Account]],14,6)<>"696570"),"",IF(MID(Table5[[#This Row],[GL Account]],21,2)="53","Fringe Benefits",VLOOKUP(RIGHT(Table5[[#This Row],[GL Account]],5),Object,2,FALSE))))&IF(RIGHT(Table5[[#This Row],[GL Account]],5)="29599",IF(MID(A30,4,4)="0000",""," "&MID(A30,4,4))&" - "&LEFT(Table5[[#This Row],[ GL Description]],FIND(" : ",Table5[[#This Row],[ GL Description]])),"") -> 696200 - AS-A/P | M30: =IF(MID(A30,21,1)="2",0,IF(OR(MID(Table5[[#This Row],[GL Account]],14,6)="696520",AND(MID(A30,14,6)="696530",MID(Table5[[#This Row],[GL Account]],21,1)="4")),0,ROUND(SUMIF(Table5[GL Account],Table5[[#This Row],[GL Account]],Table5[Amount])-SUMIFS(Table2[Amount],Table2[Type],"Activity",Table2[Account Number],GLTB!A30),2))) -> 0 | N30: =IF(Table5[[#This Row],[Difference]]=0,"",IF(ISNA(VLOOKUP(Table5[[#This Row],[0]],Table1[],1,FALSE)),"","X")) -> 
A31: 71-0000-1960-696200-29512 | B31: Gen : A/P-Current : AS-A/P : Stdnt Development/Campus Life : Assoc Students | C31: 2021-09-09 | D31: CD | E31: 'MF*0103822' | F31: CAPCA | H31: 750 | J31: -750 | K31: =IF(MID(Table5[[#This Row],[GL Account]],21,1)="2",MID(Table5[[#This Row],[ GL Description]],FIND(":",Table5[[#This Row],[ GL Description]],1)+2,FIND(":",Table5[[#This Row],[ GL Description]],FIND(":",Table5[[#This Row],[ GL Description]],1)+1)-FIND(":",Table5[[#This Row],[ GL Description]],1)-2),MID(Table5[[#This Row],[GL Account]],14,6)&" "&VLOOKUP(VALUE(MID(Table5[[#This Row],[GL Account]],14,6)),PgmList,2,FALSE)) -> A/P-Current | L31: =IF(MID(A31,21,1)="2",MID(A31,14,6)&" - "&MID(B31,FIND(":",B31,FIND(K31,B31,1))+2,FIND(":",B31,FIND(":",B31,FIND(K31,B31,1))+1)-FIND(":",B31,FIND(K31,B31,1))-2),IF(AND(MID(Table5[[#This Row],[GL Account]],14,6)<>"696530",MID(Table5[[#This Row],[GL Account]],14,6)<>"696570"),"",IF(MID(Table5[[#This Row],[GL Account]],21,2)="53","Fringe Benefits",VLOOKUP(RIGHT(Table5[[#This Row],[GL Account]],5),Object,2,FALSE))))&IF(RIGHT(Table5[[#This Row],[GL Account]],5)="29599",IF(MID(A31,4,4)="0000",""," "&MID(A31,4,4))&" - "&LEFT(Table5[[#This Row],[ GL Description]],FIND(" : ",Table5[[#This Row],[ GL Description]])),"") -> 696200 - AS-A/P | M31: =IF(MID(A31,21,1)="2",0,IF(OR(MID(Table5[[#This Row],[GL Account]],14,6)="696520",AND(MID(A31,14,6)="696530",MID(Table5[[#This Row],[GL Account]],21,1)="4")),0,ROUND(SUMIF(Table5[GL Account],Table5[[#This Row],[GL Account]],Table5[Amount])-SUMIFS(Table2[Amount],Table2[Type],"Activity",Table2[Account Number],GLTB!A31),2))) -> 0 | N31: =IF(Table5[[#This Row],[Difference]]=0,"",IF(ISNA(VLOOKUP(Table5[[#This Row],[0]],Table1[],1,FALSE)),"","X")) -> 
A32: 71-0000-1960-696200-29512 | B32: Gen : A/P-Current : AS-A/P : Stdnt Development/Campus Life : Assoc Students | C32: 2021-09-09 | D32: CD | E32: 'MF*0103823' | F32: Grand Sierra Resort/Casino | H32: 988.32 | J32: -988.32 | K32: =IF(MID(Table5[[#This Row],[GL Account]],21,1)="2",MID(Table5[[#This Row],[ GL Description]],FIND(":",Table5[[#This Row],[ GL Description]],1)+2,FIND(":",Table5[[#This Row],[ GL Description]],FIND(":",Table5[[#This Row],[ GL Description]],1)+1)-FIND(":",Table5[[#This Row],[ GL Description]],1)-2),MID(Table5[[#This Row],[GL Account]],14,6)&" "&VLOOKUP(VALUE(MID(Table5[[#This Row],[GL Account]],14,6)),PgmList,2,FALSE)) -> A/P-Current | L32: =IF(MID(A32,21,1)="2",MID(A32,14,6)&" - "&MID(B32,FIND(":",B32,FIND(K32,B32,1))+2,FIND(":",B32,FIND(":",B32,FIND(K32,B32,1))+1)-FIND(":",B32,FIND(K32,B32,1))-2),IF(AND(MID(Table5[[#This Row],[GL Account]],14,6)<>"696530",MID(Table5[[#This Row],[GL Account]],14,6)<>"696570"),"",IF(MID(Table5[[#This Row],[GL Account]],21,2)="53","Fringe Benefits",VLOOKUP(RIGHT(Table5[[#This Row],[GL Account]],5),Object,2,FALSE))))&IF(RIGHT(Table5[[#This Row],[GL Account]],5)="29599",IF(MID(A32,4,4)="0000",""," "&MID(A32,4,4))&" - "&LEFT(Table5[[#This Row],[ GL Description]],FIND(" : ",Table5[[#This Row],[ GL Description]])),"") -> 696200 - AS-A/P | M32: =IF(MID(A32,21,1)="2",0,IF(OR(MID(Table5[[#This Row],[GL Account]],14,6)="696520",AND(MID(A32,14,6)="696530",MID(Table5[[#This Row],[GL Account]],21,1)="4")),0,ROUND(SUMIF(Table5[GL Account],Table5[[#This Row],[GL Account]],Table5[Amount])-SUMIFS(Table2[Amount],Table2[Type],"Activity",Table2[Account Number],GLTB!A32),2))) -> 0 | N32: =IF(Table5[[#This Row],[Difference]]=0,"",IF(ISNA(VLOOKUP(Table5[[#This Row],[0]],Table1[],1,FALSE)),"","X")) -> 
A33: 71-0000-1960-696200-29512 | B33: Gen : A/P-Current : AS-A/P : Stdnt Development/Campus Life : Assoc Students | C33: 2021-09-09 | D33: CD | E33: 'MF*0103824' | F33: Rebecca A. Tilger | H33: 500 | J33: -500 | K33: =IF(MID(Table5[[#This Row],[GL Account]],21,1)="2",MID(Table5[[#This Row],[ GL Description]],FIND(":",Table5[[#This Row],[ GL Description]],1)+2,FIND(":",Table5[[#This Row],[ GL Description]],FIND(":",Table5[[#This Row],[ GL Description]],1)+1)-FIND(":",Table5[[#This Row],[ GL Description]],1)-2),MID(Table5[[#This Row],[GL Account]],14,6)&" "&VLOOKUP(VALUE(MID(Table5[[#This Row],[GL Account]],14,6)),PgmList,2,FALSE)) -> A/P-Current | L33: =IF(MID(A33,21,1)="2",MID(A33,14,6)&" - "&MID(B33,FIND(":",B33,FIND(K33,B33,1))+2,FIND(":",B33,FIND(":",B33,FIND(K33,B33,1))+1)-FIND(":",B33,FIND(K33,B33,1))-2),IF(AND(MID(Table5[[#This Row],[GL Account]],14,6)<>"696530",MID(Table5[[#This Row],[GL Account]],14,6)<>"696570"),"",IF(MID(Table5[[#This Row],[GL Account]],21,2)="53","Fringe Benefits",VLOOKUP(RIGHT(Table5[[#This Row],[GL Account]],5),Object,2,FALSE))))&IF(RIGHT(Table5[[#This Row],[GL Account]],5)="29599",IF(MID(A33,4,4)="0000",""," "&MID(A33,4,4))&" - "&LEFT(Table5[[#This Row],[ GL Description]],FIND(" : ",Table5[[#This Row],[ GL Description]])),"") -> 696200 - AS-A/P | M33: =IF(MID(A33,21,1)="2",0,IF(OR(MID(Table5[[#This Row],[GL Account]],14,6)="696520",AND(MID(A33,14,6)="696530",MID(Table5[[#This Row],[GL Account]],21,1)="4")),0,ROUND(SUMIF(Table5[GL Account],Table5[[#This Row],[GL Account]],Table5[Amount])-SUMIFS(Table2[Amount],Table2[Type],"Activity",Table2[Account Number],GLTB!A33),2))) -> 0 | N33: =IF(Table5[[#This Row],[Difference]]=0,"",IF(ISNA(VLOOKUP(Table5[[#This Row],[0]],Table1[],1,FALSE)),"","X")) -> 
A34: 71-0000-1960-696200-29512 | B34: Gen : A/P-Current : AS-A/P : Stdnt Development/Campus Life : Assoc Students | C34: 2021-09-09 | D34: CD | E34: 'MF*0103825' | F34: US Bank Equipment Finance | H34: 87.56 | J34: -87.56 | K34: =IF(MID(Table5[[#This Row],[GL Account]],21,1)="2",MID(Table5[[#This Row],[ GL Description]],FIND(":",Table5[[#This Row],[ GL Description]],1)+2,FIND(":",Table5[[#This Row],[ GL Description]],FIND(":",Table5[[#This Row],[ GL Description]],1)+1)-FIND(":",Table5[[#This Row],[ GL Description]],1)-2),MID(Table5[[#This Row],[GL Account]],14,6)&" "&VLOOKUP(VALUE(MID(Table5[[#This Row],[GL Account]],14,6)),PgmList,2,FALSE)) -> A/P-Current | L34: =IF(MID(A34,21,1)="2",MID(A34,14,6)&" - "&MID(B34,FIND(":",B34,FIND(K34,B34,1))+2,FIND(":",B34,FIND(":",B34,FIND(K34,B34,1))+1)-FIND(":",B34,FIND(K34,B34,1))-2),IF(AND(MID(Table5[[#This Row],[GL Account]],14,6)<>"696530",MID(Table5[[#This Row],[GL Account]],14,6)<>"696570"),"",IF(MID(Table5[[#This Row],[GL Account]],21,2)="53","Fringe Benefits",VLOOKUP(RIGHT(Table5[[#This Row],[GL Account]],5),Object,2,FALSE))))&IF(RIGHT(Table5[[#This Row],[GL Account]],5)="29599",IF(MID(A34,4,4)="0000",""," "&MID(A34,4,4))&" - "&LEFT(Table5[[#This Row],[ GL Description]],FIND(" : ",Table5[[#This Row],[ GL Description]])),"") -> 696200 - AS-A/P | M34: =IF(MID(A34,21,1)="2",0,IF(OR(MID(Table5[[#This Row],[GL Account]],14,6)="696520",AND(MID(A34,14,6)="696530",MID(Table5[[#This Row],[GL Account]],21,1)="4")),0,ROUND(SUMIF(Table5[GL Account],Table5[[#This Row],[GL Account]],Table5[Amount])-SUMIFS(Table2[Amount],Table2[Type],"Activity",Table2[Account Number],GLTB!A34),2))) -> 0 | N34: =IF(Table5[[#This Row],[Difference]]=0,"",IF(ISNA(VLOOKUP(Table5[[#This Row],[0]],Table1[],1,FALSE)),"","X")) -> 
A35: 71-0000-1960-696200-29512 | B35: Gen : A/P-Current : AS-A/P : Stdnt Development/Campus Life : Assoc Students | C35: 2021-09-09 | D35: PJ | E35: 'V1277220' | F35: Lori M. Marchy | I35: 500 | J35: 500 | K35: =IF(MID(Table5[[#This Row],[GL Account]],21,1)="2",MID(Table5[[#This Row],[ GL Description]],FIND(":",Table5[[#This Row],[ GL Description]],1)+2,FIND(":",Table5[[#This Row],[ GL Description]],FIND(":",Table5[[#This Row],[ GL Description]],1)+1)-FIND(":",Table5[[#This Row],[ GL Description]],1)-2),MID(Table5[[#This Row],[GL Account]],14,6)&" "&VLOOKUP(VALUE(MID(Table5[[#This Row],[GL Account]],14,6)),PgmList,2,FALSE)) -> A/P-Current | L35: =IF(MID(A35,21,1)="2",MID(A35,14,6)&" - "&MID(B35,FIND(":",B35,FIND(K35,B35,1))+2,FIND(":",B35,FIND(":",B35,FIND(K35,B35,1))+1)-FIND(":",B35,FIND(K35,B35,1))-2),IF(AND(MID(Table5[[#This Row],[GL Account]],14,6)<>"696530",MID(Table5[[#This Row],[GL Account]],14,6)<>"696570"),"",IF(MID(Table5[[#This Row],[GL Account]],21,2)="53","Fringe Benefits",VLOOKUP(RIGHT(Table5[[#This Row],[GL Account]],5),Object,2,FALSE))))&IF(RIGHT(Table5[[#This Row],[GL Account]],5)="29599",IF(MID(A35,4,4)="0000",""," "&MID(A35,4,4))&" - "&LEFT(Table5[[#This Row],[ GL Description]],FIND(" : ",Table5[[#This Row],[ GL Description]])),"") -> 696200 - AS-A/P | M35: =IF(MID(A35,21,1)="2",0,IF(OR(MID(Table5[[#This Row],[GL Account]],14,6)="696520",AND(MID(A35,14,6)="696530",MID(Table5[[#This Row],[GL Account]],21,1)="4")),0,ROUND(SUMIF(Table5[GL Account],Table5[[#This Row],[GL Account]],Table5[Amount])-SUMIFS(Table2[Amount],Table2[Type],"Activity",Table2[Account Number],GLTB!A35),2))) -> 0 | N35: =IF(Table5[[#This Row],[Difference]]=0,"",IF(ISNA(VLOOKUP(Table5[[#This Row],[0]],Table1[],1,FALSE)),"","X")) -> 
A36: 71-0000-1960-696200-29512 | B36: Gen : A/P-Current : AS-A/P : Stdnt Development/Campus Life : Assoc Students | C36: 2021-09-15 | D36: PJ | E36: 'V1280057' | F36: Rebecca A. Tilger | I36: 500 | J36: 500 | K36: =IF(MID(Table5[[#This Row],[GL Account]],21,1)="2",MID(Table5[[#This Row],[ GL Description]],FIND(":",Table5[[#This Row],[ GL Description]],1)+2,FIND(":",Table5[[#This Row],[ GL Description]],FIND(":",Table5[[#This Row],[ GL Description]],1)+1)-FIND(":",Table5[[#This Row],[ GL Description]],1)-2),MID(Table5[[#This Row],[GL Account]],14,6)&" "&VLOOKUP(VALUE(MID(Table5[[#This Row],[GL Account]],14,6)),PgmList,2,FALSE)) -> A/P-Current | L36: =IF(MID(A36,21,1)="2",MID(A36,14,6)&" - "&MID(B36,FIND(":",B36,FIND(K36,B36,1))+2,FIND(":",B36,FIND(":",B36,FIND(K36,B36,1))+1)-FIND(":",B36,FIND(K36,B36,1))-2),IF(AND(MID(Table5[[#This Row],[GL Account]],14,6)<>"696530",MID(Table5[[#This Row],[GL Account]],14,6)<>"696570"),"",IF(MID(Table5[[#This Row],[GL Account]],21,2)="53","Fringe Benefits",VLOOKUP(RIGHT(Table5[[#This Row],[GL Account]],5),Object,2,FALSE))))&IF(RIGHT(Table5[[#This Row],[GL Account]],5)="29599",IF(MID(A36,4,4)="0000",""," "&MID(A36,4,4))&" - "&LEFT(Table5[[#This Row],[ GL Description]],FIND(" : ",Table5[[#This Row],[ GL Description]])),"") -> 696200 - AS-A/P | M36: =IF(MID(A36,21,1)="2",0,IF(OR(MID(Table5[[#This Row],[GL Account]],14,6)="696520",AND(MID(A36,14,6)="696530",MID(Table5[[#This Row],[GL Account]],21,1)="4")),0,ROUND(SUMIF(Table5[GL Account],Table5[[#This Row],[GL Account]],Table5[Amount])-SUMIFS(Table2[Amount],Table2[Type],"Activity",Table2[Account Number],GLTB!A36),2))) -> 0 | N36: =IF(Table5[[#This Row],[Difference]]=0,"",IF(ISNA(VLOOKUP(Table5[[#This Row],[0]],Table1[],1,FALSE)),"","X")) -> 
A37: 71-0000-1960-696200-29512 | B37: Gen : A/P-Current : AS-A/P : Stdnt Development/Campus Life : Assoc Students | C37: 2021-09-16 | D37: CD | E37: 'MF*0103826' | F37: Lori M. Marchy | H37: 500 | J37: -500 | K37: =IF(MID(Table5[[#This Row],[GL Account]],21,1)="2",MID(Table5[[#This Row],[ GL Description]],FIND(":",Table5[[#This Row],[ GL Description]],1)+2,FIND(":",Table5[[#This Row],[ GL Description]],FIND(":",Table5[[#This Row],[ GL Description]],1)+1)-FIND(":",Table5[[#This Row],[ GL Description]],1)-2),MID(Table5[[#This Row],[GL Account]],14,6)&" "&VLOOKUP(VALUE(MID(Table5[[#This Row],[GL Account]],14,6)),PgmList,2,FALSE)) -> A/P-Current | L37: =IF(MID(A37,21,1)="2",MID(A37,14,6)&" - "&MID(B37,FIND(":",B37,FIND(K37,B37,1))+2,FIND(":",B37,FIND(":",B37,FIND(K37,B37,1))+1)-FIND(":",B37,FIND(K37,B37,1))-2),IF(AND(MID(Table5[[#This Row],[GL Account]],14,6)<>"696530",MID(Table5[[#This Row],[GL Account]],14,6)<>"696570"),"",IF(MID(Table5[[#This Row],[GL Account]],21,2)="53","Fringe Benefits",VLOOKUP(RIGHT(Table5[[#This Row],[GL Account]],5),Object,2,FALSE))))&IF(RIGHT(Table5[[#This Row],[GL Account]],5)="29599",IF(MID(A37,4,4)="0000",""," "&MID(A37,4,4))&" - "&LEFT(Table5[[#This Row],[ GL Description]],FIND(" : ",Table5[[#This Row],[ GL Description]])),"") -> 696200 - AS-A/P | M37: =IF(MID(A37,21,1)="2",0,IF(OR(MID(Table5[[#This Row],[GL Account]],14,6)="696520",AND(MID(A37,14,6)="696530",MID(Table5[[#This Row],[GL Account]],21,1)="4")),0,ROUND(SUMIF(Table5[GL Account],Table5[[#This Row],[GL Account]],Table5[Amount])-SUMIFS(Table2[Amount],Table2[Type],"Activity",Table2[Account Number],GLTB!A37),2))) -> 0 | N37: =IF(Table5[[#This Row],[Difference]]=0,"",IF(ISNA(VLOOKUP(Table5[[#This Row],[0]],Table1[],1,FALSE)),"","X")) -> 
A38: 71-0000-1960-696200-29512 | B38: Gen : A/P-Current : AS-A/P : Stdnt Development/Campus Life : Assoc Students | C38: 2021-09-16 | D38: CD | E38: 'MF*0103827' | F38: Jeffrey J. Wilbanks | H38: 750 | J38: -750 | K38: =IF(MID(Table5[[#This Row],[GL Account]],21,1)="2",MID(Table5[[#This Row],[ GL Description]],FIND(":",Table5[[#This Row],[ GL Description]],1)+2,FIND(":",Table5[[#This Row],[ GL Description]],FIND(":",Table5[[#This Row],[ GL Description]],1)+1)-FIND(":",Table5[[#This Row],[ GL Description]],1)-2),MID(Table5[[#This Row],[GL Account]],14,6)&" "&VLOOKUP(VALUE(MID(Table5[[#This Row],[GL Account]],14,6)),PgmList,2,FALSE)) -> A/P-Current | L38: =IF(MID(A38,21,1)="2",MID(A38,14,6)&" - "&MID(B38,FIND(":",B38,FIND(K38,B38,1))+2,FIND(":",B38,FIND(":",B38,FIND(K38,B38,1))+1)-FIND(":",B38,FIND(K38,B38,1))-2),IF(AND(MID(Table5[[#This Row],[GL Account]],14,6)<>"696530",MID(Table5[[#This Row],[GL Account]],14,6)<>"696570"),"",IF(MID(Table5[[#This Row],[GL Account]],21,2)="53","Fringe Benefits",VLOOKUP(RIGHT(Table5[[#This Row],[GL Account]],5),Object,2,FALSE))))&IF(RIGHT(Table5[[#This Row],[GL Account]],5)="29599",IF(MID(A38,4,4)="0000",""," "&MID(A38,4,4))&" - "&LEFT(Table5[[#This Row],[ GL Description]],FIND(" : ",Table5[[#This Row],[ GL Description]])),"") -> 696200 - AS-A/P | M38: =IF(MID(A38,21,1)="2",0,IF(OR(MID(Table5[[#This Row],[GL Account]],14,6)="696520",AND(MID(A38,14,6)="696530",MID(Table5[[#This Row],[GL Account]],21,1)="4")),0,ROUND(SUMIF(Table5[GL Account],Table5[[#This Row],[GL Account]],Table5[Amount])-SUMIFS(Table2[Amount],Table2[Type],"Activity",Table2[Account Number],GLTB!A38),2))) -> 0 | N38: =IF(Table5[[#This Row],[Difference]]=0,"",IF(ISNA(VLOOKUP(Table5[[#This Row],[0]],Table1[],1,FALSE)),"","X")) -> 
A39: 71-0000-1960-696200-29512 | B39: Gen : A/P-Current : AS-A/P : Stdnt Development/Campus Life : Assoc Students | C39: 2021-09-30 | D39: CD | E39: 'MF*0103828' | F39: Rebecca A. Tilger | H39: 500 | J39: -500 | K39: =IF(MID(Table5[[#This Row],[GL Account]],21,1)="2",MID(Table5[[#This Row],[ GL Description]],FIND(":",Table5[[#This Row],[ GL Description]],1)+2,FIND(":",Table5[[#This Row],[ GL Description]],FIND(":",Table5[[#This Row],[ GL Description]],1)+1)-FIND(":",Table5[[#This Row],[ GL Description]],1)-2),MID(Table5[[#This Row],[GL Account]],14,6)&" "&VLOOKUP(VALUE(MID(Table5[[#This Row],[GL Account]],14,6)),PgmList,2,FALSE)) -> A/P-Current | L39: =IF(MID(A39,21,1)="2",MID(A39,14,6)&" - "&MID(B39,FIND(":",B39,FIND(K39,B39,1))+2,FIND(":",B39,FIND(":",B39,FIND(K39,B39,1))+1)-FIND(":",B39,FIND(K39,B39,1))-2),IF(AND(MID(Table5[[#This Row],[GL Account]],14,6)<>"696530",MID(Table5[[#This Row],[GL Account]],14,6)<>"696570"),"",IF(MID(Table5[[#This Row],[GL Account]],21,2)="53","Fringe Benefits",VLOOKUP(RIGHT(Table5[[#This Row],[GL Account]],5),Object,2,FALSE))))&IF(RIGHT(Table5[[#This Row],[GL Account]],5)="29599",IF(MID(A39,4,4)="0000",""," "&MID(A39,4,4))&" - "&LEFT(Table5[[#This Row],[ GL Description]],FIND(" : ",Table5[[#This Row],[ GL Description]])),"") -> 696200 - AS-A/P | M39: =IF(MID(A39,21,1)="2",0,IF(OR(MID(Table5[[#This Row],[GL Account]],14,6)="696520",AND(MID(A39,14,6)="696530",MID(Table5[[#This Row],[GL Account]],21,1)="4")),0,ROUND(SUMIF(Table5[GL Account],Table5[[#This Row],[GL Account]],Table5[Amount])-SUMIFS(Table2[Amount],Table2[Type],"Activity",Table2[Account Number],GLTB!A39),2))) -> 0 | N39: =IF(Table5[[#This Row],[Difference]]=0,"",IF(ISNA(VLOOKUP(Table5[[#This Row],[0]],Table1[],1,FALSE)),"","X")) -> 
A40: 71-0000-1960-696200-29512 | B40: Gen : A/P-Current : AS-A/P : Stdnt Development/Campus Life : Assoc Students | C40: 2021-09-30 | D40: PJ | E40: 'V1281976' | F40: MJC | I40: 424 | J40: 424 | K40: =IF(MID(Table5[[#This Row],[GL Account]],21,1)="2",MID(Table5[[#This Row],[ GL Description]],FIND(":",Table5[[#This Row],[ GL Description]],1)+2,FIND(":",Table5[[#This Row],[ GL Description]],FIND(":",Table5[[#This Row],[ GL Description]],1)+1)-FIND(":",Table5[[#This Row],[ GL Description]],1)-2),MID(Table5[[#This Row],[GL Account]],14,6)&" "&VLOOKUP(VALUE(MID(Table5[[#This Row],[GL Account]],14,6)),PgmList,2,FALSE)) -> A/P-Current | L40: =IF(MID(A40,21,1)="2",MID(A40,14,6)&" - "&MID(B40,FIND(":",B40,FIND(K40,B40,1))+2,FIND(":",B40,FIND(":",B40,FIND(K40,B40,1))+1)-FIND(":",B40,FIND(K40,B40,1))-2),IF(AND(MID(Table5[[#This Row],[GL Account]],14,6)<>"696530",MID(Table5[[#This Row],[GL Account]],14,6)<>"696570"),"",IF(MID(Table5[[#This Row],[GL Account]],21,2)="53","Fringe Benefits",VLOOKUP(RIGHT(Table5[[#This Row],[GL Account]],5),Object,2,FALSE))))&IF(RIGHT(Table5[[#This Row],[GL Account]],5)="29599",IF(MID(A40,4,4)="0000",""," "&MID(A40,4,4))&" - "&LEFT(Table5[[#This Row],[ GL Description]],FIND(" : ",Table5[[#This Row],[ GL Description]])),"") -> 696200 - AS-A/P | M40: =IF(MID(A40,21,1)="2",0,IF(OR(MID(Table5[[#This Row],[GL Account]],14,6)="696520",AND(MID(A40,14,6)="696530",MID(Table5[[#This Row],[GL Account]],21,1)="4")),0,ROUND(SUMIF(Table5[GL Account],Table5[[#This Row],[GL Account]],Table5[Amount])-SUMIFS(Table2[Amount],Table2[Type],"Activity",Table2[Account Number],GLTB!A40),2))) -> 0 | N40: =IF(Table5[[#This Row],[Difference]]=0,"",IF(ISNA(VLOOKUP(Table5[[#This Row],[0]],Table1[],1,FALSE)),"","X")) -> 
A41: 71-0000-1960-696200-29512 | B41: Gen : A/P-Current : AS-A/P : Stdnt Development/Campus Life : Assoc Students | C41: 2021-10-01 | D41: PJ | E41: 'V1281371' | F41: Michael A. Morales | I41: 1000 | J41: 1000 | K41: =IF(MID(Table5[[#This Row],[GL Account]],21,1)="2",MID(Table5[[#This Row],[ GL Description]],FIND(":",Table5[[#This Row],[ GL Description]],1)+2,FIND(":",Table5[[#This Row],[ GL Description]],FIND(":",Table5[[#This Row],[ GL Description]],1)+1)-FIND(":",Table5[[#This Row],[ GL Description]],1)-2),MID(Table5[[#This Row],[GL Account]],14,6)&" "&VLOOKUP(VALUE(MID(Table5[[#This Row],[GL Account]],14,6)),PgmList,2,FALSE)) -> A/P-Current | L41: =IF(MID(A41,21,1)="2",MID(A41,14,6)&" - "&MID(B41,FIND(":",B41,FIND(K41,B41,1))+2,FIND(":",B41,FIND(":",B41,FIND(K41,B41,1))+1)-FIND(":",B41,FIND(K41,B41,1))-2),IF(AND(MID(Table5[[#This Row],[GL Account]],14,6)<>"696530",MID(Table5[[#This Row],[GL Account]],14,6)<>"696570"),"",IF(MID(Table5[[#This Row],[GL Account]],21,2)="53","Fringe Benefits",VLOOKUP(RIGHT(Table5[[#This Row],[GL Account]],5),Object,2,FALSE))))&IF(RIGHT(Table5[[#This Row],[GL Account]],5)="29599",IF(MID(A41,4,4)="0000",""," "&MID(A41,4,4))&" - "&LEFT(Table5[[#This Row],[ GL Description]],FIND(" : ",Table5[[#This Row],[ GL Description]])),"") -> 696200 - AS-A/P | M41: =IF(MID(A41,21,1)="2",0,IF(OR(MID(Table5[[#This Row],[GL Account]],14,6)="696520",AND(MID(A41,14,6)="696530",MID(Table5[[#This Row],[GL Account]],21,1)="4")),0,ROUND(SUMIF(Table5[GL Account],Table5[[#This Row],[GL Account]],Table5[Amount])-SUMIFS(Table2[Amount],Table2[Type],"Activity",Table2[Account Number],GLTB!A41),2))) -> 0 | N41: =IF(Table5[[#This Row],[Difference]]=0,"",IF(ISNA(VLOOKUP(Table5[[#This Row],[0]],Table1[],1,FALSE)),"","X")) -> 
A42: 71-0000-1960-696200-29512 | B42: Gen : A/P-Current : AS-A/P : Stdnt Development/Campus Life : Assoc Students | C42: 2021-10-01 | D42: PJ | E42: 'V1281372' | F42: Cloud 9 Balloon Company | I42: 278.9 | J42: 278.9 | K42: =IF(MID(Table5[[#This Row],[GL Account]],21,1)="2",MID(Table5[[#This Row],[ GL Description]],FIND(":",Table5[[#This Row],[ GL Description]],1)+2,FIND(":",Table5[[#This Row],[ GL Description]],FIND(":",Table5[[#This Row],[ GL Description]],1)+1)-FIND(":",Table5[[#This Row],[ GL Description]],1)-2),MID(Table5[[#This Row],[GL Account]],14,6)&" "&VLOOKUP(VALUE(MID(Table5[[#This Row],[GL Account]],14,6)),PgmList,2,FALSE)) -> A/P-Current | L42: =IF(MID(A42,21,1)="2",MID(A42,14,6)&" - "&MID(B42,FIND(":",B42,FIND(K42,B42,1))+2,FIND(":",B42,FIND(":",B42,FIND(K42,B42,1))+1)-FIND(":",B42,FIND(K42,B42,1))-2),IF(AND(MID(Table5[[#This Row],[GL Account]],14,6)<>"696530",MID(Table5[[#This Row],[GL Account]],14,6)<>"696570"),"",IF(MID(Table5[[#This Row],[GL Account]],21,2)="53","Fringe Benefits",VLOOKUP(RIGHT(Table5[[#This Row],[GL Account]],5),Object,2,FALSE))))&IF(RIGHT(Table5[[#This Row],[GL Account]],5)="29599",IF(MID(A42,4,4)="0000",""," "&MID(A42,4,4))&" - "&LEFT(Table5[[#This Row],[ GL Description]],FIND(" : ",Table5[[#This Row],[ GL Description]])),"") -> 696200 - AS-A/P | M42: =IF(MID(A42,21,1)="2",0,IF(OR(MID(Table5[[#This Row],[GL Account]],14,6)="696520",AND(MID(A42,14,6)="696530",MID(Table5[[#This Row],[GL Account]],21,1)="4")),0,ROUND(SUMIF(Table5[GL Account],Table5[[#This Row],[GL Account]],Table5[Amount])-SUMIFS(Table2[Amount],Table2[Type],"Activity",Table2[Account Number],GLTB!A42),2))) -> 0 | N42: =IF(Table5[[#This Row],[Difference]]=0,"",IF(ISNA(VLOOKUP(Table5[[#This Row],[0]],Table1[],1,FALSE)),"","X")) -> 
A43: 71-0000-1960-696200-29512 | B43: Gen : A/P-Current : AS-A/P : Stdnt Development/Campus Life : Assoc Students | C43: 2021-10-01 | D43: PJ | E43: 'V1290550' | F43: Ray Morgan Company | I43: 242.72 | J43: 242.72 | K43: =IF(MID(Table5[[#This Row],[GL Account]],21,1)="2",MID(Table5[[#This Row],[ GL Description]],FIND(":",Table5[[#This Row],[ GL Description]],1)+2,FIND(":",Table5[[#This Row],[ GL Description]],FIND(":",Table5[[#This Row],[ GL Description]],1)+1)-FIND(":",Table5[[#This Row],[ GL Description]],1)-2),MID(Table5[[#This Row],[GL Account]],14,6)&" "&VLOOKUP(VALUE(MID(Table5[[#This Row],[GL Account]],14,6)),PgmList,2,FALSE)) -> A/P-Current | L43: =IF(MID(A43,21,1)="2",MID(A43,14,6)&" - "&MID(B43,FIND(":",B43,FIND(K43,B43,1))+2,FIND(":",B43,FIND(":",B43,FIND(K43,B43,1))+1)-FIND(":",B43,FIND(K43,B43,1))-2),IF(AND(MID(Table5[[#This Row],[GL Account]],14,6)<>"696530",MID(Table5[[#This Row],[GL Account]],14,6)<>"696570"),"",IF(MID(Table5[[#This Row],[GL Account]],21,2)="53","Fringe Benefits",VLOOKUP(RIGHT(Table5[[#This Row],[GL Account]],5),Object,2,FALSE))))&IF(RIGHT(Table5[[#This Row],[GL Account]],5)="29599",IF(MID(A43,4,4)="0000",""," "&MID(A43,4,4))&" - "&LEFT(Table5[[#This Row],[ GL Description]],FIND(" : ",Table5[[#This Row],[ GL Description]])),"") -> 696200 - AS-A/P | M43: =IF(MID(A43,21,1)="2",0,IF(OR(MID(Table5[[#This Row],[GL Account]],14,6)="696520",AND(MID(A43,14,6)="696530",MID(Table5[[#This Row],[GL Account]],21,1)="4")),0,ROUND(SUMIF(Table5[GL Account],Table5[[#This Row],[GL Account]],Table5[Amount])-SUMIFS(Table2[Amount],Table2[Type],"Activity",Table2[Account Number],GLTB!A43),2))) -> 0 | N43: =IF(Table5[[#This Row],[Difference]]=0,"",IF(ISNA(VLOOKUP(Table5[[#This Row],[0]],Table1[],1,FALSE)),"","X")) -> 
A44: 71-0000-1960-696200-29512 | B44: Gen : A/P-Current : AS-A/P : Stdnt Development/Campus Life : Assoc Students | C44: 2021-10-01 | D44: PJ | E44: 'V1294117' | F44: US Bank Equipment Finance | I44: 80.13 | J44: 80.13 | K44: =IF(MID(Table5[[#This Row],[GL Account]],21,1)="2",MID(Table5[[#This Row],[ GL Description]],FIND(":",Table5[[#This Row],[ GL Description]],1)+2,FIND(":",Table5[[#This Row],[ GL Description]],FIND(":",Table5[[#This Row],[ GL Description]],1)+1)-FIND(":",Table5[[#This Row],[ GL Description]],1)-2),MID(Table5[[#This Row],[GL Account]],14,6)&" "&VLOOKUP(VALUE(MID(Table5[[#This Row],[GL Account]],14,6)),PgmList,2,FALSE)) -> A/P-Current | L44: =IF(MID(A44,21,1)="2",MID(A44,14,6)&" - "&MID(B44,FIND(":",B44,FIND(K44,B44,1))+2,FIND(":",B44,FIND(":",B44,FIND(K44,B44,1))+1)-FIND(":",B44,FIND(K44,B44,1))-2),IF(AND(MID(Table5[[#This Row],[GL Account]],14,6)<>"696530",MID(Table5[[#This Row],[GL Account]],14,6)<>"696570"),"",IF(MID(Table5[[#This Row],[GL Account]],21,2)="53","Fringe Benefits",VLOOKUP(RIGHT(Table5[[#This Row],[GL Account]],5),Object,2,FALSE))))&IF(RIGHT(Table5[[#This Row],[GL Account]],5)="29599",IF(MID(A44,4,4)="0000",""," "&MID(A44,4,4))&" - "&LEFT(Table5[[#This Row],[ GL Description]],FIND(" : ",Table5[[#This Row],[ GL Description]])),"") -> 696200 - AS-A/P | M44: =IF(MID(A44,21,1)="2",0,IF(OR(MID(Table5[[#This Row],[GL Account]],14,6)="696520",AND(MID(A44,14,6)="696530",MID(Table5[[#This Row],[GL Account]],21,1)="4")),0,ROUND(SUMIF(Table5[GL Account],Table5[[#This Row],[GL Account]],Table5[Amount])-SUMIFS(Table2[Amount],Table2[Type],"Activity",Table2[Account Number],GLTB!A44),2))) -> 0 | N44: =IF(Table5[[#This Row],[Difference]]=0,"",IF(ISNA(VLOOKUP(Table5[[#This Row],[0]],Table1[],1,FALSE)),"","X")) -> 
A45: 71-0000-1960-696200-29512 | B45: Gen : A/P-Current : AS-A/P : Stdnt Development/Campus Life : Assoc Students | C45: 2021-10-07 | D45: CD | E45: 'MF*0103829' | F45: Cloud 9 Balloon Company | H45: 278.9 | J45: -278.9 | K45: =IF(MID(Table5[[#This Row],[GL Account]],21,1)="2",MID(Table5[[#This Row],[ GL Description]],FIND(":",Table5[[#This Row],[ GL Description]],1)+2,FIND(":",Table5[[#This Row],[ GL Description]],FIND(":",Table5[[#This Row],[ GL Description]],1)+1)-FIND(":",Table5[[#This Row],[ GL Description]],1)-2),MID(Table5[[#This Row],[GL Account]],14,6)&" "&VLOOKUP(VALUE(MID(Table5[[#This Row],[GL Account]],14,6)),PgmList,2,FALSE)) -> A/P-Current | L45: =IF(MID(A45,21,1)="2",MID(A45,14,6)&" - "&MID(B45,FIND(":",B45,FIND(K45,B45,1))+2,FIND(":",B45,FIND(":",B45,FIND(K45,B45,1))+1)-FIND(":",B45,FIND(K45,B45,1))-2),IF(AND(MID(Table5[[#This Row],[GL Account]],14,6)<>"696530",MID(Table5[[#This Row],[GL Account]],14,6)<>"696570"),"",IF(MID(Table5[[#This Row],[GL Account]],21,2)="53","Fringe Benefits",VLOOKUP(RIGHT(Table5[[#This Row],[GL Account]],5),Object,2,FALSE))))&IF(RIGHT(Table5[[#This Row],[GL Account]],5)="29599",IF(MID(A45,4,4)="0000",""," "&MID(A45,4,4))&" - "&LEFT(Table5[[#This Row],[ GL Description]],FIND(" : ",Table5[[#This Row],[ GL Description]])),"") -> 696200 - AS-A/P | M45: =IF(MID(A45,21,1)="2",0,IF(OR(MID(Table5[[#This Row],[GL Account]],14,6)="696520",AND(MID(A45,14,6)="696530",MID(Table5[[#This Row],[GL Account]],21,1)="4")),0,ROUND(SUMIF(Table5[GL Account],Table5[[#This Row],[GL Account]],Table5[Amount])-SUMIFS(Table2[Amount],Table2[Type],"Activity",Table2[Account Number],GLTB!A45),2))) -> 0 | N45: =IF(Table5[[#This Row],[Difference]]=0,"",IF(ISNA(VLOOKUP(Table5[[#This Row],[0]],Table1[],1,FALSE)),"","X")) -> 
A46: 71-0000-1960-696200-29512 | B46: Gen : A/P-Current : AS-A/P : Stdnt Development/Campus Life : Assoc Students | C46: 2021-10-07 | D46: CD | E46: 'MF*0103830' | F46: MJC | H46: 424 | J46: -424 | K46: =IF(MID(Table5[[#This Row],[GL Account]],21,1)="2",MID(Table5[[#This Row],[ GL Description]],FIND(":",Table5[[#This Row],[ GL Description]],1)+2,FIND(":",Table5[[#This Row],[ GL Description]],FIND(":",Table5[[#This Row],[ GL Description]],1)+1)-FIND(":",Table5[[#This Row],[ GL Description]],1)-2),MID(Table5[[#This Row],[GL Account]],14,6)&" "&VLOOKUP(VALUE(MID(Table5[[#This Row],[GL Account]],14,6)),PgmList,2,FALSE)) -> A/P-Current | L46: =IF(MID(A46,21,1)="2",MID(A46,14,6)&" - "&MID(B46,FIND(":",B46,FIND(K46,B46,1))+2,FIND(":",B46,FIND(":",B46,FIND(K46,B46,1))+1)-FIND(":",B46,FIND(K46,B46,1))-2),IF(AND(MID(Table5[[#This Row],[GL Account]],14,6)<>"696530",MID(Table5[[#This Row],[GL Account]],14,6)<>"696570"),"",IF(MID(Table5[[#This Row],[GL Account]],21,2)="53","Fringe Benefits",VLOOKUP(RIGHT(Table5[[#This Row],[GL Account]],5),Object,2,FALSE))))&IF(RIGHT(Table5[[#This Row],[GL Account]],5)="29599",IF(MID(A46,4,4)="0000",""," "&MID(A46,4,4))&" - "&LEFT(Table5[[#This Row],[ GL Description]],FIND(" : ",Table5[[#This Row],[ GL Description]])),"") -> 696200 - AS-A/P | M46: =IF(MID(A46,21,1)="2",0,IF(OR(MID(Table5[[#This Row],[GL Account]],14,6)="696520",AND(MID(A46,14,6)="696530",MID(Table5[[#This Row],[GL Account]],21,1)="4")),0,ROUND(SUMIF(Table5[GL Account],Table5[[#This Row],[GL Account]],Table5[Amount])-SUMIFS(Table2[Amount],Table2[Type],"Activity",Table2[Account Number],GLTB!A46),2))) -> 0 | N46: =IF(Table5[[#This Row],[Difference]]=0,"",IF(ISNA(VLOOKUP(Table5[[#This Row],[0]],Table1[],1,FALSE)),"","X")) -> 
A47: 71-0000-1960-696200-29512 | B47: Gen : A/P-Current : AS-A/P : Stdnt Development/Campus Life : Assoc Students | C47: 2021-10-07 | D47: CD | E47: 'MF*0103831' | F47: Michael A. Morales | H47: 1000 | J47: -1000 | K47: =IF(MID(Table5[[#This Row],[GL Account]],21,1)="2",MID(Table5[[#This Row],[ GL Description]],FIND(":",Table5[[#This Row],[ GL Description]],1)+2,FIND(":",Table5[[#This Row],[ GL Description]],FIND(":",Table5[[#This Row],[ GL Description]],1)+1)-FIND(":",Table5[[#This Row],[ GL Description]],1)-2),MID(Table5[[#This Row],[GL Account]],14,6)&" "&VLOOKUP(VALUE(MID(Table5[[#This Row],[GL Account]],14,6)),PgmList,2,FALSE)) -> A/P-Current | L47: =IF(MID(A47,21,1)="2",MID(A47,14,6)&" - "&MID(B47,FIND(":",B47,FIND(K47,B47,1))+2,FIND(":",B47,FIND(":",B47,FIND(K47,B47,1))+1)-FIND(":",B47,FIND(K47,B47,1))-2),IF(AND(MID(Table5[[#This Row],[GL Account]],14,6)<>"696530",MID(Table5[[#This Row],[GL Account]],14,6)<>"696570"),"",IF(MID(Table5[[#This Row],[GL Account]],21,2)="53","Fringe Benefits",VLOOKUP(RIGHT(Table5[[#This Row],[GL Account]],5),Object,2,FALSE))))&IF(RIGHT(Table5[[#This Row],[GL Account]],5)="29599",IF(MID(A47,4,4)="0000",""," "&MID(A47,4,4))&" - "&LEFT(Table5[[#This Row],[ GL Description]],FIND(" : ",Table5[[#This Row],[ GL Description]])),"") -> 696200 - AS-A/P | M47: =IF(MID(A47,21,1)="2",0,IF(OR(MID(Table5[[#This Row],[GL Account]],14,6)="696520",AND(MID(A47,14,6)="696530",MID(Table5[[#This Row],[GL Account]],21,1)="4")),0,ROUND(SUMIF(Table5[GL Account],Table5[[#This Row],[GL Account]],Table5[Amount])-SUMIFS(Table2[Amount],Table2[Type],"Activity",Table2[Account Number],GLTB!A47),2))) -> 0 | N47: =IF(Table5[[#This Row],[Difference]]=0,"",IF(ISNA(VLOOKUP(Table5[[#This Row],[0]],Table1[],1,FALSE)),"","X")) -> 
A48: 71-0000-1960-696200-29512 | B48: Gen : A/P-Current : AS-A/P : Stdnt Development/Campus Life : Assoc Students | C48: 2021-10-07 | D48: PJ | E48: 'V1290545' | F48: Lori M. Marchy | I48: 500 | J48: 500 | K48: =IF(MID(Table5[[#This Row],[GL Account]],21,1)="2",MID(Table5[[#This Row],[ GL Description]],FIND(":",Table5[[#This Row],[ GL Description]],1)+2,FIND(":",Table5[[#This Row],[ GL Description]],FIND(":",Table5[[#This Row],[ GL Description]],1)+1)-FIND(":",Table5[[#This Row],[ GL Description]],1)-2),MID(Table5[[#This Row],[GL Account]],14,6)&" "&VLOOKUP(VALUE(MID(Table5[[#This Row],[GL Account]],14,6)),PgmList,2,FALSE)) -> A/P-Current | L48: =IF(MID(A48,21,1)="2",MID(A48,14,6)&" - "&MID(B48,FIND(":",B48,FIND(K48,B48,1))+2,FIND(":",B48,FIND(":",B48,FIND(K48,B48,1))+1)-FIND(":",B48,FIND(K48,B48,1))-2),IF(AND(MID(Table5[[#This Row],[GL Account]],14,6)<>"696530",MID(Table5[[#This Row],[GL Account]],14,6)<>"696570"),"",IF(MID(Table5[[#This Row],[GL Account]],21,2)="53","Fringe Benefits",VLOOKUP(RIGHT(Table5[[#This Row],[GL Account]],5),Object,2,FALSE))))&IF(RIGHT(Table5[[#This Row],[GL Account]],5)="29599",IF(MID(A48,4,4)="0000",""," "&MID(A48,4,4))&" - "&LEFT(Table5[[#This Row],[ GL Description]],FIND(" : ",Table5[[#This Row],[ GL Description]])),"") -> 696200 - AS-A/P | M48: =IF(MID(A48,21,1)="2",0,IF(OR(MID(Table5[[#This Row],[GL Account]],14,6)="696520",AND(MID(A48,14,6)="696530",MID(Table5[[#This Row],[GL Account]],21,1)="4")),0,ROUND(SUMIF(Table5[GL Account],Table5[[#This Row],[GL Account]],Table5[Amount])-SUMIFS(Table2[Amount],Table2[Type],"Activity",Table2[Account Number],GLTB!A48),2))) -> 0 | N48: =IF(Table5[[#This Row],[Difference]]=0,"",IF(ISNA(VLOOKUP(Table5[[#This Row],[0]],Table1[],1,FALSE)),"","X")) -> 
A49: 71-0000-1960-696200-29512 | B49: Gen : A/P-Current : AS-A/P : Stdnt Development/Campus Life : Assoc Students | C49: 2021-10-11 | D49: PJ | E49: 'V1290669' | F49: John I. Griffin, III | I49: 500 | J49: 500 | K49: =IF(MID(Table5[[#This Row],[GL Account]],21,1)="2",MID(Table5[[#This Row],[ GL Description]],FIND(":",Table5[[#This Row],[ GL Description]],1)+2,FIND(":",Table5[[#This Row],[ GL Description]],FIND(":",Table5[[#This Row],[ GL Description]],1)+1)-FIND(":",Table5[[#This Row],[ GL Description]],1)-2),MID(Table5[[#This Row],[GL Account]],14,6)&" "&VLOOKUP(VALUE(MID(Table5[[#This Row],[GL Account]],14,6)),PgmList,2,FALSE)) -> A/P-Current | L49: =IF(MID(A49,21,1)="2",MID(A49,14,6)&" - "&MID(B49,FIND(":",B49,FIND(K49,B49,1))+2,FIND(":",B49,FIND(":",B49,FIND(K49,B49,1))+1)-FIND(":",B49,FIND(K49,B49,1))-2),IF(AND(MID(Table5[[#This Row],[GL Account]],14,6)<>"696530",MID(Table5[[#This Row],[GL Account]],14,6)<>"696570"),"",IF(MID(Table5[[#This Row],[GL Account]],21,2)="53","Fringe Benefits",VLOOKUP(RIGHT(Table5[[#This Row],[GL Account]],5),Object,2,FALSE))))&IF(RIGHT(Table5[[#This Row],[GL Account]],5)="29599",IF(MID(A49,4,4)="0000",""," "&MID(A49,4,4))&" - "&LEFT(Table5[[#This Row],[ GL Description]],FIND(" : ",Table5[[#This Row],[ GL Description]])),"") -> 696200 - AS-A/P | M49: =IF(MID(A49,21,1)="2",0,IF(OR(MID(Table5[[#This Row],[GL Account]],14,6)="696520",AND(MID(A49,14,6)="696530",MID(Table5[[#This Row],[GL Account]],21,1)="4")),0,ROUND(SUMIF(Table5[GL Account],Table5[[#This Row],[GL Account]],Table5[Amount])-SUMIFS(Table2[Amount],Table2[Type],"Activity",Table2[Account Number],GLTB!A49),2))) -> 0 | N49: =IF(Table5[[#This Row],[Difference]]=0,"",IF(ISNA(VLOOKUP(Table5[[#This Row],[0]],Table1[],1,FALSE)),"","X")) -> 
A50: 71-0000-1960-696200-29512 | B50: Gen : A/P-Current : AS-A/P : Stdnt Development/Campus Life : Assoc Students | C50: 2021-10-12 | D50: PJ | E50: 'V1292722' | F50: ITC Systems | I50: 1275 | J50: 1275 | K50: =IF(MID(Table5[[#This Row],[GL Account]],21,1)="2",MID(Table5[[#This Row],[ GL Description]],FIND(":",Table5[[#This Row],[ GL Description]],1)+2,FIND(":",Table5[[#This Row],[ GL Description]],FIND(":",Table5[[#This Row],[ GL Description]],1)+1)-FIND(":",Table5[[#This Row],[ GL Description]],1)-2),MID(Table5[[#This Row],[GL Account]],14,6)&" "&VLOOKUP(VALUE(MID(Table5[[#This Row],[GL Account]],14,6)),PgmList,2,FALSE)) -> A/P-Current | L50: =IF(MID(A50,21,1)="2",MID(A50,14,6)&" - "&MID(B50,FIND(":",B50,FIND(K50,B50,1))+2,FIND(":",B50,FIND(":",B50,FIND(K50,B50,1))+1)-FIND(":",B50,FIND(K50,B50,1))-2),IF(AND(MID(Table5[[#This Row],[GL Account]],14,6)<>"696530",MID(Table5[[#This Row],[GL Account]],14,6)<>"696570"),"",IF(MID(Table5[[#This Row],[GL Account]],21,2)="53","Fringe Benefits",VLOOKUP(RIGHT(Table5[[#This Row],[GL Account]],5),Object,2,FALSE))))&IF(RIGHT(Table5[[#This Row],[GL Account]],5)="29599",IF(MID(A50,4,4)="0000",""," "&MID(A50,4,4))&" - "&LEFT(Table5[[#This Row],[ GL Description]],FIND(" : ",Table5[[#This Row],[ GL Description]])),"") -> 696200 - AS-A/P | M50: =IF(MID(A50,21,1)="2",0,IF(OR(MID(Table5[[#This Row],[GL Account]],14,6)="696520",AND(MID(A50,14,6)="696530",MID(Table5[[#This Row],[GL Account]],21,1)="4")),0,ROUND(SUMIF(Table5[GL Account],Table5[[#This Row],[GL Account]],Table5[Amount])-SUMIFS(Table2[Amount],Table2[Type],"Activity",Table2[Account Number],GLTB!A50),2))) -> 0 | N50: =IF(Table5[[#This Row],[Difference]]=0,"",IF(ISNA(VLOOKUP(Table5[[#This Row],[0]],Table1[],1,FALSE)),"","X")) -> 
A51: 71-0000-1960-696200-29512 | B51: Gen : A/P-Current : AS-A/P : Stdnt Development/Campus Life : Assoc Students | C51: 2021-10-13 | D51: PJ | E51: 'V1291111' | F51: Cloud 9 Balloon Company | I51: 149.45 | J51: 149.45 | K51: =IF(MID(Table5[[#This Row],[GL Account]],21,1)="2",MID(Table5[[#This Row],[ GL Description]],FIND(":",Table5[[#This Row],[ GL Description]],1)+2,FIND(":",Table5[[#This Row],[ GL Description]],FIND(":",Table5[[#This Row],[ GL Description]],1)+1)-FIND(":",Table5[[#This Row],[ GL Description]],1)-2),MID(Table5[[#This Row],[GL Account]],14,6)&" "&VLOOKUP(VALUE(MID(Table5[[#This Row],[GL Account]],14,6)),PgmList,2,FALSE)) -> A/P-Current | L51: =IF(MID(A51,21,1)="2",MID(A51,14,6)&" - "&MID(B51,FIND(":",B51,FIND(K51,B51,1))+2,FIND(":",B51,FIND(":",B51,FIND(K51,B51,1))+1)-FIND(":",B51,FIND(K51,B51,1))-2),IF(AND(MID(Table5[[#This Row],[GL Account]],14,6)<>"696530",MID(Table5[[#This Row],[GL Account]],14,6)<>"696570"),"",IF(MID(Table5[[#This Row],[GL Account]],21,2)="53","Fringe Benefits",VLOOKUP(RIGHT(Table5[[#This Row],[GL Account]],5),Object,2,FALSE))))&IF(RIGHT(Table5[[#This Row],[GL Account]],5)="29599",IF(MID(A51,4,4)="0000",""," "&MID(A51,4,4))&" - "&LEFT(Table5[[#This Row],[ GL Description]],FIND(" : ",Table5[[#This Row],[ GL Description]])),"") -> 696200 - AS-A/P | M51: =IF(MID(A51,21,1)="2",0,IF(OR(MID(Table5[[#This Row],[GL Account]],14,6)="696520",AND(MID(A51,14,6)="696530",MID(Table5[[#This Row],[GL Account]],21,1)="4")),0,ROUND(SUMIF(Table5[GL Account],Table5[[#This Row],[GL Account]],Table5[Amount])-SUMIFS(Table2[Amount],Table2[Type],"Activity",Table2[Account Number],GLTB!A51),2))) -> 0 | N51: =IF(Table5[[#This Row],[Difference]]=0,"",IF(ISNA(VLOOKUP(Table5[[#This Row],[0]],Table1[],1,FALSE)),"","X")) -> 
A52: 71-0000-1960-696200-29512 | B52: Gen : A/P-Current : AS-A/P : Stdnt Development/Campus Life : Assoc Students | C52: 2021-10-13 | D52: PJ | E52: 'V1291112' | F52: Maria Delcarmen De la Cruz | I52: 250 | J52: 250 | K52: =IF(MID(Table5[[#This Row],[GL Account]],21,1)="2",MID(Table5[[#This Row],[ GL Description]],FIND(":",Table5[[#This Row],[ GL Description]],1)+2,FIND(":",Table5[[#This Row],[ GL Description]],FIND(":",Table5[[#This Row],[ GL Description]],1)+1)-FIND(":",Table5[[#This Row],[ GL Description]],1)-2),MID(Table5[[#This Row],[GL Account]],14,6)&" "&VLOOKUP(VALUE(MID(Table5[[#This Row],[GL Account]],14,6)),PgmList,2,FALSE)) -> A/P-Current | L52: =IF(MID(A52,21,1)="2",MID(A52,14,6)&" - "&MID(B52,FIND(":",B52,FIND(K52,B52,1))+2,FIND(":",B52,FIND(":",B52,FIND(K52,B52,1))+1)-FIND(":",B52,FIND(K52,B52,1))-2),IF(AND(MID(Table5[[#This Row],[GL Account]],14,6)<>"696530",MID(Table5[[#This Row],[GL Account]],14,6)<>"696570"),"",IF(MID(Table5[[#This Row],[GL Account]],21,2)="53","Fringe Benefits",VLOOKUP(RIGHT(Table5[[#This Row],[GL Account]],5),Object,2,FALSE))))&IF(RIGHT(Table5[[#This Row],[GL Account]],5)="29599",IF(MID(A52,4,4)="0000",""," "&MID(A52,4,4))&" - "&LEFT(Table5[[#This Row],[ GL Description]],FIND(" : ",Table5[[#This Row],[ GL Description]])),"") -> 696200 - AS-A/P | M52: =IF(MID(A52,21,1)="2",0,IF(OR(MID(Table5[[#This Row],[GL Account]],14,6)="696520",AND(MID(A52,14,6)="696530",MID(Table5[[#This Row],[GL Account]],21,1)="4")),0,ROUND(SUMIF(Table5[GL Account],Table5[[#This Row],[GL Account]],Table5[Amount])-SUMIFS(Table2[Amount],Table2[Type],"Activity",Table2[Account Number],GLTB!A52),2))) -> 0 | N52: =IF(Table5[[#This Row],[Difference]]=0,"",IF(ISNA(VLOOKUP(Table5[[#This Row],[0]],Table1[],1,FALSE)),"","X")) -> 
A53: 71-0000-1960-696200-29512 | B53: Gen : A/P-Current : AS-A/P : Stdnt Development/Campus Life : Assoc Students | C53: 2021-10-14 | D53: CD | E53: 'MF*0103832' | F53: John I. Griffin, III | H53: 500 | J53: -500 | K53: =IF(MID(Table5[[#This Row],[GL Account]],21,1)="2",MID(Table5[[#This Row],[ GL Description]],FIND(":",Table5[[#This Row],[ GL Description]],1)+2,FIND(":",Table5[[#This Row],[ GL Description]],FIND(":",Table5[[#This Row],[ GL Description]],1)+1)-FIND(":",Table5[[#This Row],[ GL Description]],1)-2),MID(Table5[[#This Row],[GL Account]],14,6)&" "&VLOOKUP(VALUE(MID(Table5[[#This Row],[GL Account]],14,6)),PgmList,2,FALSE)) -> A/P-Current | L53: =IF(MID(A53,21,1)="2",MID(A53,14,6)&" - "&MID(B53,FIND(":",B53,FIND(K53,B53,1))+2,FIND(":",B53,FIND(":",B53,FIND(K53,B53,1))+1)-FIND(":",B53,FIND(K53,B53,1))-2),IF(AND(MID(Table5[[#This Row],[GL Account]],14,6)<>"696530",MID(Table5[[#This Row],[GL Account]],14,6)<>"696570"),"",IF(MID(Table5[[#This Row],[GL Account]],21,2)="53","Fringe Benefits",VLOOKUP(RIGHT(Table5[[#This Row],[GL Account]],5),Object,2,FALSE))))&IF(RIGHT(Table5[[#This Row],[GL Account]],5)="29599",IF(MID(A53,4,4)="0000",""," "&MID(A53,4,4))&" - "&LEFT(Table5[[#This Row],[ GL Description]],FIND(" : ",Table5[[#This Row],[ GL Description]])),"") -> 696200 - AS-A/P | M53: =IF(MID(A53,21,1)="2",0,IF(OR(MID(Table5[[#This Row],[GL Account]],14,6)="696520",AND(MID(A53,14,6)="696530",MID(Table5[[#This Row],[GL Account]],21,1)="4")),0,ROUND(SUMIF(Table5[GL Account],Table5[[#This Row],[GL Account]],Table5[Amount])-SUMIFS(Table2[Amount],Table2[Type],"Activity",Table2[Account Number],GLTB!A53),2))) -> 0 | N53: =IF(Table5[[#This Row],[Difference]]=0,"",IF(ISNA(VLOOKUP(Table5[[#This Row],[0]],Table1[],1,FALSE)),"","X")) -> 
A54: 71-0000-1960-696200-29512 | B54: Gen : A/P-Current : AS-A/P : Stdnt Development/Campus Life : Assoc Students | C54: 2021-10-14 | D54: CD | E54: 'MF*0103833' | F54: Lori M. Marchy | H54: 500 | J54: -500 | K54: =IF(MID(Table5[[#This Row],[GL Account]],21,1)="2",MID(Table5[[#This Row],[ GL Description]],FIND(":",Table5[[#This Row],[ GL Description]],1)+2,FIND(":",Table5[[#This Row],[ GL Description]],FIND(":",Table5[[#This Row],[ GL Description]],1)+1)-FIND(":",Table5[[#This Row],[ GL Description]],1)-2),MID(Table5[[#This Row],[GL Account]],14,6)&" "&VLOOKUP(VALUE(MID(Table5[[#This Row],[GL Account]],14,6)),PgmList,2,FALSE)) -> A/P-Current | L54: =IF(MID(A54,21,1)="2",MID(A54,14,6)&" - "&MID(B54,FIND(":",B54,FIND(K54,B54,1))+2,FIND(":",B54,FIND(":",B54,FIND(K54,B54,1))+1)-FIND(":",B54,FIND(K54,B54,1))-2),IF(AND(MID(Table5[[#This Row],[GL Account]],14,6)<>"696530",MID(Table5[[#This Row],[GL Account]],14,6)<>"696570"),"",IF(MID(Table5[[#This Row],[GL Account]],21,2)="53","Fringe Benefits",VLOOKUP(RIGHT(Table5[[#This Row],[GL Account]],5),Object,2,FALSE))))&IF(RIGHT(Table5[[#This Row],[GL Account]],5)="29599",IF(MID(A54,4,4)="0000",""," "&MID(A54,4,4))&" - "&LEFT(Table5[[#This Row],[ GL Description]],FIND(" : ",Table5[[#This Row],[ GL Description]])),"") -> 696200 - AS-A/P | M54: =IF(MID(A54,21,1)="2",0,IF(OR(MID(Table5[[#This Row],[GL Account]],14,6)="696520",AND(MID(A54,14,6)="696530",MID(Table5[[#This Row],[GL Account]],21,1)="4")),0,ROUND(SUMIF(Table5[GL Account],Table5[[#This Row],[GL Account]],Table5[Amount])-SUMIFS(Table2[Amount],Table2[Type],"Activity",Table2[Account Number],GLTB!A54),2))) -> 0 | N54: =IF(Table5[[#This Row],[Difference]]=0,"",IF(ISNA(VLOOKUP(Table5[[#This Row],[0]],Table1[],1,FALSE)),"","X")) -> 
A55: 71-0000-1960-696200-29512 | B55: Gen : A/P-Current : AS-A/P : Stdnt Development/Campus Life : Assoc Students | C55: 2021-10-14 | D55: CD | E55: 'MF*0103834' | F55: Ray Morgan Company | H55: 242.72 | J55: -242.72 | K55: =IF(MID(Table5[[#This Row],[GL Account]],21,1)="2",MID(Table5[[#This Row],[ GL Description]],FIND(":",Table5[[#This Row],[ GL Description]],1)+2,FIND(":",Table5[[#This Row],[ GL Description]],FIND(":",Table5[[#This Row],[ GL Description]],1)+1)-FIND(":",Table5[[#This Row],[ GL Description]],1)-2),MID(Table5[[#This Row],[GL Account]],14,6)&" "&VLOOKUP(VALUE(MID(Table5[[#This Row],[GL Account]],14,6)),PgmList,2,FALSE)) -> A/P-Current | L55: =IF(MID(A55,21,1)="2",MID(A55,14,6)&" - "&MID(B55,FIND(":",B55,FIND(K55,B55,1))+2,FIND(":",B55,FIND(":",B55,FIND(K55,B55,1))+1)-FIND(":",B55,FIND(K55,B55,1))-2),IF(AND(MID(Table5[[#This Row],[GL Account]],14,6)<>"696530",MID(Table5[[#This Row],[GL Account]],14,6)<>"696570"),"",IF(MID(Table5[[#This Row],[GL Account]],21,2)="53","Fringe Benefits",VLOOKUP(RIGHT(Table5[[#This Row],[GL Account]],5),Object,2,FALSE))))&IF(RIGHT(Table5[[#This Row],[GL Account]],5)="29599",IF(MID(A55,4,4)="0000",""," "&MID(A55,4,4))&" - "&LEFT(Table5[[#This Row],[ GL Description]],FIND(" : ",Table5[[#This Row],[ GL Description]])),"") -> 696200 - AS-A/P | M55: =IF(MID(A55,21,1)="2",0,IF(OR(MID(Table5[[#This Row],[GL Account]],14,6)="696520",AND(MID(A55,14,6)="696530",MID(Table5[[#This Row],[GL Account]],21,1)="4")),0,ROUND(SUMIF(Table5[GL Account],Table5[[#This Row],[GL Account]],Table5[Amount])-SUMIFS(Table2[Amount],Table2[Type],"Activity",Table2[Account Number],GLTB!A55),2))) -> 0 | N55: =IF(Table5[[#This Row],[Difference]]=0,"",IF(ISNA(VLOOKUP(Table5[[#This Row],[0]],Table1[],1,FALSE)),"","X")) -> 
A56: 71-0000-1960-696200-29512 | B56: Gen : A/P-Current : AS-A/P : Stdnt Development/Campus Life : Assoc Students | C56: 2021-10-14 | D56: PJ | E56: 'V1291384' | F56: Ward Promotional Marketing | I56: 2683.91 | J56: 2683.91 | K56: =IF(MID(Table5[[#This Row],[GL Account]],21,1)="2",MID(Table5[[#This Row],[ GL Description]],FIND(":",Table5[[#This Row],[ GL Description]],1)+2,FIND(":",Table5[[#This Row],[ GL Description]],FIND(":",Table5[[#This Row],[ GL Description]],1)+1)-FIND(":",Table5[[#This Row],[ GL Description]],1)-2),MID(Table5[[#This Row],[GL Account]],14,6)&" "&VLOOKUP(VALUE(MID(Table5[[#This Row],[GL Account]],14,6)),PgmList,2,FALSE)) -> A/P-Current | L56: =IF(MID(A56,21,1)="2",MID(A56,14,6)&" - "&MID(B56,FIND(":",B56,FIND(K56,B56,1))+2,FIND(":",B56,FIND(":",B56,FIND(K56,B56,1))+1)-FIND(":",B56,FIND(K56,B56,1))-2),IF(AND(MID(Table5[[#This Row],[GL Account]],14,6)<>"696530",MID(Table5[[#This Row],[GL Account]],14,6)<>"696570"),"",IF(MID(Table5[[#This Row],[GL Account]],21,2)="53","Fringe Benefits",VLOOKUP(RIGHT(Table5[[#This Row],[GL Account]],5),Object,2,FALSE))))&IF(RIGHT(Table5[[#This Row],[GL Account]],5)="29599",IF(MID(A56,4,4)="0000",""," "&MID(A56,4,4))&" - "&LEFT(Table5[[#This Row],[ GL Description]],FIND(" : ",Table5[[#This Row],[ GL Description]])),"") -> 696200 - AS-A/P | M56: =IF(MID(A56,21,1)="2",0,IF(OR(MID(Table5[[#This Row],[GL Account]],14,6)="696520",AND(MID(A56,14,6)="696530",MID(Table5[[#This Row],[GL Account]],21,1)="4")),0,ROUND(SUMIF(Table5[GL Account],Table5[[#This Row],[GL Account]],Table5[Amount])-SUMIFS(Table2[Amount],Table2[Type],"Activity",Table2[Account Number],GLTB!A56),2))) -> 0 | N56: =IF(Table5[[#This Row],[Difference]]=0,"",IF(ISNA(VLOOKUP(Table5[[#This Row],[0]],Table1[],1,FALSE)),"","X")) -> 
A57: 71-0000-1960-696200-29512 | B57: Gen : A/P-Current : AS-A/P : Stdnt Development/Campus Life : Assoc Students | C57: 2021-10-21 | D57: CD | E57: 'MF*0103835' | F57: Cloud 9 Balloon Company | H57: 149.45 | J57: -149.45 | K57: =IF(MID(Table5[[#This Row],[GL Account]],21,1)="2",MID(Table5[[#This Row],[ GL Description]],FIND(":",Table5[[#This Row],[ GL Description]],1)+2,FIND(":",Table5[[#This Row],[ GL Description]],FIND(":",Table5[[#This Row],[ GL Description]],1)+1)-FIND(":",Table5[[#This Row],[ GL Description]],1)-2),MID(Table5[[#This Row],[GL Account]],14,6)&" "&VLOOKUP(VALUE(MID(Table5[[#This Row],[GL Account]],14,6)),PgmList,2,FALSE)) -> A/P-Current | L57: =IF(MID(A57,21,1)="2",MID(A57,14,6)&" - "&MID(B57,FIND(":",B57,FIND(K57,B57,1))+2,FIND(":",B57,FIND(":",B57,FIND(K57,B57,1))+1)-FIND(":",B57,FIND(K57,B57,1))-2),IF(AND(MID(Table5[[#This Row],[GL Account]],14,6)<>"696530",MID(Table5[[#This Row],[GL Account]],14,6)<>"696570"),"",IF(MID(Table5[[#This Row],[GL Account]],21,2)="53","Fringe Benefits",VLOOKUP(RIGHT(Table5[[#This Row],[GL Account]],5),Object,2,FALSE))))&IF(RIGHT(Table5[[#This Row],[GL Account]],5)="29599",IF(MID(A57,4,4)="0000",""," "&MID(A57,4,4))&" - "&LEFT(Table5[[#This Row],[ GL Description]],FIND(" : ",Table5[[#This Row],[ GL Description]])),"") -> 696200 - AS-A/P | M57: =IF(MID(A57,21,1)="2",0,IF(OR(MID(Table5[[#This Row],[GL Account]],14,6)="696520",AND(MID(A57,14,6)="696530",MID(Table5[[#This Row],[GL Account]],21,1)="4")),0,ROUND(SUMIF(Table5[GL Account],Table5[[#This Row],[GL Account]],Table5[Amount])-SUMIFS(Table2[Amount],Table2[Type],"Activity",Table2[Account Number],GLTB!A57),2))) -> 0 | N57: =IF(Table5[[#This Row],[Difference]]=0,"",IF(ISNA(VLOOKUP(Table5[[#This Row],[0]],Table1[],1,FALSE)),"","X")) -> 
A58: 71-0000-1960-696200-29512 | B58: Gen : A/P-Current : AS-A/P : Stdnt Development/Campus Life : Assoc Students | C58: 2021-10-21 | D58: CD | E58: 'MF*0103836' | F58: Maria Delcarmen De la Cruz | H58: 250 | J58: -250 | K58: =IF(MID(Table5[[#This Row],[GL Account]],21,1)="2",MID(Table5[[#This Row],[ GL Description]],FIND(":",Table5[[#This Row],[ GL Description]],1)+2,FIND(":",Table5[[#This Row],[ GL Description]],FIND(":",Table5[[#This Row],[ GL Description]],1)+1)-FIND(":",Table5[[#This Row],[ GL Description]],1)-2),MID(Table5[[#This Row],[GL Account]],14,6)&" "&VLOOKUP(VALUE(MID(Table5[[#This Row],[GL Account]],14,6)),PgmList,2,FALSE)) -> A/P-Current | L58: =IF(MID(A58,21,1)="2",MID(A58,14,6)&" - "&MID(B58,FIND(":",B58,FIND(K58,B58,1))+2,FIND(":",B58,FIND(":",B58,FIND(K58,B58,1))+1)-FIND(":",B58,FIND(K58,B58,1))-2),IF(AND(MID(Table5[[#This Row],[GL Account]],14,6)<>"696530",MID(Table5[[#This Row],[GL Account]],14,6)<>"696570"),"",IF(MID(Table5[[#This Row],[GL Account]],21,2)="53","Fringe Benefits",VLOOKUP(RIGHT(Table5[[#This Row],[GL Account]],5),Object,2,FALSE))))&IF(RIGHT(Table5[[#This Row],[GL Account]],5)="29599",IF(MID(A58,4,4)="0000",""," "&MID(A58,4,4))&" - "&LEFT(Table5[[#This Row],[ GL Description]],FIND(" : ",Table5[[#This Row],[ GL Description]])),"") -> 696200 - AS-A/P | M58: =IF(MID(A58,21,1)="2",0,IF(OR(MID(Table5[[#This Row],[GL Account]],14,6)="696520",AND(MID(A58,14,6)="696530",MID(Table5[[#This Row],[GL Account]],21,1)="4")),0,ROUND(SUMIF(Table5[GL Account],Table5[[#This Row],[GL Account]],Table5[Amount])-SUMIFS(Table2[Amount],Table2[Type],"Activity",Table2[Account Number],GLTB!A58),2))) -> 0 | N58: =IF(Table5[[#This Row],[Difference]]=0,"",IF(ISNA(VLOOKUP(Table5[[#This Row],[0]],Table1[],1,FALSE)),"","X")) -> 
A59: 71-0000-1960-696200-29512 | B59: Gen : A/P-Current : AS-A/P : Stdnt Development/Campus Life : Assoc Students | C59: 2021-10-21 | D59: CD | E59: 'MF*0103837' | F59: Ward Promotional Marketing | H59: 2683.91 | J59: -2683.91 | K59: =IF(MID(Table5[[#This Row],[GL Account]],21,1)="2",MID(Table5[[#This Row],[ GL Description]],FIND(":",Table5[[#This Row],[ GL Description]],1)+2,FIND(":",Table5[[#This Row],[ GL Description]],FIND(":",Table5[[#This Row],[ GL Description]],1)+1)-FIND(":",Table5[[#This Row],[ GL Description]],1)-2),MID(Table5[[#This Row],[GL Account]],14,6)&" "&VLOOKUP(VALUE(MID(Table5[[#This Row],[GL Account]],14,6)),PgmList,2,FALSE)) -> A/P-Current | L59: =IF(MID(A59,21,1)="2",MID(A59,14,6)&" - "&MID(B59,FIND(":",B59,FIND(K59,B59,1))+2,FIND(":",B59,FIND(":",B59,FIND(K59,B59,1))+1)-FIND(":",B59,FIND(K59,B59,1))-2),IF(AND(MID(Table5[[#This Row],[GL Account]],14,6)<>"696530",MID(Table5[[#This Row],[GL Account]],14,6)<>"696570"),"",IF(MID(Table5[[#This Row],[GL Account]],21,2)="53","Fringe Benefits",VLOOKUP(RIGHT(Table5[[#This Row],[GL Account]],5),Object,2,FALSE))))&IF(RIGHT(Table5[[#This Row],[GL Account]],5)="29599",IF(MID(A59,4,4)="0000",""," "&MID(A59,4,4))&" - "&LEFT(Table5[[#This Row],[ GL Description]],FIND(" : ",Table5[[#This Row],[ GL Description]])),"") -> 696200 - AS-A/P | M59: =IF(MID(A59,21,1)="2",0,IF(OR(MID(Table5[[#This Row],[GL Account]],14,6)="696520",AND(MID(A59,14,6)="696530",MID(Table5[[#This Row],[GL Account]],21,1)="4")),0,ROUND(SUMIF(Table5[GL Account],Table5[[#This Row],[GL Account]],Table5[Amount])-SUMIFS(Table2[Amount],Table2[Type],"Activity",Table2[Account Number],GLTB!A59),2))) -> 0 | N59: =IF(Table5[[#This Row],[Difference]]=0,"",IF(ISNA(VLOOKUP(Table5[[#This Row],[0]],Table1[],1,FALSE)),"","X")) -> 
A60: 71-0000-1960-696200-29512 | B60: Gen : A/P-Current : AS-A/P : Stdnt Development/Campus Life : Assoc Students | C60: 2021-10-28 | D60: CD | E60: 'MF*0103838' | F60: ITC Systems | H60: 1275 | J60: -1275 | K60: =IF(MID(Table5[[#This Row],[GL Account]],21,1)="2",MID(Table5[[#This Row],[ GL Description]],FIND(":",Table5[[#This Row],[ GL Description]],1)+2,FIND(":",Table5[[#This Row],[ GL Description]],FIND(":",Table5[[#This Row],[ GL Description]],1)+1)-FIND(":",Table5[[#This Row],[ GL Description]],1)-2),MID(Table5[[#This Row],[GL Account]],14,6)&" "&VLOOKUP(VALUE(MID(Table5[[#This Row],[GL Account]],14,6)),PgmList,2,FALSE)) -> A/P-Current | L60: =IF(MID(A60,21,1)="2",MID(A60,14,6)&" - "&MID(B60,FIND(":",B60,FIND(K60,B60,1))+2,FIND(":",B60,FIND(":",B60,FIND(K60,B60,1))+1)-FIND(":",B60,FIND(K60,B60,1))-2),IF(AND(MID(Table5[[#This Row],[GL Account]],14,6)<>"696530",MID(Table5[[#This Row],[GL Account]],14,6)<>"696570"),"",IF(MID(Table5[[#This Row],[GL Account]],21,2)="53","Fringe Benefits",VLOOKUP(RIGHT(Table5[[#This Row],[GL Account]],5),Object,2,FALSE))))&IF(RIGHT(Table5[[#This Row],[GL Account]],5)="29599",IF(MID(A60,4,4)="0000",""," "&MID(A60,4,4))&" - "&LEFT(Table5[[#This Row],[ GL Description]],FIND(" : ",Table5[[#This Row],[ GL Description]])),"") -> 696200 - AS-A/P | M60: =IF(MID(A60,21,1)="2",0,IF(OR(MID(Table5[[#This Row],[GL Account]],14,6)="696520",AND(MID(A60,14,6)="696530",MID(Table5[[#This Row],[GL Account]],21,1)="4")),0,ROUND(SUMIF(Table5[GL Account],Table5[[#This Row],[GL Account]],Table5[Amount])-SUMIFS(Table2[Amount],Table2[Type],"Activity",Table2[Account Number],GLTB!A60),2))) -> 0 | N60: =IF(Table5[[#This Row],[Difference]]=0,"",IF(ISNA(VLOOKUP(Table5[[#This Row],[0]],Table1[],1,FALSE)),"","X")) -> 
A61: 71-0000-1960-696200-29512 | B61: Gen : A/P-Current : AS-A/P : Stdnt Development/Campus Life : Assoc Students | C61: 2021-11-01 | D61: PJ | E61: 'V1297938' | F61: US Bank Equipment Finance | I61: 87.56 | J61: 87.56 | K61: =IF(MID(Table5[[#This Row],[GL Account]],21,1)="2",MID(Table5[[#This Row],[ GL Description]],FIND(":",Table5[[#This Row],[ GL Description]],1)+2,FIND(":",Table5[[#This Row],[ GL Description]],FIND(":",Table5[[#This Row],[ GL Description]],1)+1)-FIND(":",Table5[[#This Row],[ GL Description]],1)-2),MID(Table5[[#This Row],[GL Account]],14,6)&" "&VLOOKUP(VALUE(MID(Table5[[#This Row],[GL Account]],14,6)),PgmList,2,FALSE)) -> A/P-Current | L61: =IF(MID(A61,21,1)="2",MID(A61,14,6)&" - "&MID(B61,FIND(":",B61,FIND(K61,B61,1))+2,FIND(":",B61,FIND(":",B61,FIND(K61,B61,1))+1)-FIND(":",B61,FIND(K61,B61,1))-2),IF(AND(MID(Table5[[#This Row],[GL Account]],14,6)<>"696530",MID(Table5[[#This Row],[GL Account]],14,6)<>"696570"),"",IF(MID(Table5[[#This Row],[GL Account]],21,2)="53","Fringe Benefits",VLOOKUP(RIGHT(Table5[[#This Row],[GL Account]],5),Object,2,FALSE))))&IF(RIGHT(Table5[[#This Row],[GL Account]],5)="29599",IF(MID(A61,4,4)="0000",""," "&MID(A61,4,4))&" - "&LEFT(Table5[[#This Row],[ GL Description]],FIND(" : ",Table5[[#This Row],[ GL Description]])),"") -> 696200 - AS-A/P | M61: =IF(MID(A61,21,1)="2",0,IF(OR(MID(Table5[[#This Row],[GL Account]],14,6)="696520",AND(MID(A61,14,6)="696530",MID(Table5[[#This Row],[GL Account]],21,1)="4")),0,ROUND(SUMIF(Table5[GL Account],Table5[[#This Row],[GL Account]],Table5[Amount])-SUMIFS(Table2[Amount],Table2[Type],"Activity",Table2[Account Number],GLTB!A61),2))) -> 0 | N61: =IF(Table5[[#This Row],[Difference]]=0,"",IF(ISNA(VLOOKUP(Table5[[#This Row],[0]],Table1[],1,FALSE)),"","X")) -> 
A62: 71-0000-1960-696200-29512 | B62: Gen : A/P-Current : AS-A/P : Stdnt Development/Campus Life : Assoc Students | C62: 2021-11-01 | D62: PJ | E62: 'V1298951' | F62: ID Card Systems Inc | I62: 1340.02 | J62: 1340.02 | K62: =IF(MID(Table5[[#This Row],[GL Account]],21,1)="2",MID(Table5[[#This Row],[ GL Description]],FIND(":",Table5[[#This Row],[ GL Description]],1)+2,FIND(":",Table5[[#This Row],[ GL Description]],FIND(":",Table5[[#This Row],[ GL Description]],1)+1)-FIND(":",Table5[[#This Row],[ GL Description]],1)-2),MID(Table5[[#This Row],[GL Account]],14,6)&" "&VLOOKUP(VALUE(MID(Table5[[#This Row],[GL Account]],14,6)),PgmList,2,FALSE)) -> A/P-Current | L62: =IF(MID(A62,21,1)="2",MID(A62,14,6)&" - "&MID(B62,FIND(":",B62,FIND(K62,B62,1))+2,FIND(":",B62,FIND(":",B62,FIND(K62,B62,1))+1)-FIND(":",B62,FIND(K62,B62,1))-2),IF(AND(MID(Table5[[#This Row],[GL Account]],14,6)<>"696530",MID(Table5[[#This Row],[GL Account]],14,6)<>"696570"),"",IF(MID(Table5[[#This Row],[GL Account]],21,2)="53","Fringe Benefits",VLOOKUP(RIGHT(Table5[[#This Row],[GL Account]],5),Object,2,FALSE))))&IF(RIGHT(Table5[[#This Row],[GL Account]],5)="29599",IF(MID(A62,4,4)="0000",""," "&MID(A62,4,4))&" - "&LEFT(Table5[[#This Row],[ GL Description]],FIND(" : ",Table5[[#This Row],[ GL Description]])),"") -> 696200 - AS-A/P | M62: =IF(MID(A62,21,1)="2",0,IF(OR(MID(Table5[[#This Row],[GL Account]],14,6)="696520",AND(MID(A62,14,6)="696530",MID(Table5[[#This Row],[GL Account]],21,1)="4")),0,ROUND(SUMIF(Table5[GL Account],Table5[[#This Row],[GL Account]],Table5[Amount])-SUMIFS(Table2[Amount],Table2[Type],"Activity",Table2[Account Number],GLTB!A62),2))) -> 0 | N62: =IF(Table5[[#This Row],[Difference]]=0,"",IF(ISNA(VLOOKUP(Table5[[#This Row],[0]],Table1[],1,FALSE)),"","X")) -> 
A63: 71-0000-1960-696200-29512 | B63: Gen : A/P-Current : AS-A/P : Stdnt Development/Campus Life : Assoc Students | C63: 2021-11-01 | D63: PJ | E63: 'V1298974' | F63: Redwood Real Estate Group, Inc | I63: 1500 | J63: 1500 | K63: =IF(MID(Table5[[#This Row],[GL Account]],21,1)="2",MID(Table5[[#This Row],[ GL Description]],FIND(":",Table5[[#This Row],[ GL Description]],1)+2,FIND(":",Table5[[#This Row],[ GL Description]],FIND(":",Table5[[#This Row],[ GL Description]],1)+1)-FIND(":",Table5[[#This Row],[ GL Description]],1)-2),MID(Table5[[#This Row],[GL Account]],14,6)&" "&VLOOKUP(VALUE(MID(Table5[[#This Row],[GL Account]],14,6)),PgmList,2,FALSE)) -> A/P-Current | L63: =IF(MID(A63,21,1)="2",MID(A63,14,6)&" - "&MID(B63,FIND(":",B63,FIND(K63,B63,1))+2,FIND(":",B63,FIND(":",B63,FIND(K63,B63,1))+1)-FIND(":",B63,FIND(K63,B63,1))-2),IF(AND(MID(Table5[[#This Row],[GL Account]],14,6)<>"696530",MID(Table5[[#This Row],[GL Account]],14,6)<>"696570"),"",IF(MID(Table5[[#This Row],[GL Account]],21,2)="53","Fringe Benefits",VLOOKUP(RIGHT(Table5[[#This Row],[GL Account]],5),Object,2,FALSE))))&IF(RIGHT(Table5[[#This Row],[GL Account]],5)="29599",IF(MID(A63,4,4)="0000",""," "&MID(A63,4,4))&" - "&LEFT(Table5[[#This Row],[ GL Description]],FIND(" : ",Table5[[#This Row],[ GL Description]])),"") -> 696200 - AS-A/P | M63: =IF(MID(A63,21,1)="2",0,IF(OR(MID(Table5[[#This Row],[GL Account]],14,6)="696520",AND(MID(A63,14,6)="696530",MID(Table5[[#This Row],[GL Account]],21,1)="4")),0,ROUND(SUMIF(Table5[GL Account],Table5[[#This Row],[GL Account]],Table5[Amount])-SUMIFS(Table2[Amount],Table2[Type],"Activity",Table2[Account Number],GLTB!A63),2))) -> 0 | N63: =IF(Table5[[#This Row],[Difference]]=0,"",IF(ISNA(VLOOKUP(Table5[[#This Row],[0]],Table1[],1,FALSE)),"","X")) -> 
A64: 71-0000-1960-696200-29512 | B64: Gen : A/P-Current : AS-A/P : Stdnt Development/Campus Life : Assoc Students | C64: 2021-11-01 | D64: PJ | E64: 'V1298977' | F64: Redwood Real Estate Group, Inc | I64: 1500 | J64: 1500 | K64: =IF(MID(Table5[[#This Row],[GL Account]],21,1)="2",MID(Table5[[#This Row],[ GL Description]],FIND(":",Table5[[#This Row],[ GL Description]],1)+2,FIND(":",Table5[[#This Row],[ GL Description]],FIND(":",Table5[[#This Row],[ GL Description]],1)+1)-FIND(":",Table5[[#This Row],[ GL Description]],1)-2),MID(Table5[[#This Row],[GL Account]],14,6)&" "&VLOOKUP(VALUE(MID(Table5[[#This Row],[GL Account]],14,6)),PgmList,2,FALSE)) -> A/P-Current | L64: =IF(MID(A64,21,1)="2",MID(A64,14,6)&" - "&MID(B64,FIND(":",B64,FIND(K64,B64,1))+2,FIND(":",B64,FIND(":",B64,FIND(K64,B64,1))+1)-FIND(":",B64,FIND(K64,B64,1))-2),IF(AND(MID(Table5[[#This Row],[GL Account]],14,6)<>"696530",MID(Table5[[#This Row],[GL Account]],14,6)<>"696570"),"",IF(MID(Table5[[#This Row],[GL Account]],21,2)="53","Fringe Benefits",VLOOKUP(RIGHT(Table5[[#This Row],[GL Account]],5),Object,2,FALSE))))&IF(RIGHT(Table5[[#This Row],[GL Account]],5)="29599",IF(MID(A64,4,4)="0000",""," "&MID(A64,4,4))&" - "&LEFT(Table5[[#This Row],[ GL Description]],FIND(" : ",Table5[[#This Row],[ GL Description]])),"") -> 696200 - AS-A/P | M64: =IF(MID(A64,21,1)="2",0,IF(OR(MID(Table5[[#This Row],[GL Account]],14,6)="696520",AND(MID(A64,14,6)="696530",MID(Table5[[#This Row],[GL Account]],21,1)="4")),0,ROUND(SUMIF(Table5[GL Account],Table5[[#This Row],[GL Account]],Table5[Amount])-SUMIFS(Table2[Amount],Table2[Type],"Activity",Table2[Account Number],GLTB!A64),2))) -> 0 | N64: =IF(Table5[[#This Row],[Difference]]=0,"",IF(ISNA(VLOOKUP(Table5[[#This Row],[0]],Table1[],1,FALSE)),"","X")) -> 
A65: 71-0000-1960-696200-29512 | B65: Gen : A/P-Current : AS-A/P : Stdnt Development/Campus Life : Assoc Students | C65: 2021-11-01 | D65: PJ | E65: 'V1298987' | F65: Parsons Embroidery Plus | I65: 222.49 | J65: 222.49 | K65: =IF(MID(Table5[[#This Row],[GL Account]],21,1)="2",MID(Table5[[#This Row],[ GL Description]],FIND(":",Table5[[#This Row],[ GL Description]],1)+2,FIND(":",Table5[[#This Row],[ GL Description]],FIND(":",Table5[[#This Row],[ GL Description]],1)+1)-FIND(":",Table5[[#This Row],[ GL Description]],1)-2),MID(Table5[[#This Row],[GL Account]],14,6)&" "&VLOOKUP(VALUE(MID(Table5[[#This Row],[GL Account]],14,6)),PgmList,2,FALSE)) -> A/P-Current | L65: =IF(MID(A65,21,1)="2",MID(A65,14,6)&" - "&MID(B65,FIND(":",B65,FIND(K65,B65,1))+2,FIND(":",B65,FIND(":",B65,FIND(K65,B65,1))+1)-FIND(":",B65,FIND(K65,B65,1))-2),IF(AND(MID(Table5[[#This Row],[GL Account]],14,6)<>"696530",MID(Table5[[#This Row],[GL Account]],14,6)<>"696570"),"",IF(MID(Table5[[#This Row],[GL Account]],21,2)="53","Fringe Benefits",VLOOKUP(RIGHT(Table5[[#This Row],[GL Account]],5),Object,2,FALSE))))&IF(RIGHT(Table5[[#This Row],[GL Account]],5)="29599",IF(MID(A65,4,4)="0000",""," "&MID(A65,4,4))&" - "&LEFT(Table5[[#This Row],[ GL Description]],FIND(" : ",Table5[[#This Row],[ GL Description]])),"") -> 696200 - AS-A/P | M65: =IF(MID(A65,21,1)="2",0,IF(OR(MID(Table5[[#This Row],[GL Account]],14,6)="696520",AND(MID(A65,14,6)="696530",MID(Table5[[#This Row],[GL Account]],21,1)="4")),0,ROUND(SUMIF(Table5[GL Account],Table5[[#This Row],[GL Account]],Table5[Amount])-SUMIFS(Table2[Amount],Table2[Type],"Activity",Table2[Account Number],GLTB!A65),2))) -> 0 | N65: =IF(Table5[[#This Row],[Difference]]=0,"",IF(ISNA(VLOOKUP(Table5[[#This Row],[0]],Table1[],1,FALSE)),"","X")) -> 
A66: 71-0000-1960-696200-29512 | B66: Gen : A/P-Current : AS-A/P : Stdnt Development/Campus Life : Assoc Students | C66: 2021-11-05 | D66: PJ | E66: 'V1300191' | F66: United Site Services | I66: 137.8 | J66: =IF(MID(A66,21,1)="2",-G66-H66+I66,IF(SUM(H66:I66)>0,H66-I66,"")) -> 137.8 | K66: =IF(MID(Table5[[#This Row],[GL Account]],21,1)="2",MID(Table5[[#This Row],[ GL Description]],FIND(":",Table5[[#This Row],[ GL Description]],1)+2,FIND(":",Table5[[#This Row],[ GL Description]],FIND(":",Table5[[#This Row],[ GL Description]],1)+1)-FIND(":",Table5[[#This Row],[ GL Description]],1)-2),MID(Table5[[#This Row],[GL Account]],14,6)&" "&VLOOKUP(VALUE(MID(Table5[[#This Row],[GL Account]],14,6)),PgmList,2,FALSE)) -> A/P-Current | L66: =IF(MID(A66,21,1)="2",MID(A66,14,6)&" - "&MID(B66,FIND(":",B66,FIND(K66,B66,1))+2,FIND(":",B66,FIND(":",B66,FIND(K66,B66,1))+1)-FIND(":",B66,FIND(K66,B66,1))-2),IF(AND(MID(Table5[[#This Row],[GL Account]],14,6)<>"696530",MID(Table5[[#This Row],[GL Account]],14,6)<>"696570"),"",IF(MID(Table5[[#This Row],[GL Account]],21,2)="53","Fringe Benefits",VLOOKUP(RIGHT(Table5[[#This Row],[GL Account]],5),Object,2,FALSE))))&IF(RIGHT(Table5[[#This Row],[GL Account]],5)="29599",IF(MID(A66,4,4)="0000",""," "&MID(A66,4,4))&" - "&LEFT(Table5[[#This Row],[ GL Description]],FIND(" : ",Table5[[#This Row],[ GL Description]])),"") -> 696200 - AS-A/P | M66: =IF(MID(A66,21,1)="2",0,IF(OR(MID(Table5[[#This Row],[GL Account]],14,6)="696520",AND(MID(A66,14,6)="696530",MID(Table5[[#This Row],[GL Account]],21,1)="4")),0,ROUND(SUMIF(Table5[GL Account],Table5[[#This Row],[GL Account]],Table5[Amount])-SUMIFS(Table2[Amount],Table2[Type],"Activity",Table2[Account Number],GLTB!A66),2))) -> 0 | N66: =IF(Table5[[#This Row],[Difference]]=0,"",IF(ISNA(VLOOKUP(Table5[[#This Row],[0]],Table1[],1,FALSE)),"","X")) -> 
A67: 71-0000-1960-696200-29512 | B67: Gen : A/P-Current : AS-A/P : Stdnt Development/Campus Life : Assoc Students | C67: 2021-11-09 | D67: CD | E67: 'MF*0103839' | F67: US Bank Equipment Finance | H67: 80.13 | J67: -80.13 | K67: =IF(MID(Table5[[#This Row],[GL Account]],21,1)="2",MID(Table5[[#This Row],[ GL Description]],FIND(":",Table5[[#This Row],[ GL Description]],1)+2,FIND(":",Table5[[#This Row],[ GL Description]],FIND(":",Table5[[#This Row],[ GL Description]],1)+1)-FIND(":",Table5[[#This Row],[ GL Description]],1)-2),MID(Table5[[#This Row],[GL Account]],14,6)&" "&VLOOKUP(VALUE(MID(Table5[[#This Row],[GL Account]],14,6)),PgmList,2,FALSE)) -> A/P-Current | L67: =IF(MID(A67,21,1)="2",MID(A67,14,6)&" - "&MID(B67,FIND(":",B67,FIND(K67,B67,1))+2,FIND(":",B67,FIND(":",B67,FIND(K67,B67,1))+1)-FIND(":",B67,FIND(K67,B67,1))-2),IF(AND(MID(Table5[[#This Row],[GL Account]],14,6)<>"696530",MID(Table5[[#This Row],[GL Account]],14,6)<>"696570"),"",IF(MID(Table5[[#This Row],[GL Account]],21,2)="53","Fringe Benefits",VLOOKUP(RIGHT(Table5[[#This Row],[GL Account]],5),Object,2,FALSE))))&IF(RIGHT(Table5[[#This Row],[GL Account]],5)="29599",IF(MID(A67,4,4)="0000",""," "&MID(A67,4,4))&" - "&LEFT(Table5[[#This Row],[ GL Description]],FIND(" : ",Table5[[#This Row],[ GL Description]])),"") -> 696200 - AS-A/P | M67: =IF(MID(A67,21,1)="2",0,IF(OR(MID(Table5[[#This Row],[GL Account]],14,6)="696520",AND(MID(A67,14,6)="696530",MID(Table5[[#This Row],[GL Account]],21,1)="4")),0,ROUND(SUMIF(Table5[GL Account],Table5[[#This Row],[GL Account]],Table5[Amount])-SUMIFS(Table2[Amount],Table2[Type],"Activity",Table2[Account Number],GLTB!A67),2))) -> 0 | N67: =IF(Table5[[#This Row],[Difference]]=0,"",IF(ISNA(VLOOKUP(Table5[[#This Row],[0]],Table1[],1,FALSE)),"","X")) -> 
A68: 71-0000-1960-696200-29512 | B68: Gen : A/P-Current : AS-A/P : Stdnt Development/Campus Life : Assoc Students | C68: 2021-11-15 | D68: PJ | E68: 'V1297937' | F68: Lori M. Marchy | I68: 500 | J68: 500 | K68: =IF(MID(Table5[[#This Row],[GL Account]],21,1)="2",MID(Table5[[#This Row],[ GL Description]],FIND(":",Table5[[#This Row],[ GL Description]],1)+2,FIND(":",Table5[[#This Row],[ GL Description]],FIND(":",Table5[[#This Row],[ GL Description]],1)+1)-FIND(":",Table5[[#This Row],[ GL Description]],1)-2),MID(Table5[[#This Row],[GL Account]],14,6)&" "&VLOOKUP(VALUE(MID(Table5[[#This Row],[GL Account]],14,6)),PgmList,2,FALSE)) -> A/P-Current | L68: =IF(MID(A68,21,1)="2",MID(A68,14,6)&" - "&MID(B68,FIND(":",B68,FIND(K68,B68,1))+2,FIND(":",B68,FIND(":",B68,FIND(K68,B68,1))+1)-FIND(":",B68,FIND(K68,B68,1))-2),IF(AND(MID(Table5[[#This Row],[GL Account]],14,6)<>"696530",MID(Table5[[#This Row],[GL Account]],14,6)<>"696570"),"",IF(MID(Table5[[#This Row],[GL Account]],21,2)="53","Fringe Benefits",VLOOKUP(RIGHT(Table5[[#This Row],[GL Account]],5),Object,2,FALSE))))&IF(RIGHT(Table5[[#This Row],[GL Account]],5)="29599",IF(MID(A68,4,4)="0000",""," "&MID(A68,4,4))&" - "&LEFT(Table5[[#This Row],[ GL Description]],FIND(" : ",Table5[[#This Row],[ GL Description]])),"") -> 696200 - AS-A/P | M68: =IF(MID(A68,21,1)="2",0,IF(OR(MID(Table5[[#This Row],[GL Account]],14,6)="696520",AND(MID(A68,14,6)="696530",MID(Table5[[#This Row],[GL Account]],21,1)="4")),0,ROUND(SUMIF(Table5[GL Account],Table5[[#This Row],[GL Account]],Table5[Amount])-SUMIFS(Table2[Amount],Table2[Type],"Activity",Table2[Account Number],GLTB!A68),2))) -> 0 | N68: =IF(Table5[[#This Row],[Difference]]=0,"",IF(ISNA(VLOOKUP(Table5[[#This Row],[0]],Table1[],1,FALSE)),"","X")) -> 
A69: 71-0000-1960-696200-29512 | B69: Gen : A/P-Current : AS-A/P : Stdnt Development/Campus Life : Assoc Students | C69: 2021-11-18 | D69: CD | E69: 'MF*0103840' | F69: Lori M. Marchy | H69: 500 | J69: -500 | K69: =IF(MID(Table5[[#This Row],[GL Account]],21,1)="2",MID(Table5[[#This Row],[ GL Description]],FIND(":",Table5[[#This Row],[ GL Description]],1)+2,FIND(":",Table5[[#This Row],[ GL Description]],FIND(":",Table5[[#This Row],[ GL Description]],1)+1)-FIND(":",Table5[[#This Row],[ GL Description]],1)-2),MID(Table5[[#This Row],[GL Account]],14,6)&" "&VLOOKUP(VALUE(MID(Table5[[#This Row],[GL Account]],14,6)),PgmList,2,FALSE)) -> A/P-Current | L69: =IF(MID(A69,21,1)="2",MID(A69,14,6)&" - "&MID(B69,FIND(":",B69,FIND(K69,B69,1))+2,FIND(":",B69,FIND(":",B69,FIND(K69,B69,1))+1)-FIND(":",B69,FIND(K69,B69,1))-2),IF(AND(MID(Table5[[#This Row],[GL Account]],14,6)<>"696530",MID(Table5[[#This Row],[GL Account]],14,6)<>"696570"),"",IF(MID(Table5[[#This Row],[GL Account]],21,2)="53","Fringe Benefits",VLOOKUP(RIGHT(Table5[[#This Row],[GL Account]],5),Object,2,FALSE))))&IF(RIGHT(Table5[[#This Row],[GL Account]],5)="29599",IF(MID(A69,4,4)="0000",""," "&MID(A69,4,4))&" - "&LEFT(Table5[[#This Row],[ GL Description]],FIND(" : ",Table5[[#This Row],[ GL Description]])),"") -> 696200 - AS-A/P | M69: =IF(MID(A69,21,1)="2",0,IF(OR(MID(Table5[[#This Row],[GL Account]],14,6)="696520",AND(MID(A69,14,6)="696530",MID(Table5[[#This Row],[GL Account]],21,1)="4")),0,ROUND(SUMIF(Table5[GL Account],Table5[[#This Row],[GL Account]],Table5[Amount])-SUMIFS(Table2[Amount],Table2[Type],"Activity",Table2[Account Number],GLTB!A69),2))) -> 0 | N69: =IF(Table5[[#This Row],[Difference]]=0,"",IF(ISNA(VLOOKUP(Table5[[#This Row],[0]],Table1[],1,FALSE)),"","X")) -> 
A70: 71-0000-1960-696200-29512 | B70: Gen : A/P-Current : AS-A/P : Stdnt Development/Campus Life : Assoc Students | C70: 2021-11-18 | D70: CD | E70: 'MF*0103841' | F70: US Bank Equipment Finance | H70: 87.56 | J70: -87.56 | K70: =IF(MID(Table5[[#This Row],[GL Account]],21,1)="2",MID(Table5[[#This Row],[ GL Description]],FIND(":",Table5[[#This Row],[ GL Description]],1)+2,FIND(":",Table5[[#This Row],[ GL Description]],FIND(":",Table5[[#This Row],[ GL Description]],1)+1)-FIND(":",Table5[[#This Row],[ GL Description]],1)-2),MID(Table5[[#This Row],[GL Account]],14,6)&" "&VLOOKUP(VALUE(MID(Table5[[#This Row],[GL Account]],14,6)),PgmList,2,FALSE)) -> A/P-Current | L70: =IF(MID(A70,21,1)="2",MID(A70,14,6)&" - "&MID(B70,FIND(":",B70,FIND(K70,B70,1))+2,FIND(":",B70,FIND(":",B70,FIND(K70,B70,1))+1)-FIND(":",B70,FIND(K70,B70,1))-2),IF(AND(MID(Table5[[#This Row],[GL Account]],14,6)<>"696530",MID(Table5[[#This Row],[GL Account]],14,6)<>"696570"),"",IF(MID(Table5[[#This Row],[GL Account]],21,2)="53","Fringe Benefits",VLOOKUP(RIGHT(Table5[[#This Row],[GL Account]],5),Object,2,FALSE))))&IF(RIGHT(Table5[[#This Row],[GL Account]],5)="29599",IF(MID(A70,4,4)="0000",""," "&MID(A70,4,4))&" - "&LEFT(Table5[[#This Row],[ GL Description]],FIND(" : ",Table5[[#This Row],[ GL Description]])),"") -> 696200 - AS-A/P | M70: =IF(MID(A70,21,1)="2",0,IF(OR(MID(Table5[[#This Row],[GL Account]],14,6)="696520",AND(MID(A70,14,6)="696530",MID(Table5[[#This Row],[GL Account]],21,1)="4")),0,ROUND(SUMIF(Table5[GL Account],Table5[[#This Row],[GL Account]],Table5[Amount])-SUMIFS(Table2[Amount],Table2[Type],"Activity",Table2[Account Number],GLTB!A70),2))) -> 0 | N70: =IF(Table5[[#This Row],[Difference]]=0,"",IF(ISNA(VLOOKUP(Table5[[#This Row],[0]],Table1[],1,FALSE)),"","X")) -> 
A71: 71-0000-1960-696200-29512 | B71: Gen : A/P-Current : AS-A/P : Stdnt Development/Campus Life : Assoc Students | C71: 2021-11-18 | D71: PJ | E71: 'V1298949' | F71: Maria Delcarmen De la Cruz | I71: 500 | J71: 500 | K71: =IF(MID(Table5[[#This Row],[GL Account]],21,1)="2",MID(Table5[[#This Row],[ GL Description]],FIND(":",Table5[[#This Row],[ GL Description]],1)+2,FIND(":",Table5[[#This Row],[ GL Description]],FIND(":",Table5[[#This Row],[ GL Description]],1)+1)-FIND(":",Table5[[#This Row],[ GL Description]],1)-2),MID(Table5[[#This Row],[GL Account]],14,6)&" "&VLOOKUP(VALUE(MID(Table5[[#This Row],[GL Account]],14,6)),PgmList,2,FALSE)) -> A/P-Current | L71: =IF(MID(A71,21,1)="2",MID(A71,14,6)&" - "&MID(B71,FIND(":",B71,FIND(K71,B71,1))+2,FIND(":",B71,FIND(":",B71,FIND(K71,B71,1))+1)-FIND(":",B71,FIND(K71,B71,1))-2),IF(AND(MID(Table5[[#This Row],[GL Account]],14,6)<>"696530",MID(Table5[[#This Row],[GL Account]],14,6)<>"696570"),"",IF(MID(Table5[[#This Row],[GL Account]],21,2)="53","Fringe Benefits",VLOOKUP(RIGHT(Table5[[#This Row],[GL Account]],5),Object,2,FALSE))))&IF(RIGHT(Table5[[#This Row],[GL Account]],5)="29599",IF(MID(A71,4,4)="0000",""," "&MID(A71,4,4))&" - "&LEFT(Table5[[#This Row],[ GL Description]],FIND(" : ",Table5[[#This Row],[ GL Description]])),"") -> 696200 - AS-A/P | M71: =IF(MID(A71,21,1)="2",0,IF(OR(MID(Table5[[#This Row],[GL Account]],14,6)="696520",AND(MID(A71,14,6)="696530",MID(Table5[[#This Row],[GL Account]],21,1)="4")),0,ROUND(SUMIF(Table5[GL Account],Table5[[#This Row],[GL Account]],Table5[Amount])-SUMIFS(Table2[Amount],Table2[Type],"Activity",Table2[Account Number],GLTB!A71),2))) -> 0 | N71: =IF(Table5[[#This Row],[Difference]]=0,"",IF(ISNA(VLOOKUP(Table5[[#This Row],[0]],Table1[],1,FALSE)),"","X")) -> 
A72: 71-0000-1960-696200-29512 | B72: Gen : A/P-Current : AS-A/P : Stdnt Development/Campus Life : Assoc Students | C72: 2021-11-18 | D72: PJ | E72: 'V1298950' | F72: John I. Griffin, III | I72: 500 | J72: 500 | K72: =IF(MID(Table5[[#This Row],[GL Account]],21,1)="2",MID(Table5[[#This Row],[ GL Description]],FIND(":",Table5[[#This Row],[ GL Description]],1)+2,FIND(":",Table5[[#This Row],[ GL Description]],FIND(":",Table5[[#This Row],[ GL Description]],1)+1)-FIND(":",Table5[[#This Row],[ GL Description]],1)-2),MID(Table5[[#This Row],[GL Account]],14,6)&" "&VLOOKUP(VALUE(MID(Table5[[#This Row],[GL Account]],14,6)),PgmList,2,FALSE)) -> A/P-Current | L72: =IF(MID(A72,21,1)="2",MID(A72,14,6)&" - "&MID(B72,FIND(":",B72,FIND(K72,B72,1))+2,FIND(":",B72,FIND(":",B72,FIND(K72,B72,1))+1)-FIND(":",B72,FIND(K72,B72,1))-2),IF(AND(MID(Table5[[#This Row],[GL Account]],14,6)<>"696530",MID(Table5[[#This Row],[GL Account]],14,6)<>"696570"),"",IF(MID(Table5[[#This Row],[GL Account]],21,2)="53","Fringe Benefits",VLOOKUP(RIGHT(Table5[[#This Row],[GL Account]],5),Object,2,FALSE))))&IF(RIGHT(Table5[[#This Row],[GL Account]],5)="29599",IF(MID(A72,4,4)="0000",""," "&MID(A72,4,4))&" - "&LEFT(Table5[[#This Row],[ GL Description]],FIND(" : ",Table5[[#This Row],[ GL Description]])),"") -> 696200 - AS-A/P | M72: =IF(MID(A72,21,1)="2",0,IF(OR(MID(Table5[[#This Row],[GL Account]],14,6)="696520",AND(MID(A72,14,6)="696530",MID(Table5[[#This Row],[GL Account]],21,1)="4")),0,ROUND(SUMIF(Table5[GL Account],Table5[[#This Row],[GL Account]],Table5[Amount])-SUMIFS(Table2[Amount],Table2[Type],"Activity",Table2[Account Number],GLTB!A72),2))) -> 0 | N72: =IF(Table5[[#This Row],[Difference]]=0,"",IF(ISNA(VLOOKUP(Table5[[#This Row],[0]],Table1[],1,FALSE)),"","X")) -> 
A73: 71-0000-1960-696200-29512 | B73: Gen : A/P-Current : AS-A/P : Stdnt Development/Campus Life : Assoc Students | C73: 2021-11-22 | D73: CD | E73: 'MF*0103842' | F73: Maria Delcarmen De la Cruz | H73: 500 | J73: -500 | K73: =IF(MID(Table5[[#This Row],[GL Account]],21,1)="2",MID(Table5[[#This Row],[ GL Description]],FIND(":",Table5[[#This Row],[ GL Description]],1)+2,FIND(":",Table5[[#This Row],[ GL Description]],FIND(":",Table5[[#This Row],[ GL Description]],1)+1)-FIND(":",Table5[[#This Row],[ GL Description]],1)-2),MID(Table5[[#This Row],[GL Account]],14,6)&" "&VLOOKUP(VALUE(MID(Table5[[#This Row],[GL Account]],14,6)),PgmList,2,FALSE)) -> A/P-Current | L73: =IF(MID(A73,21,1)="2",MID(A73,14,6)&" - "&MID(B73,FIND(":",B73,FIND(K73,B73,1))+2,FIND(":",B73,FIND(":",B73,FIND(K73,B73,1))+1)-FIND(":",B73,FIND(K73,B73,1))-2),IF(AND(MID(Table5[[#This Row],[GL Account]],14,6)<>"696530",MID(Table5[[#This Row],[GL Account]],14,6)<>"696570"),"",IF(MID(Table5[[#This Row],[GL Account]],21,2)="53","Fringe Benefits",VLOOKUP(RIGHT(Table5[[#This Row],[GL Account]],5),Object,2,FALSE))))&IF(RIGHT(Table5[[#This Row],[GL Account]],5)="29599",IF(MID(A73,4,4)="0000",""," "&MID(A73,4,4))&" - "&LEFT(Table5[[#This Row],[ GL Description]],FIND(" : ",Table5[[#This Row],[ GL Description]])),"") -> 696200 - AS-A/P | M73: =IF(MID(A73,21,1)="2",0,IF(OR(MID(Table5[[#This Row],[GL Account]],14,6)="696520",AND(MID(A73,14,6)="696530",MID(Table5[[#This Row],[GL Account]],21,1)="4")),0,ROUND(SUMIF(Table5[GL Account],Table5[[#This Row],[GL Account]],Table5[Amount])-SUMIFS(Table2[Amount],Table2[Type],"Activity",Table2[Account Number],GLTB!A73),2))) -> 0 | N73: =IF(Table5[[#This Row],[Difference]]=0,"",IF(ISNA(VLOOKUP(Table5[[#This Row],[0]],Table1[],1,FALSE)),"","X")) -> 
A74: 71-0000-1960-696200-29512 | B74: Gen : A/P-Current : AS-A/P : Stdnt Development/Campus Life : Assoc Students | C74: 2021-11-22 | D74: CD | E74: 'MF*0103843' | F74: John I. Griffin, III | H74: 500 | J74: -500 | K74: =IF(MID(Table5[[#This Row],[GL Account]],21,1)="2",MID(Table5[[#This Row],[ GL Description]],FIND(":",Table5[[#This Row],[ GL Description]],1)+2,FIND(":",Table5[[#This Row],[ GL Description]],FIND(":",Table5[[#This Row],[ GL Description]],1)+1)-FIND(":",Table5[[#This Row],[ GL Description]],1)-2),MID(Table5[[#This Row],[GL Account]],14,6)&" "&VLOOKUP(VALUE(MID(Table5[[#This Row],[GL Account]],14,6)),PgmList,2,FALSE)) -> A/P-Current | L74: =IF(MID(A74,21,1)="2",MID(A74,14,6)&" - "&MID(B74,FIND(":",B74,FIND(K74,B74,1))+2,FIND(":",B74,FIND(":",B74,FIND(K74,B74,1))+1)-FIND(":",B74,FIND(K74,B74,1))-2),IF(AND(MID(Table5[[#This Row],[GL Account]],14,6)<>"696530",MID(Table5[[#This Row],[GL Account]],14,6)<>"696570"),"",IF(MID(Table5[[#This Row],[GL Account]],21,2)="53","Fringe Benefits",VLOOKUP(RIGHT(Table5[[#This Row],[GL Account]],5),Object,2,FALSE))))&IF(RIGHT(Table5[[#This Row],[GL Account]],5)="29599",IF(MID(A74,4,4)="0000",""," "&MID(A74,4,4))&" - "&LEFT(Table5[[#This Row],[ GL Description]],FIND(" : ",Table5[[#This Row],[ GL Description]])),"") -> 696200 - AS-A/P | M74: =IF(MID(A74,21,1)="2",0,IF(OR(MID(Table5[[#This Row],[GL Account]],14,6)="696520",AND(MID(A74,14,6)="696530",MID(Table5[[#This Row],[GL Account]],21,1)="4")),0,ROUND(SUMIF(Table5[GL Account],Table5[[#This Row],[GL Account]],Table5[Amount])-SUMIFS(Table2[Amount],Table2[Type],"Activity",Table2[Account Number],GLTB!A74),2))) -> 0 | N74: =IF(Table5[[#This Row],[Difference]]=0,"",IF(ISNA(VLOOKUP(Table5[[#This Row],[0]],Table1[],1,FALSE)),"","X")) -> 
A75: 71-0000-1960-696200-29512 | B75: Gen : A/P-Current : AS-A/P : Stdnt Development/Campus Life : Assoc Students | C75: 2021-11-22 | D75: CD | E75: 'MF*0103844' | F75: ID Card Systems Inc | H75: 1340.02 | J75: -1340.02 | K75: =IF(MID(Table5[[#This Row],[GL Account]],21,1)="2",MID(Table5[[#This Row],[ GL Description]],FIND(":",Table5[[#This Row],[ GL Description]],1)+2,FIND(":",Table5[[#This Row],[ GL Description]],FIND(":",Table5[[#This Row],[ GL Description]],1)+1)-FIND(":",Table5[[#This Row],[ GL Description]],1)-2),MID(Table5[[#This Row],[GL Account]],14,6)&" "&VLOOKUP(VALUE(MID(Table5[[#This Row],[GL Account]],14,6)),PgmList,2,FALSE)) -> A/P-Current | L75: =IF(MID(A75,21,1)="2",MID(A75,14,6)&" - "&MID(B75,FIND(":",B75,FIND(K75,B75,1))+2,FIND(":",B75,FIND(":",B75,FIND(K75,B75,1))+1)-FIND(":",B75,FIND(K75,B75,1))-2),IF(AND(MID(Table5[[#This Row],[GL Account]],14,6)<>"696530",MID(Table5[[#This Row],[GL Account]],14,6)<>"696570"),"",IF(MID(Table5[[#This Row],[GL Account]],21,2)="53","Fringe Benefits",VLOOKUP(RIGHT(Table5[[#This Row],[GL Account]],5),Object,2,FALSE))))&IF(RIGHT(Table5[[#This Row],[GL Account]],5)="29599",IF(MID(A75,4,4)="0000",""," "&MID(A75,4,4))&" - "&LEFT(Table5[[#This Row],[ GL Description]],FIND(" : ",Table5[[#This Row],[ GL Description]])),"") -> 696200 - AS-A/P | M75: =IF(MID(A75,21,1)="2",0,IF(OR(MID(Table5[[#This Row],[GL Account]],14,6)="696520",AND(MID(A75,14,6)="696530",MID(Table5[[#This Row],[GL Account]],21,1)="4")),0,ROUND(SUMIF(Table5[GL Account],Table5[[#This Row],[GL Account]],Table5[Amount])-SUMIFS(Table2[Amount],Table2[Type],"Activity",Table2[Account Number],GLTB!A75),2))) -> 0 | N75: =IF(Table5[[#This Row],[Difference]]=0,"",IF(ISNA(VLOOKUP(Table5[[#This Row],[0]],Table1[],1,FALSE)),"","X")) -> 
A76: 71-0000-1960-696200-29512 | B76: Gen : A/P-Current : AS-A/P : Stdnt Development/Campus Life : Assoc Students | C76: 2021-11-22 | D76: CD | E76: 'MF*0103845' | F76: Parsons Embroidery Plus | H76: 222.49 | J76: -222.49 | K76: =IF(MID(Table5[[#This Row],[GL Account]],21,1)="2",MID(Table5[[#This Row],[ GL Description]],FIND(":",Table5[[#This Row],[ GL Description]],1)+2,FIND(":",Table5[[#This Row],[ GL Description]],FIND(":",Table5[[#This Row],[ GL Description]],1)+1)-FIND(":",Table5[[#This Row],[ GL Description]],1)-2),MID(Table5[[#This Row],[GL Account]],14,6)&" "&VLOOKUP(VALUE(MID(Table5[[#This Row],[GL Account]],14,6)),PgmList,2,FALSE)) -> A/P-Current | L76: =IF(MID(A76,21,1)="2",MID(A76,14,6)&" - "&MID(B76,FIND(":",B76,FIND(K76,B76,1))+2,FIND(":",B76,FIND(":",B76,FIND(K76,B76,1))+1)-FIND(":",B76,FIND(K76,B76,1))-2),IF(AND(MID(Table5[[#This Row],[GL Account]],14,6)<>"696530",MID(Table5[[#This Row],[GL Account]],14,6)<>"696570"),"",IF(MID(Table5[[#This Row],[GL Account]],21,2)="53","Fringe Benefits",VLOOKUP(RIGHT(Table5[[#This Row],[GL Account]],5),Object,2,FALSE))))&IF(RIGHT(Table5[[#This Row],[GL Account]],5)="29599",IF(MID(A76,4,4)="0000",""," "&MID(A76,4,4))&" - "&LEFT(Table5[[#This Row],[ GL Description]],FIND(" : ",Table5[[#This Row],[ GL Description]])),"") -> 696200 - AS-A/P | M76: =IF(MID(A76,21,1)="2",0,IF(OR(MID(Table5[[#This Row],[GL Account]],14,6)="696520",AND(MID(A76,14,6)="696530",MID(Table5[[#This Row],[GL Account]],21,1)="4")),0,ROUND(SUMIF(Table5[GL Account],Table5[[#This Row],[GL Account]],Table5[Amount])-SUMIFS(Table2[Amount],Table2[Type],"Activity",Table2[Account Number],GLTB!A76),2))) -> 0 | N76: =IF(Table5[[#This Row],[Difference]]=0,"",IF(ISNA(VLOOKUP(Table5[[#This Row],[0]],Table1[],1,FALSE)),"","X")) -> 
A77: 71-0000-1960-696200-29512 | B77: Gen : A/P-Current : AS-A/P : Stdnt Development/Campus Life : Assoc Students | C77: 2021-11-22 | D77: CD | E77: 'MF*0103846' | F77: Redwood Real Estate Group, Inc | H77: 3000 | J77: -3000 | K77: =IF(MID(Table5[[#This Row],[GL Account]],21,1)="2",MID(Table5[[#This Row],[ GL Description]],FIND(":",Table5[[#This Row],[ GL Description]],1)+2,FIND(":",Table5[[#This Row],[ GL Description]],FIND(":",Table5[[#This Row],[ GL Description]],1)+1)-FIND(":",Table5[[#This Row],[ GL Description]],1)-2),MID(Table5[[#This Row],[GL Account]],14,6)&" "&VLOOKUP(VALUE(MID(Table5[[#This Row],[GL Account]],14,6)),PgmList,2,FALSE)) -> A/P-Current | L77: =IF(MID(A77,21,1)="2",MID(A77,14,6)&" - "&MID(B77,FIND(":",B77,FIND(K77,B77,1))+2,FIND(":",B77,FIND(":",B77,FIND(K77,B77,1))+1)-FIND(":",B77,FIND(K77,B77,1))-2),IF(AND(MID(Table5[[#This Row],[GL Account]],14,6)<>"696530",MID(Table5[[#This Row],[GL Account]],14,6)<>"696570"),"",IF(MID(Table5[[#This Row],[GL Account]],21,2)="53","Fringe Benefits",VLOOKUP(RIGHT(Table5[[#This Row],[GL Account]],5),Object,2,FALSE))))&IF(RIGHT(Table5[[#This Row],[GL Account]],5)="29599",IF(MID(A77,4,4)="0000",""," "&MID(A77,4,4))&" - "&LEFT(Table5[[#This Row],[ GL Description]],FIND(" : ",Table5[[#This Row],[ GL Description]])),"") -> 696200 - AS-A/P | M77: =IF(MID(A77,21,1)="2",0,IF(OR(MID(Table5[[#This Row],[GL Account]],14,6)="696520",AND(MID(A77,14,6)="696530",MID(Table5[[#This Row],[GL Account]],21,1)="4")),0,ROUND(SUMIF(Table5[GL Account],Table5[[#This Row],[GL Account]],Table5[Amount])-SUMIFS(Table2[Amount],Table2[Type],"Activity",Table2[Account Number],GLTB!A77),2))) -> 0 | N77: =IF(Table5[[#This Row],[Difference]]=0,"",IF(ISNA(VLOOKUP(Table5[[#This Row],[0]],Table1[],1,FALSE)),"","X")) -> 
A78: 71-0000-1960-696200-29512 | B78: Gen : A/P-Current : AS-A/P : Stdnt Development/Campus Life : Assoc Students | C78: 2021-11-24 | D78: PJ | E78: 'V1300412' | F78: Sysco | I78: 572.39 | J78: 572.39 | K78: =IF(MID(Table5[[#This Row],[GL Account]],21,1)="2",MID(Table5[[#This Row],[ GL Description]],FIND(":",Table5[[#This Row],[ GL Description]],1)+2,FIND(":",Table5[[#This Row],[ GL Description]],FIND(":",Table5[[#This Row],[ GL Description]],1)+1)-FIND(":",Table5[[#This Row],[ GL Description]],1)-2),MID(Table5[[#This Row],[GL Account]],14,6)&" "&VLOOKUP(VALUE(MID(Table5[[#This Row],[GL Account]],14,6)),PgmList,2,FALSE)) -> A/P-Current | L78: =IF(MID(A78,21,1)="2",MID(A78,14,6)&" - "&MID(B78,FIND(":",B78,FIND(K78,B78,1))+2,FIND(":",B78,FIND(":",B78,FIND(K78,B78,1))+1)-FIND(":",B78,FIND(K78,B78,1))-2),IF(AND(MID(Table5[[#This Row],[GL Account]],14,6)<>"696530",MID(Table5[[#This Row],[GL Account]],14,6)<>"696570"),"",IF(MID(Table5[[#This Row],[GL Account]],21,2)="53","Fringe Benefits",VLOOKUP(RIGHT(Table5[[#This Row],[GL Account]],5),Object,2,FALSE))))&IF(RIGHT(Table5[[#This Row],[GL Account]],5)="29599",IF(MID(A78,4,4)="0000",""," "&MID(A78,4,4))&" - "&LEFT(Table5[[#This Row],[ GL Description]],FIND(" : ",Table5[[#This Row],[ GL Description]])),"") -> 696200 - AS-A/P | M78: =IF(MID(A78,21,1)="2",0,IF(OR(MID(Table5[[#This Row],[GL Account]],14,6)="696520",AND(MID(A78,14,6)="696530",MID(Table5[[#This Row],[GL Account]],21,1)="4")),0,ROUND(SUMIF(Table5[GL Account],Table5[[#This Row],[GL Account]],Table5[Amount])-SUMIFS(Table2[Amount],Table2[Type],"Activity",Table2[Account Number],GLTB!A78),2))) -> 0 | N78: =IF(Table5[[#This Row],[Difference]]=0,"",IF(ISNA(VLOOKUP(Table5[[#This Row],[0]],Table1[],1,FALSE)),"","X")) -> 
A79: 71-0000-1960-696200-29512 | B79: Gen : A/P-Current : AS-A/P : Stdnt Development/Campus Life : Assoc Students | C79: 2021-11-29 | D79: PJ | E79: 'V1300413' | F79: Smart & Final Stores Corp | I79: 56.5 | J79: 56.5 | K79: =IF(MID(Table5[[#This Row],[GL Account]],21,1)="2",MID(Table5[[#This Row],[ GL Description]],FIND(":",Table5[[#This Row],[ GL Description]],1)+2,FIND(":",Table5[[#This Row],[ GL Description]],FIND(":",Table5[[#This Row],[ GL Description]],1)+1)-FIND(":",Table5[[#This Row],[ GL Description]],1)-2),MID(Table5[[#This Row],[GL Account]],14,6)&" "&VLOOKUP(VALUE(MID(Table5[[#This Row],[GL Account]],14,6)),PgmList,2,FALSE)) -> A/P-Current | L79: =IF(MID(A79,21,1)="2",MID(A79,14,6)&" - "&MID(B79,FIND(":",B79,FIND(K79,B79,1))+2,FIND(":",B79,FIND(":",B79,FIND(K79,B79,1))+1)-FIND(":",B79,FIND(K79,B79,1))-2),IF(AND(MID(Table5[[#This Row],[GL Account]],14,6)<>"696530",MID(Table5[[#This Row],[GL Account]],14,6)<>"696570"),"",IF(MID(Table5[[#This Row],[GL Account]],21,2)="53","Fringe Benefits",VLOOKUP(RIGHT(Table5[[#This Row],[GL Account]],5),Object,2,FALSE))))&IF(RIGHT(Table5[[#This Row],[GL Account]],5)="29599",IF(MID(A79,4,4)="0000",""," "&MID(A79,4,4))&" - "&LEFT(Table5[[#This Row],[ GL Description]],FIND(" : ",Table5[[#This Row],[ GL Description]])),"") -> 696200 - AS-A/P | M79: =IF(MID(A79,21,1)="2",0,IF(OR(MID(Table5[[#This Row],[GL Account]],14,6)="696520",AND(MID(A79,14,6)="696530",MID(Table5[[#This Row],[GL Account]],21,1)="4")),0,ROUND(SUMIF(Table5[GL Account],Table5[[#This Row],[GL Account]],Table5[Amount])-SUMIFS(Table2[Amount],Table2[Type],"Activity",Table2[Account Number],GLTB!A79),2))) -> 0 | N79: =IF(Table5[[#This Row],[Difference]]=0,"",IF(ISNA(VLOOKUP(Table5[[#This Row],[0]],Table1[],1,FALSE)),"","X")) -> 
A80: 71-0000-1960-696200-29512 | B80: Gen : A/P-Current : AS-A/P : Stdnt Development/Campus Life : Assoc Students | C80: 2021-12-01 | D80: PJ | E80: 'V1300415' | F80: Lori M. Marchy | I80: 500 | J80: 500 | K80: =IF(MID(Table5[[#This Row],[GL Account]],21,1)="2",MID(Table5[[#This Row],[ GL Description]],FIND(":",Table5[[#This Row],[ GL Description]],1)+2,FIND(":",Table5[[#This Row],[ GL Description]],FIND(":",Table5[[#This Row],[ GL Description]],1)+1)-FIND(":",Table5[[#This Row],[ GL Description]],1)-2),MID(Table5[[#This Row],[GL Account]],14,6)&" "&VLOOKUP(VALUE(MID(Table5[[#This Row],[GL Account]],14,6)),PgmList,2,FALSE)) -> A/P-Current | L80: =IF(MID(A80,21,1)="2",MID(A80,14,6)&" - "&MID(B80,FIND(":",B80,FIND(K80,B80,1))+2,FIND(":",B80,FIND(":",B80,FIND(K80,B80,1))+1)-FIND(":",B80,FIND(K80,B80,1))-2),IF(AND(MID(Table5[[#This Row],[GL Account]],14,6)<>"696530",MID(Table5[[#This Row],[GL Account]],14,6)<>"696570"),"",IF(MID(Table5[[#This Row],[GL Account]],21,2)="53","Fringe Benefits",VLOOKUP(RIGHT(Table5[[#This Row],[GL Account]],5),Object,2,FALSE))))&IF(RIGHT(Table5[[#This Row],[GL Account]],5)="29599",IF(MID(A80,4,4)="0000",""," "&MID(A80,4,4))&" - "&LEFT(Table5[[#This Row],[ GL Description]],FIND(" : ",Table5[[#This Row],[ GL Description]])),"") -> 696200 - AS-A/P | M80: =IF(MID(A80,21,1)="2",0,IF(OR(MID(Table5[[#This Row],[GL Account]],14,6)="696520",AND(MID(A80,14,6)="696530",MID(Table5[[#This Row],[GL Account]],21,1)="4")),0,ROUND(SUMIF(Table5[GL Account],Table5[[#This Row],[GL Account]],Table5[Amount])-SUMIFS(Table2[Amount],Table2[Type],"Activity",Table2[Account Number],GLTB!A80),2))) -> 0 | N80: =IF(Table5[[#This Row],[Difference]]=0,"",IF(ISNA(VLOOKUP(Table5[[#This Row],[0]],Table1[],1,FALSE)),"","X")) -> 
A81: 71-0000-1960-696200-29512 | B81: Gen : A/P-Current : AS-A/P : Stdnt Development/Campus Life : Assoc Students | C81: 2021-12-01 | D81: PJ | E81: 'V1301118' | F81: MJC - Scholarships | I81: 700 | J81: 700 | K81: =IF(MID(Table5[[#This Row],[GL Account]],21,1)="2",MID(Table5[[#This Row],[ GL Description]],FIND(":",Table5[[#This Row],[ GL Description]],1)+2,FIND(":",Table5[[#This Row],[ GL Description]],FIND(":",Table5[[#This Row],[ GL Description]],1)+1)-FIND(":",Table5[[#This Row],[ GL Description]],1)-2),MID(Table5[[#This Row],[GL Account]],14,6)&" "&VLOOKUP(VALUE(MID(Table5[[#This Row],[GL Account]],14,6)),PgmList,2,FALSE)) -> A/P-Current | L81: =IF(MID(A81,21,1)="2",MID(A81,14,6)&" - "&MID(B81,FIND(":",B81,FIND(K81,B81,1))+2,FIND(":",B81,FIND(":",B81,FIND(K81,B81,1))+1)-FIND(":",B81,FIND(K81,B81,1))-2),IF(AND(MID(Table5[[#This Row],[GL Account]],14,6)<>"696530",MID(Table5[[#This Row],[GL Account]],14,6)<>"696570"),"",IF(MID(Table5[[#This Row],[GL Account]],21,2)="53","Fringe Benefits",VLOOKUP(RIGHT(Table5[[#This Row],[GL Account]],5),Object,2,FALSE))))&IF(RIGHT(Table5[[#This Row],[GL Account]],5)="29599",IF(MID(A81,4,4)="0000",""," "&MID(A81,4,4))&" - "&LEFT(Table5[[#This Row],[ GL Description]],FIND(" : ",Table5[[#This Row],[ GL Description]])),"") -> 696200 - AS-A/P | M81: =IF(MID(A81,21,1)="2",0,IF(OR(MID(Table5[[#This Row],[GL Account]],14,6)="696520",AND(MID(A81,14,6)="696530",MID(Table5[[#This Row],[GL Account]],21,1)="4")),0,ROUND(SUMIF(Table5[GL Account],Table5[[#This Row],[GL Account]],Table5[Amount])-SUMIFS(Table2[Amount],Table2[Type],"Activity",Table2[Account Number],GLTB!A81),2))) -> 0 | N81: =IF(Table5[[#This Row],[Difference]]=0,"",IF(ISNA(VLOOKUP(Table5[[#This Row],[0]],Table1[],1,FALSE)),"","X")) -> 
A82: 71-0000-1960-696200-29512 | B82: Gen : A/P-Current : AS-A/P : Stdnt Development/Campus Life : Assoc Students | C82: 2021-12-01 | D82: PJ | E82: 'V1306280' | F82: Trophy Works | I82: 139.16 | J82: 139.16 | K82: =IF(MID(Table5[[#This Row],[GL Account]],21,1)="2",MID(Table5[[#This Row],[ GL Description]],FIND(":",Table5[[#This Row],[ GL Description]],1)+2,FIND(":",Table5[[#This Row],[ GL Description]],FIND(":",Table5[[#This Row],[ GL Description]],1)+1)-FIND(":",Table5[[#This Row],[ GL Description]],1)-2),MID(Table5[[#This Row],[GL Account]],14,6)&" "&VLOOKUP(VALUE(MID(Table5[[#This Row],[GL Account]],14,6)),PgmList,2,FALSE)) -> A/P-Current | L82: =IF(MID(A82,21,1)="2",MID(A82,14,6)&" - "&MID(B82,FIND(":",B82,FIND(K82,B82,1))+2,FIND(":",B82,FIND(":",B82,FIND(K82,B82,1))+1)-FIND(":",B82,FIND(K82,B82,1))-2),IF(AND(MID(Table5[[#This Row],[GL Account]],14,6)<>"696530",MID(Table5[[#This Row],[GL Account]],14,6)<>"696570"),"",IF(MID(Table5[[#This Row],[GL Account]],21,2)="53","Fringe Benefits",VLOOKUP(RIGHT(Table5[[#This Row],[GL Account]],5),Object,2,FALSE))))&IF(RIGHT(Table5[[#This Row],[GL Account]],5)="29599",IF(MID(A82,4,4)="0000",""," "&MID(A82,4,4))&" - "&LEFT(Table5[[#This Row],[ GL Description]],FIND(" : ",Table5[[#This Row],[ GL Description]])),"") -> 696200 - AS-A/P | M82: =IF(MID(A82,21,1)="2",0,IF(OR(MID(Table5[[#This Row],[GL Account]],14,6)="696520",AND(MID(A82,14,6)="696530",MID(Table5[[#This Row],[GL Account]],21,1)="4")),0,ROUND(SUMIF(Table5[GL Account],Table5[[#This Row],[GL Account]],Table5[Amount])-SUMIFS(Table2[Amount],Table2[Type],"Activity",Table2[Account Number],GLTB!A82),2))) -> 0 | N82: =IF(Table5[[#This Row],[Difference]]=0,"",IF(ISNA(VLOOKUP(Table5[[#This Row],[0]],Table1[],1,FALSE)),"","X")) -> 
A83: 71-0000-1960-696200-29512 | B83: Gen : A/P-Current : AS-A/P : Stdnt Development/Campus Life : Assoc Students | C83: 2021-12-09 | D83: CD | E83: 'MF*0103847' | F83: Lori M. Marchy | H83: 500 | J83: -500 | K83: =IF(MID(Table5[[#This Row],[GL Account]],21,1)="2",MID(Table5[[#This Row],[ GL Description]],FIND(":",Table5[[#This Row],[ GL Description]],1)+2,FIND(":",Table5[[#This Row],[ GL Description]],FIND(":",Table5[[#This Row],[ GL Description]],1)+1)-FIND(":",Table5[[#This Row],[ GL Description]],1)-2),MID(Table5[[#This Row],[GL Account]],14,6)&" "&VLOOKUP(VALUE(MID(Table5[[#This Row],[GL Account]],14,6)),PgmList,2,FALSE)) -> A/P-Current | L83: =IF(MID(A83,21,1)="2",MID(A83,14,6)&" - "&MID(B83,FIND(":",B83,FIND(K83,B83,1))+2,FIND(":",B83,FIND(":",B83,FIND(K83,B83,1))+1)-FIND(":",B83,FIND(K83,B83,1))-2),IF(AND(MID(Table5[[#This Row],[GL Account]],14,6)<>"696530",MID(Table5[[#This Row],[GL Account]],14,6)<>"696570"),"",IF(MID(Table5[[#This Row],[GL Account]],21,2)="53","Fringe Benefits",VLOOKUP(RIGHT(Table5[[#This Row],[GL Account]],5),Object,2,FALSE))))&IF(RIGHT(Table5[[#This Row],[GL Account]],5)="29599",IF(MID(A83,4,4)="0000",""," "&MID(A83,4,4))&" - "&LEFT(Table5[[#This Row],[ GL Description]],FIND(" : ",Table5[[#This Row],[ GL Description]])),"") -> 696200 - AS-A/P | M83: =IF(MID(A83,21,1)="2",0,IF(OR(MID(Table5[[#This Row],[GL Account]],14,6)="696520",AND(MID(A83,14,6)="696530",MID(Table5[[#This Row],[GL Account]],21,1)="4")),0,ROUND(SUMIF(Table5[GL Account],Table5[[#This Row],[GL Account]],Table5[Amount])-SUMIFS(Table2[Amount],Table2[Type],"Activity",Table2[Account Number],GLTB!A83),2))) -> 0 | N83: =IF(Table5[[#This Row],[Difference]]=0,"",IF(ISNA(VLOOKUP(Table5[[#This Row],[0]],Table1[],1,FALSE)),"","X")) -> 
A84: 71-0000-1960-696200-29512 | B84: Gen : A/P-Current : AS-A/P : Stdnt Development/Campus Life : Assoc Students | C84: 2021-12-09 | D84: CD | E84: 'MF*0103848' | F84: Smart & Final Stores Corp | H84: 56.5 | J84: -56.5 | K84: =IF(MID(Table5[[#This Row],[GL Account]],21,1)="2",MID(Table5[[#This Row],[ GL Description]],FIND(":",Table5[[#This Row],[ GL Description]],1)+2,FIND(":",Table5[[#This Row],[ GL Description]],FIND(":",Table5[[#This Row],[ GL Description]],1)+1)-FIND(":",Table5[[#This Row],[ GL Description]],1)-2),MID(Table5[[#This Row],[GL Account]],14,6)&" "&VLOOKUP(VALUE(MID(Table5[[#This Row],[GL Account]],14,6)),PgmList,2,FALSE)) -> A/P-Current | L84: =IF(MID(A84,21,1)="2",MID(A84,14,6)&" - "&MID(B84,FIND(":",B84,FIND(K84,B84,1))+2,FIND(":",B84,FIND(":",B84,FIND(K84,B84,1))+1)-FIND(":",B84,FIND(K84,B84,1))-2),IF(AND(MID(Table5[[#This Row],[GL Account]],14,6)<>"696530",MID(Table5[[#This Row],[GL Account]],14,6)<>"696570"),"",IF(MID(Table5[[#This Row],[GL Account]],21,2)="53","Fringe Benefits",VLOOKUP(RIGHT(Table5[[#This Row],[GL Account]],5),Object,2,FALSE))))&IF(RIGHT(Table5[[#This Row],[GL Account]],5)="29599",IF(MID(A84,4,4)="0000",""," "&MID(A84,4,4))&" - "&LEFT(Table5[[#This Row],[ GL Description]],FIND(" : ",Table5[[#This Row],[ GL Description]])),"") -> 696200 - AS-A/P | M84: =IF(MID(A84,21,1)="2",0,IF(OR(MID(Table5[[#This Row],[GL Account]],14,6)="696520",AND(MID(A84,14,6)="696530",MID(Table5[[#This Row],[GL Account]],21,1)="4")),0,ROUND(SUMIF(Table5[GL Account],Table5[[#This Row],[GL Account]],Table5[Amount])-SUMIFS(Table2[Amount],Table2[Type],"Activity",Table2[Account Number],GLTB!A84),2))) -> 0 | N84: =IF(Table5[[#This Row],[Difference]]=0,"",IF(ISNA(VLOOKUP(Table5[[#This Row],[0]],Table1[],1,FALSE)),"","X")) -> 
A85: 71-0000-1960-696200-29512 | B85: Gen : A/P-Current : AS-A/P : Stdnt Development/Campus Life : Assoc Students | C85: 2021-12-09 | D85: CD | E85: 'MF*0103849' | F85: Sysco | H85: 572.39 | J85: -572.39 | K85: =IF(MID(Table5[[#This Row],[GL Account]],21,1)="2",MID(Table5[[#This Row],[ GL Description]],FIND(":",Table5[[#This Row],[ GL Description]],1)+2,FIND(":",Table5[[#This Row],[ GL Description]],FIND(":",Table5[[#This Row],[ GL Description]],1)+1)-FIND(":",Table5[[#This Row],[ GL Description]],1)-2),MID(Table5[[#This Row],[GL Account]],14,6)&" "&VLOOKUP(VALUE(MID(Table5[[#This Row],[GL Account]],14,6)),PgmList,2,FALSE)) -> A/P-Current | L85: =IF(MID(A85,21,1)="2",MID(A85,14,6)&" - "&MID(B85,FIND(":",B85,FIND(K85,B85,1))+2,FIND(":",B85,FIND(":",B85,FIND(K85,B85,1))+1)-FIND(":",B85,FIND(K85,B85,1))-2),IF(AND(MID(Table5[[#This Row],[GL Account]],14,6)<>"696530",MID(Table5[[#This Row],[GL Account]],14,6)<>"696570"),"",IF(MID(Table5[[#This Row],[GL Account]],21,2)="53","Fringe Benefits",VLOOKUP(RIGHT(Table5[[#This Row],[GL Account]],5),Object,2,FALSE))))&IF(RIGHT(Table5[[#This Row],[GL Account]],5)="29599",IF(MID(A85,4,4)="0000",""," "&MID(A85,4,4))&" - "&LEFT(Table5[[#This Row],[ GL Description]],FIND(" : ",Table5[[#This Row],[ GL Description]])),"") -> 696200 - AS-A/P | M85: =IF(MID(A85,21,1)="2",0,IF(OR(MID(Table5[[#This Row],[GL Account]],14,6)="696520",AND(MID(A85,14,6)="696530",MID(Table5[[#This Row],[GL Account]],21,1)="4")),0,ROUND(SUMIF(Table5[GL Account],Table5[[#This Row],[GL Account]],Table5[Amount])-SUMIFS(Table2[Amount],Table2[Type],"Activity",Table2[Account Number],GLTB!A85),2))) -> 0 | N85: =IF(Table5[[#This Row],[Difference]]=0,"",IF(ISNA(VLOOKUP(Table5[[#This Row],[0]],Table1[],1,FALSE)),"","X")) -> 
A86: 71-0000-1960-696200-29512 | B86: Gen : A/P-Current : AS-A/P : Stdnt Development/Campus Life : Assoc Students | C86: 2021-12-09 | D86: CD | E86: 'MF*0103850' | F86: United Site Services | H86: 137.8 | J86: -137.8 | K86: =IF(MID(Table5[[#This Row],[GL Account]],21,1)="2",MID(Table5[[#This Row],[ GL Description]],FIND(":",Table5[[#This Row],[ GL Description]],1)+2,FIND(":",Table5[[#This Row],[ GL Description]],FIND(":",Table5[[#This Row],[ GL Description]],1)+1)-FIND(":",Table5[[#This Row],[ GL Description]],1)-2),MID(Table5[[#This Row],[GL Account]],14,6)&" "&VLOOKUP(VALUE(MID(Table5[[#This Row],[GL Account]],14,6)),PgmList,2,FALSE)) -> A/P-Current | L86: =IF(MID(A86,21,1)="2",MID(A86,14,6)&" - "&MID(B86,FIND(":",B86,FIND(K86,B86,1))+2,FIND(":",B86,FIND(":",B86,FIND(K86,B86,1))+1)-FIND(":",B86,FIND(K86,B86,1))-2),IF(AND(MID(Table5[[#This Row],[GL Account]],14,6)<>"696530",MID(Table5[[#This Row],[GL Account]],14,6)<>"696570"),"",IF(MID(Table5[[#This Row],[GL Account]],21,2)="53","Fringe Benefits",VLOOKUP(RIGHT(Table5[[#This Row],[GL Account]],5),Object,2,FALSE))))&IF(RIGHT(Table5[[#This Row],[GL Account]],5)="29599",IF(MID(A86,4,4)="0000",""," "&MID(A86,4,4))&" - "&LEFT(Table5[[#This Row],[ GL Description]],FIND(" : ",Table5[[#This Row],[ GL Description]])),"") -> 696200 - AS-A/P | M86: =IF(MID(A86,21,1)="2",0,IF(OR(MID(Table5[[#This Row],[GL Account]],14,6)="696520",AND(MID(A86,14,6)="696530",MID(Table5[[#This Row],[GL Account]],21,1)="4")),0,ROUND(SUMIF(Table5[GL Account],Table5[[#This Row],[GL Account]],Table5[Amount])-SUMIFS(Table2[Amount],Table2[Type],"Activity",Table2[Account Number],GLTB!A86),2))) -> 0 | N86: =IF(Table5[[#This Row],[Difference]]=0,"",IF(ISNA(VLOOKUP(Table5[[#This Row],[0]],Table1[],1,FALSE)),"","X")) -> 
A87: 71-0000-1960-696200-29512 | B87: Gen : A/P-Current : AS-A/P : Stdnt Development/Campus Life : Assoc Students | C87: 2021-12-16 | D87: CD | E87: 'MF*0103851' | F87: MJC - Scholarships | H87: 700 | J87: -700 | K87: =IF(MID(Table5[[#This Row],[GL Account]],21,1)="2",MID(Table5[[#This Row],[ GL Description]],FIND(":",Table5[[#This Row],[ GL Description]],1)+2,FIND(":",Table5[[#This Row],[ GL Description]],FIND(":",Table5[[#This Row],[ GL Description]],1)+1)-FIND(":",Table5[[#This Row],[ GL Description]],1)-2),MID(Table5[[#This Row],[GL Account]],14,6)&" "&VLOOKUP(VALUE(MID(Table5[[#This Row],[GL Account]],14,6)),PgmList,2,FALSE)) -> A/P-Current | L87: =IF(MID(A87,21,1)="2",MID(A87,14,6)&" - "&MID(B87,FIND(":",B87,FIND(K87,B87,1))+2,FIND(":",B87,FIND(":",B87,FIND(K87,B87,1))+1)-FIND(":",B87,FIND(K87,B87,1))-2),IF(AND(MID(Table5[[#This Row],[GL Account]],14,6)<>"696530",MID(Table5[[#This Row],[GL Account]],14,6)<>"696570"),"",IF(MID(Table5[[#This Row],[GL Account]],21,2)="53","Fringe Benefits",VLOOKUP(RIGHT(Table5[[#This Row],[GL Account]],5),Object,2,FALSE))))&IF(RIGHT(Table5[[#This Row],[GL Account]],5)="29599",IF(MID(A87,4,4)="0000",""," "&MID(A87,4,4))&" - "&LEFT(Table5[[#This Row],[ GL Description]],FIND(" : ",Table5[[#This Row],[ GL Description]])),"") -> 696200 - AS-A/P | M87: =IF(MID(A87,21,1)="2",0,IF(OR(MID(Table5[[#This Row],[GL Account]],14,6)="696520",AND(MID(A87,14,6)="696530",MID(Table5[[#This Row],[GL Account]],21,1)="4")),0,ROUND(SUMIF(Table5[GL Account],Table5[[#This Row],[GL Account]],Table5[Amount])-SUMIFS(Table2[Amount],Table2[Type],"Activity",Table2[Account Number],GLTB!A87),2))) -> 0 | N87: =IF(Table5[[#This Row],[Difference]]=0,"",IF(ISNA(VLOOKUP(Table5[[#This Row],[0]],Table1[],1,FALSE)),"","X")) -> 
A88: 71-0000-1960-696200-29512 | B88: Gen : A/P-Current : AS-A/P : Stdnt Development/Campus Life : Assoc Students | C88: 2021-12-28 | D88: PJ | E88: 'V1306352' | F88: United Site Services | I88: 137.8 | J88: 137.8 | K88: =IF(MID(Table5[[#This Row],[GL Account]],21,1)="2",MID(Table5[[#This Row],[ GL Description]],FIND(":",Table5[[#This Row],[ GL Description]],1)+2,FIND(":",Table5[[#This Row],[ GL Description]],FIND(":",Table5[[#This Row],[ GL Description]],1)+1)-FIND(":",Table5[[#This Row],[ GL Description]],1)-2),MID(Table5[[#This Row],[GL Account]],14,6)&" "&VLOOKUP(VALUE(MID(Table5[[#This Row],[GL Account]],14,6)),PgmList,2,FALSE)) -> A/P-Current | L88: =IF(MID(A88,21,1)="2",MID(A88,14,6)&" - "&MID(B88,FIND(":",B88,FIND(K88,B88,1))+2,FIND(":",B88,FIND(":",B88,FIND(K88,B88,1))+1)-FIND(":",B88,FIND(K88,B88,1))-2),IF(AND(MID(Table5[[#This Row],[GL Account]],14,6)<>"696530",MID(Table5[[#This Row],[GL Account]],14,6)<>"696570"),"",IF(MID(Table5[[#This Row],[GL Account]],21,2)="53","Fringe Benefits",VLOOKUP(RIGHT(Table5[[#This Row],[GL Account]],5),Object,2,FALSE))))&IF(RIGHT(Table5[[#This Row],[GL Account]],5)="29599",IF(MID(A88,4,4)="0000",""," "&MID(A88,4,4))&" - "&LEFT(Table5[[#This Row],[ GL Description]],FIND(" : ",Table5[[#This Row],[ GL Description]])),"") -> 696200 - AS-A/P | M88: =IF(MID(A88,21,1)="2",0,IF(OR(MID(Table5[[#This Row],[GL Account]],14,6)="696520",AND(MID(A88,14,6)="696530",MID(Table5[[#This Row],[GL Account]],21,1)="4")),0,ROUND(SUMIF(Table5[GL Account],Table5[[#This Row],[GL Account]],Table5[Amount])-SUMIFS(Table2[Amount],Table2[Type],"Activity",Table2[Account Number],GLTB!A88),2))) -> 0 | N88: =IF(Table5[[#This Row],[Difference]]=0,"",IF(ISNA(VLOOKUP(Table5[[#This Row],[0]],Table1[],1,FALSE)),"","X")) -> 
A89: 71-0000-1960-696200-29512 | B89: Gen : A/P-Current : AS-A/P : Stdnt Development/Campus Life : Assoc Students | C89: 2022-01-01 | D89: PJ | E89: 'V1307946' | F89: US Bank Equipment Finance | I89: 87.56 | J89: 87.56 | K89: =IF(MID(Table5[[#This Row],[GL Account]],21,1)="2",MID(Table5[[#This Row],[ GL Description]],FIND(":",Table5[[#This Row],[ GL Description]],1)+2,FIND(":",Table5[[#This Row],[ GL Description]],FIND(":",Table5[[#This Row],[ GL Description]],1)+1)-FIND(":",Table5[[#This Row],[ GL Description]],1)-2),MID(Table5[[#This Row],[GL Account]],14,6)&" "&VLOOKUP(VALUE(MID(Table5[[#This Row],[GL Account]],14,6)),PgmList,2,FALSE)) -> A/P-Current | L89: =IF(MID(A89,21,1)="2",MID(A89,14,6)&" - "&MID(B89,FIND(":",B89,FIND(K89,B89,1))+2,FIND(":",B89,FIND(":",B89,FIND(K89,B89,1))+1)-FIND(":",B89,FIND(K89,B89,1))-2),IF(AND(MID(Table5[[#This Row],[GL Account]],14,6)<>"696530",MID(Table5[[#This Row],[GL Account]],14,6)<>"696570"),"",IF(MID(Table5[[#This Row],[GL Account]],21,2)="53","Fringe Benefits",VLOOKUP(RIGHT(Table5[[#This Row],[GL Account]],5),Object,2,FALSE))))&IF(RIGHT(Table5[[#This Row],[GL Account]],5)="29599",IF(MID(A89,4,4)="0000",""," "&MID(A89,4,4))&" - "&LEFT(Table5[[#This Row],[ GL Description]],FIND(" : ",Table5[[#This Row],[ GL Description]])),"") -> 696200 - AS-A/P | M89: =IF(MID(A89,21,1)="2",0,IF(OR(MID(Table5[[#This Row],[GL Account]],14,6)="696520",AND(MID(A89,14,6)="696530",MID(Table5[[#This Row],[GL Account]],21,1)="4")),0,ROUND(SUMIF(Table5[GL Account],Table5[[#This Row],[GL Account]],Table5[Amount])-SUMIFS(Table2[Amount],Table2[Type],"Activity",Table2[Account Number],GLTB!A89),2))) -> 0 | N89: =IF(Table5[[#This Row],[Difference]]=0,"",IF(ISNA(VLOOKUP(Table5[[#This Row],[0]],Table1[],1,FALSE)),"","X")) -> 
A90: 71-0000-1960-696200-29512 | B90: Gen : A/P-Current : AS-A/P : Stdnt Development/Campus Life : Assoc Students | C90: 2022-01-01 | D90: PJ | E90: 'V1307947' | F90: Company West Designs | I90: 860.84 | J90: 860.84 | K90: =IF(MID(Table5[[#This Row],[GL Account]],21,1)="2",MID(Table5[[#This Row],[ GL Description]],FIND(":",Table5[[#This Row],[ GL Description]],1)+2,FIND(":",Table5[[#This Row],[ GL Description]],FIND(":",Table5[[#This Row],[ GL Description]],1)+1)-FIND(":",Table5[[#This Row],[ GL Description]],1)-2),MID(Table5[[#This Row],[GL Account]],14,6)&" "&VLOOKUP(VALUE(MID(Table5[[#This Row],[GL Account]],14,6)),PgmList,2,FALSE)) -> A/P-Current | L90: =IF(MID(A90,21,1)="2",MID(A90,14,6)&" - "&MID(B90,FIND(":",B90,FIND(K90,B90,1))+2,FIND(":",B90,FIND(":",B90,FIND(K90,B90,1))+1)-FIND(":",B90,FIND(K90,B90,1))-2),IF(AND(MID(Table5[[#This Row],[GL Account]],14,6)<>"696530",MID(Table5[[#This Row],[GL Account]],14,6)<>"696570"),"",IF(MID(Table5[[#This Row],[GL Account]],21,2)="53","Fringe Benefits",VLOOKUP(RIGHT(Table5[[#This Row],[GL Account]],5),Object,2,FALSE))))&IF(RIGHT(Table5[[#This Row],[GL Account]],5)="29599",IF(MID(A90,4,4)="0000",""," "&MID(A90,4,4))&" - "&LEFT(Table5[[#This Row],[ GL Description]],FIND(" : ",Table5[[#This Row],[ GL Description]])),"") -> 696200 - AS-A/P | M90: =IF(MID(A90,21,1)="2",0,IF(OR(MID(Table5[[#This Row],[GL Account]],14,6)="696520",AND(MID(A90,14,6)="696530",MID(Table5[[#This Row],[GL Account]],21,1)="4")),0,ROUND(SUMIF(Table5[GL Account],Table5[[#This Row],[GL Account]],Table5[Amount])-SUMIFS(Table2[Amount],Table2[Type],"Activity",Table2[Account Number],GLTB!A90),2))) -> 0 | N90: =IF(Table5[[#This Row],[Difference]]=0,"",IF(ISNA(VLOOKUP(Table5[[#This Row],[0]],Table1[],1,FALSE)),"","X")) -> 
A91: 71-0000-1960-696200-29512 | B91: Gen : A/P-Current : AS-A/P : Stdnt Development/Campus Life : Assoc Students | C91: 2022-01-01 | D91: PJ | E91: 'V1309521' | F91: Company West Designs | I91: 165.75 | J91: 165.75 | K91: =IF(MID(Table5[[#This Row],[GL Account]],21,1)="2",MID(Table5[[#This Row],[ GL Description]],FIND(":",Table5[[#This Row],[ GL Description]],1)+2,FIND(":",Table5[[#This Row],[ GL Description]],FIND(":",Table5[[#This Row],[ GL Description]],1)+1)-FIND(":",Table5[[#This Row],[ GL Description]],1)-2),MID(Table5[[#This Row],[GL Account]],14,6)&" "&VLOOKUP(VALUE(MID(Table5[[#This Row],[GL Account]],14,6)),PgmList,2,FALSE)) -> A/P-Current | L91: =IF(MID(A91,21,1)="2",MID(A91,14,6)&" - "&MID(B91,FIND(":",B91,FIND(K91,B91,1))+2,FIND(":",B91,FIND(":",B91,FIND(K91,B91,1))+1)-FIND(":",B91,FIND(K91,B91,1))-2),IF(AND(MID(Table5[[#This Row],[GL Account]],14,6)<>"696530",MID(Table5[[#This Row],[GL Account]],14,6)<>"696570"),"",IF(MID(Table5[[#This Row],[GL Account]],21,2)="53","Fringe Benefits",VLOOKUP(RIGHT(Table5[[#This Row],[GL Account]],5),Object,2,FALSE))))&IF(RIGHT(Table5[[#This Row],[GL Account]],5)="29599",IF(MID(A91,4,4)="0000",""," "&MID(A91,4,4))&" - "&LEFT(Table5[[#This Row],[ GL Description]],FIND(" : ",Table5[[#This Row],[ GL Description]])),"") -> 696200 - AS-A/P | M91: =IF(MID(A91,21,1)="2",0,IF(OR(MID(Table5[[#This Row],[GL Account]],14,6)="696520",AND(MID(A91,14,6)="696530",MID(Table5[[#This Row],[GL Account]],21,1)="4")),0,ROUND(SUMIF(Table5[GL Account],Table5[[#This Row],[GL Account]],Table5[Amount])-SUMIFS(Table2[Amount],Table2[Type],"Activity",Table2[Account Number],GLTB!A91),2))) -> 0 | N91: =IF(Table5[[#This Row],[Difference]]=0,"",IF(ISNA(VLOOKUP(Table5[[#This Row],[0]],Table1[],1,FALSE)),"","X")) -> 
A92: 71-0000-1960-696200-29512 | B92: Gen : A/P-Current : AS-A/P : Stdnt Development/Campus Life : Assoc Students | C92: 2022-01-01 | D92: PJ | E92: 'V1306245' | F92: United Site Services | I92: 137.8 | J92: 137.8 | K92: =IF(MID(Table5[[#This Row],[GL Account]],21,1)="2",MID(Table5[[#This Row],[ GL Description]],FIND(":",Table5[[#This Row],[ GL Description]],1)+2,FIND(":",Table5[[#This Row],[ GL Description]],FIND(":",Table5[[#This Row],[ GL Description]],1)+1)-FIND(":",Table5[[#This Row],[ GL Description]],1)-2),MID(Table5[[#This Row],[GL Account]],14,6)&" "&VLOOKUP(VALUE(MID(Table5[[#This Row],[GL Account]],14,6)),PgmList,2,FALSE)) -> A/P-Current | L92: =IF(MID(A92,21,1)="2",MID(A92,14,6)&" - "&MID(B92,FIND(":",B92,FIND(K92,B92,1))+2,FIND(":",B92,FIND(":",B92,FIND(K92,B92,1))+1)-FIND(":",B92,FIND(K92,B92,1))-2),IF(AND(MID(Table5[[#This Row],[GL Account]],14,6)<>"696530",MID(Table5[[#This Row],[GL Account]],14,6)<>"696570"),"",IF(MID(Table5[[#This Row],[GL Account]],21,2)="53","Fringe Benefits",VLOOKUP(RIGHT(Table5[[#This Row],[GL Account]],5),Object,2,FALSE))))&IF(RIGHT(Table5[[#This Row],[GL Account]],5)="29599",IF(MID(A92,4,4)="0000",""," "&MID(A92,4,4))&" - "&LEFT(Table5[[#This Row],[ GL Description]],FIND(" : ",Table5[[#This Row],[ GL Description]])),"") -> 696200 - AS-A/P | M92: =IF(MID(A92,21,1)="2",0,IF(OR(MID(Table5[[#This Row],[GL Account]],14,6)="696520",AND(MID(A92,14,6)="696530",MID(Table5[[#This Row],[GL Account]],21,1)="4")),0,ROUND(SUMIF(Table5[GL Account],Table5[[#This Row],[GL Account]],Table5[Amount])-SUMIFS(Table2[Amount],Table2[Type],"Activity",Table2[Account Number],GLTB!A92),2))) -> 0 | N92: =IF(Table5[[#This Row],[Difference]]=0,"",IF(ISNA(VLOOKUP(Table5[[#This Row],[0]],Table1[],1,FALSE)),"","X")) -> 
A93: 71-0000-1960-696200-29512 | B93: Gen : A/P-Current : AS-A/P : Stdnt Development/Campus Life : Assoc Students | C93: 2022-01-01 | D93: PJ | E93: 'V1306276' | F93: Image Masters | I93: 482.2 | J93: 482.2 | K93: =IF(MID(Table5[[#This Row],[GL Account]],21,1)="2",MID(Table5[[#This Row],[ GL Description]],FIND(":",Table5[[#This Row],[ GL Description]],1)+2,FIND(":",Table5[[#This Row],[ GL Description]],FIND(":",Table5[[#This Row],[ GL Description]],1)+1)-FIND(":",Table5[[#This Row],[ GL Description]],1)-2),MID(Table5[[#This Row],[GL Account]],14,6)&" "&VLOOKUP(VALUE(MID(Table5[[#This Row],[GL Account]],14,6)),PgmList,2,FALSE)) -> A/P-Current | L93: =IF(MID(A93,21,1)="2",MID(A93,14,6)&" - "&MID(B93,FIND(":",B93,FIND(K93,B93,1))+2,FIND(":",B93,FIND(":",B93,FIND(K93,B93,1))+1)-FIND(":",B93,FIND(K93,B93,1))-2),IF(AND(MID(Table5[[#This Row],[GL Account]],14,6)<>"696530",MID(Table5[[#This Row],[GL Account]],14,6)<>"696570"),"",IF(MID(Table5[[#This Row],[GL Account]],21,2)="53","Fringe Benefits",VLOOKUP(RIGHT(Table5[[#This Row],[GL Account]],5),Object,2,FALSE))))&IF(RIGHT(Table5[[#This Row],[GL Account]],5)="29599",IF(MID(A93,4,4)="0000",""," "&MID(A93,4,4))&" - "&LEFT(Table5[[#This Row],[ GL Description]],FIND(" : ",Table5[[#This Row],[ GL Description]])),"") -> 696200 - AS-A/P | M93: =IF(MID(A93,21,1)="2",0,IF(OR(MID(Table5[[#This Row],[GL Account]],14,6)="696520",AND(MID(A93,14,6)="696530",MID(Table5[[#This Row],[GL Account]],21,1)="4")),0,ROUND(SUMIF(Table5[GL Account],Table5[[#This Row],[GL Account]],Table5[Amount])-SUMIFS(Table2[Amount],Table2[Type],"Activity",Table2[Account Number],GLTB!A93),2))) -> 0 | N93: =IF(Table5[[#This Row],[Difference]]=0,"",IF(ISNA(VLOOKUP(Table5[[#This Row],[0]],Table1[],1,FALSE)),"","X")) -> 
A94: 71-0000-1960-696200-29512 | B94: Gen : A/P-Current : AS-A/P : Stdnt Development/Campus Life : Assoc Students | C94: 2022-01-01 | D94: PJ | E94: 'V1306725' | F94: Barnes & Noble Inc | I94: 349.35 | J94: 349.35 | K94: =IF(MID(Table5[[#This Row],[GL Account]],21,1)="2",MID(Table5[[#This Row],[ GL Description]],FIND(":",Table5[[#This Row],[ GL Description]],1)+2,FIND(":",Table5[[#This Row],[ GL Description]],FIND(":",Table5[[#This Row],[ GL Description]],1)+1)-FIND(":",Table5[[#This Row],[ GL Description]],1)-2),MID(Table5[[#This Row],[GL Account]],14,6)&" "&VLOOKUP(VALUE(MID(Table5[[#This Row],[GL Account]],14,6)),PgmList,2,FALSE)) -> A/P-Current | L94: =IF(MID(A94,21,1)="2",MID(A94,14,6)&" - "&MID(B94,FIND(":",B94,FIND(K94,B94,1))+2,FIND(":",B94,FIND(":",B94,FIND(K94,B94,1))+1)-FIND(":",B94,FIND(K94,B94,1))-2),IF(AND(MID(Table5[[#This Row],[GL Account]],14,6)<>"696530",MID(Table5[[#This Row],[GL Account]],14,6)<>"696570"),"",IF(MID(Table5[[#This Row],[GL Account]],21,2)="53","Fringe Benefits",VLOOKUP(RIGHT(Table5[[#This Row],[GL Account]],5),Object,2,FALSE))))&IF(RIGHT(Table5[[#This Row],[GL Account]],5)="29599",IF(MID(A94,4,4)="0000",""," "&MID(A94,4,4))&" - "&LEFT(Table5[[#This Row],[ GL Description]],FIND(" : ",Table5[[#This Row],[ GL Description]])),"") -> 696200 - AS-A/P | M94: =IF(MID(A94,21,1)="2",0,IF(OR(MID(Table5[[#This Row],[GL Account]],14,6)="696520",AND(MID(A94,14,6)="696530",MID(Table5[[#This Row],[GL Account]],21,1)="4")),0,ROUND(SUMIF(Table5[GL Account],Table5[[#This Row],[GL Account]],Table5[Amount])-SUMIFS(Table2[Amount],Table2[Type],"Activity",Table2[Account Number],GLTB!A94),2))) -> 0 | N94: =IF(Table5[[#This Row],[Difference]]=0,"",IF(ISNA(VLOOKUP(Table5[[#This Row],[0]],Table1[],1,FALSE)),"","X")) -> 
A95: 71-0000-1960-696200-29512 | B95: Gen : A/P-Current : AS-A/P : Stdnt Development/Campus Life : Assoc Students | C95: 2022-01-01 | D95: PJ | E95: 'V1306726' | F95: US Bank Equipment Finance | I95: 87.56 | J95: 87.56 | K95: =IF(MID(Table5[[#This Row],[GL Account]],21,1)="2",MID(Table5[[#This Row],[ GL Description]],FIND(":",Table5[[#This Row],[ GL Description]],1)+2,FIND(":",Table5[[#This Row],[ GL Description]],FIND(":",Table5[[#This Row],[ GL Description]],1)+1)-FIND(":",Table5[[#This Row],[ GL Description]],1)-2),MID(Table5[[#This Row],[GL Account]],14,6)&" "&VLOOKUP(VALUE(MID(Table5[[#This Row],[GL Account]],14,6)),PgmList,2,FALSE)) -> A/P-Current | L95: =IF(MID(A95,21,1)="2",MID(A95,14,6)&" - "&MID(B95,FIND(":",B95,FIND(K95,B95,1))+2,FIND(":",B95,FIND(":",B95,FIND(K95,B95,1))+1)-FIND(":",B95,FIND(K95,B95,1))-2),IF(AND(MID(Table5[[#This Row],[GL Account]],14,6)<>"696530",MID(Table5[[#This Row],[GL Account]],14,6)<>"696570"),"",IF(MID(Table5[[#This Row],[GL Account]],21,2)="53","Fringe Benefits",VLOOKUP(RIGHT(Table5[[#This Row],[GL Account]],5),Object,2,FALSE))))&IF(RIGHT(Table5[[#This Row],[GL Account]],5)="29599",IF(MID(A95,4,4)="0000",""," "&MID(A95,4,4))&" - "&LEFT(Table5[[#This Row],[ GL Description]],FIND(" : ",Table5[[#This Row],[ GL Description]])),"") -> 696200 - AS-A/P | M95: =IF(MID(A95,21,1)="2",0,IF(OR(MID(Table5[[#This Row],[GL Account]],14,6)="696520",AND(MID(A95,14,6)="696530",MID(Table5[[#This Row],[GL Account]],21,1)="4")),0,ROUND(SUMIF(Table5[GL Account],Table5[[#This Row],[GL Account]],Table5[Amount])-SUMIFS(Table2[Amount],Table2[Type],"Activity",Table2[Account Number],GLTB!A95),2))) -> 0 | N95: =IF(Table5[[#This Row],[Difference]]=0,"",IF(ISNA(VLOOKUP(Table5[[#This Row],[0]],Table1[],1,FALSE)),"","X")) -> 
A96: 71-0000-1960-696200-29512 | B96: Gen : A/P-Current : AS-A/P : Stdnt Development/Campus Life : Assoc Students | C96: 2022-01-12 | D96: PJ | E96: 'V1306728' | F96: Ward Promotional Marketing | I96: 1494.87 | J96: 1494.87 | K96: =IF(MID(Table5[[#This Row],[GL Account]],21,1)="2",MID(Table5[[#This Row],[ GL Description]],FIND(":",Table5[[#This Row],[ GL Description]],1)+2,FIND(":",Table5[[#This Row],[ GL Description]],FIND(":",Table5[[#This Row],[ GL Description]],1)+1)-FIND(":",Table5[[#This Row],[ GL Description]],1)-2),MID(Table5[[#This Row],[GL Account]],14,6)&" "&VLOOKUP(VALUE(MID(Table5[[#This Row],[GL Account]],14,6)),PgmList,2,FALSE)) -> A/P-Current | L96: =IF(MID(A96,21,1)="2",MID(A96,14,6)&" - "&MID(B96,FIND(":",B96,FIND(K96,B96,1))+2,FIND(":",B96,FIND(":",B96,FIND(K96,B96,1))+1)-FIND(":",B96,FIND(K96,B96,1))-2),IF(AND(MID(Table5[[#This Row],[GL Account]],14,6)<>"696530",MID(Table5[[#This Row],[GL Account]],14,6)<>"696570"),"",IF(MID(Table5[[#This Row],[GL Account]],21,2)="53","Fringe Benefits",VLOOKUP(RIGHT(Table5[[#This Row],[GL Account]],5),Object,2,FALSE))))&IF(RIGHT(Table5[[#This Row],[GL Account]],5)="29599",IF(MID(A96,4,4)="0000",""," "&MID(A96,4,4))&" - "&LEFT(Table5[[#This Row],[ GL Description]],FIND(" : ",Table5[[#This Row],[ GL Description]])),"") -> 696200 - AS-A/P | M96: =IF(MID(A96,21,1)="2",0,IF(OR(MID(Table5[[#This Row],[GL Account]],14,6)="696520",AND(MID(A96,14,6)="696530",MID(Table5[[#This Row],[GL Account]],21,1)="4")),0,ROUND(SUMIF(Table5[GL Account],Table5[[#This Row],[GL Account]],Table5[Amount])-SUMIFS(Table2[Amount],Table2[Type],"Activity",Table2[Account Number],GLTB!A96),2))) -> 0 | N96: =IF(Table5[[#This Row],[Difference]]=0,"",IF(ISNA(VLOOKUP(Table5[[#This Row],[0]],Table1[],1,FALSE)),"","X")) -> 
A97: 71-0000-1960-696200-29512 | B97: Gen : A/P-Current : AS-A/P : Stdnt Development/Campus Life : Assoc Students | C97: 2022-01-13 | D97: CD | E97: 'MF*0103852' | F97: Image Masters | H97: 482.2 | J97: -482.2 | K97: =IF(MID(Table5[[#This Row],[GL Account]],21,1)="2",MID(Table5[[#This Row],[ GL Description]],FIND(":",Table5[[#This Row],[ GL Description]],1)+2,FIND(":",Table5[[#This Row],[ GL Description]],FIND(":",Table5[[#This Row],[ GL Description]],1)+1)-FIND(":",Table5[[#This Row],[ GL Description]],1)-2),MID(Table5[[#This Row],[GL Account]],14,6)&" "&VLOOKUP(VALUE(MID(Table5[[#This Row],[GL Account]],14,6)),PgmList,2,FALSE)) -> A/P-Current | L97: =IF(MID(A97,21,1)="2",MID(A97,14,6)&" - "&MID(B97,FIND(":",B97,FIND(K97,B97,1))+2,FIND(":",B97,FIND(":",B97,FIND(K97,B97,1))+1)-FIND(":",B97,FIND(K97,B97,1))-2),IF(AND(MID(Table5[[#This Row],[GL Account]],14,6)<>"696530",MID(Table5[[#This Row],[GL Account]],14,6)<>"696570"),"",IF(MID(Table5[[#This Row],[GL Account]],21,2)="53","Fringe Benefits",VLOOKUP(RIGHT(Table5[[#This Row],[GL Account]],5),Object,2,FALSE))))&IF(RIGHT(Table5[[#This Row],[GL Account]],5)="29599",IF(MID(A97,4,4)="0000",""," "&MID(A97,4,4))&" - "&LEFT(Table5[[#This Row],[ GL Description]],FIND(" : ",Table5[[#This Row],[ GL Description]])),"") -> 696200 - AS-A/P | M97: =IF(MID(A97,21,1)="2",0,IF(OR(MID(Table5[[#This Row],[GL Account]],14,6)="696520",AND(MID(A97,14,6)="696530",MID(Table5[[#This Row],[GL Account]],21,1)="4")),0,ROUND(SUMIF(Table5[GL Account],Table5[[#This Row],[GL Account]],Table5[Amount])-SUMIFS(Table2[Amount],Table2[Type],"Activity",Table2[Account Number],GLTB!A97),2))) -> 0 | N97: =IF(Table5[[#This Row],[Difference]]=0,"",IF(ISNA(VLOOKUP(Table5[[#This Row],[0]],Table1[],1,FALSE)),"","X")) -> 
A98: 71-0000-1960-696200-29512 | B98: Gen : A/P-Current : AS-A/P : Stdnt Development/Campus Life : Assoc Students | C98: 2022-01-13 | D98: CD | E98: 'MF*0103853' | F98: Trophy Works | H98: 139.16 | J98: -139.16 | K98: =IF(MID(Table5[[#This Row],[GL Account]],21,1)="2",MID(Table5[[#This Row],[ GL Description]],FIND(":",Table5[[#This Row],[ GL Description]],1)+2,FIND(":",Table5[[#This Row],[ GL Description]],FIND(":",Table5[[#This Row],[ GL Description]],1)+1)-FIND(":",Table5[[#This Row],[ GL Description]],1)-2),MID(Table5[[#This Row],[GL Account]],14,6)&" "&VLOOKUP(VALUE(MID(Table5[[#This Row],[GL Account]],14,6)),PgmList,2,FALSE)) -> A/P-Current | L98: =IF(MID(A98,21,1)="2",MID(A98,14,6)&" - "&MID(B98,FIND(":",B98,FIND(K98,B98,1))+2,FIND(":",B98,FIND(":",B98,FIND(K98,B98,1))+1)-FIND(":",B98,FIND(K98,B98,1))-2),IF(AND(MID(Table5[[#This Row],[GL Account]],14,6)<>"696530",MID(Table5[[#This Row],[GL Account]],14,6)<>"696570"),"",IF(MID(Table5[[#This Row],[GL Account]],21,2)="53","Fringe Benefits",VLOOKUP(RIGHT(Table5[[#This Row],[GL Account]],5),Object,2,FALSE))))&IF(RIGHT(Table5[[#This Row],[GL Account]],5)="29599",IF(MID(A98,4,4)="0000",""," "&MID(A98,4,4))&" - "&LEFT(Table5[[#This Row],[ GL Description]],FIND(" : ",Table5[[#This Row],[ GL Description]])),"") -> 696200 - AS-A/P | M98: =IF(MID(A98,21,1)="2",0,IF(OR(MID(Table5[[#This Row],[GL Account]],14,6)="696520",AND(MID(A98,14,6)="696530",MID(Table5[[#This Row],[GL Account]],21,1)="4")),0,ROUND(SUMIF(Table5[GL Account],Table5[[#This Row],[GL Account]],Table5[Amount])-SUMIFS(Table2[Amount],Table2[Type],"Activity",Table2[Account Number],GLTB!A98),2))) -> 0 | N98: =IF(Table5[[#This Row],[Difference]]=0,"",IF(ISNA(VLOOKUP(Table5[[#This Row],[0]],Table1[],1,FALSE)),"","X")) -> 
A99: 71-0000-1960-696200-29512 | B99: Gen : A/P-Current : AS-A/P : Stdnt Development/Campus Life : Assoc Students | C99: 2022-01-13 | D99: CD | E99: 'MF*0103854' | F99: United Site Services | H99: 137.8 | J99: -137.8 | K99: =IF(MID(Table5[[#This Row],[GL Account]],21,1)="2",MID(Table5[[#This Row],[ GL Description]],FIND(":",Table5[[#This Row],[ GL Description]],1)+2,FIND(":",Table5[[#This Row],[ GL Description]],FIND(":",Table5[[#This Row],[ GL Description]],1)+1)-FIND(":",Table5[[#This Row],[ GL Description]],1)-2),MID(Table5[[#This Row],[GL Account]],14,6)&" "&VLOOKUP(VALUE(MID(Table5[[#This Row],[GL Account]],14,6)),PgmList,2,FALSE)) -> A/P-Current | L99: =IF(MID(A99,21,1)="2",MID(A99,14,6)&" - "&MID(B99,FIND(":",B99,FIND(K99,B99,1))+2,FIND(":",B99,FIND(":",B99,FIND(K99,B99,1))+1)-FIND(":",B99,FIND(K99,B99,1))-2),IF(AND(MID(Table5[[#This Row],[GL Account]],14,6)<>"696530",MID(Table5[[#This Row],[GL Account]],14,6)<>"696570"),"",IF(MID(Table5[[#This Row],[GL Account]],21,2)="53","Fringe Benefits",VLOOKUP(RIGHT(Table5[[#This Row],[GL Account]],5),Object,2,FALSE))))&IF(RIGHT(Table5[[#This Row],[GL Account]],5)="29599",IF(MID(A99,4,4)="0000",""," "&MID(A99,4,4))&" - "&LEFT(Table5[[#This Row],[ GL Description]],FIND(" : ",Table5[[#This Row],[ GL Description]])),"") -> 696200 - AS-A/P | M99: =IF(MID(A99,21,1)="2",0,IF(OR(MID(Table5[[#This Row],[GL Account]],14,6)="696520",AND(MID(A99,14,6)="696530",MID(Table5[[#This Row],[GL Account]],21,1)="4")),0,ROUND(SUMIF(Table5[GL Account],Table5[[#This Row],[GL Account]],Table5[Amount])-SUMIFS(Table2[Amount],Table2[Type],"Activity",Table2[Account Number],GLTB!A99),2))) -> 0 | N99: =IF(Table5[[#This Row],[Difference]]=0,"",IF(ISNA(VLOOKUP(Table5[[#This Row],[0]],Table1[],1,FALSE)),"","X")) -> 
A100: 71-0000-1960-696200-29512 | B100: Gen : A/P-Current : AS-A/P : Stdnt Development/Campus Life : Assoc Students | C100: 2022-01-13 | D100: CD | E100: 'MF*0103855' | F100: United Site Services | H100: 137.8 | J100: -137.8 | K100: =IF(MID(Table5[[#This Row],[GL Account]],21,1)="2",MID(Table5[[#This Row],[ GL Description]],FIND(":",Table5[[#This Row],[ GL Description]],1)+2,FIND(":",Table5[[#This Row],[ GL Description]],FIND(":",Table5[[#This Row],[ GL Description]],1)+1)-FIND(":",Table5[[#This Row],[ GL Description]],1)-2),MID(Table5[[#This Row],[GL Account]],14,6)&" "&VLOOKUP(VALUE(MID(Table5[[#This Row],[GL Account]],14,6)),PgmList,2,FALSE)) -> A/P-Current | L100: =IF(MID(A100,21,1)="2",MID(A100,14,6)&" - "&MID(B100,FIND(":",B100,FIND(K100,B100,1))+2,FIND(":",B100,FIND(":",B100,FIND(K100,B100,1))+1)-FIND(":",B100,FIND(K100,B100,1))-2),IF(AND(MID(Table5[[#This Row],[GL Account]],14,6)<>"696530",MID(Table5[[#This Row],[GL Account]],14,6)<>"696570"),"",IF(MID(Table5[[#This Row],[GL Account]],21,2)="53","Fringe Benefits",VLOOKUP(RIGHT(Table5[[#This Row],[GL Account]],5),Object,2,FALSE))))&IF(RIGHT(Table5[[#This Row],[GL Account]],5)="29599",IF(MID(A100,4,4)="0000",""," "&MID(A100,4,4))&" - "&LEFT(Table5[[#This Row],[ GL Description]],FIND(" : ",Table5[[#This Row],[ GL Description]])),"") -> 696200 - AS-A/P | M100: =IF(MID(A100,21,1)="2",0,IF(OR(MID(Table5[[#This Row],[GL Account]],14,6)="696520",AND(MID(A100,14,6)="696530",MID(Table5[[#This Row],[GL Account]],21,1)="4")),0,ROUND(SUMIF(Table5[GL Account],Table5[[#This Row],[GL Account]],Table5[Amount])-SUMIFS(Table2[Amount],Table2[Type],"Activity",Table2[Account Number],GLTB!A100),2))) -> 0 | N100: =IF(Table5[[#This Row],[Difference]]=0,"",IF(ISNA(VLOOKUP(Table5[[#This Row],[0]],Table1[],1,FALSE)),"","X")) -> 
A101: 71-0000-1960-696200-29512 | B101: Gen : A/P-Current : AS-A/P : Stdnt Development/Campus Life : Assoc Students | C101: 2022-01-20 | D101: CD | E101: 'MF*0103856' | F101: Barnes & Noble Inc | H101: 349.35 | J101: -349.35 | K101: =IF(MID(Table5[[#This Row],[GL Account]],21,1)="2",MID(Table5[[#This Row],[ GL Description]],FIND(":",Table5[[#This Row],[ GL Description]],1)+2,FIND(":",Table5[[#This Row],[ GL Description]],FIND(":",Table5[[#This Row],[ GL Description]],1)+1)-FIND(":",Table5[[#This Row],[ GL Description]],1)-2),MID(Table5[[#This Row],[GL Account]],14,6)&" "&VLOOKUP(VALUE(MID(Table5[[#This Row],[GL Account]],14,6)),PgmList,2,FALSE)) -> A/P-Current | L101: =IF(MID(A101,21,1)="2",MID(A101,14,6)&" - "&MID(B101,FIND(":",B101,FIND(K101,B101,1))+2,FIND(":",B101,FIND(":",B101,FIND(K101,B101,1))+1)-FIND(":",B101,FIND(K101,B101,1))-2),IF(AND(MID(Table5[[#This Row],[GL Account]],14,6)<>"696530",MID(Table5[[#This Row],[GL Account]],14,6)<>"696570"),"",IF(MID(Table5[[#This Row],[GL Account]],21,2)="53","Fringe Benefits",VLOOKUP(RIGHT(Table5[[#This Row],[GL Account]],5),Object,2,FALSE))))&IF(RIGHT(Table5[[#This Row],[GL Account]],5)="29599",IF(MID(A101,4,4)="0000",""," "&MID(A101,4,4))&" - "&LEFT(Table5[[#This Row],[ GL Description]],FIND(" : ",Table5[[#This Row],[ GL Description]])),"") -> 696200 - AS-A/P | M101: =IF(MID(A101,21,1)="2",0,IF(OR(MID(Table5[[#This Row],[GL Account]],14,6)="696520",AND(MID(A101,14,6)="696530",MID(Table5[[#This Row],[GL Account]],21,1)="4")),0,ROUND(SUMIF(Table5[GL Account],Table5[[#This Row],[GL Account]],Table5[Amount])-SUMIFS(Table2[Amount],Table2[Type],"Activity",Table2[Account Number],GLTB!A101),2))) -> 0 | N101: =IF(Table5[[#This Row],[Difference]]=0,"",IF(ISNA(VLOOKUP(Table5[[#This Row],[0]],Table1[],1,FALSE)),"","X")) -> 
A102: 71-0000-1960-696200-29512 | B102: Gen : A/P-Current : AS-A/P : Stdnt Development/Campus Life : Assoc Students | C102: 2022-01-20 | D102: CD | E102: 'MF*0103857' | F102: US Bank Equipment Finance | H102: 87.56 | J102: -87.56 | K102: =IF(MID(Table5[[#This Row],[GL Account]],21,1)="2",MID(Table5[[#This Row],[ GL Description]],FIND(":",Table5[[#This Row],[ GL Description]],1)+2,FIND(":",Table5[[#This Row],[ GL Description]],FIND(":",Table5[[#This Row],[ GL Description]],1)+1)-FIND(":",Table5[[#This Row],[ GL Description]],1)-2),MID(Table5[[#This Row],[GL Account]],14,6)&" "&VLOOKUP(VALUE(MID(Table5[[#This Row],[GL Account]],14,6)),PgmList,2,FALSE)) -> A/P-Current | L102: =IF(MID(A102,21,1)="2",MID(A102,14,6)&" - "&MID(B102,FIND(":",B102,FIND(K102,B102,1))+2,FIND(":",B102,FIND(":",B102,FIND(K102,B102,1))+1)-FIND(":",B102,FIND(K102,B102,1))-2),IF(AND(MID(Table5[[#This Row],[GL Account]],14,6)<>"696530",MID(Table5[[#This Row],[GL Account]],14,6)<>"696570"),"",IF(MID(Table5[[#This Row],[GL Account]],21,2)="53","Fringe Benefits",VLOOKUP(RIGHT(Table5[[#This Row],[GL Account]],5),Object,2,FALSE))))&IF(RIGHT(Table5[[#This Row],[GL Account]],5)="29599",IF(MID(A102,4,4)="0000",""," "&MID(A102,4,4))&" - "&LEFT(Table5[[#This Row],[ GL Description]],FIND(" : ",Table5[[#This Row],[ GL Description]])),"") -> 696200 - AS-A/P | M102: =IF(MID(A102,21,1)="2",0,IF(OR(MID(Table5[[#This Row],[GL Account]],14,6)="696520",AND(MID(A102,14,6)="696530",MID(Table5[[#This Row],[GL Account]],21,1)="4")),0,ROUND(SUMIF(Table5[GL Account],Table5[[#This Row],[GL Account]],Table5[Amount])-SUMIFS(Table2[Amount],Table2[Type],"Activity",Table2[Account Number],GLTB!A102),2))) -> 0 | N102: =IF(Table5[[#This Row],[Difference]]=0,"",IF(ISNA(VLOOKUP(Table5[[#This Row],[0]],Table1[],1,FALSE)),"","X")) -> 
A103: 71-0000-1960-696200-29512 | B103: Gen : A/P-Current : AS-A/P : Stdnt Development/Campus Life : Assoc Students | C103: 2022-01-20 | D103: CD | E103: 'MF*0103858' | F103: Ward Promotional Marketing | H103: 1494.87 | J103: -1494.87 | K103: =IF(MID(Table5[[#This Row],[GL Account]],21,1)="2",MID(Table5[[#This Row],[ GL Description]],FIND(":",Table5[[#This Row],[ GL Description]],1)+2,FIND(":",Table5[[#This Row],[ GL Description]],FIND(":",Table5[[#This Row],[ GL Description]],1)+1)-FIND(":",Table5[[#This Row],[ GL Description]],1)-2),MID(Table5[[#This Row],[GL Account]],14,6)&" "&VLOOKUP(VALUE(MID(Table5[[#This Row],[GL Account]],14,6)),PgmList,2,FALSE)) -> A/P-Current | L103: =IF(MID(A103,21,1)="2",MID(A103,14,6)&" - "&MID(B103,FIND(":",B103,FIND(K103,B103,1))+2,FIND(":",B103,FIND(":",B103,FIND(K103,B103,1))+1)-FIND(":",B103,FIND(K103,B103,1))-2),IF(AND(MID(Table5[[#This Row],[GL Account]],14,6)<>"696530",MID(Table5[[#This Row],[GL Account]],14,6)<>"696570"),"",IF(MID(Table5[[#This Row],[GL Account]],21,2)="53","Fringe Benefits",VLOOKUP(RIGHT(Table5[[#This Row],[GL Account]],5),Object,2,FALSE))))&IF(RIGHT(Table5[[#This Row],[GL Account]],5)="29599",IF(MID(A103,4,4)="0000",""," "&MID(A103,4,4))&" - "&LEFT(Table5[[#This Row],[ GL Description]],FIND(" : ",Table5[[#This Row],[ GL Description]])),"") -> 696200 - AS-A/P | M103: =IF(MID(A103,21,1)="2",0,IF(OR(MID(Table5[[#This Row],[GL Account]],14,6)="696520",AND(MID(A103,14,6)="696530",MID(Table5[[#This Row],[GL Account]],21,1)="4")),0,ROUND(SUMIF(Table5[GL Account],Table5[[#This Row],[GL Account]],Table5[Amount])-SUMIFS(Table2[Amount],Table2[Type],"Activity",Table2[Account Number],GLTB!A103),2))) -> 0 | N103: =IF(Table5[[#This Row],[Difference]]=0,"",IF(ISNA(VLOOKUP(Table5[[#This Row],[0]],Table1[],1,FALSE)),"","X")) -> 
A104: 71-0000-1960-696200-29512 | B104: Gen : A/P-Current : AS-A/P : Stdnt Development/Campus Life : Assoc Students | C104: 2022-01-21 | D104: PJ | E104: 'V1308584' | F104: Terry B. Green | I104: 1000 | J104: 1000 | K104: =IF(MID(Table5[[#This Row],[GL Account]],21,1)="2",MID(Table5[[#This Row],[ GL Description]],FIND(":",Table5[[#This Row],[ GL Description]],1)+2,FIND(":",Table5[[#This Row],[ GL Description]],FIND(":",Table5[[#This Row],[ GL Description]],1)+1)-FIND(":",Table5[[#This Row],[ GL Description]],1)-2),MID(Table5[[#This Row],[GL Account]],14,6)&" "&VLOOKUP(VALUE(MID(Table5[[#This Row],[GL Account]],14,6)),PgmList,2,FALSE)) -> A/P-Current | L104: =IF(MID(A104,21,1)="2",MID(A104,14,6)&" - "&MID(B104,FIND(":",B104,FIND(K104,B104,1))+2,FIND(":",B104,FIND(":",B104,FIND(K104,B104,1))+1)-FIND(":",B104,FIND(K104,B104,1))-2),IF(AND(MID(Table5[[#This Row],[GL Account]],14,6)<>"696530",MID(Table5[[#This Row],[GL Account]],14,6)<>"696570"),"",IF(MID(Table5[[#This Row],[GL Account]],21,2)="53","Fringe Benefits",VLOOKUP(RIGHT(Table5[[#This Row],[GL Account]],5),Object,2,FALSE))))&IF(RIGHT(Table5[[#This Row],[GL Account]],5)="29599",IF(MID(A104,4,4)="0000",""," "&MID(A104,4,4))&" - "&LEFT(Table5[[#This Row],[ GL Description]],FIND(" : ",Table5[[#This Row],[ GL Description]])),"") -> 696200 - AS-A/P | M104: =IF(MID(A104,21,1)="2",0,IF(OR(MID(Table5[[#This Row],[GL Account]],14,6)="696520",AND(MID(A104,14,6)="696530",MID(Table5[[#This Row],[GL Account]],21,1)="4")),0,ROUND(SUMIF(Table5[GL Account],Table5[[#This Row],[GL Account]],Table5[Amount])-SUMIFS(Table2[Amount],Table2[Type],"Activity",Table2[Account Number],GLTB!A104),2))) -> 0 | N104: =IF(Table5[[#This Row],[Difference]]=0,"",IF(ISNA(VLOOKUP(Table5[[#This Row],[0]],Table1[],1,FALSE)),"","X")) -> 
A105: 71-0000-1960-696200-29512 | B105: Gen : A/P-Current : AS-A/P : Stdnt Development/Campus Life : Assoc Students | C105: 2022-01-25 | D105: PJ | E105: 'V1308661' | F105: United Site Services | I105: 137.8 | J105: 137.8 | K105: =IF(MID(Table5[[#This Row],[GL Account]],21,1)="2",MID(Table5[[#This Row],[ GL Description]],FIND(":",Table5[[#This Row],[ GL Description]],1)+2,FIND(":",Table5[[#This Row],[ GL Description]],FIND(":",Table5[[#This Row],[ GL Description]],1)+1)-FIND(":",Table5[[#This Row],[ GL Description]],1)-2),MID(Table5[[#This Row],[GL Account]],14,6)&" "&VLOOKUP(VALUE(MID(Table5[[#This Row],[GL Account]],14,6)),PgmList,2,FALSE)) -> A/P-Current | L105: =IF(MID(A105,21,1)="2",MID(A105,14,6)&" - "&MID(B105,FIND(":",B105,FIND(K105,B105,1))+2,FIND(":",B105,FIND(":",B105,FIND(K105,B105,1))+1)-FIND(":",B105,FIND(K105,B105,1))-2),IF(AND(MID(Table5[[#This Row],[GL Account]],14,6)<>"696530",MID(Table5[[#This Row],[GL Account]],14,6)<>"696570"),"",IF(MID(Table5[[#This Row],[GL Account]],21,2)="53","Fringe Benefits",VLOOKUP(RIGHT(Table5[[#This Row],[GL Account]],5),Object,2,FALSE))))&IF(RIGHT(Table5[[#This Row],[GL Account]],5)="29599",IF(MID(A105,4,4)="0000",""," "&MID(A105,4,4))&" - "&LEFT(Table5[[#This Row],[ GL Description]],FIND(" : ",Table5[[#This Row],[ GL Description]])),"") -> 696200 - AS-A/P | M105: =IF(MID(A105,21,1)="2",0,IF(OR(MID(Table5[[#This Row],[GL Account]],14,6)="696520",AND(MID(A105,14,6)="696530",MID(Table5[[#This Row],[GL Account]],21,1)="4")),0,ROUND(SUMIF(Table5[GL Account],Table5[[#This Row],[GL Account]],Table5[Amount])-SUMIFS(Table2[Amount],Table2[Type],"Activity",Table2[Account Number],GLTB!A105),2))) -> 0 | N105: =IF(Table5[[#This Row],[Difference]]=0,"",IF(ISNA(VLOOKUP(Table5[[#This Row],[0]],Table1[],1,FALSE)),"","X")) -> 
A106: 71-0000-1960-696200-29512 | B106: Gen : A/P-Current : AS-A/P : Stdnt Development/Campus Life : Assoc Students | C106: 2022-01-25 | D106: PJ | E106: 'V1309528' | F106: US Bank Equipment Finance | I106: 87.56 | J106: 87.56 | K106: =IF(MID(Table5[[#This Row],[GL Account]],21,1)="2",MID(Table5[[#This Row],[ GL Description]],FIND(":",Table5[[#This Row],[ GL Description]],1)+2,FIND(":",Table5[[#This Row],[ GL Description]],FIND(":",Table5[[#This Row],[ GL Description]],1)+1)-FIND(":",Table5[[#This Row],[ GL Description]],1)-2),MID(Table5[[#This Row],[GL Account]],14,6)&" "&VLOOKUP(VALUE(MID(Table5[[#This Row],[GL Account]],14,6)),PgmList,2,FALSE)) -> A/P-Current | L106: =IF(MID(A106,21,1)="2",MID(A106,14,6)&" - "&MID(B106,FIND(":",B106,FIND(K106,B106,1))+2,FIND(":",B106,FIND(":",B106,FIND(K106,B106,1))+1)-FIND(":",B106,FIND(K106,B106,1))-2),IF(AND(MID(Table5[[#This Row],[GL Account]],14,6)<>"696530",MID(Table5[[#This Row],[GL Account]],14,6)<>"696570"),"",IF(MID(Table5[[#This Row],[GL Account]],21,2)="53","Fringe Benefits",VLOOKUP(RIGHT(Table5[[#This Row],[GL Account]],5),Object,2,FALSE))))&IF(RIGHT(Table5[[#This Row],[GL Account]],5)="29599",IF(MID(A106,4,4)="0000",""," "&MID(A106,4,4))&" - "&LEFT(Table5[[#This Row],[ GL Description]],FIND(" : ",Table5[[#This Row],[ GL Description]])),"") -> 696200 - AS-A/P | M106: =IF(MID(A106,21,1)="2",0,IF(OR(MID(Table5[[#This Row],[GL Account]],14,6)="696520",AND(MID(A106,14,6)="696530",MID(Table5[[#This Row],[GL Account]],21,1)="4")),0,ROUND(SUMIF(Table5[GL Account],Table5[[#This Row],[GL Account]],Table5[Amount])-SUMIFS(Table2[Amount],Table2[Type],"Activity",Table2[Account Number],GLTB!A106),2))) -> 0 | N106: =IF(Table5[[#This Row],[Difference]]=0,"",IF(ISNA(VLOOKUP(Table5[[#This Row],[0]],Table1[],1,FALSE)),"","X")) -> 
A107: 71-0000-1960-696200-29512 | B107: Gen : A/P-Current : AS-A/P : Stdnt Development/Campus Life : Assoc Students | C107: 2022-01-27 | D107: CD | E107: 'MF*0103859' | F107: US Bank Equipment Finance | H107: 87.56 | J107: -87.56 | K107: =IF(MID(Table5[[#This Row],[GL Account]],21,1)="2",MID(Table5[[#This Row],[ GL Description]],FIND(":",Table5[[#This Row],[ GL Description]],1)+2,FIND(":",Table5[[#This Row],[ GL Description]],FIND(":",Table5[[#This Row],[ GL Description]],1)+1)-FIND(":",Table5[[#This Row],[ GL Description]],1)-2),MID(Table5[[#This Row],[GL Account]],14,6)&" "&VLOOKUP(VALUE(MID(Table5[[#This Row],[GL Account]],14,6)),PgmList,2,FALSE)) -> A/P-Current | L107: =IF(MID(A107,21,1)="2",MID(A107,14,6)&" - "&MID(B107,FIND(":",B107,FIND(K107,B107,1))+2,FIND(":",B107,FIND(":",B107,FIND(K107,B107,1))+1)-FIND(":",B107,FIND(K107,B107,1))-2),IF(AND(MID(Table5[[#This Row],[GL Account]],14,6)<>"696530",MID(Table5[[#This Row],[GL Account]],14,6)<>"696570"),"",IF(MID(Table5[[#This Row],[GL Account]],21,2)="53","Fringe Benefits",VLOOKUP(RIGHT(Table5[[#This Row],[GL Account]],5),Object,2,FALSE))))&IF(RIGHT(Table5[[#This Row],[GL Account]],5)="29599",IF(MID(A107,4,4)="0000",""," "&MID(A107,4,4))&" - "&LEFT(Table5[[#This Row],[ GL Description]],FIND(" : ",Table5[[#This Row],[ GL Description]])),"") -> 696200 - AS-A/P | M107: =IF(MID(A107,21,1)="2",0,IF(OR(MID(Table5[[#This Row],[GL Account]],14,6)="696520",AND(MID(A107,14,6)="696530",MID(Table5[[#This Row],[GL Account]],21,1)="4")),0,ROUND(SUMIF(Table5[GL Account],Table5[[#This Row],[GL Account]],Table5[Amount])-SUMIFS(Table2[Amount],Table2[Type],"Activity",Table2[Account Number],GLTB!A107),2))) -> 0 | N107: =IF(Table5[[#This Row],[Difference]]=0,"",IF(ISNA(VLOOKUP(Table5[[#This Row],[0]],Table1[],1,FALSE)),"","X")) -> 
A108: 71-0000-1960-696200-29512 | B108: Gen : A/P-Current : AS-A/P : Stdnt Development/Campus Life : Assoc Students | C108: 2022-01-27 | D108: CD | E108: 'MF*0103860' | F108: Company West Designs | H108: 860.84 | J108: -860.84 | K108: =IF(MID(Table5[[#This Row],[GL Account]],21,1)="2",MID(Table5[[#This Row],[ GL Description]],FIND(":",Table5[[#This Row],[ GL Description]],1)+2,FIND(":",Table5[[#This Row],[ GL Description]],FIND(":",Table5[[#This Row],[ GL Description]],1)+1)-FIND(":",Table5[[#This Row],[ GL Description]],1)-2),MID(Table5[[#This Row],[GL Account]],14,6)&" "&VLOOKUP(VALUE(MID(Table5[[#This Row],[GL Account]],14,6)),PgmList,2,FALSE)) -> A/P-Current | L108: =IF(MID(A108,21,1)="2",MID(A108,14,6)&" - "&MID(B108,FIND(":",B108,FIND(K108,B108,1))+2,FIND(":",B108,FIND(":",B108,FIND(K108,B108,1))+1)-FIND(":",B108,FIND(K108,B108,1))-2),IF(AND(MID(Table5[[#This Row],[GL Account]],14,6)<>"696530",MID(Table5[[#This Row],[GL Account]],14,6)<>"696570"),"",IF(MID(Table5[[#This Row],[GL Account]],21,2)="53","Fringe Benefits",VLOOKUP(RIGHT(Table5[[#This Row],[GL Account]],5),Object,2,FALSE))))&IF(RIGHT(Table5[[#This Row],[GL Account]],5)="29599",IF(MID(A108,4,4)="0000",""," "&MID(A108,4,4))&" - "&LEFT(Table5[[#This Row],[ GL Description]],FIND(" : ",Table5[[#This Row],[ GL Description]])),"") -> 696200 - AS-A/P | M108: =IF(MID(A108,21,1)="2",0,IF(OR(MID(Table5[[#This Row],[GL Account]],14,6)="696520",AND(MID(A108,14,6)="696530",MID(Table5[[#This Row],[GL Account]],21,1)="4")),0,ROUND(SUMIF(Table5[GL Account],Table5[[#This Row],[GL Account]],Table5[Amount])-SUMIFS(Table2[Amount],Table2[Type],"Activity",Table2[Account Number],GLTB!A108),2))) -> 0 | N108: =IF(Table5[[#This Row],[Difference]]=0,"",IF(ISNA(VLOOKUP(Table5[[#This Row],[0]],Table1[],1,FALSE)),"","X")) -> 
A109: 71-0000-1960-696200-29512 | B109: Gen : A/P-Current : AS-A/P : Stdnt Development/Campus Life : Assoc Students | C109: 2022-02-01 | D109: PJ | E109: 'V1309522' | F109: Lori M. Marchy | I109: 250 | J109: 250 | K109: =IF(MID(Table5[[#This Row],[GL Account]],21,1)="2",MID(Table5[[#This Row],[ GL Description]],FIND(":",Table5[[#This Row],[ GL Description]],1)+2,FIND(":",Table5[[#This Row],[ GL Description]],FIND(":",Table5[[#This Row],[ GL Description]],1)+1)-FIND(":",Table5[[#This Row],[ GL Description]],1)-2),MID(Table5[[#This Row],[GL Account]],14,6)&" "&VLOOKUP(VALUE(MID(Table5[[#This Row],[GL Account]],14,6)),PgmList,2,FALSE)) -> A/P-Current | L109: =IF(MID(A109,21,1)="2",MID(A109,14,6)&" - "&MID(B109,FIND(":",B109,FIND(K109,B109,1))+2,FIND(":",B109,FIND(":",B109,FIND(K109,B109,1))+1)-FIND(":",B109,FIND(K109,B109,1))-2),IF(AND(MID(Table5[[#This Row],[GL Account]],14,6)<>"696530",MID(Table5[[#This Row],[GL Account]],14,6)<>"696570"),"",IF(MID(Table5[[#This Row],[GL Account]],21,2)="53","Fringe Benefits",VLOOKUP(RIGHT(Table5[[#This Row],[GL Account]],5),Object,2,FALSE))))&IF(RIGHT(Table5[[#This Row],[GL Account]],5)="29599",IF(MID(A109,4,4)="0000",""," "&MID(A109,4,4))&" - "&LEFT(Table5[[#This Row],[ GL Description]],FIND(" : ",Table5[[#This Row],[ GL Description]])),"") -> 696200 - AS-A/P | M109: =IF(MID(A109,21,1)="2",0,IF(OR(MID(Table5[[#This Row],[GL Account]],14,6)="696520",AND(MID(A109,14,6)="696530",MID(Table5[[#This Row],[GL Account]],21,1)="4")),0,ROUND(SUMIF(Table5[GL Account],Table5[[#This Row],[GL Account]],Table5[Amount])-SUMIFS(Table2[Amount],Table2[Type],"Activity",Table2[Account Number],GLTB!A109),2))) -> 0 | N109: =IF(Table5[[#This Row],[Difference]]=0,"",IF(ISNA(VLOOKUP(Table5[[#This Row],[0]],Table1[],1,FALSE)),"","X")) -> 
A110: 71-0000-1960-696200-29512 | B110: Gen : A/P-Current : AS-A/P : Stdnt Development/Campus Life : Assoc Students | C110: 2022-02-01 | D110: PJ | E110: 'V1319584' | F110: Pepsi-Cola | I110: 603.45 | J110: 603.45 | K110: =IF(MID(Table5[[#This Row],[GL Account]],21,1)="2",MID(Table5[[#This Row],[ GL Description]],FIND(":",Table5[[#This Row],[ GL Description]],1)+2,FIND(":",Table5[[#This Row],[ GL Description]],FIND(":",Table5[[#This Row],[ GL Description]],1)+1)-FIND(":",Table5[[#This Row],[ GL Description]],1)-2),MID(Table5[[#This Row],[GL Account]],14,6)&" "&VLOOKUP(VALUE(MID(Table5[[#This Row],[GL Account]],14,6)),PgmList,2,FALSE)) -> A/P-Current | L110: =IF(MID(A110,21,1)="2",MID(A110,14,6)&" - "&MID(B110,FIND(":",B110,FIND(K110,B110,1))+2,FIND(":",B110,FIND(":",B110,FIND(K110,B110,1))+1)-FIND(":",B110,FIND(K110,B110,1))-2),IF(AND(MID(Table5[[#This Row],[GL Account]],14,6)<>"696530",MID(Table5[[#This Row],[GL Account]],14,6)<>"696570"),"",IF(MID(Table5[[#This Row],[GL Account]],21,2)="53","Fringe Benefits",VLOOKUP(RIGHT(Table5[[#This Row],[GL Account]],5),Object,2,FALSE))))&IF(RIGHT(Table5[[#This Row],[GL Account]],5)="29599",IF(MID(A110,4,4)="0000",""," "&MID(A110,4,4))&" - "&LEFT(Table5[[#This Row],[ GL Description]],FIND(" : ",Table5[[#This Row],[ GL Description]])),"") -> 696200 - AS-A/P | M110: =IF(MID(A110,21,1)="2",0,IF(OR(MID(Table5[[#This Row],[GL Account]],14,6)="696520",AND(MID(A110,14,6)="696530",MID(Table5[[#This Row],[GL Account]],21,1)="4")),0,ROUND(SUMIF(Table5[GL Account],Table5[[#This Row],[GL Account]],Table5[Amount])-SUMIFS(Table2[Amount],Table2[Type],"Activity",Table2[Account Number],GLTB!A110),2))) -> 0 | N110: =IF(Table5[[#This Row],[Difference]]=0,"",IF(ISNA(VLOOKUP(Table5[[#This Row],[0]],Table1[],1,FALSE)),"","X")) -> 
A111: 71-0000-1960-696200-29512 | B111: Gen : A/P-Current : AS-A/P : Stdnt Development/Campus Life : Assoc Students | C111: 2022-02-01 | D111: PJ | E111: 'V1319584' | F111: Pepsi-Cola | H111: 603.45 | J111: -603.45 | K111: =IF(MID(Table5[[#This Row],[GL Account]],21,1)="2",MID(Table5[[#This Row],[ GL Description]],FIND(":",Table5[[#This Row],[ GL Description]],1)+2,FIND(":",Table5[[#This Row],[ GL Description]],FIND(":",Table5[[#This Row],[ GL Description]],1)+1)-FIND(":",Table5[[#This Row],[ GL Description]],1)-2),MID(Table5[[#This Row],[GL Account]],14,6)&" "&VLOOKUP(VALUE(MID(Table5[[#This Row],[GL Account]],14,6)),PgmList,2,FALSE)) -> A/P-Current | L111: =IF(MID(A111,21,1)="2",MID(A111,14,6)&" - "&MID(B111,FIND(":",B111,FIND(K111,B111,1))+2,FIND(":",B111,FIND(":",B111,FIND(K111,B111,1))+1)-FIND(":",B111,FIND(K111,B111,1))-2),IF(AND(MID(Table5[[#This Row],[GL Account]],14,6)<>"696530",MID(Table5[[#This Row],[GL Account]],14,6)<>"696570"),"",IF(MID(Table5[[#This Row],[GL Account]],21,2)="53","Fringe Benefits",VLOOKUP(RIGHT(Table5[[#This Row],[GL Account]],5),Object,2,FALSE))))&IF(RIGHT(Table5[[#This Row],[GL Account]],5)="29599",IF(MID(A111,4,4)="0000",""," "&MID(A111,4,4))&" - "&LEFT(Table5[[#This Row],[ GL Description]],FIND(" : ",Table5[[#This Row],[ GL Description]])),"") -> 696200 - AS-A/P | M111: =IF(MID(A111,21,1)="2",0,IF(OR(MID(Table5[[#This Row],[GL Account]],14,6)="696520",AND(MID(A111,14,6)="696530",MID(Table5[[#This Row],[GL Account]],21,1)="4")),0,ROUND(SUMIF(Table5[GL Account],Table5[[#This Row],[GL Account]],Table5[Amount])-SUMIFS(Table2[Amount],Table2[Type],"Activity",Table2[Account Number],GLTB!A111),2))) -> 0 | N111: =IF(Table5[[#This Row],[Difference]]=0,"",IF(ISNA(VLOOKUP(Table5[[#This Row],[0]],Table1[],1,FALSE)),"","X")) -> 
A112: 71-0000-1960-696200-29512 | B112: Gen : A/P-Current : AS-A/P : Stdnt Development/Campus Life : Assoc Students | C112: 2022-02-01 | D112: PJ | E112: 'V1319584' | F112: Pepsi-Cola | I112: 603.45 | J112: 603.45 | K112: =IF(MID(Table5[[#This Row],[GL Account]],21,1)="2",MID(Table5[[#This Row],[ GL Description]],FIND(":",Table5[[#This Row],[ GL Description]],1)+2,FIND(":",Table5[[#This Row],[ GL Description]],FIND(":",Table5[[#This Row],[ GL Description]],1)+1)-FIND(":",Table5[[#This Row],[ GL Description]],1)-2),MID(Table5[[#This Row],[GL Account]],14,6)&" "&VLOOKUP(VALUE(MID(Table5[[#This Row],[GL Account]],14,6)),PgmList,2,FALSE)) -> A/P-Current | L112: =IF(MID(A112,21,1)="2",MID(A112,14,6)&" - "&MID(B112,FIND(":",B112,FIND(K112,B112,1))+2,FIND(":",B112,FIND(":",B112,FIND(K112,B112,1))+1)-FIND(":",B112,FIND(K112,B112,1))-2),IF(AND(MID(Table5[[#This Row],[GL Account]],14,6)<>"696530",MID(Table5[[#This Row],[GL Account]],14,6)<>"696570"),"",IF(MID(Table5[[#This Row],[GL Account]],21,2)="53","Fringe Benefits",VLOOKUP(RIGHT(Table5[[#This Row],[GL Account]],5),Object,2,FALSE))))&IF(RIGHT(Table5[[#This Row],[GL Account]],5)="29599",IF(MID(A112,4,4)="0000",""," "&MID(A112,4,4))&" - "&LEFT(Table5[[#This Row],[ GL Description]],FIND(" : ",Table5[[#This Row],[ GL Description]])),"") -> 696200 - AS-A/P | M112: =IF(MID(A112,21,1)="2",0,IF(OR(MID(Table5[[#This Row],[GL Account]],14,6)="696520",AND(MID(A112,14,6)="696530",MID(Table5[[#This Row],[GL Account]],21,1)="4")),0,ROUND(SUMIF(Table5[GL Account],Table5[[#This Row],[GL Account]],Table5[Amount])-SUMIFS(Table2[Amount],Table2[Type],"Activity",Table2[Account Number],GLTB!A112),2))) -> 0 | N112: =IF(Table5[[#This Row],[Difference]]=0,"",IF(ISNA(VLOOKUP(Table5[[#This Row],[0]],Table1[],1,FALSE)),"","X")) -> 
A113: 71-0000-1960-696200-29512 | B113: Gen : A/P-Current : AS-A/P : Stdnt Development/Campus Life : Assoc Students | C113: 2022-02-03 | D113: CD | E113: 'MF*0103861' | F113: Terry B. Green | H113: 1000 | J113: -1000 | K113: =IF(MID(Table5[[#This Row],[GL Account]],21,1)="2",MID(Table5[[#This Row],[ GL Description]],FIND(":",Table5[[#This Row],[ GL Description]],1)+2,FIND(":",Table5[[#This Row],[ GL Description]],FIND(":",Table5[[#This Row],[ GL Description]],1)+1)-FIND(":",Table5[[#This Row],[ GL Description]],1)-2),MID(Table5[[#This Row],[GL Account]],14,6)&" "&VLOOKUP(VALUE(MID(Table5[[#This Row],[GL Account]],14,6)),PgmList,2,FALSE)) -> A/P-Current | L113: =IF(MID(A113,21,1)="2",MID(A113,14,6)&" - "&MID(B113,FIND(":",B113,FIND(K113,B113,1))+2,FIND(":",B113,FIND(":",B113,FIND(K113,B113,1))+1)-FIND(":",B113,FIND(K113,B113,1))-2),IF(AND(MID(Table5[[#This Row],[GL Account]],14,6)<>"696530",MID(Table5[[#This Row],[GL Account]],14,6)<>"696570"),"",IF(MID(Table5[[#This Row],[GL Account]],21,2)="53","Fringe Benefits",VLOOKUP(RIGHT(Table5[[#This Row],[GL Account]],5),Object,2,FALSE))))&IF(RIGHT(Table5[[#This Row],[GL Account]],5)="29599",IF(MID(A113,4,4)="0000",""," "&MID(A113,4,4))&" - "&LEFT(Table5[[#This Row],[ GL Description]],FIND(" : ",Table5[[#This Row],[ GL Description]])),"") -> 696200 - AS-A/P | M113: =IF(MID(A113,21,1)="2",0,IF(OR(MID(Table5[[#This Row],[GL Account]],14,6)="696520",AND(MID(A113,14,6)="696530",MID(Table5[[#This Row],[GL Account]],21,1)="4")),0,ROUND(SUMIF(Table5[GL Account],Table5[[#This Row],[GL Account]],Table5[Amount])-SUMIFS(Table2[Amount],Table2[Type],"Activity",Table2[Account Number],GLTB!A113),2))) -> 0 | N113: =IF(Table5[[#This Row],[Difference]]=0,"",IF(ISNA(VLOOKUP(Table5[[#This Row],[0]],Table1[],1,FALSE)),"","X")) -> 
A114: 71-0000-1960-696200-29512 | B114: Gen : A/P-Current : AS-A/P : Stdnt Development/Campus Life : Assoc Students | C114: 2022-02-03 | D114: CD | E114: 'MF*0103862' | F114: United Site Services | H114: 137.8 | J114: -137.8 | K114: =IF(MID(Table5[[#This Row],[GL Account]],21,1)="2",MID(Table5[[#This Row],[ GL Description]],FIND(":",Table5[[#This Row],[ GL Description]],1)+2,FIND(":",Table5[[#This Row],[ GL Description]],FIND(":",Table5[[#This Row],[ GL Description]],1)+1)-FIND(":",Table5[[#This Row],[ GL Description]],1)-2),MID(Table5[[#This Row],[GL Account]],14,6)&" "&VLOOKUP(VALUE(MID(Table5[[#This Row],[GL Account]],14,6)),PgmList,2,FALSE)) -> A/P-Current | L114: =IF(MID(A114,21,1)="2",MID(A114,14,6)&" - "&MID(B114,FIND(":",B114,FIND(K114,B114,1))+2,FIND(":",B114,FIND(":",B114,FIND(K114,B114,1))+1)-FIND(":",B114,FIND(K114,B114,1))-2),IF(AND(MID(Table5[[#This Row],[GL Account]],14,6)<>"696530",MID(Table5[[#This Row],[GL Account]],14,6)<>"696570"),"",IF(MID(Table5[[#This Row],[GL Account]],21,2)="53","Fringe Benefits",VLOOKUP(RIGHT(Table5[[#This Row],[GL Account]],5),Object,2,FALSE))))&IF(RIGHT(Table5[[#This Row],[GL Account]],5)="29599",IF(MID(A114,4,4)="0000",""," "&MID(A114,4,4))&" - "&LEFT(Table5[[#This Row],[ GL Description]],FIND(" : ",Table5[[#This Row],[ GL Description]])),"") -> 696200 - AS-A/P | M114: =IF(MID(A114,21,1)="2",0,IF(OR(MID(Table5[[#This Row],[GL Account]],14,6)="696520",AND(MID(A114,14,6)="696530",MID(Table5[[#This Row],[GL Account]],21,1)="4")),0,ROUND(SUMIF(Table5[GL Account],Table5[[#This Row],[GL Account]],Table5[Amount])-SUMIFS(Table2[Amount],Table2[Type],"Activity",Table2[Account Number],GLTB!A114),2))) -> 0 | N114: =IF(Table5[[#This Row],[Difference]]=0,"",IF(ISNA(VLOOKUP(Table5[[#This Row],[0]],Table1[],1,FALSE)),"","X")) -> 
A115: 71-0000-1960-696200-29512 | B115: Gen : A/P-Current : AS-A/P : Stdnt Development/Campus Life : Assoc Students | C115: 2022-02-09 | D115: PJ | E115: 'V1319583' | F115: Alejandra Espinoza | I115: 56.02 | J115: 56.02 | K115: =IF(MID(Table5[[#This Row],[GL Account]],21,1)="2",MID(Table5[[#This Row],[ GL Description]],FIND(":",Table5[[#This Row],[ GL Description]],1)+2,FIND(":",Table5[[#This Row],[ GL Description]],FIND(":",Table5[[#This Row],[ GL Description]],1)+1)-FIND(":",Table5[[#This Row],[ GL Description]],1)-2),MID(Table5[[#This Row],[GL Account]],14,6)&" "&VLOOKUP(VALUE(MID(Table5[[#This Row],[GL Account]],14,6)),PgmList,2,FALSE)) -> A/P-Current | L115: =IF(MID(A115,21,1)="2",MID(A115,14,6)&" - "&MID(B115,FIND(":",B115,FIND(K115,B115,1))+2,FIND(":",B115,FIND(":",B115,FIND(K115,B115,1))+1)-FIND(":",B115,FIND(K115,B115,1))-2),IF(AND(MID(Table5[[#This Row],[GL Account]],14,6)<>"696530",MID(Table5[[#This Row],[GL Account]],14,6)<>"696570"),"",IF(MID(Table5[[#This Row],[GL Account]],21,2)="53","Fringe Benefits",VLOOKUP(RIGHT(Table5[[#This Row],[GL Account]],5),Object,2,FALSE))))&IF(RIGHT(Table5[[#This Row],[GL Account]],5)="29599",IF(MID(A115,4,4)="0000",""," "&MID(A115,4,4))&" - "&LEFT(Table5[[#This Row],[ GL Description]],FIND(" : ",Table5[[#This Row],[ GL Description]])),"") -> 696200 - AS-A/P | M115: =IF(MID(A115,21,1)="2",0,IF(OR(MID(Table5[[#This Row],[GL Account]],14,6)="696520",AND(MID(A115,14,6)="696530",MID(Table5[[#This Row],[GL Account]],21,1)="4")),0,ROUND(SUMIF(Table5[GL Account],Table5[[#This Row],[GL Account]],Table5[Amount])-SUMIFS(Table2[Amount],Table2[Type],"Activity",Table2[Account Number],GLTB!A115),2))) -> 0 | N115: =IF(Table5[[#This Row],[Difference]]=0,"",IF(ISNA(VLOOKUP(Table5[[#This Row],[0]],Table1[],1,FALSE)),"","X")) -> 
A116: 71-0000-1960-696200-29512 | B116: Gen : A/P-Current : AS-A/P : Stdnt Development/Campus Life : Assoc Students | C116: 2022-02-10 | D116: CD | E116: 'MF*0103863' | F116: Lori M. Marchy | H116: 250 | J116: -250 | K116: =IF(MID(Table5[[#This Row],[GL Account]],21,1)="2",MID(Table5[[#This Row],[ GL Description]],FIND(":",Table5[[#This Row],[ GL Description]],1)+2,FIND(":",Table5[[#This Row],[ GL Description]],FIND(":",Table5[[#This Row],[ GL Description]],1)+1)-FIND(":",Table5[[#This Row],[ GL Description]],1)-2),MID(Table5[[#This Row],[GL Account]],14,6)&" "&VLOOKUP(VALUE(MID(Table5[[#This Row],[GL Account]],14,6)),PgmList,2,FALSE)) -> A/P-Current | L116: =IF(MID(A116,21,1)="2",MID(A116,14,6)&" - "&MID(B116,FIND(":",B116,FIND(K116,B116,1))+2,FIND(":",B116,FIND(":",B116,FIND(K116,B116,1))+1)-FIND(":",B116,FIND(K116,B116,1))-2),IF(AND(MID(Table5[[#This Row],[GL Account]],14,6)<>"696530",MID(Table5[[#This Row],[GL Account]],14,6)<>"696570"),"",IF(MID(Table5[[#This Row],[GL Account]],21,2)="53","Fringe Benefits",VLOOKUP(RIGHT(Table5[[#This Row],[GL Account]],5),Object,2,FALSE))))&IF(RIGHT(Table5[[#This Row],[GL Account]],5)="29599",IF(MID(A116,4,4)="0000",""," "&MID(A116,4,4))&" - "&LEFT(Table5[[#This Row],[ GL Description]],FIND(" : ",Table5[[#This Row],[ GL Description]])),"") -> 696200 - AS-A/P | M116: =IF(MID(A116,21,1)="2",0,IF(OR(MID(Table5[[#This Row],[GL Account]],14,6)="696520",AND(MID(A116,14,6)="696530",MID(Table5[[#This Row],[GL Account]],21,1)="4")),0,ROUND(SUMIF(Table5[GL Account],Table5[[#This Row],[GL Account]],Table5[Amount])-SUMIFS(Table2[Amount],Table2[Type],"Activity",Table2[Account Number],GLTB!A116),2))) -> 0 | N116: =IF(Table5[[#This Row],[Difference]]=0,"",IF(ISNA(VLOOKUP(Table5[[#This Row],[0]],Table1[],1,FALSE)),"","X")) -> 
A117: 71-0000-1960-696200-29512 | B117: Gen : A/P-Current : AS-A/P : Stdnt Development/Campus Life : Assoc Students | C117: 2022-02-10 | D117: CD | E117: 'MF*0103864' | F117: US Bank Equipment Finance | H117: 87.56 | J117: -87.56 | K117: =IF(MID(Table5[[#This Row],[GL Account]],21,1)="2",MID(Table5[[#This Row],[ GL Description]],FIND(":",Table5[[#This Row],[ GL Description]],1)+2,FIND(":",Table5[[#This Row],[ GL Description]],FIND(":",Table5[[#This Row],[ GL Description]],1)+1)-FIND(":",Table5[[#This Row],[ GL Description]],1)-2),MID(Table5[[#This Row],[GL Account]],14,6)&" "&VLOOKUP(VALUE(MID(Table5[[#This Row],[GL Account]],14,6)),PgmList,2,FALSE)) -> A/P-Current | L117: =IF(MID(A117,21,1)="2",MID(A117,14,6)&" - "&MID(B117,FIND(":",B117,FIND(K117,B117,1))+2,FIND(":",B117,FIND(":",B117,FIND(K117,B117,1))+1)-FIND(":",B117,FIND(K117,B117,1))-2),IF(AND(MID(Table5[[#This Row],[GL Account]],14,6)<>"696530",MID(Table5[[#This Row],[GL Account]],14,6)<>"696570"),"",IF(MID(Table5[[#This Row],[GL Account]],21,2)="53","Fringe Benefits",VLOOKUP(RIGHT(Table5[[#This Row],[GL Account]],5),Object,2,FALSE))))&IF(RIGHT(Table5[[#This Row],[GL Account]],5)="29599",IF(MID(A117,4,4)="0000",""," "&MID(A117,4,4))&" - "&LEFT(Table5[[#This Row],[ GL Description]],FIND(" : ",Table5[[#This Row],[ GL Description]])),"") -> 696200 - AS-A/P | M117: =IF(MID(A117,21,1)="2",0,IF(OR(MID(Table5[[#This Row],[GL Account]],14,6)="696520",AND(MID(A117,14,6)="696530",MID(Table5[[#This Row],[GL Account]],21,1)="4")),0,ROUND(SUMIF(Table5[GL Account],Table5[[#This Row],[GL Account]],Table5[Amount])-SUMIFS(Table2[Amount],Table2[Type],"Activity",Table2[Account Number],GLTB!A117),2))) -> 0 | N117: =IF(Table5[[#This Row],[Difference]]=0,"",IF(ISNA(VLOOKUP(Table5[[#This Row],[0]],Table1[],1,FALSE)),"","X")) -> 
A118: 71-0000-1960-696200-29512 | B118: Gen : A/P-Current : AS-A/P : Stdnt Development/Campus Life : Assoc Students | C118: 2022-02-10 | D118: CD | E118: 'MF*0103865' | F118: Company West Designs | H118: 165.75 | J118: -165.75 | K118: =IF(MID(Table5[[#This Row],[GL Account]],21,1)="2",MID(Table5[[#This Row],[ GL Description]],FIND(":",Table5[[#This Row],[ GL Description]],1)+2,FIND(":",Table5[[#This Row],[ GL Description]],FIND(":",Table5[[#This Row],[ GL Description]],1)+1)-FIND(":",Table5[[#This Row],[ GL Description]],1)-2),MID(Table5[[#This Row],[GL Account]],14,6)&" "&VLOOKUP(VALUE(MID(Table5[[#This Row],[GL Account]],14,6)),PgmList,2,FALSE)) -> A/P-Current | L118: =IF(MID(A118,21,1)="2",MID(A118,14,6)&" - "&MID(B118,FIND(":",B118,FIND(K118,B118,1))+2,FIND(":",B118,FIND(":",B118,FIND(K118,B118,1))+1)-FIND(":",B118,FIND(K118,B118,1))-2),IF(AND(MID(Table5[[#This Row],[GL Account]],14,6)<>"696530",MID(Table5[[#This Row],[GL Account]],14,6)<>"696570"),"",IF(MID(Table5[[#This Row],[GL Account]],21,2)="53","Fringe Benefits",VLOOKUP(RIGHT(Table5[[#This Row],[GL Account]],5),Object,2,FALSE))))&IF(RIGHT(Table5[[#This Row],[GL Account]],5)="29599",IF(MID(A118,4,4)="0000",""," "&MID(A118,4,4))&" - "&LEFT(Table5[[#This Row],[ GL Description]],FIND(" : ",Table5[[#This Row],[ GL Description]])),"") -> 696200 - AS-A/P | M118: =IF(MID(A118,21,1)="2",0,IF(OR(MID(Table5[[#This Row],[GL Account]],14,6)="696520",AND(MID(A118,14,6)="696530",MID(Table5[[#This Row],[GL Account]],21,1)="4")),0,ROUND(SUMIF(Table5[GL Account],Table5[[#This Row],[GL Account]],Table5[Amount])-SUMIFS(Table2[Amount],Table2[Type],"Activity",Table2[Account Number],GLTB!A118),2))) -> 0 | N118: =IF(Table5[[#This Row],[Difference]]=0,"",IF(ISNA(VLOOKUP(Table5[[#This Row],[0]],Table1[],1,FALSE)),"","X")) -> 
A119: 71-0000-1960-696200-29512 | B119: Gen : A/P-Current : AS-A/P : Stdnt Development/Campus Life : Assoc Students | C119: 2022-02-15 | D119: CD | E119: 'MF*0103866' | F119: Alejandra Espinoza | H119: 56.02 | J119: -56.02 | K119: =IF(MID(Table5[[#This Row],[GL Account]],21,1)="2",MID(Table5[[#This Row],[ GL Description]],FIND(":",Table5[[#This Row],[ GL Description]],1)+2,FIND(":",Table5[[#This Row],[ GL Description]],FIND(":",Table5[[#This Row],[ GL Description]],1)+1)-FIND(":",Table5[[#This Row],[ GL Description]],1)-2),MID(Table5[[#This Row],[GL Account]],14,6)&" "&VLOOKUP(VALUE(MID(Table5[[#This Row],[GL Account]],14,6)),PgmList,2,FALSE)) -> A/P-Current | L119: =IF(MID(A119,21,1)="2",MID(A119,14,6)&" - "&MID(B119,FIND(":",B119,FIND(K119,B119,1))+2,FIND(":",B119,FIND(":",B119,FIND(K119,B119,1))+1)-FIND(":",B119,FIND(K119,B119,1))-2),IF(AND(MID(Table5[[#This Row],[GL Account]],14,6)<>"696530",MID(Table5[[#This Row],[GL Account]],14,6)<>"696570"),"",IF(MID(Table5[[#This Row],[GL Account]],21,2)="53","Fringe Benefits",VLOOKUP(RIGHT(Table5[[#This Row],[GL Account]],5),Object,2,FALSE))))&IF(RIGHT(Table5[[#This Row],[GL Account]],5)="29599",IF(MID(A119,4,4)="0000",""," "&MID(A119,4,4))&" - "&LEFT(Table5[[#This Row],[ GL Description]],FIND(" : ",Table5[[#This Row],[ GL Description]])),"") -> 696200 - AS-A/P | M119: =IF(MID(A119,21,1)="2",0,IF(OR(MID(Table5[[#This Row],[GL Account]],14,6)="696520",AND(MID(A119,14,6)="696530",MID(Table5[[#This Row],[GL Account]],21,1)="4")),0,ROUND(SUMIF(Table5[GL Account],Table5[[#This Row],[GL Account]],Table5[Amount])-SUMIFS(Table2[Amount],Table2[Type],"Activity",Table2[Account Number],GLTB!A119),2))) -> 0 | N119: =IF(Table5[[#This Row],[Difference]]=0,"",IF(ISNA(VLOOKUP(Table5[[#This Row],[0]],Table1[],1,FALSE)),"","X")) -> 
A120: 71-0000-1960-696200-29512 | B120: Gen : A/P-Current : AS-A/P : Stdnt Development/Campus Life : Assoc Students | C120: 2022-02-15 | D120: CD | E120: 'MF*0103867' | F120: Pepsi-Cola | H120: 603.45 | J120: -603.45 | K120: =IF(MID(Table5[[#This Row],[GL Account]],21,1)="2",MID(Table5[[#This Row],[ GL Description]],FIND(":",Table5[[#This Row],[ GL Description]],1)+2,FIND(":",Table5[[#This Row],[ GL Description]],FIND(":",Table5[[#This Row],[ GL Description]],1)+1)-FIND(":",Table5[[#This Row],[ GL Description]],1)-2),MID(Table5[[#This Row],[GL Account]],14,6)&" "&VLOOKUP(VALUE(MID(Table5[[#This Row],[GL Account]],14,6)),PgmList,2,FALSE)) -> A/P-Current | L120: =IF(MID(A120,21,1)="2",MID(A120,14,6)&" - "&MID(B120,FIND(":",B120,FIND(K120,B120,1))+2,FIND(":",B120,FIND(":",B120,FIND(K120,B120,1))+1)-FIND(":",B120,FIND(K120,B120,1))-2),IF(AND(MID(Table5[[#This Row],[GL Account]],14,6)<>"696530",MID(Table5[[#This Row],[GL Account]],14,6)<>"696570"),"",IF(MID(Table5[[#This Row],[GL Account]],21,2)="53","Fringe Benefits",VLOOKUP(RIGHT(Table5[[#This Row],[GL Account]],5),Object,2,FALSE))))&IF(RIGHT(Table5[[#This Row],[GL Account]],5)="29599",IF(MID(A120,4,4)="0000",""," "&MID(A120,4,4))&" - "&LEFT(Table5[[#This Row],[ GL Description]],FIND(" : ",Table5[[#This Row],[ GL Description]])),"") -> 696200 - AS-A/P | M120: =IF(MID(A120,21,1)="2",0,IF(OR(MID(Table5[[#This Row],[GL Account]],14,6)="696520",AND(MID(A120,14,6)="696530",MID(Table5[[#This Row],[GL Account]],21,1)="4")),0,ROUND(SUMIF(Table5[GL Account],Table5[[#This Row],[GL Account]],Table5[Amount])-SUMIFS(Table2[Amount],Table2[Type],"Activity",Table2[Account Number],GLTB!A120),2))) -> 0 | N120: =IF(Table5[[#This Row],[Difference]]=0,"",IF(ISNA(VLOOKUP(Table5[[#This Row],[0]],Table1[],1,FALSE)),"","X")) -> 
A121: 71-0000-1960-696200-29512 | B121: Gen : A/P-Current : AS-A/P : Stdnt Development/Campus Life : Assoc Students | C121: 2022-02-17 | D121: PJ | E121: 'V1325909' | F121: Joaquin R. Amaral | I121: 24.96 | J121: 24.96 | K121: =IF(MID(Table5[[#This Row],[GL Account]],21,1)="2",MID(Table5[[#This Row],[ GL Description]],FIND(":",Table5[[#This Row],[ GL Description]],1)+2,FIND(":",Table5[[#This Row],[ GL Description]],FIND(":",Table5[[#This Row],[ GL Description]],1)+1)-FIND(":",Table5[[#This Row],[ GL Description]],1)-2),MID(Table5[[#This Row],[GL Account]],14,6)&" "&VLOOKUP(VALUE(MID(Table5[[#This Row],[GL Account]],14,6)),PgmList,2,FALSE)) -> A/P-Current | L121: =IF(MID(A121,21,1)="2",MID(A121,14,6)&" - "&MID(B121,FIND(":",B121,FIND(K121,B121,1))+2,FIND(":",B121,FIND(":",B121,FIND(K121,B121,1))+1)-FIND(":",B121,FIND(K121,B121,1))-2),IF(AND(MID(Table5[[#This Row],[GL Account]],14,6)<>"696530",MID(Table5[[#This Row],[GL Account]],14,6)<>"696570"),"",IF(MID(Table5[[#This Row],[GL Account]],21,2)="53","Fringe Benefits",VLOOKUP(RIGHT(Table5[[#This Row],[GL Account]],5),Object,2,FALSE))))&IF(RIGHT(Table5[[#This Row],[GL Account]],5)="29599",IF(MID(A121,4,4)="0000",""," "&MID(A121,4,4))&" - "&LEFT(Table5[[#This Row],[ GL Description]],FIND(" : ",Table5[[#This Row],[ GL Description]])),"") -> 696200 - AS-A/P | M121: =IF(MID(A121,21,1)="2",0,IF(OR(MID(Table5[[#This Row],[GL Account]],14,6)="696520",AND(MID(A121,14,6)="696530",MID(Table5[[#This Row],[GL Account]],21,1)="4")),0,ROUND(SUMIF(Table5[GL Account],Table5[[#This Row],[GL Account]],Table5[Amount])-SUMIFS(Table2[Amount],Table2[Type],"Activity",Table2[Account Number],GLTB!A121),2))) -> 0 | N121: =IF(Table5[[#This Row],[Difference]]=0,"",IF(ISNA(VLOOKUP(Table5[[#This Row],[0]],Table1[],1,FALSE)),"","X")) -> 
A122: 71-0000-1960-696200-29512 | B122: Gen : A/P-Current : AS-A/P : Stdnt Development/Campus Life : Assoc Students | C122: 2022-02-17 | D122: PJ | E122: 'V1325911' | F122: Lori M. Marchy | I122: 99.99 | J122: 99.99 | K122: =IF(MID(Table5[[#This Row],[GL Account]],21,1)="2",MID(Table5[[#This Row],[ GL Description]],FIND(":",Table5[[#This Row],[ GL Description]],1)+2,FIND(":",Table5[[#This Row],[ GL Description]],FIND(":",Table5[[#This Row],[ GL Description]],1)+1)-FIND(":",Table5[[#This Row],[ GL Description]],1)-2),MID(Table5[[#This Row],[GL Account]],14,6)&" "&VLOOKUP(VALUE(MID(Table5[[#This Row],[GL Account]],14,6)),PgmList,2,FALSE)) -> A/P-Current | L122: =IF(MID(A122,21,1)="2",MID(A122,14,6)&" - "&MID(B122,FIND(":",B122,FIND(K122,B122,1))+2,FIND(":",B122,FIND(":",B122,FIND(K122,B122,1))+1)-FIND(":",B122,FIND(K122,B122,1))-2),IF(AND(MID(Table5[[#This Row],[GL Account]],14,6)<>"696530",MID(Table5[[#This Row],[GL Account]],14,6)<>"696570"),"",IF(MID(Table5[[#This Row],[GL Account]],21,2)="53","Fringe Benefits",VLOOKUP(RIGHT(Table5[[#This Row],[GL Account]],5),Object,2,FALSE))))&IF(RIGHT(Table5[[#This Row],[GL Account]],5)="29599",IF(MID(A122,4,4)="0000",""," "&MID(A122,4,4))&" - "&LEFT(Table5[[#This Row],[ GL Description]],FIND(" : ",Table5[[#This Row],[ GL Description]])),"") -> 696200 - AS-A/P | M122: =IF(MID(A122,21,1)="2",0,IF(OR(MID(Table5[[#This Row],[GL Account]],14,6)="696520",AND(MID(A122,14,6)="696530",MID(Table5[[#This Row],[GL Account]],21,1)="4")),0,ROUND(SUMIF(Table5[GL Account],Table5[[#This Row],[GL Account]],Table5[Amount])-SUMIFS(Table2[Amount],Table2[Type],"Activity",Table2[Account Number],GLTB!A122),2))) -> 0 | N122: =IF(Table5[[#This Row],[Difference]]=0,"",IF(ISNA(VLOOKUP(Table5[[#This Row],[0]],Table1[],1,FALSE)),"","X")) -> 
A123: 71-0000-1960-696200-29512 | B123: Gen : A/P-Current : AS-A/P : Stdnt Development/Campus Life : Assoc Students | C123: 2022-02-22 | D123: PJ | E123: 'V1328863' | F123: US Bank Equipment Finance | I123: 80.13 | J123: 80.13 | K123: =IF(MID(Table5[[#This Row],[GL Account]],21,1)="2",MID(Table5[[#This Row],[ GL Description]],FIND(":",Table5[[#This Row],[ GL Description]],1)+2,FIND(":",Table5[[#This Row],[ GL Description]],FIND(":",Table5[[#This Row],[ GL Description]],1)+1)-FIND(":",Table5[[#This Row],[ GL Description]],1)-2),MID(Table5[[#This Row],[GL Account]],14,6)&" "&VLOOKUP(VALUE(MID(Table5[[#This Row],[GL Account]],14,6)),PgmList,2,FALSE)) -> A/P-Current | L123: =IF(MID(A123,21,1)="2",MID(A123,14,6)&" - "&MID(B123,FIND(":",B123,FIND(K123,B123,1))+2,FIND(":",B123,FIND(":",B123,FIND(K123,B123,1))+1)-FIND(":",B123,FIND(K123,B123,1))-2),IF(AND(MID(Table5[[#This Row],[GL Account]],14,6)<>"696530",MID(Table5[[#This Row],[GL Account]],14,6)<>"696570"),"",IF(MID(Table5[[#This Row],[GL Account]],21,2)="53","Fringe Benefits",VLOOKUP(RIGHT(Table5[[#This Row],[GL Account]],5),Object,2,FALSE))))&IF(RIGHT(Table5[[#This Row],[GL Account]],5)="29599",IF(MID(A123,4,4)="0000",""," "&MID(A123,4,4))&" - "&LEFT(Table5[[#This Row],[ GL Description]],FIND(" : ",Table5[[#This Row],[ GL Description]])),"") -> 696200 - AS-A/P | M123: =IF(MID(A123,21,1)="2",0,IF(OR(MID(Table5[[#This Row],[GL Account]],14,6)="696520",AND(MID(A123,14,6)="696530",MID(Table5[[#This Row],[GL Account]],21,1)="4")),0,ROUND(SUMIF(Table5[GL Account],Table5[[#This Row],[GL Account]],Table5[Amount])-SUMIFS(Table2[Amount],Table2[Type],"Activity",Table2[Account Number],GLTB!A123),2))) -> 0 | N123: =IF(Table5[[#This Row],[Difference]]=0,"",IF(ISNA(VLOOKUP(Table5[[#This Row],[0]],Table1[],1,FALSE)),"","X")) -> 
A124: 71-0000-1960-696200-29512 | B124: Gen : A/P-Current : AS-A/P : Stdnt Development/Campus Life : Assoc Students | C124: 2022-02-23 | D124: CD | E124: 'MF*0103863' | F124: Lori M. Marchy | I124: 250 | J124: 250 | K124: =IF(MID(Table5[[#This Row],[GL Account]],21,1)="2",MID(Table5[[#This Row],[ GL Description]],FIND(":",Table5[[#This Row],[ GL Description]],1)+2,FIND(":",Table5[[#This Row],[ GL Description]],FIND(":",Table5[[#This Row],[ GL Description]],1)+1)-FIND(":",Table5[[#This Row],[ GL Description]],1)-2),MID(Table5[[#This Row],[GL Account]],14,6)&" "&VLOOKUP(VALUE(MID(Table5[[#This Row],[GL Account]],14,6)),PgmList,2,FALSE)) -> A/P-Current | L124: =IF(MID(A124,21,1)="2",MID(A124,14,6)&" - "&MID(B124,FIND(":",B124,FIND(K124,B124,1))+2,FIND(":",B124,FIND(":",B124,FIND(K124,B124,1))+1)-FIND(":",B124,FIND(K124,B124,1))-2),IF(AND(MID(Table5[[#This Row],[GL Account]],14,6)<>"696530",MID(Table5[[#This Row],[GL Account]],14,6)<>"696570"),"",IF(MID(Table5[[#This Row],[GL Account]],21,2)="53","Fringe Benefits",VLOOKUP(RIGHT(Table5[[#This Row],[GL Account]],5),Object,2,FALSE))))&IF(RIGHT(Table5[[#This Row],[GL Account]],5)="29599",IF(MID(A124,4,4)="0000",""," "&MID(A124,4,4))&" - "&LEFT(Table5[[#This Row],[ GL Description]],FIND(" : ",Table5[[#This Row],[ GL Description]])),"") -> 696200 - AS-A/P | M124: =IF(MID(A124,21,1)="2",0,IF(OR(MID(Table5[[#This Row],[GL Account]],14,6)="696520",AND(MID(A124,14,6)="696530",MID(Table5[[#This Row],[GL Account]],21,1)="4")),0,ROUND(SUMIF(Table5[GL Account],Table5[[#This Row],[GL Account]],Table5[Amount])-SUMIFS(Table2[Amount],Table2[Type],"Activity",Table2[Account Number],GLTB!A124),2))) -> 0 | N124: =IF(Table5[[#This Row],[Difference]]=0,"",IF(ISNA(VLOOKUP(Table5[[#This Row],[0]],Table1[],1,FALSE)),"","X")) -> 
A125: 71-0000-1960-696200-29512 | B125: Gen : A/P-Current : AS-A/P : Stdnt Development/Campus Life : Assoc Students | C125: 2022-02-23 | D125: PJ | E125: 'V1309522' | F125: Lori M. Marchy | H125: 250 | J125: -250 | K125: =IF(MID(Table5[[#This Row],[GL Account]],21,1)="2",MID(Table5[[#This Row],[ GL Description]],FIND(":",Table5[[#This Row],[ GL Description]],1)+2,FIND(":",Table5[[#This Row],[ GL Description]],FIND(":",Table5[[#This Row],[ GL Description]],1)+1)-FIND(":",Table5[[#This Row],[ GL Description]],1)-2),MID(Table5[[#This Row],[GL Account]],14,6)&" "&VLOOKUP(VALUE(MID(Table5[[#This Row],[GL Account]],14,6)),PgmList,2,FALSE)) -> A/P-Current | L125: =IF(MID(A125,21,1)="2",MID(A125,14,6)&" - "&MID(B125,FIND(":",B125,FIND(K125,B125,1))+2,FIND(":",B125,FIND(":",B125,FIND(K125,B125,1))+1)-FIND(":",B125,FIND(K125,B125,1))-2),IF(AND(MID(Table5[[#This Row],[GL Account]],14,6)<>"696530",MID(Table5[[#This Row],[GL Account]],14,6)<>"696570"),"",IF(MID(Table5[[#This Row],[GL Account]],21,2)="53","Fringe Benefits",VLOOKUP(RIGHT(Table5[[#This Row],[GL Account]],5),Object,2,FALSE))))&IF(RIGHT(Table5[[#This Row],[GL Account]],5)="29599",IF(MID(A125,4,4)="0000",""," "&MID(A125,4,4))&" - "&LEFT(Table5[[#This Row],[ GL Description]],FIND(" : ",Table5[[#This Row],[ GL Description]])),"") -> 696200 - AS-A/P | M125: =IF(MID(A125,21,1)="2",0,IF(OR(MID(Table5[[#This Row],[GL Account]],14,6)="696520",AND(MID(A125,14,6)="696530",MID(Table5[[#This Row],[GL Account]],21,1)="4")),0,ROUND(SUMIF(Table5[GL Account],Table5[[#This Row],[GL Account]],Table5[Amount])-SUMIFS(Table2[Amount],Table2[Type],"Activity",Table2[Account Number],GLTB!A125),2))) -> 0 | N125: =IF(Table5[[#This Row],[Difference]]=0,"",IF(ISNA(VLOOKUP(Table5[[#This Row],[0]],Table1[],1,FALSE)),"","X")) -> 
